Workbook

Sheet START

Sheet Instructions
D2: 2020
X4: Yes
X5: No
W7: Type of Entities Range:
X8: Parent Municipality
X9: Consolidated Information
F14: START
F15: Instructions
F16: Template names
F17: Lookup and lists | W17: MTREF Range: | X17: 2013
F18: Org structure | X18: 2014
F19: Contacts | X19: 2015
F20: A1-Sum | X20: 2016
F21: A2-FinPerf SC | X21: 2017
F22: A2A | X22: 2018
F23: A3-FinPerf V | X23: 2019
F24: A3A | X24: 2020
F25: A4-FinPerf RE | X25: 2021
F26: A5-Capex | X26: 2022
F27: A5A | X27: 2023
F28: A6-FinPos | X28: 2024
F29: A7-CFlow | X29: 2025
F30: A8-ResRecon | X30: 2026
F31: A9-Asset | X31: 2027
F32: A10-SerDel
F33: SA1 | W33: MTREF Linked: | X33: 10
F34: SA2 | W34: MTREF: | X34: =INDEX(X17:X26,X33,1) -> 2022
F35: SA3
F36: SA4 | W36: Fin Year: | X36: =MTREF&"/"&RIGHT(MTREF,2)+1 -> 2022/23
F37: SA5
F38: SA6
F39: SA7
F40: SA8
F41: SA9
F42: SA10
F43: SA11
F44: SA12a
F45: SA12b
F46: SA13a
F47: SA13b
F48: SA14
F49: SA15
F50: SA16
F51: SA17
F52: SA18
F53: SA19
F54: SA20
F55: SA21
F56: SA22
F57: SA23
F58: SA24
F59: SA25
F60: SA26
F61: SA27
F62: SA28
F63: SA29
F64: SA30
F65: SA31
F66: SA32
F67: SA33
F68: SA34a
F69: SA34b
F70: SA34c
F71: SA34d
F72: SA34e
F73: SA35
F74: SA36
F75: SA37
F76: SA38
F77: LGDB_EXPORT

Sheet Template names (hidden)
A1: Common sheet headings
A2: Head1 | B2: =HLOOKUP(MTREF,Headings,2) -> 2020/21 | C2: Prior year -1
A3: Head1A | B3: =HLOOKUP(MTREF,Headings,3) -> 2019/20 | C3: Prior year -2
A4: Head1B | B4: =HLOOKUP(MTREF,Headings,4) -> 2018/19 | C4: Prior year -3
A5: Head2 | B5: =HLOOKUP(MTREF,Headings,5) -> Current Year 2021/22 | C5: Year in which budget is being prepared
A6: Head2A | B6: =HLOOKUP(MTREF,Headings,6) -> 2021/22 | C6: Year in which budget is being prepared
A7: Head3 | B7: =HLOOKUP(MTREF,Headings,7) -> 2022/23 Medium Term Revenue & Expenditure Framework | C7: MTREF name
A8: Head4 | B8: LTFS | C8: Long term financial strategy
A9: Head5 | B9: Audited Outcome
A10: Head5A | B10: Outcome
A11: Head5B | B11: Pre-audit outcome
A12: Head6 | B12: Original Budget
A13: Head7 | B13: Adjusted Budget
A14: Head8 | B14: Full Year Forecast
A15: Head9 | B15: =HLOOKUP(MTREF,Headings,8) -> Budget Year 2022/23 | C15: 1st year of MTREF | D15: Year1
A16: Head10 | B16: =HLOOKUP(MTREF,Headings,9) -> Budget Year +1 2023/24 | C16: 2nd year of MTREF | D16: Year2
A17: Head11 | B17: =HLOOKUP(MTREF,Headings,10) -> Budget Year +2 2024/25 | C17: 3rd year of MTREF | D17: Year3
A18: Head12 | B18: =HLOOKUP(MTREF,Headings,11) -> Forecast 2025/26 | C18: 1st yr of long term forecast | D18: Year4
A19: Head13 | B19: =HLOOKUP(MTREF,Headings,12) -> Forecast 2026/27 | C19: Next yr of long term forecast | D19: Year5
A20: Head14 | B20: =HLOOKUP(MTREF,Headings,13) -> Forecast 2027/28 | C20: Next yr of long term forecast | D20: Year6
A21: Head15 | B21: =HLOOKUP(MTREF,Headings,14) -> Forecast 2028/29 | C21: Next yr of long term forecast | D21: Year7
A22: Head16 | B22: =HLOOKUP(MTREF,Headings,15) -> Forecast 2029/30 | C22: Next yr of long term forecast | D22: Year8
A23: Head17 | B23: =HLOOKUP(MTREF,Headings,16) -> Forecast 2030/31 | C23: Next yr of long term forecast | D23: Year9
A24: Head18 | B24: =HLOOKUP(MTREF,Headings,17) -> Forecast 2031/32 | C24: Next yr of long term forecast | D24: Year10
A25: Head19 | B25: =HLOOKUP(MTREF,Headings,18) -> Forecast 2032/33 | C25: Next yr of long term forecast | D25: Year11
A26: Head20 | B26: =HLOOKUP(MTREF,Headings,19) -> Forecast 2033/34 | C26: Next yr of long term forecast | D26: Year12
A27: Head21 | B27: =HLOOKUP(MTREF,Headings,20) -> Forecast 2034/35 | C27: Next yr of long term forecast | D27: Year13
A28: Head22 | B28: =HLOOKUP(MTREF,Headings,21) -> Forecast 2035/36 | C28: Next yr of long term forecast | D28: Year14
A29: Head23 | B29: =HLOOKUP(MTREF,Headings,22) -> Forecast 2036/37 | C29: Next yr of long term forecast | D29: Year15
A30: Head24 | B30: Description
A31: Head25
A32: Head26 | B32: Vote Description
A33: Head27 | B33: Ref
A34: Head27a | B34: References
A35: Head28 | B35: Surplus/(Deficit) for the year | D35: Result
A36: Head29 | B36: =HLOOKUP(MTREF,Headings,23) -> Annual target 2022/23
A37: Head30 | B37: =HLOOKUP(MTREF,Headings,24) -> Revised target 2022/23
A38: Head31 | B38: Quarter ended 30 September
A39: Head32 | B39: Quarter ended 31 December
A40: Head33 | B40: Quarter ended 31 March
A41: Head34 | B41: Quarter ended 30 June
A42: Head35 | B42: Variance explanation
A43: Head36 | B43: YTD Actual 31 Dec
A44: Head37 | B44: YTD Budget 31 Dec
A45: Head38 | B45: Monthly actual
A46: Head39 | B46: YTD actual
A47: Head40 | B47: YTD budget
A48: Head41 | B48: YTD variance
A49: Head42 | B49: Surplus/ (Deficit) for the yr/period
A50: Head43 | B50: =Head3&" Summary" -> 2022/23 Medium Term Revenue & Expenditure Framework Summary
A51: Head44 | B51: 2001 Census
A52: Head45 | B52: 2011 Census
A53: Head46 | B53: - Adjustments Budget - January 2007
A54: Head47 | B54: Previous target year to complete
A55: Head48 | B55: Present value
A56: Head49
A57: Head50 | B57: Other Adjusts.
A58: Head51 | B58: Accum. Funds
A59: Head52 | B59: Multi-year capital
A60: Head53 | B60: Unfore. Unavoid.
A61: Head54 | B61: Prior Adjusted
A62: Head55 | B62: Nat. or Prov. Govt
A63: Head56 | B63: Total Adjusts.
A64: SFPerf1 | B64: Budgeted Financial Performance
A65: SFPerf2 | B65: Forecast Financial Performance
A66: SFPos1 | B66: Budgeted Financial Position
A67: SFPos2 | B67: Forecast Financial Position
A68: Cash1 | B68: Budget Cash Flow
A69: Cash2 | B69: Forecast Cash Flow
A70: RandM | B70: Expenditure includes repairs & maintenance of R'000
A71: Depart1 | B71: Department 1 - | D71: DEP1
A72: Depart2 | B72: Department 2 - | D72: DEP2
A73: Depart3 | B73: Department 3 - | D73: DEP3
A74: Depart4 | B74: Department 4 - | D74: DEP4
A75: Depart5 | B75: Department 5 - | D75: DEP5
A76: Depart6 | B76: Department 6 - | D76: DEP6
A77: Depart7 | B77: Department 7 - | D77: DEP7
A78: Depart8 | B78: Department 8 - | D78: DEP8
A79: Depart9 | B79: Department 9 - | D79: DEP9
A80: Depart10 | B80: Department 10 - | D80: DEP10
A81: Depart11 | B81: Department 11 - | D81: DEP11
A82: Depart12 | B82: Department 12 - | D82: DEP12
A83: Depart13 | B83: Department 13 - | D83: DEP13
A84: Depart14 | B84: Department 14 - | D84: DEP14
A87: Base year of forecast column selection names
A88: Choose | B88: ACT
B89: APP
B90: ADJ
A92: Standard nomenclature
A93: Muni | B93: ='Lookup and lists'!B28 -> LIM355 Lepelle-Nkumpi
A94: Municipal Entities | B94: 2 | C94: Type of report: | D94: 1
A95: =IF((MuniEntities=1)*(MuniType=2),"YES","NO") -> NO | B95: Does this municipality have entities (consolidated budget and entity budgets required)? YES/NO
A96: Entity 1 | B96: (Pty) Ltd Example 1 - Municipal entity - | D96: Ent1
A97: Entity 2 | B97: (Pty) Ltd Example 2 - Municipal entity - | D97: Ent2
A98: Entity 3 | B98: Municipal Entity Example 3 | D98: Ent3
A99: Budget approval tables | C99: Chart x-ref | D99: Sch/Tab/Ch | E99: Alternative for municipalities without entities | F99: Alternative for municipalities without entities
B100: =IF(Consolques="YES",E100,F100) -> Table A1 Budget Summary | D100: Table A1 | E100: =D100&"Consolidated Budget Summary" -> Table A1 Consolidated Budget Summary | F100: =D100&"Budget Summary" -> Table A1 Budget Summary
B101: Table A2 Budgeted Financial Performance (revenue and expenditure by functional classification) | C101: Charts 5, 6 | D101: Table A2 | E101: =D101&"Consolidated Budgeted Financial Performance (revenue and expenditure by functional classification)" -> Table A2 Consolidated Budgeted Financial Performance (revenue and expenditure by functional classification) | F101: =D101&"Budgeted Financial Performance (revenue and expenditure by functional classification)" -> Table A2 Budgeted Financial Performance (revenue and expenditure by functional classification)
B102: Table A3 Budgeted Financial Performance (revenue and expenditure by municipal vote) | D102: Table A3 | E102: =D102&"Consolidated Budgeted Financial Performance (revenue and expenditure by municipal vote)" -> Table A3 Consolidated Budgeted Financial Performance (revenue and expenditure by municipal vote) | F102: =D102&"Budgeted Financial Performance (revenue and expenditure by municipal vote)" -> Table A3 Budgeted Financial Performance (revenue and expenditure by municipal vote)
B103: Table A4 Budgeted Financial Performance (revenue and expenditure) | C103: Charts 1, 2, 3, 4 | D103: Table A4 | E103: =D103&"Consolidated Budgeted Financial Performance (revenue and expenditure)" -> Table A4 Consolidated Budgeted Financial Performance (revenue and expenditure) | F103: =D103&"Budgeted Financial Performance (revenue and expenditure)" -> Table A4 Budgeted Financial Performance (revenue and expenditure)
B104: Table A5 Budgeted Capital Expenditure by vote, functional classification and funding | C104: Charts 7, 8, 9, 10, 20 | D104: Table A5 | E104: =D104&"Consolidated Budgeted Capital Expenditure by vote, functional classification and funding" -> Table A5 Consolidated Budgeted Capital Expenditure by vote, functional classification and funding | F104: =D104&"Budgeted Capital Expenditure by vote, functional classification and funding" -> Table A5 Budgeted Capital Expenditure by vote, functional classification and funding
B105: Table A6 Budgeted Financial Position | D105: Table A6 | E105: =D105&"Consolidated Budgeted Financial Position" -> Table A6 Consolidated Budgeted Financial Position | F105: =D105&"Budgeted Financial Position" -> Table A6 Budgeted Financial Position
B106: Table A7 Budgeted Cash Flows | D106: Table A7 | E106: =D106&"Consolidated Budgeted Cash Flows" -> Table A7 Consolidated Budgeted Cash Flows | F106: =D106&"Budgeted Cash Flows" -> Table A7 Budgeted Cash Flows
B107: Table A8 Cash backed reserves/accumulated surplus reconciliation | D107: Table A8 | E107: =D107&"Consolidated Cash backed reserves/accumulated surplus reconciliation" -> Table A8 Consolidated Cash backed reserves/accumulated surplus reconciliation | F107: =D107&"Cash backed reserves/accumulated surplus reconciliation" -> Table A8 Cash backed reserves/accumulated surplus reconciliation
B108: Table A9 Asset Management | D108: Table A9 | E108: =D108&"Consolidated Asset Management" -> Table A9 Consolidated Asset Management | F108: =D108&"Asset Management" -> Table A9 Asset Management
B109: Table A10 Basic service delivery measurement | D109: Table A10 | E109: =D109&"Consolidated basic service delivery measurement" -> Table A10 Consolidated basic service delivery measurement | F109: =D109&"Basic service delivery measurement" -> Table A10 Basic service delivery measurement
A110: Supportinging Tables to the Budget Approval Tables | C110: =$C$99 -> Chart x-ref | D110: =$D$99 -> Sch/Tab/Ch
A111: Supporting Table SA1 | B111: =A111&" Supportinging detail to 'Budgeted Financial Performance'" -> Supporting Table SA1 Supportinging detail to 'Budgeted Financial Performance'
A112: Supporting Table SA2 | B112: =IF(Consolques="YES",E112,F112) -> Supporting Table SA2 Matrix Financial Performance Budget (revenue source/expenditure type and dept.) | E112: =A112&"Consolidated Matrix Financial Performance Budget (revenue source/expenditure type & dept.)" -> Supporting Table SA2 Consolidated Matrix Financial Performance Budget (revenue source/expenditure type & dept.) | F112: =A112&"Matrix Financial Performance Budget (revenue source/expenditure type and dept.)" -> Supporting Table SA2 Matrix Financial Performance Budget (revenue source/expenditure type and dept.)
A113: Supporting Table SA3 | B113: =A113&"Supportinging detail to 'Budgeted Financial Position'" -> Supporting Table SA3 Supportinging detail to 'Budgeted Financial Position'
A114: Supporting Table SA4 | B114: =A114&"Reconciliation of IDP strategic objectives and budget (revenue)" -> Supporting Table SA4 Reconciliation of IDP strategic objectives and budget (revenue) | C114: Chart 11
A115: Supporting Table SA5 | B115: =A115&"Reconciliation of IDP strategic objectives and budget (operating expenditure)" -> Supporting Table SA5 Reconciliation of IDP strategic objectives and budget (operating expenditure) | C115: Chart 12
A116: Supporting Table SA6 | B116: =A116&"Reconciliation of IDP strategic objectives and budget (capital expenditure)" -> Supporting Table SA6 Reconciliation of IDP strategic objectives and budget (capital expenditure) | C116: Chart 13
A117: Supporting Table SA7 | B117: =A117&" Measureable performance objectives" -> Supporting Table SA7 Measureable performance objectives
A118: Supporting Table SA8 | B118: =A118&" Performance indicators and benchmarks" -> Supporting Table SA8 Performance indicators and benchmarks | C118: Chts 15-19
A119: Supporting Table SA9 | B119: =A119&" Social, economic and demographic statistics and assumptions" -> Supporting Table SA9 Social, economic and demographic statistics and assumptions
A120: Supporting Table SA10 | B120: =A120&" Funding measurement" -> Supporting Table SA10 Funding measurement | C120: Chart 14
A121: Supporting Table SA11 | B121: =A121&" Property rates summary" -> Supporting Table SA11 Property rates summary
A122: Supporting Table SA12a | B122: =A122&" Property rates by category (current year)" -> Supporting Table SA12a Property rates by category (current year)
A123: Supporting Table SA12b | B123: =A123&" Property rates by category (budget year)" -> Supporting Table SA12b Property rates by category (budget year)
A124: Supporting Table SA13a | B124: =A124&" Service Tariffs by category" -> Supporting Table SA13a Service Tariffs by category
A125: Supporting Table SA13b | B125: =A125&" Service Tariffs by category - explanatory" -> Supporting Table SA13b Service Tariffs by category - explanatory
A126: Supporting Table SA14 | B126: =A126&" Household bills" -> Supporting Table SA14 Household bills
A127: Supporting Table SA15 | B127: =A127&" Investment particulars by type" -> Supporting Table SA15 Investment particulars by type
A128: Supporting Table SA16 | B128: =A128&" Investment particulars by maturity" -> Supporting Table SA16 Investment particulars by maturity
A129: Supporting Table SA17 | B129: =A129&" Borrowing" -> Supporting Table SA17 Borrowing
A130: Supporting Table SA18 | B130: =A130&" Transfers and grant receipts" -> Supporting Table SA18 Transfers and grant receipts
A131: Supporting Table SA19 | B131: =A131&" Expenditure on transfers and grant programme" -> Supporting Table SA19 Expenditure on transfers and grant programme
A132: Supporting Table SA20 | B132: =A132&" Reconciliation of transfers, grant receipts and unspent funds" -> Supporting Table SA20 Reconciliation of transfers, grant receipts and unspent funds
A133: Supporting Table SA21 | B133: =A133&" Transfers and grants made by the municipality" -> Supporting Table SA21 Transfers and grants made by the municipality
A134: Supporting Table SA22 | B134: =A134&" Summary councillor and staff benefits" -> Supporting Table SA22 Summary councillor and staff benefits
A135: Supporting Table SA23 | B135: =A135&" Salaries, allowances & benefits (political office bearers/councillors/senior managers)" -> Supporting Table SA23 Salaries, allowances & benefits (political office bearers/councillors/senior managers)
A136: Supporting Table SA24 | B136: =A136&" Summary of personnel numbers" -> Supporting Table SA24 Summary of personnel numbers
A137: Supporting Table SA25 | B137: =IF(Consolques="YES",E137,F137) -> Supporting Table SA25 Budgeted monthly revenue and expenditure | E137: =A137&" Consolidated budgeted monthly revenue and expenditure" -> Supporting Table SA25 Consolidated budgeted monthly revenue and expenditure | F137: =A137&" Budgeted monthly revenue and expenditure" -> Supporting Table SA25 Budgeted monthly revenue and expenditure
A138: Supporting Table SA26 | B138: Supporting Table SA26 Budgeted monthly revenue and expenditure (municipal vote) | E138: =A138&" Consolidated budgeted monthly revenue and expenditure (municipal vote)" -> Supporting Table SA26 Consolidated budgeted monthly revenue and expenditure (municipal vote) | F138: =A138&" Budgeted monthly revenue and expenditure (municipal vote)" -> Supporting Table SA26 Budgeted monthly revenue and expenditure (municipal vote)
A139: Supporting Table SA27 | B139: Supporting Table SA27 Budgeted monthly revenue and expenditure (functional classification) | E139: =A139&" Consolidated budgeted monthly revenue and expenditure (functional classification)" -> Supporting Table SA27 Consolidated budgeted monthly revenue and expenditure (functional classification) | F139: =A139&" Budgeted monthly revenue and expenditure (functional classification)" -> Supporting Table SA27 Budgeted monthly revenue and expenditure (functional classification)
A140: Supporting Table SA28 | B140: Supporting Table SA28 Budgeted monthly capital expenditure (municipal vote) | E140: =A140&" Consolidated budgeted monthly capital expenditure (municipal vote)" -> Supporting Table SA28 Consolidated budgeted monthly capital expenditure (municipal vote) | F140: =A140&" Budgeted monthly capital expenditure (municipal vote)" -> Supporting Table SA28 Budgeted monthly capital expenditure (municipal vote)
A141: Supporting Table SA29 | B141: Supporting Table SA29 Budgeted monthly capital expenditure (functional classification) | E141: =A141&" Consolidated budgeted monthly capital expenditure (functional classification)" -> Supporting Table SA29 Consolidated budgeted monthly capital expenditure (functional classification) | F141: =A141&" Budgeted monthly capital expenditure (functional classification)" -> Supporting Table SA29 Budgeted monthly capital expenditure (functional classification)
A142: Supporting Table SA30 | B142: Supporting Table SA30 Budgeted monthly cash flow | E142: =A142&" Consolidated budgeted monthly cash flow" -> Supporting Table SA30 Consolidated budgeted monthly cash flow | F142: =A142&" Budgeted monthly cash flow" -> Supporting Table SA30 Budgeted monthly cash flow
A143: Supporting Table SA31 | B143: NOT REQUIRED - municipality does not have entities | E143: =A143&" Aggregated entity budget" -> Supporting Table SA31 Aggregated entity budget | F143: NOT REQUIRED - municipality does not have entities
A144: Supporting Table SA32 | B144: =A144&" List of external mechanisms" -> Supporting Table SA32 List of external mechanisms
A145: Supporting Table SA33 | B145: =A145&" Contracts having future budgetary implications" -> Supporting Table SA33 Contracts having future budgetary implications
A146: Supporting Table SA34a | B146: =IF(Consolques="YES",E146,F146) -> Supporting Table SA34a Capital expenditure on new assets by asset class | E146: =A146&" Consolidated capital expenditure on new assets by asset class" -> Supporting Table SA34a Consolidated capital expenditure on new assets by asset class | F146: =A146&" Capital expenditure on new assets by asset class" -> Supporting Table SA34a Capital expenditure on new assets by asset class
A147: Supporting Table SA34b | B147: Supporting Table SA34b Capital expenditure on the renewal of existing assets by asset class | E147: =A147&" Consolidated capital expenditure on the renewal of existing assets by asset class" -> Supporting Table SA34b Consolidated capital expenditure on the renewal of existing assets by asset class | F147: =A147&" Capital expenditure on the renewal of existing assets by asset class" -> Supporting Table SA34b Capital expenditure on the renewal of existing assets by asset class
A148: Supporting Table SA34c | B148: Supporting Table SA34c Repairs and maintenance expenditure by asset class | E148: =A148&" Consolidated repairs and maintenance by asset class" -> Supporting Table SA34c Consolidated repairs and maintenance by asset class | F148: =A148&" Repairs and maintenance expenditure by asset class" -> Supporting Table SA34c Repairs and maintenance expenditure by asset class
A149: Supporting Table SA34d | B149: =IF(Consolques="YES",E149,F149) -> Supporting Table SA34d Depreciation by asset class | E149: =A149&" Consolidated Depreciation by asset class" -> Supporting Table SA34d Consolidated Depreciation by asset class | F149: =A149&" Depreciation by asset class" -> Supporting Table SA34d Depreciation by asset class
A150: Supporting Table SA34e | B150: =IF(Consolques="YES",E150,F150) -> Supporting Table SA34e Capital expenditure on the upgrading of existing assets by asset class | E150: =A150&" Consolidated capital expenditure on the upgrading of existing assets by asset class" -> Supporting Table SA34e Consolidated capital expenditure on the upgrading of existing assets by asset class | F150: =A150&" Capital expenditure on the upgrading of existing assets by asset class" -> Supporting Table SA34e Capital expenditure on the upgrading of existing assets by asset class
A151: Supporting Table SA35 | B151: Supporting Table SA35 Future financial implications of the capital budget | E151: =A151&" Consolidated future financial implications of the capital budget" -> Supporting Table SA35 Consolidated future financial implications of the capital budget | F151: =A151& " Future financial implications of the capital budget" -> Supporting Table SA35 Future financial implications of the capital budget
A152: Supporting Table SA36 | B152: Supporting Table SA36 Detailed capital budget | E152: =A152&" Consolidated detailed capital budget" -> Supporting Table SA36 Consolidated detailed capital budget | F152: =A152& " Detailed capital budget" -> Supporting Table SA36 Detailed capital budget
A153: Supporting Table SA37 | B153: Supporting Table SA37 Projects delayed from previous financial year/s | E153: =A153&" Consolidated projects delayed from previous financial year/s" -> Supporting Table SA37 Consolidated projects delayed from previous financial year/s | F153: =A153& " Projects delayed from previous financial year/s" -> Supporting Table SA37 Projects delayed from previous financial year/s
A154: Supporting Table SA38 | B154: =IF(Consolques="YES",E154,F154) -> Supporting Table SA38 Detailed operational projects | E154: =A154&" Consolidated detailed operational projects" -> Supporting Table SA38 Consolidated detailed operational projects | F154: =A154& " Detailed operational projects" -> Supporting Table SA38 Detailed operational projects
A156: Budget Charts | B156: Charts | C156: Cross reference
A157: Chart A1 | B157: =A157&"Revenue by Municipal Vote" -> Chart A1 Revenue by Municipal Vote
A158: Chart A2 | B158: =A158&"Expenditure by Municipal Vote" -> Chart A2 Expenditure by Municipal Vote
A159: Chart A3 | B159: =A159&"Revenue by Standard Classification" -> Chart A3 Revenue by Standard Classification | C159: A2
A160: Chart A4 | B160: =A160&"Expenditure by Standard Classification" -> Chart A4 Expenditure by Standard Classification | C160: A2
A161: Chart A5 | B161: =A161&"Revenue by Major Source (refer 'Minor' source for 'Other Revenue' allocation" -> Chart A5 Revenue by Major Source (refer 'Minor' source for 'Other Revenue' allocation | C161: A3
A162: Chart A6 | B162: =A162&"Revenue by Minor Source (Other)" -> Chart A6 Revenue by Minor Source (Other) | C162: A3
A163: Chart A7 | B163: =A163&"Expenditure by Major Type" -> Chart A7 Expenditure by Major Type | C163: A3
A164: Chart A8 | B164: =A164&"Expenditure by Minor Type (Other)" -> Chart A8 Expenditure by Minor Type (Other) | C164: A3
A165: Chart A9 | B165: =A165&"Capital Expenditure by Municipal Vote/Appropriation (Major)" -> Chart A9 Capital Expenditure by Municipal Vote/Appropriation (Major) | C165: A5
A166: Chart A10 | B166: =A166&"Capital Expenditure by Municipal Vote/Appropriation (Minor)" -> Chart A10 Capital Expenditure by Municipal Vote/Appropriation (Minor) | C166: A5
A167: Chart A11 | B167: =A166&"Capital Expenditure by Standard Classification" -> Chart A10 Capital Expenditure by Standard Classification | C167: A5
A168: Chart A12 | B168: =A168&"Capital expenditure performance trend" -> Chart A12 Capital expenditure performance trend | C168: A5
A169: Chart A13 | B169: =A169&"Capital funding by Source" -> Chart A13 Capital funding by Source | C169: A5
A170: Chart A14 | B170: =A170&"Cash flow trend" -> Chart A14 Cash flow trend | C170: A7
A171: Chart A15 | B171: =A171&"IDP Strategic Objective - Revenue" -> Chart A15 IDP Strategic Objective - Revenue | C171: Table A4
A172: Chart A16 | B172: =A172&"IDP Strategic Objective - Expenditure" -> Chart A16 IDP Strategic Objective - Expenditure | C172: Table A5
A173: Chart A17 | B173: =A173&"IDP Strategic Objective - Capital Expenditure" -> Chart A17 IDP Strategic Objective - Capital Expenditure | C173: Table A6
A174: Chart A18 | B174: =A174&"Debt (borrowing to Total Revenue)" -> Chart A18 Debt (borrowing to Total Revenue) | C174: Table A8
A175: Chart A19 | B175: =A175&"Debtors' trend analysis" -> Chart A19 Debtors' trend analysis | C175: Table A8
A176: Chart A20 | B176: =A176&"Distribution losses" -> Chart A20 Distribution losses | C176: Table A8
A177: Chart A21 | B177: =A177&"Borrowed funding of capital expenditure" -> Chart A21 Borrowed funding of capital expenditure | C177: Table A8
A178: Chart A22 | B178: =A178&"Expenditure analysis (% of Revenue)" -> Chart A22 Expenditure analysis (% of Revenue) | C178: Table A8
A179: Chart A23 | B179: =A179&"Increases in service charges" -> Chart A23 Increases in service charges | C179: Table A10

Sheet Lookup and lists (hidden)
A1: Description | B1: 2013 | C1: 2014 | D1: 2015 | E1: 2016 | F1: 2017 | G1: 2018 | H1: 2019 | I1: 2020 | J1: 2021 | K1: 2022 | L1: 2023 | M1: 2024 | N1: 2025 | O1: 2026 | Q1: Lists | Y1: Grants: | Z1: National - opex | AA1: Provincial - opex | AB1: National - capex | AC1: Provincial - capex
A2: ='Template names'!C2 -> Prior year -1 | B2: =B1-2&"/"&RIGHT(B1,2)-1 -> 2011/12 | C2: 2012/13 | D2: 2013/14 | E2: 2014/15 | F2: 2015/16 | G2: 2016/17 | H2: 2017/18 | I2: 2018/19 | J2: =J1-2&"/"&RIGHT(J1,2)-1 -> 2019/20 | K2: 2020/21 | L2: 2021/22 | M2: 2022/23 | N2: 2023/24 | O2: 2024/25 | Q2: Yes | R2: <1 | S2: <4 | T2: Market | U2: Land & impr. | V2: Yes | W2: Uniform | X2: Yrs | Z2: Local Government Equitable Share | AA2: Health subsidy | AB2: Municipal Infrastructure Grant (MIG) | AC2: Agriculture
A3: ='Template names'!C3 -> Prior year -2 | B3: =B1-3&"/"&RIGHT(B1,2)-2 -> 2010/11 | C3: 2011/12 | D3: 2012/13 | E3: 2013/14 | F3: 2014/15 | G3: 2015/16 | H3: 2016/17 | I3: 2017/18 | J3: =J1-3&"/"&RIGHT(J1,2)-2 -> 2018/19 | K3: 2019/20 | L3: 2020/21 | M3: 2021/22 | N3: 2022/23 | O3: 2023/24 | Q3: No | R3: 1 | S3: 4 | T3: Dep.Replace | U3: Land only | V3: No | W3: Variable | X3: Mths | Z3: RSC Levy Replacement | AA3: Ambulance subsidy | AB3: Public Transport and Systems | AC3: Education
A4: ='Template names'!C4 -> Prior year -3 | B4: =B1-4&"/"&RIGHT(B1,2)-3 -> 2009/10 | C4: 2010/11 | D4: 2011/12 | E4: 2012/13 | F4: 2013/14 | G4: 2014/15 | H4: 2015/16 | I4: 2016/17 | J4: =J1-4&"/"&RIGHT(J1,2)-3 -> 2017/18 | K4: 2018/19 | L4: 2019/20 | M4: 2020/21 | N4: 2021/22 | O4: 2022/23 | R4: 2 | S4: 5 | T4: Other | U4: Other | Z4: Finance Management | AA4: Housing | AB4: Rural Transport Services and Infrastructure | AC4: Health
A5: ='Template names'!C5 -> Year in which budget is being prepared | B5: ="Current Year "& B1-1&"/"&RIGHT(B1,2) -> Current Year 2012/13 | C5: Current Year 2013/14 | D5: Current Year 2014/15 | E5: Current Year 2015/16 | F5: Current Year 2016/17 | G5: Current Year 2017/18 | H5: Current Year 2018/19 | I5: Current Year 2019/20 | J5: ="Current Year "& J1-1&"/"&RIGHT(J1,2) -> Current Year 2020/21 | K5: Current Year 2021/22 | L5: Current Year 2022/23 | M5: Current Year 2023/24 | N5: Current Year 2024/25 | O5: Current Year 2025/26 | R5: 3 | S5: 6 | Z5: Municipal Systems Improvement | AA5: Sport and Recreation | AB5: Regional Bulk Infrastructure | AC5: Housing and Local Government
A6: ='Template names'!C6 -> Year in which budget is being prepared | B6: =B1-1&"/"&RIGHT(B1,2) -> 2012/13 | C6: 2013/14 | D6: 2014/15 | E6: 2015/16 | F6: 2016/17 | G6: 2017/18 | H6: 2018/19 | I6: 2019/20 | J6: =J1-1&"/"&RIGHT(J1,2) -> 2020/21 | K6: 2021/22 | L6: 2022/23 | M6: 2023/24 | N6: 2024/25 | O6: 2025/26 | R6: 4 | S6: 6-10 | Z6: Water Services Operating Subsidy | AB6: Rural Households Infrastructure | AC6: Other Departments
A7: ='Template names'!C7 -> MTREF name | B7: =B1&"/"&RIGHT(B1,2)+1&" Medium Term Revenue & Expenditure Framework" -> 2013/14 Medium Term Revenue & Expenditure Framework | C7: 2014/15 Medium Term Revenue & Expenditure Framework | D7: 2015/16 Medium Term Revenue & Expenditure Framework | E7: 2016/17 Medium Term Revenue & Expenditure Framework | F7: 2017/18 Medium Term Revenue & Expenditure Framework | G7: 2018/19 Medium Term Revenue & Expenditure Framework | H7: 2019/20 Medium Term Revenue & Expenditure Framework | I7: 2020/21 Medium Term Revenue & Expenditure Framework | J7: =J1&"/"&RIGHT(J1,2)+1&" Medium Term Revenue & Expenditure Framework" -> 2021/22 Medium Term Revenue & Expenditure Framework | K7: 2022/23 Medium Term Revenue & Expenditure Framework | L7: 2023/24 Medium Term Revenue & Expenditure Framework | M7: 2024/25 Medium Term Revenue & Expenditure Framework | N7: 2025/26 Medium Term Revenue & Expenditure Framework | O7: 2026/27 Medium Term Revenue & Expenditure Framework | R7: 5 | S7: >10 | Z7: Energy Efficiency and Demand Management | AB7: Neighbourhood Development Partnership | AC7: Public Works, Roads, Transport
A8: ='Template names'!C15 -> 1st year of MTREF | B8: ="Budget Year "&B1&"/"&RIGHT(B1,2)+1 -> Budget Year 2013/14 | C8: Budget Year 2014/15 | D8: Budget Year 2015/16 | E8: Budget Year 2016/17 | F8: Budget Year 2017/18 | G8: Budget Year 2018/19 | H8: Budget Year 2019/20 | I8: Budget Year 2020/21 | J8: ="Budget Year "&J1&"/"&RIGHT(J1,2)+1 -> Budget Year 2021/22 | K8: Budget Year 2022/23 | L8: Budget Year 2023/24 | M8: Budget Year 2024/25 | N8: Budget Year 2025/26 | O8: Budget Year 2026/27 | R8: >5 | Z8: Integrated National Electrification Programme | AB8: 2010 FIFA World Cup Stadiums Development | AC8: Sport and Recreation
A9: ='Template names'!C16 -> 2nd year of MTREF | B9: ="Budget Year +1 "&B1+1&"/"&RIGHT(B1,2)+2 -> Budget Year +1 2014/15 | C9: Budget Year +1 2015/16 | D9: Budget Year +1 2016/17 | E9: Budget Year +1 2017/18 | F9: Budget Year +1 2018/19 | G9: Budget Year +1 2019/20 | H9: Budget Year +1 2020/21 | I9: Budget Year +1 2021/22 | J9: ="Budget Year +1 "&J1+1&"/"&RIGHT(J1,2)+2 -> Budget Year +1 2022/23 | K9: Budget Year +1 2023/24 | L9: Budget Year +1 2024/25 | M9: Budget Year +1 2025/26 | N9: Budget Year +1 2026/27 | O9: Budget Year +1 2027/28 | Z9: Municipal Drought Relief
A10: ='Template names'!C17 -> 3rd year of MTREF | B10: ="Budget Year +2 "&B1+2&"/"&RIGHT(B1,2)+3 -> Budget Year +2 2015/16 | C10: Budget Year +2 2016/17 | D10: Budget Year +2 2017/18 | E10: Budget Year +2 2018/19 | F10: Budget Year +2 2019/20 | G10: Budget Year +2 2020/21 | H10: Budget Year +2 2021/22 | I10: Budget Year +2 2022/23 | J10: ="Budget Year +2 "&J1+2&"/"&RIGHT(J1,2)+3 -> Budget Year +2 2023/24 | K10: Budget Year +2 2024/25 | L10: Budget Year +2 2025/26 | M10: Budget Year +2 2026/27 | N10: Budget Year +2 2027/28 | O10: Budget Year +2 2028/29 | Z10: 2010 FIFA World Cup Operating
A11: ='Template names'!C18 -> 1st yr of long term forecast | B11: ="Forecast "&B1+3&"/"&RIGHT(B1,2)+4 -> Forecast 2016/17 | C11: Forecast 2017/18 | D11: Forecast 2018/19 | E11: Forecast 2019/20 | F11: Forecast 2020/21 | G11: Forecast 2021/22 | H11: Forecast 2022/23 | I11: Forecast 2023/24 | J11: ="Forecast "&J1+3&"/"&RIGHT(J1,2)+4 -> Forecast 2024/25 | K11: Forecast 2025/26 | L11: Forecast 2026/27 | M11: Forecast 2027/28 | N11: Forecast 2028/29 | O11: Forecast 2029/30 | Z11: Electricity Demand Side Management
A12: ='Template names'!C19 -> Next yr of long term forecast | B12: ="Forecast "&B1+4&"/"&RIGHT(B1,2)+5 -> Forecast 2017/18 | C12: Forecast 2018/19 | D12: Forecast 2019/20 | E12: Forecast 2020/21 | F12: Forecast 2021/22 | G12: Forecast 2022/23 | H12: Forecast 2023/24 | I12: Forecast 2024/25 | J12: ="Forecast "&J1+4&"/"&RIGHT(J1,2)+5 -> Forecast 2025/26 | K12: Forecast 2026/27 | L12: Forecast 2027/28 | M12: Forecast 2028/29 | N12: Forecast 2029/30 | O12: Forecast 2030/31 | Z12: EPWP Incentive
A13: ='Template names'!C20 -> Next yr of long term forecast | B13: ="Forecast "&B1+5&"/"&RIGHT(B1,2)+6 -> Forecast 2018/19 | C13: Forecast 2019/20 | D13: Forecast 2020/21 | E13: Forecast 2021/22 | F13: Forecast 2022/23 | G13: Forecast 2023/24 | H13: Forecast 2024/25 | I13: Forecast 2025/26 | J13: ="Forecast "&J1+5&"/"&RIGHT(J1,2)+6 -> Forecast 2026/27 | K13: Forecast 2027/28 | L13: Forecast 2028/29 | M13: Forecast 2029/30 | N13: Forecast 2030/31 | O13: Forecast 2031/32
A14: ='Template names'!C21 -> Next yr of long term forecast | B14: ="Forecast "&B1+6&"/"&RIGHT(B1,2)+7 -> Forecast 2019/20 | C14: Forecast 2020/21 | D14: Forecast 2021/22 | E14: Forecast 2022/23 | F14: Forecast 2023/24 | G14: Forecast 2024/25 | H14: Forecast 2025/26 | I14: Forecast 2026/27 | J14: ="Forecast "&J1+6&"/"&RIGHT(J1,2)+7 -> Forecast 2027/28 | K14: Forecast 2028/29 | L14: Forecast 2029/30 | M14: Forecast 2030/31 | N14: Forecast 2031/32 | O14: Forecast 2032/33 | Z14: Asset Class | AA14: Asset sub-class old | AB14: Asset sub-class | AC14: IUDF | AD14: MTSF
A15: ='Template names'!C22 -> Next yr of long term forecast | B15: ="Forecast "&B1+7&"/"&RIGHT(B1,2)+8 -> Forecast 2020/21 | C15: Forecast 2021/22 | D15: Forecast 2022/23 | E15: Forecast 2023/24 | F15: Forecast 2024/25 | G15: Forecast 2025/26 | H15: Forecast 2026/27 | I15: Forecast 2027/28 | J15: ="Forecast "&J1+7&"/"&RIGHT(J1,2)+8 -> Forecast 2028/29 | K15: Forecast 2029/30 | L15: Forecast 2030/31 | M15: Forecast 2031/32 | N15: Forecast 2032/33 | O15: Forecast 2033/34
A16: ='Template names'!C23 -> Next yr of long term forecast | B16: ="Forecast "&B1+8&"/"&RIGHT(B1,2)+9 -> Forecast 2021/22 | C16: Forecast 2022/23 | D16: Forecast 2023/24 | E16: Forecast 2024/25 | F16: Forecast 2025/26 | G16: Forecast 2026/27 | H16: Forecast 2027/28 | I16: Forecast 2028/29 | J16: ="Forecast "&J1+8&"/"&RIGHT(J1,2)+9 -> Forecast 2029/30 | K16: Forecast 2030/31 | L16: Forecast 2031/32 | M16: Forecast 2032/33 | N16: Forecast 2033/34 | O16: Forecast 2034/35 | Z16: Roads Infrastructure | AA16: Roads, Pavements & Bridges | AB16: Roads | AC16: Spatial integration | AD16: Quality basic education
A17: ='Template names'!C24 -> Next yr of long term forecast | B17: ="Forecast "&B1+9&"/"&RIGHT(B1,2)+10 -> Forecast 2022/23 | C17: Forecast 2023/24 | D17: Forecast 2024/25 | E17: Forecast 2025/26 | F17: Forecast 2026/27 | G17: Forecast 2027/28 | H17: Forecast 2028/29 | I17: Forecast 2029/30 | J17: ="Forecast "&J1+9&"/"&RIGHT(J1,2)+10 -> Forecast 2030/31 | K17: Forecast 2031/32 | L17: Forecast 2032/33 | M17: Forecast 2033/34 | N17: Forecast 2034/35 | O17: Forecast 2035/36 | Z17: Storm water Infrastructure | AA17: Storm water | AB17: Road Structures | AC17: Inclusion and access | AD17: A long and healthy life for all South Africans
A18: ='Template names'!C25 -> Next yr of long term forecast | B18: ="Forecast "&B1+10&"/"&RIGHT(B1,2)+11 -> Forecast 2023/24 | C18: Forecast 2024/25 | D18: Forecast 2025/26 | E18: Forecast 2026/27 | F18: Forecast 2027/28 | G18: Forecast 2028/29 | H18: Forecast 2029/30 | I18: Forecast 2030/31 | J18: ="Forecast "&J1+10&"/"&RIGHT(J1,2)+11 -> Forecast 2031/32 | K18: Forecast 2032/33 | L18: Forecast 2033/34 | M18: Forecast 2034/35 | N18: Forecast 2035/36 | O18: Forecast 2036/37 | Z18: Electrical Infrastructure | AA18: Generation | AB18: Road Furniture | AC18: Growth | AD18: All people in South Africa are and feel safe
A19: ='Template names'!C26 -> Next yr of long term forecast | B19: ="Forecast "&B1+11&"/"&RIGHT(B1,2)+12 -> Forecast 2024/25 | C19: Forecast 2025/26 | D19: Forecast 2026/27 | E19: Forecast 2027/28 | F19: Forecast 2028/29 | G19: Forecast 2029/30 | H19: Forecast 2030/31 | I19: Forecast 2031/32 | J19: ="Forecast "&J1+11&"/"&RIGHT(J1,2)+12 -> Forecast 2032/33 | K19: Forecast 2033/34 | L19: Forecast 2034/35 | M19: Forecast 2035/36 | N19: Forecast 2036/37 | O19: Forecast 2037/38 | Z19: Water Supply Infrastructure | AA19: Transmission & Reticulation | AB19: Capital Spares | AC19: Governance | AD19: Decent employment through inclusive growth
A20: ='Template names'!C27 -> Next yr of long term forecast | B20: ="Forecast "&B1+12&"/"&RIGHT(B1,2)+13 -> Forecast 2025/26 | C20: Forecast 2026/27 | D20: Forecast 2027/28 | E20: Forecast 2028/29 | F20: Forecast 2029/30 | G20: Forecast 2030/31 | H20: Forecast 2031/32 | I20: Forecast 2032/33 | J20: ="Forecast "&J1+12&"/"&RIGHT(J1,2)+13 -> Forecast 2033/34 | K20: Forecast 2034/35 | L20: Forecast 2035/36 | M20: Forecast 2036/37 | N20: Forecast 2037/38 | O20: Forecast 2038/39 | Z20: Sanitation Infrastructure | AA20: Street Lighting | AB20: Drainage Collection | AD20: A skilled and capable workforce to support an inclusive growth path
A21: ='Template names'!C28 -> Next yr of long term forecast | B21: ="Forecast "&B1+13&"/"&RIGHT(B1,2)+14 -> Forecast 2026/27 | C21: Forecast 2027/28 | D21: Forecast 2028/29 | E21: Forecast 2029/30 | F21: Forecast 2030/31 | G21: Forecast 2031/32 | H21: Forecast 2032/33 | I21: Forecast 2033/34 | J21: ="Forecast "&J1+13&"/"&RIGHT(J1,2)+14 -> Forecast 2034/35 | K21: Forecast 2035/36 | L21: Forecast 2036/37 | M21: Forecast 2037/38 | N21: Forecast 2038/39 | O21: Forecast 2039/40 | Z21: Solid Waste Infrastructure | AA21: Dams & Reservoirs | AB21: Storm water Conveyance | AD21: An efficient, competitive and responsive economic infrastructure network
A22: ='Template names'!C29 -> Next yr of long term forecast | B22: ="Forecast "&B1+14&"/"&RIGHT(B1,2)+15 -> Forecast 2027/28 | C22: Forecast 2028/29 | D22: Forecast 2029/30 | E22: Forecast 2030/31 | F22: Forecast 2031/32 | G22: Forecast 2032/33 | H22: Forecast 2033/34 | I22: Forecast 2034/35 | J22: ="Forecast "&J1+14&"/"&RIGHT(J1,2)+15 -> Forecast 2035/36 | K22: Forecast 2036/37 | L22: Forecast 2037/38 | M22: Forecast 2038/39 | N22: Forecast 2039/40 | O22: Forecast 2040/41 | Z22: Rail Infrastructure | AA22: Water purification | AB22: Attenuation | AD22: Vibrant, equitable, sustainable rural communities contributing towards food security for all
A23: Adjustments Budget | B23: ="Annual target " & B1&"/"&RIGHT(B1,2)+1 -> Annual target 2013/14 | C23: Annual target 2014/15 | D23: Annual target 2015/16 | E23: Annual target 2016/17 | F23: Annual target 2017/18 | G23: Annual target 2018/19 | H23: Annual target 2019/20 | I23: Annual target 2020/21 | J23: ="Annual target " & J1&"/"&RIGHT(J1,2)+1 -> Annual target 2021/22 | K23: Annual target 2022/23 | L23: Annual target 2023/24 | M23: Annual target 2024/25 | N23: Annual target 2025/26 | O23: Annual target 2026/27 | Z23: Coastal Infrastructure | AA23: Reticulation | AB23: Power Plants | AD23: Sustainable human settlements and improved quality of household life
A24: =A23 -> Adjustments Budget | B24: ="Revised target "& B1&"/"&RIGHT(B1,2)+1 -> Revised target 2013/14 | C24: Revised target 2014/15 | D24: Revised target 2015/16 | E24: Revised target 2016/17 | F24: Revised target 2017/18 | G24: Revised target 2018/19 | H24: Revised target 2019/20 | I24: Revised target 2020/21 | J24: ="Revised target "& J1&"/"&RIGHT(J1,2)+1 -> Revised target 2021/22 | K24: Revised target 2022/23 | L24: Revised target 2023/24 | M24: Revised target 2024/25 | N24: Revised target 2025/26 | O24: Revised target 2026/27 | Z24: Information and Communication Infrastructure | AA24: Sewerage purification | AB24: HV Substations | AD24: Responsive, accountable, effective and efficient local government
A25: NOTE: This sheet should not be directly amended - select headings from sheet 'S' | Z25: Community Facilities | AA25: Waste Management | AB25: HV Switching Station | AD25: Protect and enhance our environmental assets and natural resources
Z26: Sport and Recreation Facilities | AA26: Transportation | AB26: HV Transmission Conductors | AD26: Create a better South Africa and contribute to a better Africa and a better world
A27: Name link | B27: 143 | Z27: Heritage assets | AA27: Gas | AB27: MV Substations | AD27: An efficient, effective and development-oriented public service
A28: Name of Muni | B28: =INDEX(B29:B307,B27,1) -> LIM355 Lepelle-Nkumpi | Z28: Revenue Generating | AA28: Parks & gardens | AB28: MV Switching Stations | AD28: A comprehensive, responsive and sustainable social protection system
B29: Choose name from list | C29: Set name on 'Instructions' sheet | Z29: Non-revenue Generating | AA29: Sportsfields & stadia | AB29: MV Networks | AD29: A diverse, socially cohesive society with a common national identity
B30: BUF Buffalo City | C30: EC EASTERN CAPE | Z30: Operational Buildings | AA30: Swimming pools | AB30: LV Networks
B31: NMA Nelson Mandela Bay | C31: EC EASTERN CAPE | Z31: Housing | AA31: Community halls | AB31: Capital Spares
B32: EC101 Dr Beyers Naude | C32: EC EASTERN CAPE | Z32: Biological or Cultivated Assets | AA32: Libraries | AB32: Dams and Weirs
B33: EC102 Blue Crane Route | C33: EC EASTERN CAPE | Z33: Servitudes | AA33: Recreational facilities | AB33: Boreholes
B34: EC104 Makana | C34: EC EASTERN CAPE | Z34: Licences and Rights | AA34: Fire, safety & emergency | AB34: Reservoirs
B35: EC105 Ndlambe | C35: EC EASTERN CAPE | Z35: Computer Equipment | AA35: Security and policing | AB35: Pump Stations
B36: EC106 Sundays River Valley | C36: EC EASTERN CAPE | Z36: Furniture and Office Equipment | AA36: Buses | AB36: Water Treatment Works
B37: EC108 Kouga | C37: EC EASTERN CAPE | Z37: Machinery and Equipment | AA37: Clinics | AB37: Bulk Mains
B38: EC109 Kou-Kamma | C38: EC EASTERN CAPE | Z38: Transport Assets | AA38: Museums & Art Galleries | AB38: Distribution
B39: DC10 Sarah Baartman | C39: EC EASTERN CAPE | Z39: Land | AA39: Cemeteries | AB39: Distribution Points
B40: EC121 Mbhashe | C40: EC EASTERN CAPE | Z40: Zoo's, Marine and Non-biological Animals | AA40: Social rental housing | AB40: PRV Stations
B41: EC122 Mnquma | C41: EC EASTERN CAPE | AA41: Buildings | AB41: Capital Spares
B42: EC123 Great Kei | C42: EC EASTERN CAPE | AA42: Housing development | AB42: Pump Station
B43: EC124 Amahlathi | C43: EC EASTERN CAPE | AA43: General vehicles | AB43: Reticulation
B44: EC126 Ngqushwa | C44: EC EASTERN CAPE | AA44: Specialised vehicles - Refuse | AB44: Waste Water Treatment Works
B45: EC129 Raymond Mhlaba | C45: EC EASTERN CAPE | AA45: Specialised vehicles - Fire | AB45: Outfall Sewers
B46: DC12 Amathole | C46: EC EASTERN CAPE | AA46: Specialised vehicles - Conservancy | AB46: Toilet Facilities
B47: EC131 Inxuba Yethemba | C47: EC EASTERN CAPE | AA47: Specialised vehicles - Ambulances | AB47: Capital Spares
B48: EC135 Intsika Yethu | C48: EC EASTERN CAPE | AA48: Plant & equipment | AB48: Landfill Sites
B49: EC136 Emalahleni (Ec) | C49: EC EASTERN CAPE | AA49: Computers - hardware/equipment | AB49: Waste Transfer Stations
B50: EC137 Engcobo | C50: EC EASTERN CAPE | AA50: Furniture and other office equipment | AB50: Waste Processing Facilities
B51: EC138 Sakhisizwe | C51: EC EASTERN CAPE | AA51: Abattoirs | AB51: Waste Drop-off Points
B52: EC139 Enoch Mgijima | C52: EC EASTERN CAPE | AA52: Markets | AB52: Waste Separation Facilities
B53: DC13 Chris Hani | C53: EC EASTERN CAPE | AA53: Civic Land and Buildings | AB53: Electricity Generation Facilities
B54: EC141 Elundini | C54: EC EASTERN CAPE | AA54: Other Buildings | AB54: Capital Spares
B55: EC142 Senqu | C55: EC EASTERN CAPE | AA55: Other Land | AB55: Rail Lines
B56: EC145 Walter Sisulu | C56: EC EASTERN CAPE | AA56: Surplus Assets - (Investment or Inventory) | AB56: Rail Structures
B57: DC14 Joe Gqabi | C57: EC EASTERN CAPE | AA57: Computers - software & programming | AB57: Rail Furniture
B58: EC153 Ngquza Hills | C58: EC EASTERN CAPE | AA58: Other | AB58: Drainage Collection
B59: EC154 Port St Johns | C59: EC EASTERN CAPE | AB59: Storm water Conveyance
B60: EC155 Nyandeni | C60: EC EASTERN CAPE | Z60: SA16 - Investments | AB60: Attenuation
B61: EC156 Mhlontlo | C61: EC EASTERN CAPE | Z61: Security | AA61: Interest rate | AB61: MV Substations
B62: EC157 King Sabata Dalindyebo | C62: EC EASTERN CAPE | Z62: Yes | AA62: Fixed | AB62: LV Networks
B63: DC15 O .R. Tambo | C63: EC EASTERN CAPE | Z63: No | AA63: Variable | AB63: Capital Spares
B64: EC441 Matatiele | C64: EC EASTERN CAPE | AB64: Sand Pumps
B65: EC442 Umzimvubu | C65: EC EASTERN CAPE | AB65: Piers
B66: EC443 Winnie Madikizela Mandela | C66: EC EASTERN CAPE | Z66: SA36, SA37 - Capital projects | AB66: Revetments
B67: EC444 Ntabankulu | C67: EC EASTERN CAPE | Z67: Yes | AB67: Promenades
B68: DC44 Alfred Nzo | C68: EC EASTERN CAPE | Z68: No | AB68: Capital Spares
B69: MAN Mangaung | C69: FS FREE STATE | AB69: Data Centres
B70: FS161 Letsemeng | C70: FS FREE STATE | AB70: Core Layers
B71: FS162 Kopanong | C71: FS FREE STATE | AB71: Distribution Layers
B72: FS163 Mohokare | C72: FS FREE STATE | AB72: Capital Spares
B73: DC16 Xhariep | C73: FS FREE STATE | AB73: Halls
B74: FS181 Masilonyana | C74: FS FREE STATE | AB74: Centres
B75: FS182 Tokologo | C75: FS FREE STATE | AB75: Crèches
B76: FS183 Tswelopele | C76: FS FREE STATE | AB76: Clinics/Care Centres
B77: FS184 Matjhabeng | C77: FS FREE STATE | AB77: Fire/Ambulance Stations
B78: FS185 Nala | C78: FS FREE STATE | AB78: Testing Stations
B79: DC18 Lejweleputswa | C79: FS FREE STATE | AB79: Museums
B80: FS191 Setsoto | C80: FS FREE STATE | AB80: Galleries
B81: FS192 Dihlabeng | C81: FS FREE STATE | AB81: Theatres
B82: FS193 Nketoana | C82: FS FREE STATE | AB82: Libraries
B83: FS194 Maluti-a-Phofung | C83: FS FREE STATE | AB83: Cemeteries/Crematoria
B84: FS195 Phumelela | C84: FS FREE STATE | AB84: Police
B85: FS196 Mantsopa | C85: FS FREE STATE | AB85: Purls
B86: DC19 Thabo Mofutsanyana | C86: FS FREE STATE | AB86: Public Open Space
B87: FS201 Moqhaka | C87: FS FREE STATE | AB87: Nature Reserves
B88: FS203 Ngwathe | C88: FS FREE STATE | AB88: Public Ablution Facilities
B89: FS204 Metsimaholo | C89: FS FREE STATE | AB89: Markets
B90: FS205 Mafube | C90: FS FREE STATE | AB90: Stalls
B91: DC20 Fezile Dabi | C91: FS FREE STATE | AB91: Abattoirs
B92: EKU City of Ekurhuleni | C92: GT GAUTENG | AB92: Airports
B93: JHB City Of Johannesburg | C93: GT GAUTENG | AB93: Taxi Ranks/Bus Terminals
B94: TSH City Of Tshwane | C94: GT GAUTENG | AB94: Capital Spares
B95: GT421 Emfuleni | C95: GT GAUTENG | AB95: Indoor Facilities
B96: GT422 Midvaal | C96: GT GAUTENG | AB96: Outdoor Facilities
B97: GT423 Lesedi | C97: GT GAUTENG | AB97: Capital Spares
B98: DC42 Sedibeng | C98: GT GAUTENG | AB98: Monuments
B99: GT481 Mogale City | C99: GT GAUTENG | AB99: Historic Buildings
B100: GT484 Merafong City | C100: GT GAUTENG | AB100: Works of Art
B101: GT485 Rand West City | C101: GT GAUTENG | AB101: Conservation Areas
B102: DC48 West Rand | C102: GT GAUTENG | AB102: Other Heritage
B103: ETH eThekwini | C103: KZN KWAZULU-NATAL | AB103: Improved Property
B104: KZN212 Umdoni | C104: KZN KWAZULU-NATAL | AB104: Unimproved Property
B105: KZN213 Umzumbe | C105: KZN KWAZULU-NATAL | AB105: Municipal Offices
B106: KZN214 uMuziwabantu | C106: KZN KWAZULU-NATAL | AB106: Pay/Enquiry Points
B107: KZN216 Ray Nkonyeni | C107: KZN KWAZULU-NATAL | AB107: Building Plan Offices
B108: DC21 Ugu | C108: KZN KWAZULU-NATAL | AB108: Workshops
B109: KZN221 uMshwathi | C109: KZN KWAZULU-NATAL | AB109: Yards
B110: KZN222 uMngeni | C110: KZN KWAZULU-NATAL | AB110: Stores
B111: KZN223 Mpofana | C111: KZN KWAZULU-NATAL | AB111: Laboratories
B112: KZN224 Impendle | C112: KZN KWAZULU-NATAL | AB112: Training Centres
B113: KZN225 Msunduzi | C113: KZN KWAZULU-NATAL | AB113: Manufacturing Plant
B114: KZN226 Mkhambathini | C114: KZN KWAZULU-NATAL | AB114: Depots
B115: KZN227 Richmond | C115: KZN KWAZULU-NATAL | AB115: Capital Spares
B116: DC22 uMgungundlovu | C116: KZN KWAZULU-NATAL | AB116: Staff Housing
B117: KZN235 Okhahlamba | C117: KZN KWAZULU-NATAL | AB117: Social Housing
B118: KZN237 Inkosi Langalibalele | C118: KZN KWAZULU-NATAL | AB118: Capital Spares
B119: KZN238 Alfred Duma | C119: KZN KWAZULU-NATAL | AB119: Water Rights
B120: DC23 Uthukela | C120: KZN KWAZULU-NATAL | AB120: Effluent Licenses
B121: KZN241 Endumeni | C121: KZN KWAZULU-NATAL | AB121: Solid Waste Licenses
B122: KZN242 Nquthu | C122: KZN KWAZULU-NATAL | AB122: Computer Software and Applications
B123: KZN244 Msinga | C123: KZN KWAZULU-NATAL | AB123: Load Settlement Software Applications
B124: KZN245 Umvoti | C124: KZN KWAZULU-NATAL | AB124: Unspecified
B125: DC24 Umzinyathi | C125: KZN KWAZULU-NATAL
B126: KZN252 Newcastle | C126: KZN KWAZULU-NATAL
B127: KZN253 Emadlangeni | C127: KZN KWAZULU-NATAL
B128: KZN254 Dannhauser | C128: KZN KWAZULU-NATAL
B129: DC25 Amajuba | C129: KZN KWAZULU-NATAL
B130: KZN261 eDumbe | C130: KZN KWAZULU-NATAL
B131: KZN262 uPhongolo | C131: KZN KWAZULU-NATAL
B132: KZN263 Abaqulusi | C132: KZN KWAZULU-NATAL
B133: KZN265 Nongoma | C133: KZN KWAZULU-NATAL
B134: KZN266 Ulundi | C134: KZN KWAZULU-NATAL
B135: DC26 Zululand | C135: KZN KWAZULU-NATAL
B136: KZN271 Umhlabuyalingana | C136: KZN KWAZULU-NATAL
B137: KZN272 Jozini | C137: KZN KWAZULU-NATAL
B138: KZN275 Mtubatuba | C138: KZN KWAZULU-NATAL
B139: KZN276 Hlabisa Big Five | C139: KZN KWAZULU-NATAL
B140: DC27 Umkhanyakude | C140: KZN KWAZULU-NATAL
B141: KZN281 Mfolozi | C141: KZN KWAZULU-NATAL
B142: KZN282 uMhlathuze | C142: KZN KWAZULU-NATAL
B143: KZN284 uMlalazi | C143: KZN KWAZULU-NATAL
B144: KZN285 Mthonjaneni | C144: KZN KWAZULU-NATAL
B145: KZN286 Nkandla | C145: KZN KWAZULU-NATAL
B146: DC28 King Cetshwayo | C146: KZN KWAZULU-NATAL
B147: KZN291 Mandeni | C147: KZN KWAZULU-NATAL
B148: KZN292 KwaDukuza | C148: KZN KWAZULU-NATAL
B149: KZN293 Ndwedwe | C149: KZN KWAZULU-NATAL
B150: KZN294 Maphumulo | C150: KZN KWAZULU-NATAL
B151: DC29 iLembe | C151: KZN KWAZULU-NATAL
B152: KZN433 Greater Kokstad | C152: KZN KWAZULU-NATAL
B153: KZN434 Ubuhlebezwe | C153: KZN KWAZULU-NATAL
B154: KZN435 Umzimkhulu | C154: KZN KWAZULU-NATAL
B155: KZN436 Dr Nkosazana Dlamini Zuma | C155: KZN KWAZULU-NATAL
B156: DC43 Harry Gwala | C156: KZN KWAZULU-NATAL
B157: LIM331 Greater Giyani | C157: LIM LIMPOPO
B158: LIM332 Greater Letaba | C158: LIM LIMPOPO
B159: LIM333 Greater Tzaneen | C159: LIM LIMPOPO
B160: LIM334 Ba-Phalaborwa | C160: LIM LIMPOPO
B161: LIM335 Maruleng | C161: LIM LIMPOPO
B162: DC33 Mopani | C162: LIM LIMPOPO
B163: LIM341 Musina | C163: LIM LIMPOPO
B164: LIM343 Thulamela | C164: LIM LIMPOPO
B165: LIM344 Makhado | C165: LIM LIMPOPO
B166: LIM345 Collins Chabane | C166: LIM LIMPOPO
B167: DC34 Vhembe | C167: LIM LIMPOPO
B168: LIM351 Blouberg | C168: LIM LIMPOPO
B169: LIM353 Molemole | C169: LIM LIMPOPO
B170: LIM354 Polokwane | C170: LIM LIMPOPO
B171: LIM355 Lepelle-Nkumpi | C171: LIM LIMPOPO
B172: DC35 Capricorn | C172: LIM LIMPOPO
B173: LIM361 Thabazimbi | C173: LIM LIMPOPO
B174: LIM362 Lephalale | C174: LIM LIMPOPO
B175: LIM366 Bela Bela | C175: LIM LIMPOPO
B176: LIM367 Mogalakwena | C176: LIM LIMPOPO
B177: LIM368 Modimolle-Mookgopong | C177: LIM LIMPOPO
B178: DC36 Waterberg | C178: LIM LIMPOPO
B179: LIM471 Ephraim Mogale | C179: LIM LIMPOPO
B180: LIM472 Elias Motsoaledi | C180: LIM LIMPOPO
B181: LIM473 Makhuduthamaga | C181: LIM LIMPOPO
B182: LIM476 Tubatse Fetakgomo | C182: LIM LIMPOPO
B183: DC47 Sekhukhune | C183: LIM LIMPOPO
B184: MP301 Albert Luthuli | C184: MP MPUMALANGA
B185: MP302 Msukaligwa | C185: MP MPUMALANGA
B186: MP303 Mkhondo | C186: MP MPUMALANGA
B187: MP304 Pixley Ka Seme (MP) | C187: MP MPUMALANGA
B188: MP305 Lekwa | C188: MP MPUMALANGA
B189: MP306 Dipaleseng | C189: MP MPUMALANGA
B190: MP307 Govan Mbeki | C190: MP MPUMALANGA
B191: DC30 Gert Sibande | C191: MP MPUMALANGA
B192: MP311 Victor Khanye | C192: MP MPUMALANGA
B193: MP312 Emalahleni (Mp) | C193: MP MPUMALANGA
B194: MP313 Steve Tshwete | C194: MP MPUMALANGA
B195: MP314 Emakhazeni | C195: MP MPUMALANGA
B196: MP315 Thembisile Hani | C196: MP MPUMALANGA
B197: MP316 Dr J.S. Moroka | C197: MP MPUMALANGA
B198: DC31 Nkangala | C198: MP MPUMALANGA
B199: MP321 Thaba Chweu | C199: MP MPUMALANGA
B200: MP324 Nkomazi | C200: MP MPUMALANGA
... 87 more rows

Sheet Org structure
A1: Organisational Structure Votes | C1: Organisational Structure Sub-Votes | E1: Display Sub-Votes
A2: =B2&" - "&C2 -> Vote 01 - Executive And Council | B2: Vote 01 | C2: Executive And Council
A3: =B7&" - "&C7 -> Vote 02 - Municipal Manager | B3: 01.1 | C3: Mayor & Councillors | D3: =CONCATENATE(B3, " - ", C3) -> 01.1 - Mayor & Councillors | E3: 01.1 - Mayor & Councillors
A4: =B14&" - "&C14 -> Vote 03 - Corporate Services | B4: 01.2 | C4: Mayor & Council Support | D4: =CONCATENATE(B4, " - ", C4) -> 01.2 - Mayor & Council Support | E4: 01.2 - Mayor & Council Support
A5: =B22&" - "&C22 -> Vote 04 - Budget And Treasury | B5: 01.3 | C5: Board General Mayor | D5: =CONCATENATE(B5, " - ", C5) -> 01.3 - Board General Mayor | E5: 01.3 - Board General Mayor
A6: =B29&" - "&C29 -> Vote 05 - Community Services | B6: 01.4 | C6: Board General Speaker | D6: =CONCATENATE(B6, " - ", C6) -> 01.4 - Board General Speaker | E6: 01.4 - Board General Speaker
A7: =B40&" - "&C40 -> Vote 06 - Planning And Development | B7: Vote 02 | C7: Municipal Manager
A8: =B48&" - "&C48 -> Vote 07 - Infrastructure Development | B8: 02.1 | C8: Municipal Manager Administration | D8: =CONCATENATE(B8, " - ", C8) -> 02.1 - Municipal Manager Administration | E8: 02.1 - Municipal Manager Administration
A9: =B59&" - "&C59 -> Vote 08 - | B9: 02.2 | C9: Municipal Manager | D9: 02.2 - Municipal Manager | E9: 02.2 - Municipal Manager
A10: Vote 09 - | B10: 02.3 | C10: Municipal Manager Support | D10: 02.3 - Municipal Manager Support | E10: 02.3 - Municipal Manager Support
A11: Vote 10 - | B11: 02.4 | C11: Internal Audit | D11: 02.4 - Internal Audit | E11: 02.4 - Internal Audit
A12: Vote 11 - | B12: 02.5 | C12: Communications | D12: 02.5 - Communications | E12: 02.5 - Communications
A13: Vote 12 - | B13: 02.6 | C13: Risk Management | D13: 02.6 - Risk Management | E13: 02.6 - Risk Management
A14: Vote 13 - | B14: Vote 03 | C14: Corporate Services
A15: Vote 14 - | B15: 03.1 | C15: Executive Manager: Corporate Services | D15: =CONCATENATE(B15, " - ", C15) -> 03.1 - Executive Manager: Corporate Services | E15: 03.1 - Executive Manager: Corporate Services
A16: Vote 15 - Other | B16: 03.2 | C16: Human Resource Management & Development | D16: 03.2 - Human Resource Management & Development | E16: 03.2 - Human Resource Management & Development
B17: 03.3 | C17: Information Technology | D17: 03.3 - Information Technology | E17: 03.3 - Information Technology
B18: 03.4 | C18: Legal Services | D18: 03.4 - Legal Services | E18: 03.4 - Legal Services
B19: 03.5 | C19: Gen Adm_Sec_Fleet: General Administrat | D19: 03.5 - Gen Adm_Sec_Fleet: General Administrat | E19: 03.5 - Gen Adm_Sec_Fleet: General Administrat
B20: 03.6 | C20: Gen Adm_Sec_Fleet: Security Services | D20: 03.6 - Gen Adm_Sec_Fleet: Security Services | E20: 03.6 - Gen Adm_Sec_Fleet: Security Services
B21: 03.7 | C21: Gen Adm_Sec_Fleet: Fleet Management | D21: 03.7 - Gen Adm_Sec_Fleet: Fleet Management | E21: 03.7 - Gen Adm_Sec_Fleet: Fleet Management
B22: Vote 04 | C22: Budget And Treasury
B23: 04.1 | C23: Chief Financial Officer | D23: =CONCATENATE(B23, " - ", C23) -> 04.1 - Chief Financial Officer | E23: 04.1 - Chief Financial Officer
B24: 04.2 | C24: Budget Planning & Management | D24: 04.2 - Budget Planning & Management | E24: 04.2 - Budget Planning & Management
B25: 04.3 | C25: Expenditure Management | D25: 04.3 - Expenditure Management | E25: 04.3 - Expenditure Management
B26: 04.4 | C26: Revenue Management | D26: 04.4 - Revenue Management | E26: 04.4 - Revenue Management
B27: 04.5 | C27: Asset Management | D27: 04.5 - Asset Management | E27: 04.5 - Asset Management
B28: 04.6 | C28: Supply Chain Management | D28: 04.6 - Supply Chain Management | E28: 04.6 - Supply Chain Management
B29: Vote 05 | C29: Community Services
B30: 05.1 | C30: Executive Manager: Community Services | D30: =CONCATENATE(B30, " - ", C30) -> 05.1 - Executive Manager: Community Services | E30: 05.1 - Executive Manager: Community Services
B31: 05.2 | C31: Waste Management Services | D31: 05.2 - Waste Management Services | E31: 05.2 - Waste Management Services
B32: 05.3 | C32: Environmental Management Services | D32: 05.3 - Environmental Management Services | E32: 05.3 - Environmental Management Services
B33: 05.4 | C33: Road Traffic & Law Enforce: Traffic Serv | D33: 05.4 - Road Traffic & Law Enforce: Traffic Serv | E33: 05.4 - Road Traffic & Law Enforce: Traffic Serv
B34: 05.5 | C34: Road Traffic&Law Enforce: Licencing Serv | D34: 05.5 - Road Traffic&Law Enforce: Licencing Serv | E34: 05.5 - Road Traffic&Law Enforce: Licencing Serv
B35: 05.6 | C35: Road Traffic&Law Enforce: Pound | D35: 05.6 - Road Traffic&Law Enforce: Pound | E35: 05.6 - Road Traffic&Law Enforce: Pound
B36: 05.7 | C36: Institutional & Social Dev Management | D36: 05.7 - Institutional & Social Dev Management | E36: 05.7 - Institutional & Social Dev Management
B37: 05.8 | C37: Libraries And Archives | D37: 05.8 - Libraries And Archives | E37: 05.8 - Libraries And Archives
B38: 05.9 | C38: Community Halls And Facilities | D38: 05.9 - Community Halls And Facilities | E38: 05.9 - Community Halls And Facilities
B39: 05.10 | C39: Disaster Management | D39: 05.10 - Disaster Management | E39: 05.10 - Disaster Management
B40: Vote 06 | C40: Planning And Development
B41: 06.1 | C41: Executive Manager:Planning & Development | D41: =CONCATENATE(B41, " - ", C41) -> 06.1 - Executive Manager:Planning & Development | E41: 06.1 - Executive Manager:Planning & Development
B42: 06.2 | C42: Economic Development & Planning | D42: 06.2 - Economic Development & Planning | E42: 06.2 - Economic Development & Planning
B43: 06.3 | C43: Development & Town Planning | D43: 06.3 - Development & Town Planning | E43: 06.3 - Development & Town Planning
B44: 06.4 | C44: Property Management & Housing | D44: 06.4 - Property Management & Housing | E44: 06.4 - Property Management & Housing
B45: 06.5 | C45: Integrated Development Planning | D45: 06.5 - Integrated Development Planning | E45: 06.5 - Integrated Development Planning
B46: 06.6 | C46: Performance Management | D46: 06.6 - Performance Management | E46: 06.6 - Performance Management
B47: 06.7 | C47: Local Economic Development | D47: 06.7 - Local Economic Development | E47: 06.7 - Local Economic Development
B48: Vote 07 | C48: Infrastructure Development
B49: 07.1 | C49: Technical Services Administration | D49: =CONCATENATE(B49, " - ", C49) -> 07.1 - Technical Services Administration | E49: 07.1 - Technical Services Administration
B50: 07.2 | C50: Roads | D50: 07.2 - Roads | E50: 07.2 - Roads
B51: 07.3 | C51: Workshop | D51: 07.3 - Workshop | E51: 07.3 - Workshop
B52: 07.4 | C52: Sewerage Network | D52: 07.4 - Sewerage Network | E52: 07.4 - Sewerage Network
B53: 07.5 | C53: Sewerage Purification | D53: 07.5 - Sewerage Purification | E53: 07.5 - Sewerage Purification
B54: 07.6 | C54: Irrigation | D54: 07.6 - Irrigation | E54: 07.6 - Irrigation
B55: 07.7 | C55: Executive Manager: Infrastructure Dev | D55: 07.7 - Executive Manager: Infrastructure Dev | E55: 07.7 - Executive Manager: Infrastructure Dev
B56: 07.8 | C56: Road Construction & Maintenance | D56: 07.8 - Road Construction & Maintenance | E56: 07.8 - Road Construction & Maintenance
B57: 07.9 | C57: Electrical & Mechanical Works | D57: 07.9 - Electrical & Mechanical Works | E57: 07.9 - Electrical & Mechanical Works
B58: 07.10 | C58: Project Management | D58: 07.10 - Project Management | E58: 07.10 - Project Management
B59: Vote 08
B60: Vote 09
B61: Vote 10
B62: Vote 11
B63: Vote 12
B64: Vote 13
B65: Vote 14
B66: Vote 15 | C66: Other

Sheet Contacts
A1: =muni&" - "&" Contact Information" -> LIM355 Lepelle-Nkumpi - Contact Information
A3: A. GENERAL INFORMATION
A4: Municipality | B4: =muni -> LIM355 Lepelle-Nkumpi | C4: =IF(B4="Choose name from List","Set name on 'Instructions' sheet", "") -> 
A6: Grade | B6: 5 | C6: 1 Grade in terms of the Remuneration of Public Office Bearers Act.
A8: Province | B8: =IF(B4>" ",VLOOKUP(B4,'Lookup and lists'!B29:C307,2, FALSE)," ") -> LIM LIMPOPO
A10: Web Address | B10: www.lepelle-nkumpi.gov.za
A12: e-mail Address
A14: B. CONTACT INFORMATION
A15: Postal address:
A16: P.O. Box | B16: P/B X07
A17: City / Town | B17: Chuenespoort
A18: Postal Code | B18: 0745
A20: Street address
A21: Building | B21: 170 BA
A22: Street No. & Name | B22: civic center
A23: City / Town | B23: lebowakgomo
A24: Postal Code | B24: 0737
A26: General Contacts
A27: Telephone number | B27: 015 633 4500
A28: Fax number | B28: 015 633 6896
A30: C. POLITICAL LEADERSHIP
A31: Speaker: | C31: Secretary/PA to the Speaker:
A32: ID Number | B32: 7311190526081 | C32: ID Number | D32: 8809211020082
A33: Title | B33: Ms | C33: Title | D33: Ms
A34: Name | B34: Nkoabela N J | C34: Name | D34: Lebogang Kekana
A35: Telephone number | B35: 0156334500 | C35: Telephone number | D35: 015 633 4525
A36: Cell number | C36: Cell number | D36: 0714800336
A37: Fax number | B37: 015 633 6896 | C37: Fax number | D37: 015 633 6896
A38: E-mail address | B38: nkoabela.j@lepelle-nkumpi.onmicrosoft.com | C38: E-mail address | D38: lebogang.kekana@lepelle-nkumpi.gov.za
C40: Secretary/PA to the Mayor/Executive Mayor:
A41: ID Number | B41: 6806060319088 | C41: ID Number | D41: 8510065530081
A42: Title | B42: Ms | C42: Title | D42: Mr
A43: Name | B43: MM Molala | C43: Name | D43: Thobejane T A
A44: Telephone number | B44: 015 633 4500 | C44: Telephone number | D44: 015 633 4525
A45: Cell number | B45: 0711042289 | C45: Cell number | D45: 082 660 0761
A46: Fax number | B46: 015 633 6896 | C46: Fax number | D46: 015 633 6896
A47: E-mail address | B47: merriam.molala@lepelle-nkumpi.gov.za | C47: E-mail address | D47: tswaledi.thobejane@lepelle-nkumpi.gov.za
A49: Deputy Mayor/Executive Mayor: | C49: Secretary/PA to the Deputy Mayor/Executive Mayor:
A50: ID Number | C50: ID Number
A51: Title | C51: Title
A52: Name | C52: Name
A53: Telephone number | C53: Telephone number
A54: Cell number | C54: Cell number
A55: Fax number | C55: Fax number
A56: E-mail address | C56: E-mail address
A58: D. MANAGEMENT LEADERSHIP
A59: Municipal Manager: | C59: Secretary/PA to the Municipal Manager:
A60: ID Number | B60: 8902110838082 | C60: ID Number | D60: 8110230738089
A61: Title | B61: Ms | C61: Title | D61: Ms
A62: Name | B62: Khomotjo Mankga | C62: Name | D62: Lekgau Theresho
A63: Telephone number | B63: 015 633 4520 | C63: Telephone number | D63: 015 633 4508
A64: Cell number | B64: 064 538 6703 | C64: Cell number | D64: 082 371 9768
A65: Fax number | B65: 015 633 6896 | C65: Fax number | D65: 015 633 6896
A66: E-mail address | B66: khomotjo.mankga@lepelle-nkumpi.gov.za | C66: E-mail address | D66: theresho.lekgau@lepelle-nkumpi.gov.za
A68: Chief Financial Officer | C68: Secretary/PA to the Chief Financial Officer
A69: ID Number | B69: 7704030318083 | C69: ID Number | D69: 8706271296083
A70: Title | B70: Ms | C70: Title | D70: Ms
A71: Name | B71: Mathebo Nancy Masemola | C71: Name | D71: Agnes Lehomo
A72: Telephone number | B72: 015 633 4512 | C72: Telephone number | D72: 0156334537
A73: Cell number | B73: 079 778 5141 | C73: Cell number | D73: 071 371 9977
A74: Fax number | B74: 015 633 6896 | C74: Fax number | D74: 015 633 6896
A75: E-mail address | B75: nancy.masemola@lepelle-nkumpi.gov.za | C75: E-mail address | D75: agnes.lehomo@lepelle-nkumpi.gov.za
A77: Official responsible for submitting financial information | C77: Official responsible for submitting financial information
A78: ID Number | B78: 7809210399082 | C78: ID Number
A79: Title | B79: Ms | C79: Title
A80: Name | B80: Daphney Moema | C80: Name
A81: Telephone number | B81: 015 633 4503 | C81: Telephone number
A82: Cell number | B82: 071 416 1345 | C82: Cell number
A83: Fax number | B83: 015 633 6896 | C83: Fax number
A84: E-mail address | B84: daphney.moroaswi@lepelle-nkumpi.gov.za | C84: E-mail address
A85: Official responsible for submitting financial information | C85: Official responsible for submitting financial information
A86: ID Number | B86: 8801131131081 | C86: ID Number
A87: Title | B87: Ms | C87: Title
A88: Name | B88: Moila K M | C88: Name
A89: Telephone number | B89: 015 633 4513 | C89: Telephone number
A90: Cell number | B90: 083 438 4995 | C90: Cell number
A91: Fax number | B91: 015 633 6896 | C91: Fax number
A92: E-mail address | B92: kwena.seshoka@lepelle-nkumpi'gov.za | C92: E-mail address
A93: Official responsible for submitting financial information | C93: Official responsible for submitting financial information
A94: ID Number | B94: 7311295313088 | C94: ID Number
A95: Title | B95: Mr | C95: Title
A96: Name | B96: Maribe MM | C96: Name
A97: Telephone number | B97: 015 633 4513 | C97: Telephone number
A98: Cell number | B98: 072 308 8189 | C98: Cell number
A99: Fax number | B99: 015 633 6896 | C99: Fax number
A100: E-mail address | B100: mokgalo.maribe@lepelle-nkumpi.gov.za | C100: E-mail address
A101: Official responsible for submitting financial information | C101: Official responsible for submitting financial information
A102: ID Number | C102: ID Number
A103: Title | C103: Title
A104: Name | C104: Name
A105: Telephone number | C105: Telephone number
A106: Cell number | C106: Cell number
A107: Fax number | C107: Fax number
A108: E-mail address | C108: E-mail address
A109: Official responsible for submitting financial information | C109: Official responsible for submitting financial information
A110: ID Number | C110: ID Number
A111: Title | C111: Title
A112: Name | C112: Name
A113: Telephone number | C113: Telephone number
A114: Cell number | C114: Cell number
A115: Fax number | C115: Fax number
A116: E-mail address | C116: E-mail address
A117: Official responsible for submitting financial information | C117: Official responsible for submitting financial information
A118: ID Number | C118: ID Number
A119: Title | C119: Title
A120: Name | C120: Name
A121: Telephone number | C121: Telephone number
A122: Cell number | C122: Cell number
A123: Fax number | C123: Fax number
A124: E-mail address | C124: E-mail address
A125: Official responsible for submitting financial information | C125: Official responsible for submitting financial information
A126: ID Number | C126: ID Number
A127: Title | C127: Title
A128: Name | C128: Name
A129: Telephone number | C129: Telephone number
A130: Cell number | C130: Cell number
A131: Fax number | C131: Fax number
A132: E-mail address | C132: E-mail address
A133: Official responsible for submitting financial information
A134: ID Number
A135: Title
A136: Name
A137: Telephone number
A138: Cell number
A139: Fax number
A140: E-mail address

Sheet A1-Sum
A1: =muni&" - "&Approve1 -> LIM355 Lepelle-Nkumpi - Table A1 Budget Summary
A2: =desc -> Description | B2: =head1b -> 2018/19 | C2: =head1A -> 2019/20 | D2: =Head1 -> 2020/21 | E2: =Head2 -> Current Year 2021/22 | I2: =Head3 -> 2022/23 Medium Term Revenue & Expenditure Framework
A3: R thousands | B3: =Head5 -> Audited Outcome | C3: =Head5 -> Audited Outcome | D3: =Head5 -> Audited Outcome | E3: =Head6 -> Original Budget | F3: =Head7 -> Adjusted Budget | G3: =Head8 -> Full Year Forecast | H3: =Head5b -> Pre-audit outcome | I3: =Head9 -> Budget Year 2022/23 | J3: =Head10 -> Budget Year +1 2023/24 | K3: =Head11 -> Budget Year +2 2024/25
A4: Financial Performance
A5: Property rates | B5: ='A4-FinPerf RE'!C5 -> 0 | C5: ='A4-FinPerf RE'!D5 -> 8369863.77 | D5: ='A4-FinPerf RE'!E5 -> 31750277.91 | E5: ='A4-FinPerf RE'!F5 -> 32799503 | F5: ='A4-FinPerf RE'!G5 -> 32799503 | G5: ='A4-FinPerf RE'!H5 -> 32799503 | H5: ='A4-FinPerf RE'!I5 -> 30520670.65 | I5: ='A4-FinPerf RE'!J5 -> 34373881 | J5: ='A4-FinPerf RE'!K5 -> 35886332 | K5: ='A4-FinPerf RE'!L5 -> 37501216
A6: Service charges | B6: =SUM('A4-FinPerf RE'!C6:C9) -> 0 | C6: =SUM('A4-FinPerf RE'!D6:D9) -> 23065489.82 | D6: =SUM('A4-FinPerf RE'!E6:E9) -> 6433333.48 | E6: =SUM('A4-FinPerf RE'!F6:F9) -> 6794475 | F6: =SUM('A4-FinPerf RE'!G6:G9) -> 6794475 | G6: =SUM('A4-FinPerf RE'!H6:H9) -> 6794475 | H6: =SUM('A4-FinPerf RE'!I6:I9) -> -8458509.23 | I6: =SUM('A4-FinPerf RE'!J6:J9) -> 7120609 | J6: =SUM('A4-FinPerf RE'!K6:K9) -> 7433916 | K6: =SUM('A4-FinPerf RE'!L6:L9) -> 7768443
A7: Investment revenue | B7: ='A4-FinPerf RE'!C12 -> 0 | C7: ='A4-FinPerf RE'!D12 -> 1202955.64 | D7: ='A4-FinPerf RE'!E12 -> 8578788.96 | E7: ='A4-FinPerf RE'!F12 -> 7798205 | F7: ='A4-FinPerf RE'!G12 -> 12566526 | G7: ='A4-FinPerf RE'!H12 -> 12566526 | H7: ='A4-FinPerf RE'!I12 -> 10934357.71 | I7: ='A4-FinPerf RE'!J12 -> 13169720 | J7: ='A4-FinPerf RE'!K12 -> 13749187 | K7: ='A4-FinPerf RE'!L12 -> 14367900
A8: Transfers recognised - operational | B8: ='A4-FinPerf RE'!C18 -> 0 | C8: ='A4-FinPerf RE'!D18 -> 105855612.7 | D8: ='A4-FinPerf RE'!E18 -> 322418846.4 | E8: ='A4-FinPerf RE'!F18 -> 287594898 | F8: ='A4-FinPerf RE'!G18 -> 287594898 | G8: ='A4-FinPerf RE'!H18 -> 287594898 | H8: ='A4-FinPerf RE'!I18 -> 284929797.3 | I8: ='A4-FinPerf RE'!J18 -> 310408898 | J8: ='A4-FinPerf RE'!K18 -> 329557000 | K8: ='A4-FinPerf RE'!L18 -> 348854000
A9: Other own revenue | B9: ='A4-FinPerf RE'!C11+'A4-FinPerf RE'!C13+'A4-FinPerf RE'!C14+'A4-FinPerf RE'!C15+'A4-FinPerf RE'!C16+'A4-FinPerf RE'!C17+'A4-FinPerf RE'!C19+'A4-FinPerf RE'!C20 -> 0 | C9: ='A4-FinPerf RE'!D11+'A4-FinPerf RE'!D13+'A4-FinPerf RE'!D14+'A4-FinPerf RE'!D15+'A4-FinPerf RE'!D16+'A4-FinPerf RE'!D17+'A4-FinPerf RE'!D19+'A4-FinPerf RE'!D20 -> 4652584.03 | D9: ='A4-FinPerf RE'!E11+'A4-FinPerf RE'!E13+'A4-FinPerf RE'!E14+'A4-FinPerf RE'!E15+'A4-FinPerf RE'!E16+'A4-FinPerf RE'!E17+'A4-FinPerf RE'!E19+'A4-FinPerf RE'!E20 -> 64628408.8 | E9: ='A4-FinPerf RE'!F11+'A4-FinPerf RE'!F13+'A4-FinPerf RE'!F14+'A4-FinPerf RE'!F15+'A4-FinPerf RE'!F16+'A4-FinPerf RE'!F17+'A4-FinPerf RE'!F19+'A4-FinPerf RE'!F20 -> 170995422 | F9: ='A4-FinPerf RE'!G11+'A4-FinPerf RE'!G13+'A4-FinPerf RE'!G14+'A4-FinPerf RE'!G15+'A4-FinPerf RE'!G16+'A4-FinPerf RE'!G17+'A4-FinPerf RE'!G19+'A4-FinPerf RE'!G20 -> 188059145 | G9: ='A4-FinPerf RE'!H11+'A4-FinPerf RE'!H13+'A4-FinPerf RE'!H14+'A4-FinPerf RE'!H15+'A4-FinPerf RE'!H16+'A4-FinPerf RE'!H17+'A4-FinPerf RE'!H19+'A4-FinPerf RE'!H20 -> 188059145 | H9: ='A4-FinPerf RE'!I11+'A4-FinPerf RE'!I13+'A4-FinPerf RE'!I14+'A4-FinPerf RE'!I15+'A4-FinPerf RE'!I16+'A4-FinPerf RE'!I17+'A4-FinPerf RE'!I19+'A4-FinPerf RE'!I20 -> 28188109.26 | I9: ='A4-FinPerf RE'!J11+'A4-FinPerf RE'!J13+'A4-FinPerf RE'!J14+'A4-FinPerf RE'!J15+'A4-FinPerf RE'!J16+'A4-FinPerf RE'!J17+'A4-FinPerf RE'!J19+'A4-FinPerf RE'!J20 -> 200238788 | J9: ='A4-FinPerf RE'!K11+'A4-FinPerf RE'!K13+'A4-FinPerf RE'!K14+'A4-FinPerf RE'!K15+'A4-FinPerf RE'!K16+'A4-FinPerf RE'!K17+'A4-FinPerf RE'!K19+'A4-FinPerf RE'!K20 -> 190445214 | K9: ='A4-FinPerf RE'!L11+'A4-FinPerf RE'!L13+'A4-FinPerf RE'!L14+'A4-FinPerf RE'!L15+'A4-FinPerf RE'!L16+'A4-FinPerf RE'!L17+'A4-FinPerf RE'!L19+'A4-FinPerf RE'!L20 -> 189015244
A10: ='A4-FinPerf RE'!A21 -> Total Revenue (excluding capital transfers and contributions) | B10: =SUM(B5:B9) -> 0 | C10: 143146505.9 | D10: 433809655.6 | E10: 505982503 | F10: 527814547 | G10: 527814547 | H10: 346114425.7 | I10: 565311896 | J10: 577071649 | K10: 597506803
A11: Employee costs | B11: ='A4-FinPerf RE'!C24 -> 0 | C11: ='A4-FinPerf RE'!D24 -> 25927135.45 | D11: ='A4-FinPerf RE'!E24 -> 96320163.65 | E11: ='A4-FinPerf RE'!F24 -> 123088180 | F11: ='A4-FinPerf RE'!G24 -> 113600445 | G11: ='A4-FinPerf RE'!H24 -> 113600445 | H11: ='A4-FinPerf RE'!I24 -> 87730110.7 | I11: ='A4-FinPerf RE'!J24 -> 134714216 | J11: ='A4-FinPerf RE'!K24 -> 140641636 | K11: ='A4-FinPerf RE'!L24 -> 146970499
A12: Remuneration of councillors | B12: ='A4-FinPerf RE'!C25 -> 0 | C12: ='A4-FinPerf RE'!D25 -> 3605569.71 | D12: ='A4-FinPerf RE'!E25 -> 22365273.38 | E12: ='A4-FinPerf RE'!F25 -> 24561409 | F12: ='A4-FinPerf RE'!G25 -> 22412170 | G12: ='A4-FinPerf RE'!H25 -> 22412170 | H12: ='A4-FinPerf RE'!I25 -> 20496121.54 | I12: ='A4-FinPerf RE'!J25 -> 22394173 | J12: ='A4-FinPerf RE'!K25 -> 23379517 | K12: ='A4-FinPerf RE'!L25 -> 24431598
A13: Depreciation & asset impairment | B13: ='A4-FinPerf RE'!C27 -> 0 | C13: ='A4-FinPerf RE'!D27 -> 13577.88 | D13: ='A4-FinPerf RE'!E27 -> 30573634.62 | E13: ='A4-FinPerf RE'!F27 -> 33519432 | F13: ='A4-FinPerf RE'!G27 -> 35019432 | G13: ='A4-FinPerf RE'!H27 -> 35019432 | H13: ='A4-FinPerf RE'!I27 -> 24429755.86 | I13: ='A4-FinPerf RE'!J27 -> 37699942 | J13: ='A4-FinPerf RE'!K27 -> 44489321 | K13: ='A4-FinPerf RE'!L27 -> 45823039
A14: Finance charges | B14: ='A4-FinPerf RE'!C28 -> 0 | C14: ='A4-FinPerf RE'!D28 -> 0 | D14: ='A4-FinPerf RE'!E28 -> 0 | E14: ='A4-FinPerf RE'!F28 -> 146577 | F14: ='A4-FinPerf RE'!G28 -> 146577 | G14: ='A4-FinPerf RE'!H28 -> 146577 | H14: ='A4-FinPerf RE'!I28 -> 0 | I14: ='A4-FinPerf RE'!J28 -> 153613 | J14: ='A4-FinPerf RE'!K28 -> 160372 | K14: ='A4-FinPerf RE'!L28 -> 167588
A15: Inventory consumed and bulk purchases | B15: ='A4-FinPerf RE'!C29+'A4-FinPerf RE'!C30 -> 0 | C15: ='A4-FinPerf RE'!D29+'A4-FinPerf RE'!D30 -> 0 | D15: ='A4-FinPerf RE'!E29+'A4-FinPerf RE'!E30 -> 2854112.93 | E15: ='A4-FinPerf RE'!F29+'A4-FinPerf RE'!F30 -> 4220810 | F15: ='A4-FinPerf RE'!G29+'A4-FinPerf RE'!G30 -> 4220810 | G15: ='A4-FinPerf RE'!H29+'A4-FinPerf RE'!H30 -> 4220810 | H15: ='A4-FinPerf RE'!I29+'A4-FinPerf RE'!I30 -> 1111269.03 | I15: ='A4-FinPerf RE'!J29+'A4-FinPerf RE'!J30 -> 8167811 | J15: ='A4-FinPerf RE'!K29+'A4-FinPerf RE'!K30 -> 6088941 | K15: ='A4-FinPerf RE'!L29+'A4-FinPerf RE'!L30 -> 6362942
A16: Transfers and grants | B16: ='A4-FinPerf RE'!C32 -> 0 | C16: ='A4-FinPerf RE'!D32 -> 0 | D16: ='A4-FinPerf RE'!E32 -> 0 | E16: ='A4-FinPerf RE'!F32 -> 0 | F16: ='A4-FinPerf RE'!G32 -> 0 | G16: ='A4-FinPerf RE'!H32 -> 0 | H16: ='A4-FinPerf RE'!I32 -> 0 | I16: ='A4-FinPerf RE'!J32 -> 0 | J16: ='A4-FinPerf RE'!K32 -> 0 | K16: ='A4-FinPerf RE'!L32 -> 0
A17: Other expenditure | B17: ='A4-FinPerf RE'!C26+'A4-FinPerf RE'!C31+'A4-FinPerf RE'!C33+'A4-FinPerf RE'!C34 -> 0 | C17: ='A4-FinPerf RE'!D26+'A4-FinPerf RE'!D31+'A4-FinPerf RE'!D33+'A4-FinPerf RE'!D34 -> 16547043.5 | D17: ='A4-FinPerf RE'!E26+'A4-FinPerf RE'!E31+'A4-FinPerf RE'!E33+'A4-FinPerf RE'!E34 -> 382499871.5 | E17: ='A4-FinPerf RE'!F26+'A4-FinPerf RE'!F31+'A4-FinPerf RE'!F33+'A4-FinPerf RE'!F34 -> 231865345 | F17: ='A4-FinPerf RE'!G26+'A4-FinPerf RE'!G31+'A4-FinPerf RE'!G33+'A4-FinPerf RE'!G34 -> 264188310 | G17: ='A4-FinPerf RE'!H26+'A4-FinPerf RE'!H31+'A4-FinPerf RE'!H33+'A4-FinPerf RE'!H34 -> 264188310 | H17: ='A4-FinPerf RE'!I26+'A4-FinPerf RE'!I31+'A4-FinPerf RE'!I33+'A4-FinPerf RE'!I34 -> 97362830.76 | I17: ='A4-FinPerf RE'!J26+'A4-FinPerf RE'!J31+'A4-FinPerf RE'!J33+'A4-FinPerf RE'!J34 -> 235664393 | J17: ='A4-FinPerf RE'!K26+'A4-FinPerf RE'!K31+'A4-FinPerf RE'!K33+'A4-FinPerf RE'!K34 -> 207884833 | K17: ='A4-FinPerf RE'!L26+'A4-FinPerf RE'!L31+'A4-FinPerf RE'!L33+'A4-FinPerf RE'!L34 -> 224470800
A18: ='A4-FinPerf RE'!A35 -> Total Expenditure | B18: =SUM(B11:B17) -> 0 | C18: =SUM(C11:C17) -> 46093326.54 | D18: 534613056.1 | E18: 417401753 | F18: 439587744 | G18: 439587744 | H18: 231130087.9 | I18: 438794148 | J18: 422644620 | K18: 448226466
A19: ='A4-FinPerf RE'!A37 -> Surplus/(Deficit) | B19: =B10-B18 -> 0 | C19: 97053179.4 | D19: -100803400.5 | E19: 88580750 | F19: 88226803 | G19: 88226803 | H19: 114984337.8 | I19: 126517748 | J19: 154427029 | K19: 149280337
A20: ='A4-FinPerf RE'!A38 -> Transfers and subsidies - capital (monetary allocations) (National / Provincial and District) | B20: ='A4-FinPerf RE'!C38 -> 0 | C20: ='A4-FinPerf RE'!D38 -> 3983727.73 | D20: ='A4-FinPerf RE'!E38 -> 35107765.51 | E20: ='A4-FinPerf RE'!F38 -> 57085000 | F20: ='A4-FinPerf RE'!G38 -> 67510000 | G20: ='A4-FinPerf RE'!H38 -> 67510000 | H20: ='A4-FinPerf RE'!I38 -> 39919749.48 | I20: ='A4-FinPerf RE'!J38 -> 61628000 | J20: ='A4-FinPerf RE'!K38 -> 64340000 | K20: ='A4-FinPerf RE'!L38 -> 67225000
A21: ='A4-FinPerf RE'!A39&" & "&'A4-FinPerf RE'!A40 -> Transfers and subsidies - capital (monetary allocations) (National / Provincial Departmental Agencies, Households, Non-profit Institutions, Private Enterprises, Public Corporatons, Higher Educational Institutions) & Transfers and subsidies - capital (in-kind - all) | B21: ='A4-FinPerf RE'!C39+'A4-FinPerf RE'!C40 -> 0 | C21: ='A4-FinPerf RE'!D39+'A4-FinPerf RE'!D40 -> 0 | D21: ='A4-FinPerf RE'!E39+'A4-FinPerf RE'!E40 -> 0 | E21: ='A4-FinPerf RE'!F39+'A4-FinPerf RE'!F40 -> 0 | F21: ='A4-FinPerf RE'!G39+'A4-FinPerf RE'!G40 -> 0 | G21: ='A4-FinPerf RE'!H39+'A4-FinPerf RE'!H40 -> 0 | H21: ='A4-FinPerf RE'!I39+'A4-FinPerf RE'!I40 -> 0 | I21: ='A4-FinPerf RE'!J39+'A4-FinPerf RE'!J40 -> 0 | J21: ='A4-FinPerf RE'!K39+'A4-FinPerf RE'!K40 -> 0 | K21: ='A4-FinPerf RE'!L39+'A4-FinPerf RE'!L40 -> 0
A22: ='A4-FinPerf RE'!A41 -> Surplus/(Deficit) after capital transfers & contributions | B22: =B19+SUM(B20:B21) -> 0 | C22: =C19+SUM(C20:C21) -> 101036907.1 | E22: 145665750 | F22: 155736803 | G22: 155736803 | H22: 154904087.3 | I22: 188145748 | J22: 218767029 | K22: 216505337
A23: ='A4-FinPerf RE'!A46 -> Share of surplus/ (deficit) of associate | B23: ='A4-FinPerf RE'!C46 -> 0 | C23: ='A4-FinPerf RE'!D46 -> 0 | D23: ='A4-FinPerf RE'!E46 -> 0 | E23: ='A4-FinPerf RE'!F46 -> 0 | F23: ='A4-FinPerf RE'!G46 -> 0 | G23: ='A4-FinPerf RE'!H46 -> 0 | H23: ='A4-FinPerf RE'!I46 -> 0 | I23: ='A4-FinPerf RE'!J46 -> 0 | J23: ='A4-FinPerf RE'!K46 -> 0 | K23: ='A4-FinPerf RE'!L46 -> 0
A24: ='A4-FinPerf RE'!A47 -> Surplus/(Deficit) for the year | B24: =B22+B23 -> 0 | C24: =C22+C23 -> 101036907.1 | D24: 0 | E24: 145665750 | F24: 155736803 | G24: 155736803 | H24: 154904087.3 | I24: 188145748 | J24: 218767029 | K24: 216505337
A26: Capital expenditure & funds sources
A27: Capital expenditure | B27: ='A5-Capex'!C63 -> 0 | C27: ='A5-Capex'!D63 -> 13767567.82 | D27: ='A5-Capex'!E63 -> 45471036.76 | E27: ='A5-Capex'!F63 -> 145662750 | F27: ='A5-Capex'!G63 -> 155697750 | G27: ='A5-Capex'!H63 -> 155697750 | H27: ='A5-Capex'!I63 -> 51440318.49 | I27: ='A5-Capex'!J63 -> 191330136 | J27: ='A5-Capex'!K63 -> 220008750 | K27: ='A5-Capex'!L63 -> 217802935
A28: Transfers recognised - capital | B28: ='A5-Capex'!C70 -> 0 | C28: ='A5-Capex'!D70 -> 8736597.37 | D28: ='A5-Capex'!E70 -> 31531676.19 | E28: ='A5-Capex'!F70 -> 54230750 | F28: ='A5-Capex'!G70 -> 64655750 | G28: ='A5-Capex'!H70 -> 64655750 | H28: ='A5-Capex'!I70 -> 36520186.64 | I28: ='A5-Capex'!J70 -> 58546601 | J28: ='A5-Capex'!K70 -> 66123000 | K28: ='A5-Capex'!L70 -> 63863750
A30: ='A5-Capex'!A72 -> Borrowing | B30: ='A5-Capex'!C72 -> 0 | C30: ='A5-Capex'!D72 -> 0 | D30: ='A5-Capex'!E72 -> 0 | E30: ='A5-Capex'!F72 -> 0 | F30: ='A5-Capex'!G72 -> 0 | G30: ='A5-Capex'!H72 -> 0 | H30: ='A5-Capex'!I72 -> 0 | I30: ='A5-Capex'!J72 -> 0 | J30: ='A5-Capex'!K72 -> 0 | K30: ='A5-Capex'!L72 -> 0
A31: ='A5-Capex'!A73 -> Internally generated funds | B31: ='A5-Capex'!C73 -> 0 | C31: ='A5-Capex'!D73 -> 5030970.45 | D31: ='A5-Capex'!E73 -> 13939360.57 | E31: ='A5-Capex'!F73 -> 91432000 | F31: ='A5-Capex'!G73 -> 91042000 | G31: ='A5-Capex'!H73 -> 91042000 | H31: ='A5-Capex'!I73 -> 14920131.85 | I31: ='A5-Capex'!J73 -> 132783535 | J31: ='A5-Capex'!K73 -> 153885750 | K31: ='A5-Capex'!L73 -> 153939185
A32: Total sources of capital funds | B32: =+B28+B30+B31 -> 0 | C32: =+C28+C30+C31 -> 13767567.82 | D32: 45471036.76 | E32: 145662750 | F32: 155697750 | G32: 155697750 | H32: 51440318.49 | I32: 191330136 | J32: 220008750 | K32: 217802935
A34: Financial position
A35: ='A6-FinPos'!A12 -> Total current assets | B35: ='A6-FinPos'!C12 -> 0 | C35: ='A6-FinPos'!D12 -> 104634109.1 | D35: ='A6-FinPos'!E12 -> -67131189.99 | E35: ='A6-FinPos'!F12 -> -372626155.5 | F35: ='A6-FinPos'!G12 -> 563096015.5 | G35: ='A6-FinPos'!H12 -> 563096015.5 | H35: ='A6-FinPos'!I12 -> 568604803.1 | I35: ='A6-FinPos'!J12 -> 657257546.5 | J35: ='A6-FinPos'!K12 -> 677699762.5 | K35: ='A6-FinPos'!L12 -> 699636718.5
A36: ='A6-FinPos'!A24 -> Total non current assets | B36: ='A6-FinPos'!C24 -> 0 | C36: ='A6-FinPos'!D24 -> 13767567.82 | D36: ='A6-FinPos'!E24 -> 965818014 | E36: ='A6-FinPos'!F24 -> 1190830744 | F36: ='A6-FinPos'!G24 -> 833903014 | G36: ='A6-FinPos'!H24 -> 833903014 | H36: ='A6-FinPos'!I24 -> 992828576.6 | I36: ='A6-FinPos'!J24 -> 979162553 | J36: ='A6-FinPos'!K24 -> 1100907815 | K36: ='A6-FinPos'!L24 -> 1084726993
A37: ='A6-FinPos'!A34 -> Total current liabilities | B37: ='A6-FinPos'!C34 -> 0 | C37: ='A6-FinPos'!D34 -> 18717977.87 | D37: ='A6-FinPos'!E34 -> 348146585.8 | E37: ='A6-FinPos'!F34 -> 142642827 | F37: ='A6-FinPos'!G34 -> 115796199 | G37: ='A6-FinPos'!H34 -> 115796199 | H37: ='A6-FinPos'!I34 -> 293528574.8 | I37: ='A6-FinPos'!J34 -> -231360122 | J37: ='A6-FinPos'!K34 -> -228896386 | K37: ='A6-FinPos'!L34 -> -579310435
A38: ='A6-FinPos'!A39 -> Total non current liabilities | B38: ='A6-FinPos'!C39 -> 0 | C38: ='A6-FinPos'!D39 -> 0 | D38: ='A6-FinPos'!E39 -> 238138.31 | E38: ='A6-FinPos'!F39 -> 528077 | F38: ='A6-FinPos'!G39 -> 6676560 | G38: ='A6-FinPos'!H39 -> 6676560 | H38: ='A6-FinPos'!I39 -> 238138.31 | I38: ='A6-FinPos'!J39 -> 238138 | J38: ='A6-FinPos'!K39 -> 248616 | K38: ='A6-FinPos'!L39 -> 259804
A39: Community wealth/Equity | B39: ='A6-FinPos'!C48 -> 0 | C39: ='A6-FinPos'!D48 -> 100898197 | D39: ='A6-FinPos'!E48 -> 1227901675 | E39: ='A6-FinPos'!F48 -> 1890558121 | F39: ='A6-FinPos'!G48 -> 1954682214 | G39: ='A6-FinPos'!H48 -> 1954682214 | H39: ='A6-FinPos'!I48 -> 1383227505 | I39: ='A6-FinPos'!J48 -> 1886405200 | J39: ='A6-FinPos'!K48 -> 2039946587 | K39: ='A6-FinPos'!L48 -> 2406136226
A41: Cash flows
A42: Net cash from (used) operating | B42: ='A7-CFlow'!C17 -> 0 | C42: ='A7-CFlow'!D17 -> 0 | D42: ='A7-CFlow'!E17 -> 540756745 | E42: ='A7-CFlow'!F17 -> 0 | F42: ='A7-CFlow'!G17 -> 468601893 | G42: ='A7-CFlow'!H17 -> 468601893 | H42: ='A7-CFlow'!I17 -> 228531672.6 | I42: ='A7-CFlow'!J17 -> 164603979 | J42: ='A7-CFlow'!K17 -> 182952005 | K42: ='A7-CFlow'!L17 -> 186059921
A43: Net cash from (used) investing | B43: ='A7-CFlow'!C27 -> 0 | C43: ='A7-CFlow'!D27 -> 0 | D43: ='A7-CFlow'!E27 -> 113490996.7 | E43: ='A7-CFlow'!F27 -> -150000000 | F43: ='A7-CFlow'!G27 -> -10035000 | G43: ='A7-CFlow'!H27 -> -10035000 | H43: ='A7-CFlow'!I27 -> -40299834.38 | I43: ='A7-CFlow'!J27 -> -191330136 | J43: ='A7-CFlow'!K27 -> -220008750 | K43: ='A7-CFlow'!L27 -> -217802935
A44: Net cash from (used) financing | B44: ='A7-CFlow'!C36 -> 0 | C44: ='A7-CFlow'!D36 -> 0 | D44: ='A7-CFlow'!E36 -> 0 | E44: ='A7-CFlow'!F36 -> 0 | F44: ='A7-CFlow'!G36 -> 0 | G44: ='A7-CFlow'!H36 -> 0 | H44: ='A7-CFlow'!I36 -> 0 | I44: ='A7-CFlow'!J36 -> 0 | J44: ='A7-CFlow'!K36 -> 0 | K44: ='A7-CFlow'!L36 -> 0
A45: =LEFT('A7-CFlow'!A40,37) -> Cash/cash equivalents at the year end | B45: ='A7-CFlow'!C40 -> 0 | C45: ='A7-CFlow'!D40 -> 160 | D45: ='A7-CFlow'!E40 -> 772203531.1 | E45: ='A7-CFlow'!F40 -> 168501426 | F45: ='A7-CFlow'!G40 -> 753556812 | G45: ='A7-CFlow'!H40 -> 753556812 | H45: ='A7-CFlow'!I40 -> 188231838.2 | I45: ='A7-CFlow'!J40 -> -6719680 | J45: ='A7-CFlow'!K40 -> -43776425 | K45: ='A7-CFlow'!L40 -> -75519439
A47: Cash backing/surplus reconciliation
A48: ='A8-ResRecon'!A4 -> Cash and investments available | B48: ='A8-ResRecon'!C8 -> 0 | C48: ='A8-ResRecon'!D8 -> 76336820.09 | D48: ='A8-ResRecon'!E8 -> -56167517.74 | E48: ='A8-ResRecon'!F8 -> -492875230 | F48: ='A8-ResRecon'!G8 -> 314422161 | G48: ='A8-ResRecon'!H8 -> 314422161 | H48: ='A8-ResRecon'!I8 -> 563362907.5 | I48: ='A8-ResRecon'!J8 -> 356576839 | J48: ='A8-ResRecon'!K8 -> 372266220 | K48: ='A8-ResRecon'!L8 -> 389018200
A49: ='A8-ResRecon'!A10 -> Application of cash and investments | B49: ='A8-ResRecon'!C18 -> 0 | C49: ='A8-ResRecon'!D18 -> 16250064.28 | D49: ='A8-ResRecon'!E18 -> -546448551.4 | E49: ='A8-ResRecon'!F18 -> 115282756 | F49: ='A8-ResRecon'!G18 -> -114411305 | G49: ='A8-ResRecon'!H18 -> -114411305 | H49: ='A8-ResRecon'!I18 -> -776174379.6 | I49: ='A8-ResRecon'!J18 -> -808780321 | J49: ='A8-ResRecon'!K18 -> -874756117 | K49: ='A8-ResRecon'!L18 -> -1281960239
A50: Balance - surplus (shortfall) | B50: =B48-B49 -> 0 | C50: =C48-C49 -> 60086755.81 | D50: 490281033.7 | E50: -608157986 | F50: 428833466 | G50: 428833466 | H50: 1339537287 | I50: 1165357160 | J50: 1247022337 | K50: 1670978439
A52: Asset management
A53: Asset register summary (WDV) | B53: ='A9-Asset'!C165 -> 0 | C53: ='A9-Asset'!D165 -> 13767567.82 | D53: ='A9-Asset'!E165 -> 715924191.8 | E53: ='A9-Asset'!F165 -> 1190830744 | F53: ='A9-Asset'!G165 -> 833903014 | G53: ='A9-Asset'!H165 -> 833903014 | H53: ='A9-Asset'!H165 -> 833903014 | I53: ='A9-Asset'!I165 -> 879268731 | J53: ='A9-Asset'!J165 -> 996618665 | K53: ='A9-Asset'!K165 -> 975744831
A54: ='A9-Asset'!A168 -> Depreciation | B54: ='A9-Asset'!C168 -> 0 | C54: ='A9-Asset'!D168 -> 13577.88 | D54: ='A9-Asset'!E168 -> 30573634.62 | E54: ='A9-Asset'!F168 -> 33519432 | F54: ='A9-Asset'!G168 -> 35019432 | G54: ='A9-Asset'!H168 -> 35019432 | H54: ='A9-Asset'!H168 -> 35019432 | I54: ='A9-Asset'!I168 -> 37699942 | J54: ='A9-Asset'!J168 -> 44489321 | K54: ='A9-Asset'!K168 -> 45823039
A55: Renewal and Upgrading of Existing Assets | B55: ='A9-Asset'!C37+'A9-Asset'!C69 -> 0 | C55: ='A9-Asset'!D37+'A9-Asset'!D69 -> 720.11 | D55: ='A9-Asset'!E37+'A9-Asset'!E69 -> 6189219.5 | E55: ='A9-Asset'!F37+'A9-Asset'!F69 -> 25637000 | F55: ='A9-Asset'!G37+'A9-Asset'!G69 -> 36062000 | G55: ='A9-Asset'!H37+'A9-Asset'!H69 -> 36062000 | H55: ='A9-Asset'!H37+'A9-Asset'!H69 -> 36062000 | I55: ='A9-Asset'!I37+'A9-Asset'!I69 -> 63508001 | J55: ='A9-Asset'!J37+'A9-Asset'!J69 -> 19123000 | K55: ='A9-Asset'!K37+'A9-Asset'!K69 -> 40000000
A56: Repairs and Maintenance | B56: ='A9-Asset'!C169 -> 0 | C56: ='A9-Asset'!D169 -> 518223.44 | D56: ='A9-Asset'!E169 -> 2592196.89 | E56: ='A9-Asset'!F169 -> 40211657 | F56: ='A9-Asset'!G169 -> 40550045 | G56: ='A9-Asset'!H169 -> 40550045 | H56: ='A9-Asset'!H169 -> 40550045 | I56: ='A9-Asset'!I169 -> 17173996 | J56: ='A9-Asset'!J169 -> 15717375 | K56: ='A9-Asset'!K169 -> 16424659
A58: Free services
A59: Cost of Free Basic Services provided | B59: ='A10-SerDel'!C60 -> 0 | C59: ='A10-SerDel'!D60 -> 0 | D59: ='A10-SerDel'!E60 -> 0 | E59: ='A10-SerDel'!F60 -> 19835 | F59: ='A10-SerDel'!G60 -> 19835 | G59: ='A10-SerDel'!H60 -> 19835 | H59: ='A10-SerDel'!I60 -> 20786 | I59: ='A10-SerDel'!I60 -> 20786 | J59: ='A10-SerDel'!J60 -> 21701 | K59: ='A10-SerDel'!K60 -> 22677
A60: Revenue cost of free services provided | B60: ='A10-SerDel'!C79 -> 0 | C60: ='A10-SerDel'!D79 -> -4284699.39 | D60: ='A10-SerDel'!E79 -> 1067792.77 | E60: ='A10-SerDel'!F79 -> 9032854 | F60: ='A10-SerDel'!G79 -> 9032854 | G60: ='A10-SerDel'!H79 -> 9032854 | H60: ='A10-SerDel'!I79 -> 9466431 | I60: ='A10-SerDel'!I79 -> 9466431 | J60: ='A10-SerDel'!J79 -> 9882953 | K60: ='A10-SerDel'!K79 -> 10327687
A61: Households below minimum service level
A62: ='A10-SerDel'!A5 -> Water: | B62: ='A10-SerDel'!C14 -> 0 | C62: ='A10-SerDel'!D14 -> 0 | D62: ='A10-SerDel'!E14 -> 0 | E62: ='A10-SerDel'!F14 -> 0 | F62: ='A10-SerDel'!G14 -> 0 | G62: ='A10-SerDel'!H14 -> 0 | H62: ='A10-SerDel'!I14 -> 0 | I62: ='A10-SerDel'!I14 -> 0 | J62: ='A10-SerDel'!J14 -> 0 | K62: ='A10-SerDel'!K14 -> 0
A63: ='A10-SerDel'!A16 -> Sanitation/sewerage: | B63: ='A10-SerDel'!C26 -> 0 | C63: ='A10-SerDel'!D26 -> 0 | D63: ='A10-SerDel'!E26 -> 0 | E63: ='A10-SerDel'!F26 -> 0 | F63: ='A10-SerDel'!G26 -> 0 | G63: ='A10-SerDel'!H26 -> 0 | H63: ='A10-SerDel'!I26 -> 0 | I63: ='A10-SerDel'!I26 -> 0 | J63: ='A10-SerDel'!J26 -> 0 | K63: ='A10-SerDel'!K26 -> 0
A64: ='A10-SerDel'!A28 -> Energy: | B64: ='A10-SerDel'!C35 -> 0 | C64: ='A10-SerDel'!D35 -> 0 | D64: ='A10-SerDel'!E35 -> 0 | E64: ='A10-SerDel'!F35 -> 0 | F64: ='A10-SerDel'!G35 -> 0 | G64: ='A10-SerDel'!H35 -> 0 | H64: ='A10-SerDel'!I35 -> 0 | I64: ='A10-SerDel'!I35 -> 0 | J64: ='A10-SerDel'!J35 -> 0 | K64: ='A10-SerDel'!K35 -> 0
A65: ='A10-SerDel'!A37 -> Refuse: | B65: ='A10-SerDel'!C45 -> 0 | C65: ='A10-SerDel'!D45 -> 0 | D65: ='A10-SerDel'!E45 -> 0 | E65: ='A10-SerDel'!F45 -> 0 | F65: ='A10-SerDel'!G45 -> 0 | G65: ='A10-SerDel'!H45 -> 0 | H65: ='A10-SerDel'!I45 -> 0 | I65: ='A10-SerDel'!I45 -> 0 | J65: ='A10-SerDel'!J45 -> 0 | K65: ='A10-SerDel'!K45 -> 0

Sheet A2-FinPerf SC
A1: =muni&" - "&Approve3 -> LIM355 Lepelle-Nkumpi - Table A2 Budgeted Financial Performance (revenue and expenditure by functional classification)
A2: ="Functional Classification "&desc -> Functional Classification Description | B2: =head27 -> Ref | C2: =head1b -> 2018/19 | D2: =head1A -> 2019/20 | E2: =Head1 -> 2020/21 | F2: =Head2 -> Current Year 2021/22 | I2: =Head3 -> 2022/23 Medium Term Revenue & Expenditure Framework
A3: R thousand | B3: 1 | C3: =Head5 -> Audited Outcome | D3: =Head5 -> Audited Outcome | E3: =Head5 -> Audited Outcome | F3: =Head6 -> Original Budget | G3: =Head7 -> Adjusted Budget | H3: =Head8 -> Full Year Forecast | I3: =Head9 -> Budget Year 2022/23 | J3: =Head10 -> Budget Year +1 2023/24 | K3: =Head11 -> Budget Year +2 2024/25
A4: Revenue - Functional
A5: Governance and administration | C5: =SUM(C6:C8) -> 0 | D5: =SUM(D6:D8) -> 117989986.5 | E5: 411290170.9 | F5: 455236432 | G5: 471047478 | H5: 471047478 | I5: 514790312 | J5: 541322609 | K5: 560150057
A6: Executive and council | C6: =A2A!C6 -> 0 | D6: =A2A!D6 -> 0 | E6: =A2A!E6 -> 0 | F6: =A2A!F6 -> 0 | G6: =A2A!G6 -> 0 | H6: =A2A!H6 -> 0 | I6: =A2A!I6 -> 0 | J6: =A2A!J6 -> 0 | K6: =A2A!K6 -> 0
A7: Finance and administration | C7: =A2A!C9 -> 0 | D7: =A2A!D9 -> 117989986.5 | E7: =A2A!E9 -> 411290170.9 | F7: =A2A!F9 -> 455236432 | G7: =A2A!G9 -> 471047478 | H7: =A2A!H9 -> 471047478 | I7: =A2A!I9 -> 514790312 | J7: =A2A!J9 -> 541322609 | K7: =A2A!K9 -> 560150057
A8: Internal audit | C8: =A2A!C23 -> 0 | D8: =A2A!D23 -> 0 | E8: =A2A!E23 -> 0 | F8: =A2A!F23 -> 0 | G8: =A2A!G23 -> 0 | H8: =A2A!H23 -> 0 | I8: =A2A!I23 -> 0 | J8: =A2A!J23 -> 0 | K8: =A2A!K23 -> 0
A9: Community and public safety | C9: =SUM(C10:C14) -> 0 | D9: =SUM(D10:D14) -> -1295749.75 | E9: 5807454.67 | F9: 5840422 | G9: 17500692 | H9: 17500692 | I9: 12430748 | J9: 12658095 | K9: 13227710
A10: Community and social services | C10: =A2A!C26 -> 0 | D10: =A2A!D26 -> 41217.36 | E10: =A2A!E26 -> 26226.41 | F10: =A2A!F26 -> 338344 | G10: =A2A!G26 -> 5998344 | H10: =A2A!H26 -> 5998344 | I10: =A2A!I26 -> 376570 | J10: =A2A!J26 -> 73534 | K10: =A2A!K26 -> 76843
A11: Sport and recreation | C11: =A2A!C48 -> 0 | D11: =A2A!D48 -> 0 | E11: =A2A!E48 -> 0 | F11: =A2A!F48 -> 0 | G11: =A2A!G48 -> 0 | H11: =A2A!H48 -> 0 | I11: =A2A!I48 -> 0 | J11: =A2A!J48 -> 0 | K11: =A2A!K48 -> 0
A12: Public safety | C12: =A2A!C54 -> 0 | D12: =A2A!D54 -> -1336967.11 | E12: =A2A!E54 -> 5781228.26 | F12: =A2A!F54 -> 5502078 | G12: =A2A!G54 -> 11502348 | H12: =A2A!H54 -> 11502348 | I12: =A2A!I54 -> 12054178 | J12: =A2A!J54 -> 12584561 | K12: =A2A!K54 -> 13150867
A13: Housing | C13: =A2A!C63 -> 0 | D13: =A2A!D63 -> 0 | E13: =A2A!E63 -> 0 | F13: =A2A!F63 -> 0 | G13: =A2A!G63 -> 0 | H13: =A2A!H63 -> 0 | I13: =A2A!I63 -> 0 | J13: =A2A!J63 -> 0 | K13: =A2A!K63 -> 0
A14: Health | C14: =A2A!C66 -> 0 | D14: =A2A!D66 -> 0 | E14: =A2A!E66 -> 0 | F14: =A2A!F66 -> 0 | G14: =A2A!G66 -> 0 | H14: =A2A!H66 -> 0 | I14: =A2A!I66 -> 0 | J14: =A2A!J66 -> 0 | K14: =A2A!K66 -> 0
A15: Economic and environmental services | C15: =SUM(C16:C18) -> 0 | D15: =SUM(D16:D18) -> 27319908.58 | E15: 43480462.06 | F15: 86216809 | G15: 91002537 | H15: 91002537 | I15: 86207364 | J15: 70985687 | K15: 74169741
A16: Planning and development | C16: =A2A!C75 -> 0 | D16: =A2A!D75 -> 6113750.03 | E16: =A2A!E75 -> 37610675.04 | F16: =A2A!F75 -> 80443549 | G16: =A2A!G75 -> 85229277 | H16: =A2A!H75 -> 85229277 | I16: =A2A!I75 -> 80157778 | J16: =A2A!J75 -> 64687098 | K16: =A2A!K75 -> 67587715
A17: Road transport | C17: =A2A!C86 -> 0 | D17: =A2A!D86 -> 21206158.55 | E17: =A2A!E86 -> 5869787.02 | F17: =A2A!F86 -> 5756805 | G17: =A2A!G86 -> 5756805 | H17: =A2A!H86 -> 5756805 | I17: =A2A!I86 -> 6033131 | J17: =A2A!J86 -> 6298589 | K17: =A2A!K86 -> 6582026
A18: Environmental protection | C18: =A2A!C91 -> 0 | D18: =A2A!D91 -> 0 | E18: =A2A!E91 -> 0 | F18: =A2A!F91 -> 16455 | G18: =A2A!G91 -> 16455 | H18: =A2A!H91 -> 16455 | I18: =A2A!I91 -> 16455 | J18: =A2A!J91 -> 0 | K18: =A2A!K91 -> 0
A19: Trading services | C19: =SUM(C20:C23) -> 0 | D19: =SUM(D20:D23) -> 3116088.34 | E19: 8339333.48 | F19: 15773840 | G19: 15773840 | H19: 15773840 | I19: 13511472 | J19: =SUM(J20:J23) -> 16445258 | K19: 17184295
A20: Energy sources | C20: =A2A!C99 -> 0 | D20: =A2A!D99 -> 0 | E20: =A2A!E99 -> 0 | F20: =A2A!F99 -> 7000000 | G20: =A2A!G99 -> 7000000 | H20: =A2A!H99 -> 7000000 | I20: =A2A!I99 -> 5000000 | J20: =A2A!J99 -> 9000000 | K20: =A2A!K99 -> 9404000
A21: Water management | C21: =A2A!C103 -> 0 | D21: =A2A!D103 -> 0 | E21: =A2A!E103 -> 0 | F21: =A2A!F103 -> 0 | G21: =A2A!G103 -> 0 | H21: =A2A!H103 -> 0 | I21: =A2A!I103 -> 0 | J21: =A2A!J103 -> 0 | K21: =A2A!K103 -> 0
A22: Waste water management | C22: =A2A!C107 -> 0 | D22: =A2A!D107 -> 0 | E22: =A2A!E107 -> 0 | F22: =A2A!F107 -> 0 | G22: =A2A!G107 -> 0 | H22: =A2A!H107 -> 0 | I22: =A2A!I107 -> 0 | J22: =A2A!J107 -> 0 | K22: =A2A!K107 -> 0
A23: Waste management | C23: =A2A!C112 -> 0 | D23: =A2A!D112 -> 3116088.34 | E23: =A2A!E112 -> 8339333.48 | F23: =A2A!F112 -> 8773840 | G23: =A2A!G112 -> 8773840 | H23: =A2A!H112 -> 8773840 | I23: =A2A!I112 -> 8511472 | J23: =A2A!J112 -> 7445258 | K23: =A2A!K112 -> 7780295
A24: Other | B24: 4 | C24: =A2A!C117 -> 0 | D24: =A2A!D117 -> 0 | E24: =A2A!E117 -> 0 | F24: =A2A!F117 -> 0 | G24: =A2A!G117 -> 0 | H24: =A2A!H117 -> 0 | I24: =A2A!I117 -> 0 | J24: =A2A!J117 -> 0 | K24: =A2A!K117 -> 0
A25: ="Total "&A4 -> Total Revenue - Functional | B25: 2 | C25: =C5+C9+C15+C19+C24 -> 0 | D25: =D5+D9+D15+D19+D24 -> 147130233.7 | E25: =E5+E9+E15+E19+E24 -> 468917421.1 | F25: 563067503 | G25: 595324547 | H25: 595324547 | I25: =I5+I9+I15+I19+I24 -> 626939896 | J25: 641411649 | K25: 664731803
A27: Expenditure - Functional
A28: Governance and administration | C28: =SUM(C29:C31) -> 0 | D28: =SUM(D29:D31) -> 32400614.14 | E28: 218454919.2 | F28: 234560309 | G28: 244972899 | H28: 244972899 | I28: 258843293 | J28: 271970636 | K28: 281201221
A29: Executive and council | C29: =A2A!C128 -> 0 | D29: =A2A!D128 -> 3772792.01 | E29: =A2A!E128 -> 28311530.28 | F29: =A2A!F128 -> 34003717 | G29: =A2A!G128 -> 31332199 | H29: =A2A!H128 -> 31332199 | I29: =A2A!I128 -> 36616655 | J29: =A2A!J128 -> 38227788 | K29: =A2A!K128 -> 39948039
A30: Finance and administration | C30: =A2A!C131 -> 0 | D30: =A2A!D131 -> 26971381.54 | E30: =A2A!E131 -> 183909679.2 | F30: =A2A!F131 -> 191802300 | G30: =A2A!G131 -> 204074360 | H30: =A2A!H131 -> 204074360 | I30: =A2A!I131 -> 212100946 | J30: =A2A!J131 -> 223171626 | K30: =A2A!K131 -> 230206254
A31: Internal audit | C31: =A2A!C145 -> 0 | D31: =A2A!D145 -> 1656440.59 | E31: =A2A!E145 -> 6233709.73 | F31: =A2A!F145 -> 8754292 | G31: =A2A!G145 -> 9566340 | H31: =A2A!H145 -> 9566340 | I31: =A2A!I145 -> 10125692 | J31: =A2A!J145 -> 10571222 | K31: =A2A!K145 -> 11046928
A32: Community and public safety | C32: =SUM(C33:C37) -> 0 | D32: =SUM(D33:D37) -> 3193690.22 | E32: 12717478.54 | F32: 29240643 | G32: 29564021 | H32: 29564021 | I32: 31124989 | J32: 33524989 | K32: 34851701
A33: Community and social services | C33: =A2A!C148 -> 0 | D33: =A2A!D148 -> 952011.43 | E33: =A2A!E148 -> 8513825.76 | F33: =A2A!F148 -> 12468825 | G33: =A2A!G148 -> 13892552 | H33: =A2A!H148 -> 13892552 | I33: =A2A!I148 -> 14823426 | J33: =A2A!J148 -> 16506158 | K33: =A2A!K148 -> 17067018
A34: Sport and recreation | C34: =A2A!C170 -> 0 | D34: =A2A!D170 -> 0 | E34: =A2A!E170 -> 0 | F34: =A2A!F170 -> 0 | G34: =A2A!G170 -> 0 | H34: =A2A!H170 -> 0 | I34: =A2A!I170 -> 0 | J34: =A2A!J170 -> 0 | K34: =A2A!K170 -> 0
A35: Public safety | C35: =A2A!C176 -> 0 | D35: =A2A!D176 -> 2241678.79 | E35: =A2A!E176 -> 4203652.78 | F35: =A2A!F176 -> 16771818 | G35: =A2A!G176 -> 15671469 | H35: =A2A!H176 -> 15671469 | I35: =A2A!I176 -> 16301563 | J35: =A2A!J176 -> 17018831 | K35: =A2A!K176 -> 17784683
A36: Housing | C36: =A2A!C185 -> 0 | D36: =A2A!D185 -> 0 | E36: =A2A!E185 -> 0 | F36: =A2A!F185 -> 0 | G36: =A2A!G185 -> 0 | H36: =A2A!H185 -> 0 | I36: =A2A!I185 -> 0 | J36: =A2A!J185 -> 0 | K36: =A2A!K185 -> 0
A37: Health | C37: =A2A!C188 -> 0 | D37: =A2A!D188 -> 0 | E37: =A2A!E188 -> 0 | F37: =A2A!F188 -> 0 | G37: =A2A!G188 -> 0 | H37: =A2A!H188 -> 0 | I37: =A2A!I188 -> 0 | J37: =A2A!J188 -> 0 | K37: =A2A!K188 -> 0
A38: Economic and environmental services | C38: =SUM(C39:C41) -> 0 | D38: =SUM(D39:D41) -> 7036921.48 | E38: 266413733.2 | F38: 75780791 | G38: 85838389 | H38: 85838389 | I38: 64640177 | J38: 69580074 | K38: 72392300
A39: Planning and development | C39: =A2A!C197 -> 0 | D39: =A2A!D197 -> 1717007.1 | E39: =A2A!E197 -> 241699945.9 | F39: =A2A!F197 -> 34608720 | G39: =A2A!G197 -> 41056256 | H39: =A2A!H197 -> 41056256 | I39: =A2A!I197 -> 16981128 | J39: =A2A!J197 -> 17332865 | K39: =A2A!K197 -> 18110754
A40: Road transport | C40: =A2A!C208 -> 0 | D40: =A2A!D208 -> 5078351.11 | E40: =A2A!E208 -> 24280976.58 | F40: =A2A!F208 -> 40437841 | G40: =A2A!G208 -> 44020228 | H40: =A2A!H208 -> 44020228 | I40: =A2A!I208 -> 46860170 | J40: =A2A!J208 -> 51430357 | K40: =A2A!K208 -> 53427937
A41: Environmental protection | C41: =A2A!C213 -> 0 | D41: =A2A!D213 -> 241563.27 | E41: =A2A!E213 -> 432810.67 | F41: =A2A!F213 -> 734230 | G41: =A2A!G213 -> 761905 | H41: =A2A!H213 -> 761905 | I41: =A2A!I213 -> 798879 | J41: =A2A!J213 -> 816852 | K41: =A2A!K213 -> 853609
A42: Trading services | C42: =SUM(C43:C46) -> 0 | D42: =SUM(D43:D46) -> 4676598.7 | E42: 36605183.02 | F42: =SUM(F43:F46) -> 77820010 | G42: 79251488 | H42: 79251488 | I42: 81001301 | J42: 46327200 | K42: =SUM(K43:K46) -> 58483646
A43: Energy sources | C43: =A2A!C221 -> 0 | D43: =A2A!D221 -> 1860752.06 | E43: =A2A!E221 -> 11963931.42 | F43: =A2A!F221 -> 56726504 | G43: =A2A!G221 -> 57531816 | H43: =A2A!H221 -> 57531816 | I43: =A2A!I221 -> 58191507 | J43: =A2A!J221 -> 23866345 | K43: =A2A!K221 -> 35023929
A44: Water management | C44: =A2A!C225 -> 0 | D44: =A2A!D225 -> 0 | E44: =A2A!E225 -> 0 | F44: =A2A!F225 -> 0 | G44: =A2A!G225 -> 0 | H44: =A2A!H225 -> 0 | I44: =A2A!I225 -> 0 | J44: =A2A!J225 -> 0 | K44: =A2A!K225 -> 0
A45: Waste water management | C45: =A2A!C229 -> 0 | D45: =A2A!D229 -> 0 | E45: =A2A!E229 -> 0 | F45: =A2A!F229 -> 0 | G45: =A2A!G229 -> 0 | H45: =A2A!H229 -> 0 | I45: =A2A!I229 -> 0 | J45: =A2A!J229 -> 0 | K45: =A2A!K229 -> 0
A46: Waste management | C46: =A2A!C234 -> 0 | D46: =A2A!D234 -> 2815846.64 | E46: =A2A!E234 -> 24641251.6 | F46: =A2A!F234 -> 21093506 | G46: =A2A!G234 -> 21719672 | H46: =A2A!H234 -> 21719672 | I46: =A2A!I234 -> 22809794 | J46: =A2A!J234 -> 22460855 | K46: =A2A!K234 -> 23459717
A47: Other | B47: 4 | C47: =A2A!C239 -> 0 | D47: =A2A!D239 -> 0 | E47: =A2A!E239 -> 0 | F47: =A2A!F239 -> 0 | G47: =A2A!G239 -> 0 | H47: =A2A!H239 -> 0 | I47: =A2A!I239 -> 0 | J47: =A2A!J239 -> 0 | K47: =A2A!K239 -> 0
A48: ="Total "&A27 -> Total Expenditure - Functional | B48: 3 | C48: =C28+C32+C38+C42+C47 -> 0 | D48: =D28+D32+D38+D42+D47 -> 47307824.54 | E48: =E28+E32+E38+E42+E47 -> 534191313.9 | F48: =F28+F32+F38+F42+F47 -> 417401753 | G48: 439626797 | H48: 439626797 | I48: 435609760 | J48: 421402899 | K48: 446928868
A49: =result -> Surplus/(Deficit) for the year | C49: =C25-C48 -> 0 | D49: =D25-D48 -> 99822409.13 | E49: -65273892.88 | F49: 145665750 | G49: 155697750 | H49: 155697750 | I49: 191330136 | J49: 220008750 | K49: 217802935
A50: =head27a -> References
A51: 1. Government Finance Statistics Functions and Sub-functions are standardised to assist the compilation of national and international accounts for comparison purposes
A52: 2. Total Revenue by functional classification must reconcile to Total Operating Revenue shown in Budgeted Financial Performance (revenue and expenditure)
A53: 3. Total Expenditure by Functional Classification must reconcile to Total Operating Expenditure shown in Budgeted Financial Performance (revenue and expenditure)
A54: 4. All amounts must be classified under a functional classification . The GFS function 'Other' is only for Abbatoirs, Air Transport, Forestry, Licensing and Regulation, Markets and Tourism - and if used must be supported by footnotes. Nothing else may be placed under 'Other'. Assign associate share to relevant classification.
A57: check oprev balance | C57: =C25-'A4-FinPerf RE'!C59 -> 0 | D57: =D25-'A4-FinPerf RE'!D59 -> 0 | E57: =E25-'A4-FinPerf RE'!E59 -> 0 | F57: =F25-'A4-FinPerf RE'!F59 -> 0 | G57: =G25-'A4-FinPerf RE'!G59 -> 0 | H57: =H25-'A4-FinPerf RE'!H59 -> 0 | I57: =I25-'A4-FinPerf RE'!J59 -> 0 | J57: =J25-'A4-FinPerf RE'!K59 -> 0 | K57: =K25-'A4-FinPerf RE'!L59 -> 0
A58: check opexp balance | C58: =C48-'A4-FinPerf RE'!C35 -> 0 | D58: =D48-'A4-FinPerf RE'!D35 -> 1214498 | E58: =E48-'A4-FinPerf RE'!E35 -> -421742.15 | F58: =F48-'A4-FinPerf RE'!F35 -> 0 | G58: =G48-'A4-FinPerf RE'!G35 -> 39053 | H58: =H48-'A4-FinPerf RE'!H35 -> 39053 | I58: =I48-'A4-FinPerf RE'!J35 -> -3184388 | J58: =J48-'A4-FinPerf RE'!K35 -> -1241721 | K58: =K48-'A4-FinPerf RE'!L35 -> -1297598

Sheet A2A
A1: =muni&" - "&Approve3 -> LIM355 Lepelle-Nkumpi - Table A2 Budgeted Financial Performance (revenue and expenditure by functional classification)
A2: ="Functional Classification "&desc -> Functional Classification Description | B2: =head27 -> Ref | C2: =head1b -> 2018/19 | D2: =head1A -> 2019/20 | E2: =Head1 -> 2020/21 | F2: =Head2 -> Current Year 2021/22 | I2: =Head3 -> 2022/23 Medium Term Revenue & Expenditure Framework
A3: R thousand | B3: 1 | C3: =Head5 -> Audited Outcome | D3: =Head5 -> Audited Outcome | E3: =Head5 -> Audited Outcome | F3: =Head6 -> Original Budget | G3: =Head7 -> Adjusted Budget | H3: =Head8 -> Full Year Forecast | I3: =Head9 -> Budget Year 2022/23 | J3: =Head10 -> Budget Year +1 2023/24 | K3: =Head11 -> Budget Year +2 2024/25
A4: Revenue - Functional
A5: Municipal governance and administration | C5: =C6+C9+C23 -> 0 | D5: 117989986.5 | E5: 411290170.9 | F5: 455236432 | G5: 471047478 | H5: 471047478 | I5: 514790312 | J5: 541322609 | K5: 560150057
A6: Executive and council | C6: =SUM(C7:C8) -> 0 | D6: =SUM(D7:D8) -> 0 | E6: 0 | F6: 0 | G6: 0 | H6: 0 | I6: 0 | J6: 0 | K6: 0
A7: Mayor and Council
A8: Municipal Manager, Town Secretary and Chief Executive
A9: Finance and administration | C9: =SUM(C10:C22) -> 0 | D9: 117989986.5 | E9: 411290170.9 | F9: 455236432 | G9: 471047478 | H9: 471047478 | I9: 514790312 | J9: 541322609 | K9: 560150057
A10: Administrative and Corporate Support | C10: 0 | D10: 16260.95 | E10: 177158.67 | F10: 209127 | G10: 179127 | H10: 179127 | I10: 187726 | J10: 195985 | K10: 204804
A11: Asset Management | C11: 0 | D11: 0 | E11: 0 | F11: 42112 | G11: 42112 | H11: 42112 | I11: 44133 | J11: 46075 | K11: 48149
A12: Finance | C12: 0 | D12: 109334313.6 | E12: 378853865.9 | F12: 421001701 | G12: 437027978 | H12: 437027978 | I12: 479067874 | J12: 504028384 | K12: 521177592
A13: Fleet Management
A14: Human Resources | C14: 0 | D14: 0 | E14: 62075 | F14: 230585 | G14: 441814 | H14: 441814 | I14: 463020 | J14: 483393 | K14: 505146
A15: Information Technology | C15: 0 | D15: 39940.2 | E15: 226024.48 | F15: 217151 | G15: 217151 | H15: 217151 | I15: 227574 | J15: 237588 | K15: 248279
A16: Legal Services
A17: Marketing, Customer Relations, Publicity and Media Co-ordination | C17: 0 | D17: 0 | E17: 0 | F17: 0 | G17: 0 | H17: 0 | I17: 0 | J17: 0 | K17: 0
A18: Property Services | C18: 0 | D18: 8472818.65 | E18: 31966893.66 | F18: 33144296 | G18: 33139296 | H18: 33139296 | I18: 34729985 | J18: 36258104 | K18: 37889718
A19: Risk Management
A20: Security Services | C20: 0 | D20: 0 | E20: 0 | F20: 0 | G20: 0 | H20: 0 | I20: 70000 | J20: 73080 | K20: 76369
A21: Supply Chain Management | C21: 0 | D21: 126653.14 | E21: 4153.11 | F21: 391460 | G21: 0 | H21: 0 | I21: 0 | J21: 0 | K21: 0
A22: Valuation Service
A23: Internal audit | C23: =SUM(C24:C24) -> 0 | D23: 0 | E23: 0 | F23: 0 | G23: 0 | H23: 0 | I23: 0 | J23: 0 | K23: 0
A24: Governance Function
A25: Community and public safety | C25: =C26+C48+C54+C63+C66 -> 0 | D25: -1295749.75 | E25: 5807454.67 | F25: 5840422 | G25: 17500692 | H25: 17500692 | I25: 12430748 | J25: 12658095 | K25: 13227710
A26: Community and social services | C26: =SUM(C27:C47) -> 0 | D26: =SUM(D27:D47) -> 41217.36 | E26: 26226.41 | F26: 338344 | G26: 5998344 | H26: 5998344 | I26: 376570 | J26: 73534 | K26: 76843
A27: Aged Care
A28: Agricultural
A29: Animal Care and Diseases
A30: Cemeteries, Funeral Parlours and Crematoriums
A31: Child Care Facilities
A32: Community Halls and Facilities | C32: 0 | D32: 41217.36 | E32: 26226.41 | F32: 337305 | G32: 372305 | H32: 372305 | I32: 375481 | J32: 72397 | K32: 75655
A33: Consumer Protection
A34: Cultural Matters
A35: Disaster Management | C35: 0 | D35: 0 | E35: 0 | F35: 0 | G35: 5625000 | H35: 5625000 | I35: 0 | J35: 0 | K35: 0
A36: Education
A37: Indigenous and Customary Law
A38: Industrial Promotion
A39: Language Policy
A40: Libraries and Archives | C40: 0 | D40: 0 | E40: 0 | F40: 1039 | G40: 1039 | H40: 1039 | I40: 1089 | J40: 1137 | K40: 1188
A41: Literacy Programmes
A42: Media Services
A43: Museums and Art Galleries
A44: Population Development
A45: Provincial Cultural Matters
A46: Theatres
A47: Zoo's
A48: Sport and recreation | C48: =SUM(C49:C53) -> 0 | D48: =SUM(D49:D53) -> 0 | E48: 0 | F48: 0 | G48: 0 | H48: 0 | I48: 0 | J48: 0 | K48: 0
A49: Beaches and Jetties
A50: Casinos, Racing, Gambling, Wagering
A51: Community Parks (including Nurseries)
A52: Recreational Facilities
A53: Sports Grounds and Stadiums
A54: Public safety | C54: =SUM(C55:C62) -> 0 | D54: -1336967.11 | E54: 5781228.26 | F54: 5502078 | G54: 11502348 | H54: 11502348 | I54: 12054178 | J54: 12584561 | K54: 13150867
A55: Civil Defence
A56: Cleansing
A57: Control of Public Nuisances
A58: Fencing and Fences
A59: Fire Fighting and Protection
A60: Licensing and Control of Animals
A61: Police Forces, Traffic and Street Parking Control | C61: 0 | D61: -1352688.84 | E61: 5779950 | F61: 5500000 | G61: 11500000 | H61: 11500000 | I61: 12052000 | J61: 12582288 | K61: 13148491
A62: Pounds | C62: 0 | D62: 15721.73 | E62: 1278.26 | F62: 2078 | G62: 2348 | H62: 2348 | I62: 2178 | J62: 2273 | K62: 2376
A63: Housing | C63: =SUM(C64:C65) -> 0 | D63: =SUM(D64:D65) -> 0 | E63: 0 | F63: 0 | G63: 0 | H63: 0 | I63: 0 | J63: 0 | K63: 0
A64: Housing
A65: Informal Settlements
A66: Health | C66: =SUM(C67:C73) -> 0 | D66: =SUM(D67:D73) -> 0 | E66: 0 | F66: 0 | G66: 0 | H66: 0 | I66: 0 | J66: 0 | K66: 0
A67: Ambulance
A68: Health Services
A69: Laboratory Services
A70: Food Control
A71: Health Surveillance and Prevention of Communicable Diseases including immunizations
A72: Vector Control
A73: Chemical Safety
A74: Economic and environmental services | C74: =C75+C86+C91 -> 0 | D74: 27319908.58 | E74: 43480462.06 | F74: 86216809 | G74: 91002537 | H74: 91002537 | I74: 86207364 | J74: 70985687 | K74: 74169741
A75: Planning and development | C75: =SUM(C76:C85) -> 0 | D75: =SUM(D76:D85) -> 6113750.03 | E75: 37610675.04 | F75: 80443549 | G75: 85229277 | H75: 85229277 | I75: 80157778 | J75: 64687098 | K75: 67587715
A76: Billboards
A77: Corporate Wide Strategic Planning (IDPs, LEDs) | C77: 0 | D77: 0 | E77: 0 | F77: 377308 | G77: 377308 | H77: 377308 | I77: 377308 | J77: 0 | K77: 0
A78: Central City Improvement District
A79: Development Facilitation
A80: Economic Development/Planning | C80: 0 | D80: 916808.3 | E80: 1278.94 | F80: 6517 | G80: 6517 | H80: 6517 | I80: 6830 | J80: 7130 | K80: 7451
A81: Regional Planning and Development
A82: Town Planning, Building Regulations and Enforcement, and City Engineer | C82: 0 | D82: 1213214 | E82: -364369.41 | F82: 22974724 | G82: 22960452 | H82: 22960452 | I82: 18145640 | J82: 339968 | K82: 355264
A83: Project Management Unit | C83: 0 | D83: 3983727.73 | E83: 37973765.51 | F83: 57085000 | G83: 61885000 | H83: 61885000 | I83: 61628000 | J83: 64340000 | K83: 67225000
A84: Provincial Planning
A85: Support to Local Municipalities
A86: Road transport | C86: =SUM(C87:C90) -> 0 | D86: 21206158.55 | E86: 5869787.02 | F86: 5756805 | G86: 5756805 | H86: 5756805 | I86: 6033131 | J86: 6298589 | K86: 6582026
A87: Public Transport
A88: Road and Traffic Regulation | C88: 0 | D88: 963757.07 | E88: 5869787.02 | F88: 5756805 | G88: 5756805 | H88: 5756805 | I88: 6033131 | J88: 6298589 | K88: 6582026
A89: Roads | C89: 0 | D89: 20242401.48 | E89: 0 | F89: 0 | G89: 0 | H89: 0 | I89: 0 | J89: 0 | K89: 0
A90: Taxi Ranks
A91: Environmental protection | C91: =SUM(C92:C97) -> 0 | D91: =SUM(D92:D97) -> 0 | E91: 0 | F91: 16455 | G91: 16455 | H91: 16455 | I91: 16455 | J91: 0 | K91: 0
A92: Biodiversity and Landscape
A93: Coastal Protection
A94: Indigenous Forests
A95: Nature Conservation
A96: Pollution Control | C96: 0 | D96: 0 | E96: 0 | F96: 16455 | G96: 16455 | H96: 16455 | I96: 16455 | J96: 0 | K96: 0
A97: Soil Conservation
A98: Trading services | C98: =C99+C103+C107+C112 -> 0 | D98: =D99+D103+D107+D112 -> 3116088.34 | E98: 8339333.48 | F98: 15773840 | G98: 15773840 | H98: 15773840 | I98: 13511472 | J98: 16445258 | K98: =K99+K103+K107+K112 -> 17184295
A99: Energy sources | C99: =SUM(C100:C102) -> 0 | D99: =SUM(D100:D102) -> 0 | E99: 0 | F99: 7000000 | G99: 7000000 | H99: 7000000 | I99: 5000000 | J99: 9000000 | K99: 9404000
A100: Electricity | C100: 0 | D100: 0 | E100: 0 | F100: 7000000 | G100: 7000000 | H100: 7000000 | I100: 5000000 | J100: 9000000 | K100: 9404000
A101: Street Lighting and Signal Systems
A102: Nonelectric Energy
A103: Water management | C103: =SUM(C104:C106) -> 0 | D103: =SUM(D104:D106) -> 0 | E103: 0 | F103: 0 | G103: 0 | H103: 0 | I103: 0 | J103: 0 | K103: 0
A104: Water Treatment
A105: Water Distribution
A106: Water Storage
A107: Waste water management | C107: =SUM(C108:C111) -> 0 | D107: =SUM(D108:D111) -> 0 | E107: 0 | F107: 0 | G107: 0 | H107: 0 | I107: 0 | J107: 0 | K107: 0
A108: Public Toilets
A109: Sewerage
A110: Storm Water Management
A111: Waste Water Treatment
A112: Waste management | C112: =SUM(C113:C116) -> 0 | D112: =SUM(D113:D116) -> 3116088.34 | E112: 8339333.48 | F112: 8773840 | G112: 8773840 | H112: 8773840 | I112: 8511472 | J112: 7445258 | K112: 7780295
A113: Recycling
A114: Solid Waste Disposal (Landfill Sites)
A115: Solid Waste Removal | C115: 0 | D115: 3116088.34 | E115: 8339333.48 | F115: 8773840 | G115: 8773840 | H115: 8773840 | I115: 8511472 | J115: 7445258 | K115: 7780295
A116: Street Cleaning
A117: Other | C117: =SUM(C118:C123) -> 0 | D117: =SUM(D118:D123) -> 0 | E117: 0 | F117: 0 | G117: 0 | H117: 0 | I117: 0 | J117: 0 | K117: 0
A118: Abattoirs
A119: Air Transport
A120: Forestry
A121: Licensing and Regulation
A122: Markets
A123: Tourism
A124: ="Total "&A4 -> Total Revenue - Functional | B124: 2 | C124: =C5+C25+C74+C98+C117 -> 0 | D124: 147130233.7 | E124: 468917421.1 | F124: 563067503 | G124: 595324547 | H124: 595324547 | I124: 626939896 | J124: 641411649 | K124: 664731803
A126: Expenditure - Functional
A127: =A5 -> Municipal governance and administration | C127: =C128+C131+C145 -> 0 | D127: 32400614.14 | E127: 218454919.2 | F127: 234560309 | G127: 244972899 | H127: 244972899 | I127: 258843293 | J127: 271970636 | K127: 281201221
A128: Executive and council | C128: =SUM(C129:C130) -> 0 | D128: 3772792.01 | E128: 28311530.28 | F128: 34003717 | G128: 31332199 | H128: 31332199 | I128: 36616655 | J128: 38227788 | K128: 39948039
A129: Mayor and Council | C129: 0 | D129: 3744580.79 | E129: 28288407.41 | F129: 32604789 | G129: 30673801 | H129: 30673801 | I129: 35096483 | J129: 36640730 | K129: 38289564
A130: Municipal Manager, Town Secretary and Chief Executive | C130: 0 | D130: 28211.22 | E130: 23122.87 | F130: 1398928 | G130: 658398 | H130: 658398 | I130: 1520172 | J130: 1587058 | K130: 1658475
A131: Finance and administration | C131: =SUM(C132:C144) -> 0 | D131: 26971381.54 | E131: 183909679.2 | F131: 191802300 | G131: 204074360 | H131: 204074360 | I131: 212100946 | J131: 223171626 | K131: 230206254
A132: Administrative and Corporate Support | C132: 0 | D132: 12624353.63 | E132: 41089569.67 | F132: 50320379 | G132: 46066606 | H132: 46066606 | I132: 39133836 | J132: 43291497 | K132: 45275285
A133: Asset Management | C133: 0 | D133: 1492531.8 | E133: 5429761.95 | F133: 7280446 | G133: 6751631 | H133: 6751631 | I133: 7974731 | J133: 8325619 | K133: 8700272
A134: Finance | C134: 0 | D134: 3779667.25 | E134: 76969808.38 | F134: 70013718 | G134: 78908258 | H134: 78908258 | I134: 74347347 | J134: 77707072 | K134: 80881415
A135: Fleet Management | C135: 0 | D135: 595504.93 | E135: 11735717.12 | F135: 13062704 | G135: 18950903 | H135: 18950903 | I135: 15042705 | J135: 16147533 | K135: 16807459
A136: Human Resources | C136: 0 | D136: 2073196.74 | E136: 9539448.57 | F136: 10784402 | G136: 10612917 | H136: 10612917 | I136: 15059614 | J136: 15722239 | K136: 16429603
A137: Information Technology | C137: 0 | D137: 1063297.72 | E137: 4429152.07 | F137: 6229488 | G137: 6374041 | H137: 6374041 | I137: 8360811 | J137: 7311678 | K137: 7634697
A138: Legal Services | C138: 0 | D138: 1366637.65 | E138: 10847577.24 | F138: 5887698 | G138: 10765824 | H138: 10765824 | I138: 14129344 | J138: 14751034 | K138: 15414807
A139: Marketing, Customer Relations, Publicity and Media Co-ordination | C139: 0 | D139: 1000010.49 | E139: 10686072.21 | F139: 3752820 | G139: 3717841 | H139: 3717841 | I139: 4234070 | J139: 4169748 | K139: 4355136
A140: Property Services | C140: 0 | D140: 2025425.08 | E140: 9130081.55 | F140: 17170918 | G140: 14199844 | H140: 14199844 | I140: 11874016 | J140: 12839580 | K140: 10775696
A141: Risk Management | C141: 0 | D141: 350991.52 | E141: 3601462.25 | F141: 1485027 | G141: 1540206 | H141: 1540206 | I141: 2162951 | J141: 2253720 | K141: 2350638
A142: Security Services | C142: 0 | D142: 0 | E142: 0 | F142: 2257885 | G142: 2669678 | H142: 2669678 | I142: 16116673 | J142: 16825806 | K142: 17582970
A143: Supply Chain Management | C143: 0 | D143: 599764.73 | E143: 451028.17 | F143: 3556815 | G143: 3516611 | H143: 3516611 | I143: 3664848 | J143: 3826100 | K143: 3998276
A144: Valuation Service
A145: Internal audit | C145: =SUM(C146:C146) -> 0 | D145: 1656440.59 | E145: 6233709.73 | F145: 8754292 | G145: 9566340 | H145: 9566340 | I145: 10125692 | J145: 10571222 | K145: 11046928
A146: Governance Function | C146: 0 | D146: 1656440.59 | E146: 6233709.73 | F146: 8754292 | G146: 9566340 | H146: 9566340 | I146: 10125692 | J146: 10571222 | K146: 11046928
A147: Community and public safety | C147: =C148+C170+C176+C185+C188 -> 0 | D147: 3193690.22 | E147: 12717478.54 | F147: 29240643 | G147: 29564021 | H147: 29564021 | I147: 31124989 | J147: 33524989 | K147: 34851701
A148: Community and social services | C148: =SUM(C149:C169) -> 0 | D148: =SUM(D149:D169) -> 952011.43 | E148: 8513825.76 | F148: 12468825 | G148: 13892552 | H148: 13892552 | I148: 14823426 | J148: 16506158 | K148: 17067018
A149: Aged Care
A150: Agricultural
A151: Animal Care and Diseases
A152: Cemeteries, Funeral Parlours and Crematoriums
A153: Child Care Facilities
A154: Community Halls and Facilities | C154: 0 | D154: 512621.55 | E154: 7158402.81 | F154: 10574028 | G154: 11578399 | H154: 11578399 | I154: 12642772 | J154: 14110990 | K154: 14580043
A155: Consumer Protection
A156: Cultural Matters
A157: Disaster Management | C157: 0 | D157: 292926.61 | E157: 528960.27 | F157: 658405 | G157: 1076129 | H157: 1076129 | I157: 861007 | J157: 898892 | K157: 939342
A158: Education
A159: =A37 -> Indigenous and Customary Law
A160: Industrial Promotion
A161: Language Policy
A162: Libraries and Archives | C162: 0 | D162: 146463.27 | E162: 826462.68 | F162: 1236392 | G162: 1238024 | H162: 1238024 | I162: 1319647 | J162: 1496276 | K162: 1547633
A163: Literacy Programmes
A164: Media Services
A165: Museums and Art Galleries
A166: Population Development
A167: Provincial Cultural Matters
A168: Theatres
A169: Zoo's
A170: Sport and recreation | C170: =SUM(C171:C175) -> 0 | D170: 0 | E170: 0 | F170: 0 | G170: 0 | H170: 0 | I170: 0 | J170: 0 | K170: 0
A171: Beaches and Jetties
A172: Casinos, Racing, Gambling, Wagering
A173: Community Parks (including Nurseries)
A174: Recreational Facilities
A175: Sports Grounds and Stadiums
A176: Public safety | C176: =SUM(C177:C184) -> 0 | D176: 2241678.79 | E176: 4203652.78 | F176: 16771818 | G176: 15671469 | H176: 15671469 | I176: 16301563 | J176: 17018831 | K176: 17784683
A177: Civil Defence
A178: Cleansing
A179: =A57 -> Control of Public Nuisances
A180: Fencing and Fences
A181: Fire Fighting and Protection
A182: Licensing and Control of Animals
A183: Police Forces, Traffic and Street Parking Control | C183: 0 | D183: 2021983.83 | E183: 3973273.97 | F183: 15659089 | G183: 14800257 | H183: 14800257 | I183: 15096931 | J183: 15761195 | K183: 16470452
A184: Pounds | C184: 0 | D184: 219694.96 | E184: 230378.81 | F184: 1112729 | G184: 871212 | H184: 871212 | I184: 1204632 | J184: 1257636 | K184: 1314231
A185: =A63 -> Housing | C185: =SUM(C186:C187) -> 0 | D185: 0 | E185: 0 | F185: 0 | G185: 0 | H185: 0 | I185: 0 | J185: 0 | K185: 0
A186: Housing
A187: Informal Settlements
A188: Health | C188: =SUM(C189:C195) -> 0 | D188: =SUM(D189:D195) -> 0 | E188: 0 | F188: 0 | G188: 0 | H188: 0 | I188: 0 | J188: 0 | K188: 0
A189: Ambulance
A190: Health Services
A191: Laboratory Services
A192: Food Control
A193: Health Surveillance and Prevention of Communicable Diseases including immunizations
A194: Vector Control
A195: Chemical Safety
A196: Economic and environmental services | C196: =C197+C208+C213 -> 0 | D196: 7036921.48 | E196: 266413733.2 | F196: 75780791 | G196: 85838389 | H196: 85838389 | I196: 64640177 | J196: 69580074 | K196: 72392300
A197: Planning and development | C197: =SUM(C198:C207) -> 0 | D197: =SUM(D198:D207) -> 1717007.1 | E197: 241699945.9 | F197: 34608720 | G197: 41056256 | H197: 41056256 | I197: 16981128 | J197: 17332865 | K197: 18110754
A198: Billboards
A199: Corporate Wide Strategic Planning (IDPs, LEDs) | C199: 0 | D199: 479618.25 | E199: 1122244.67 | F199: 2671260 | G199: 4187172 | H199: 4187172 | I199: 4448282 | J199: 4643565 | K199: 4852074
A200: Central City Improvement District
A201: Development Facilitation
... 53 more rows

Sheet A3-FinPerf V
A1: =muni&" - "&Approve2 -> LIM355 Lepelle-Nkumpi - Table A3 Budgeted Financial Performance (revenue and expenditure by municipal vote)
A2: =Vdesc -> Vote Description | B2: =head27 -> Ref | C2: =head1b -> 2018/19 | D2: =head1A -> 2019/20 | E2: =Head1 -> 2020/21 | F2: =Head2 -> Current Year 2021/22 | I2: =Head3 -> 2022/23 Medium Term Revenue & Expenditure Framework | L2: =Head4 -> LTFS
A3: R thousand | C3: =Head5 -> Audited Outcome | D3: =Head5 -> Audited Outcome | E3: =Head5 -> Audited Outcome | F3: =Head6 -> Original Budget | G3: =Head7 -> Adjusted Budget | H3: =Head8 -> Full Year Forecast | I3: =Head9 -> Budget Year 2022/23 | J3: =Head10 -> Budget Year +1 2023/24 | K3: =Head11 -> Budget Year +2 2024/25 | L3: =Head12 -> Forecast 2025/26 | M3: =Head13 -> Forecast 2026/27 | N3: =Head14 -> Forecast 2027/28 | O3: =Head15 -> Forecast 2028/29 | P3: =Head16 -> Forecast 2029/30 | Q3: =Head17 -> Forecast 2030/31 | R3: =Head18 -> Forecast 2031/32 | S3: =Head19 -> Forecast 2032/33 | T3: =Head20 -> Forecast 2033/34 | U3: =Head21 -> Forecast 2034/35 | V3: =Head22 -> Forecast 2035/36 | W3: =Head23 -> Forecast 2036/37
A4: Revenue by Vote | B4: 1
A5: =A3A!A5 -> Vote 01 - Executive And Council | C5: =A3A!C5 -> 0 | D5: =A3A!D5 -> 0 | E5: =A3A!E5 -> 0 | F5: =A3A!F5 -> 0 | G5: =A3A!G5 -> 0 | H5: =A3A!H5 -> 0 | I5: =A3A!I5 -> 0 | J5: =A3A!J5 -> 0 | K5: =A3A!K5 -> 0
A6: =A3A!A10 -> Vote 02 - Municipal Manager | C6: =A3A!C10 -> 0 | D6: =A3A!D10 -> 0 | E6: =A3A!E10 -> 0 | F6: =A3A!F10 -> 0 | G6: =A3A!G10 -> 0 | H6: =A3A!H10 -> 0 | I6: =A3A!I10 -> 0 | J6: =A3A!J10 -> 0 | K6: =A3A!K10 -> 0
A7: =A3A!A17 -> Vote 03 - Corporate Services | C7: =A3A!C17 -> 0 | D7: =A3A!D17 -> 39940.2 | E7: =A3A!E17 -> 288099.48 | F7: =A3A!F17 -> 447736 | G7: =A3A!G17 -> 658965 | H7: =A3A!H17 -> 658965 | I7: =A3A!I17 -> 760594 | J7: =A3A!J17 -> 794061 | K7: =A3A!K17 -> 829794
A8: =A3A!A25 -> Vote 04 - Budget And Treasury | C8: =A3A!C25 -> 0 | D8: =A3A!D25 -> 109460966.7 | E8: =A3A!E25 -> 378858019 | F8: =A3A!F25 -> 421435273 | G8: =A3A!G25 -> 437070090 | H8: =A3A!H25 -> 437070090 | I8: =A3A!I25 -> 479112007 | J8: =A3A!J25 -> 504074459 | K8: =A3A!K25 -> 521225741
A9: =A3A!A32 -> Vote 05 - Community Services | C9: =A3A!C32 -> 0 | D9: =A3A!D32 -> 2800356.61 | E9: =A3A!E32 -> 20193733.84 | F9: =A3A!F32 -> 20596649 | G9: =A3A!G32 -> 32226919 | H9: =A3A!H32 -> 32226919 | I9: =A3A!I32 -> 27179532 | J9: =A3A!J32 -> 26597927 | K9: =A3A!K32 -> 27794835
A10: =A3A!A43 -> Vote 06 - Planning And Development | C10: =A3A!C43 -> 0 | D10: =A3A!D43 -> 10602840.95 | E10: =A3A!E43 -> 31603803.19 | F10: =A3A!F43 -> 56502845 | G10: =A3A!G43 -> 56483573 | H10: =A3A!H43 -> 56483573 | I10: =A3A!I43 -> 53259763 | J10: =A3A!J43 -> 36605202 | K10: =A3A!K43 -> 38252433
A11: =A3A!A51 -> Vote 07 - Infrastructure Development | C11: =A3A!C51 -> 0 | D11: =A3A!D51 -> 24226129.21 | E11: =A3A!E51 -> 37973765.51 | F11: =A3A!F51 -> 64085000 | G11: =A3A!G51 -> 68885000 | H11: =A3A!H51 -> 68885000 | I11: =A3A!I51 -> 66628000 | J11: =A3A!J51 -> 73340000 | K11: =A3A!K51 -> 76629000
A12: ='Org structure'!A9 -> Vote 08 - | C12: =A3A!C62 -> 0 | D12: =A3A!D62 -> 0 | E12: =A3A!E62 -> 0 | F12: =A3A!F62 -> 0 | G12: =A3A!G62 -> 0 | H12: =A3A!H62 -> 0 | I12: =A3A!I62 -> 0 | J12: =A3A!J62 -> 0 | K12: =A3A!K62 -> 0
A13: ='Org structure'!A10 -> Vote 09 - | C13: =A3A!C63 -> 0 | D13: =A3A!D63 -> 0 | E13: =A3A!E63 -> 0 | F13: =A3A!F63 -> 0 | G13: =A3A!G63 -> 0 | H13: =A3A!H63 -> 0 | I13: =A3A!I63 -> 0 | J13: =A3A!J63 -> 0 | K13: =A3A!K63 -> 0
A14: ='Org structure'!A11 -> Vote 10 - | C14: =A3A!C64 -> 0 | D14: =A3A!D64 -> 0 | E14: =A3A!E64 -> 0 | F14: =A3A!F64 -> 0 | G14: =A3A!G64 -> 0 | H14: =A3A!H64 -> 0 | I14: =A3A!I64 -> 0 | J14: =A3A!J64 -> 0 | K14: =A3A!K64 -> 0
A15: ='Org structure'!A12 -> Vote 11 - | C15: =A3A!C65 -> 0 | D15: =A3A!D65 -> 0 | E15: =A3A!E65 -> 0 | F15: =A3A!F65 -> 0 | G15: =A3A!G65 -> 0 | H15: =A3A!H65 -> 0 | I15: =A3A!I65 -> 0 | J15: =A3A!J65 -> 0 | K15: =A3A!K65 -> 0 | L15: =A5A!#REF! -> 
A16: ='Org structure'!A13 -> Vote 12 - | C16: =A3A!C66 -> 0 | D16: =A3A!D66 -> 0 | E16: =A3A!E66 -> 0 | F16: =A3A!F66 -> 0 | G16: =A3A!G66 -> 0 | H16: =A3A!H66 -> 0 | I16: =A3A!I66 -> 0 | J16: =A3A!J66 -> 0 | K16: =A3A!K66 -> 0 | L16: =A5A!#REF! -> 
A17: ='Org structure'!A14 -> Vote 13 - | C17: =A3A!C67 -> 0 | D17: =A3A!D67 -> 0 | E17: =A3A!E67 -> 0 | F17: =A3A!F67 -> 0 | G17: =A3A!G67 -> 0 | H17: =A3A!H67 -> 0 | I17: =A3A!I67 -> 0 | J17: =A3A!J67 -> 0 | K17: =A3A!K67 -> 0 | L17: =A5A!#REF! -> 
A18: ='Org structure'!A15 -> Vote 14 - | C18: =A3A!C68 -> 0 | D18: =A3A!D68 -> 0 | E18: =A3A!E68 -> 0 | F18: =A3A!F68 -> 0 | G18: =A3A!G68 -> 0 | H18: =A3A!H68 -> 0 | I18: =A3A!I68 -> 0 | J18: =A3A!J68 -> 0 | K18: =A3A!K68 -> 0 | L18: =A5A!#REF! -> 
A19: ='Org structure'!A16 -> Vote 15 - Other | C19: =A3A!C69 -> 0 | D19: =A3A!D69 -> 0 | E19: =A3A!E69 -> 0 | F19: =A3A!F69 -> 0 | G19: =A3A!G69 -> 0 | H19: =A3A!H69 -> 0 | I19: =A3A!I69 -> 0 | J19: =A3A!J69 -> 0 | K19: =A3A!K69 -> 0 | L19: =A5A!#REF! -> 
A20: Total Revenue by Vote | B20: 2 | C20: =SUM(C5:C19) -> 0 | D20: =SUM(D5:D19) -> 147130233.7 | E20: 468917421.1 | F20: 563067503 | G20: 595324547 | H20: 595324547 | I20: 626939896 | J20: 641411649 | K20: 664731803
A22: Expenditure by Vote to be appropriated | B22: 1
A23: =A3A!A73 -> Vote 01 - Executive And Council | C23: =A3A!C73 -> 0 | D23: =A3A!D73 -> 5878017.43 | E23: =A3A!E73 -> 37073159.62 | F23: =A3A!F73 -> 38538128 | G23: =A3A!G73 -> 40124397 | H23: =A3A!H73 -> 40124397 | I23: =A3A!I73 -> 46461700 | J23: =A3A!J73 -> 48486832 | K23: =A3A!K73 -> 50649125
A24: =A3A!A78 -> Vote 02 - Municipal Manager | C24: =A3A!C78 -> 0 | D24: =A3A!D78 -> 3857393.6 | E24: =A3A!E78 -> 25508815.13 | F24: =A3A!F78 -> 17301108 | G24: =A3A!G78 -> 16606883 | H24: =A3A!H78 -> 16606883 | I24: =A3A!I78 -> 19716043 | J24: =A3A!J78 -> 20328524 | K24: =A3A!K78 -> 21236560
A25: =A3A!A85 -> Vote 03 - Corporate Services | C25: =A3A!C85 -> 0 | D25: =A3A!D85 -> 13061529.98 | E25: =A3A!E85 -> 59787950.14 | F25: =A3A!F85 -> 72438934 | G25: =A3A!G85 -> 79372030 | H25: =A3A!H85 -> 79372030 | I25: =A3A!I85 -> 85985241 | J25: =A3A!J85 -> 91248736 | K25: =A3A!K85 -> 95337332
A26: =A3A!A93 -> Vote 04 - Budget And Treasury | C26: =A3A!C93 -> 0 | D26: =A3A!D93 -> 5871963.78 | E26: =A3A!E93 -> 82850598.5 | F26: =A3A!F93 -> 80850979 | G26: =A3A!G93 -> 89176500 | H26: =A3A!H93 -> 89176500 | I26: =A3A!I93 -> 85986926 | J26: =A3A!J93 -> 89858791 | K26: =A3A!K93 -> 93579963
A27: =A3A!A100 -> Vote 05 - Community Services | C27: =A3A!C100 -> 0 | D27: =A3A!D100 -> 9934465.5 | E27: =A3A!E100 -> 44204820.52 | F27: =A3A!F100 -> 64075095 | G27: =A3A!G100 -> 63773276 | H27: =A3A!H100 -> 63773276 | I27: =A3A!I100 -> 68543373 | J27: =A3A!J100 -> 71265603 | K27: =A3A!K100 -> 74272765
A28: =A3A!A111 -> Vote 06 - Planning And Development | C28: =A3A!C111 -> 0 | D28: =A3A!D111 -> 4009975.23 | E28: =A3A!E111 -> 14821903.25 | F28: =A3A!F111 -> 29413168 | G28: =A3A!G111 -> 32046304 | H28: =A3A!H111 -> 32046304 | I28: =A3A!I111 -> 29012730 | J28: =A3A!J111 -> 30336688 | K28: =A3A!K111 -> 29058601
A29: =A3A!A119 -> Vote 07 - Infrastructure Development | C29: =A3A!C119 -> 0 | D29: =A3A!D119 -> 4694479.02 | E29: =A3A!E119 -> 269944066.8 | F29: =A3A!F119 -> 114784341 | G29: =A3A!G119 -> 118527407 | H29: =A3A!H119 -> 118527407 | I29: =A3A!I119 -> 99903747 | J29: =A3A!J119 -> 69877725 | K29: =A3A!K119 -> 82794522
A30: ='Org structure'!A9 -> Vote 08 - | C30: =A3A!C130 -> 0 | D30: =A3A!D130 -> 0 | E30: =A3A!E130 -> 0 | F30: =A3A!F130 -> 0 | G30: =A3A!G130 -> 0 | H30: =A3A!H130 -> 0 | I30: =A3A!I130 -> 0 | J30: =A3A!J130 -> 0 | K30: =A3A!K130 -> 0
A31: ='Org structure'!A10 -> Vote 09 - | C31: =A3A!C131 -> 0 | D31: =A3A!D131 -> 0 | E31: =A3A!E131 -> 0 | F31: =A3A!F131 -> 0 | G31: =A3A!G131 -> 0 | H31: =A3A!H131 -> 0 | I31: =A3A!I131 -> 0 | J31: =A3A!J131 -> 0 | K31: =A3A!K131 -> 0
A32: ='Org structure'!A11 -> Vote 10 - | C32: =A3A!C132 -> 0 | D32: =A3A!D132 -> 0 | E32: =A3A!E132 -> 0 | F32: =A3A!F132 -> 0 | G32: =A3A!G132 -> 0 | H32: =A3A!H132 -> 0 | I32: =A3A!I132 -> 0 | J32: =A3A!J132 -> 0 | K32: =A3A!K132 -> 0
A33: ='Org structure'!A12 -> Vote 11 - | C33: =A3A!C133 -> 0 | D33: =A3A!D133 -> 0 | E33: =A3A!E133 -> 0 | F33: =A3A!F133 -> 0 | G33: =A3A!G133 -> 0 | H33: =A3A!H133 -> 0 | I33: =A3A!I133 -> 0 | J33: =A3A!J133 -> 0 | K33: =A3A!K133 -> 0 | L33: =A3A!#REF! -> 
A34: ='Org structure'!A13 -> Vote 12 - | C34: =A3A!C134 -> 0 | D34: =A3A!D134 -> 0 | E34: =A3A!E134 -> 0 | F34: =A3A!F134 -> 0 | G34: =A3A!G134 -> 0 | H34: =A3A!H134 -> 0 | I34: =A3A!I134 -> 0 | J34: =A3A!J134 -> 0 | K34: =A3A!K134 -> 0 | L34: =A3A!#REF! -> 
A35: ='Org structure'!A14 -> Vote 13 - | C35: =A3A!C135 -> 0 | D35: =A3A!D135 -> 0 | E35: =A3A!E135 -> 0 | F35: =A3A!F135 -> 0 | G35: =A3A!G135 -> 0 | H35: =A3A!H135 -> 0 | I35: =A3A!I135 -> 0 | J35: =A3A!J135 -> 0 | K35: =A3A!K135 -> 0 | L35: =A3A!#REF! -> 
A36: ='Org structure'!A15 -> Vote 14 - | C36: =A3A!C136 -> 0 | D36: =A3A!D136 -> 0 | E36: =A3A!E136 -> 0 | F36: =A3A!F136 -> 0 | G36: =A3A!G136 -> 0 | H36: =A3A!H136 -> 0 | I36: =A3A!I136 -> 0 | J36: =A3A!J136 -> 0 | K36: =A3A!K136 -> 0 | L36: =A3A!#REF! -> 
A37: ='Org structure'!A16 -> Vote 15 - Other | C37: =A3A!C137 -> 0 | D37: =A3A!D137 -> 0 | E37: =A3A!E137 -> 0 | F37: =A3A!F137 -> 0 | G37: =A3A!G137 -> 0 | H37: =A3A!H137 -> 0 | I37: =A3A!I137 -> 0 | J37: =A3A!J137 -> 0 | K37: =A3A!K137 -> 0 | L37: =A3A!#REF! -> 
A38: Total Expenditure by Vote | B38: 2 | C38: =SUM(C23:C37) -> 0 | D38: =SUM(D23:D37) -> 47307824.54 | E38: 534191313.9 | F38: 417401753 | G38: 439626797 | H38: 439626797 | I38: 435609760 | J38: 421402899 | K38: 446928868 | L38: =SUM(L23:L29) -> 0 | M38: 0 | N38: 0 | O38: 0 | P38: 0 | Q38: 0 | R38: 0 | S38: 0 | T38: 0 | U38: 0 | V38: 0 | W38: 0
A39: =result -> Surplus/(Deficit) for the year | B39: 2 | C39: =C20-C38 -> 0 | D39: 99822409.13 | E39: -65273892.88 | F39: 145665750 | G39: 155697750 | H39: 155697750 | I39: 191330136 | J39: 220008750 | K39: 217802935 | L39: 0 | M39: 0 | N39: 0 | O39: 0 | P39: 0 | Q39: 0 | R39: 0 | S39: 0 | T39: 0 | U39: 0 | V39: 0 | W39: 0
A40: =head27a -> References
A41: 1. Insert 'Vote'; e.g. department, if different to functional classification structure
A42: 2. Must reconcile to Budgeted Financial Performance (revenue and expenditure)
A43: 3. Assign share in 'associate' to relevant Vote
A45: ="check "&A39 -> check Surplus/(Deficit) for the year | C45: =C39-A3A!C140 -> 0 | D45: =D39-A3A!D140 -> 99822409.13 | E45: =E39-A3A!E140 -> -65273892.88 | F45: =F39-A3A!F140 -> 145665750 | G45: =G39-A3A!G140 -> 155697750 | H45: =H39-A3A!H140 -> 155697750 | I45: =I39-A3A!I140 -> 191330136 | J45: =J39-A3A!J140 -> 220008750 | K45: =K39-A3A!K140 -> 217802935

Sheet A3A
A1: =muni&" - "&Approve2&"A" -> LIM355 Lepelle-Nkumpi - Table A3 Budgeted Financial Performance (revenue and expenditure by municipal vote)A
A2: =Vdesc -> Vote Description | B2: =head27 -> Ref | C2: =head1b -> 2018/19 | D2: =head1A -> 2019/20 | E2: =Head1 -> 2020/21 | F2: =Head2 -> Current Year 2021/22 | I2: =Head3 -> 2022/23 Medium Term Revenue & Expenditure Framework | L2: =Head4 -> LTFS
A3: R thousand | C3: =Head5 -> Audited Outcome | D3: =Head5 -> Audited Outcome | E3: =Head5 -> Audited Outcome | F3: =Head6 -> Original Budget | G3: =Head7 -> Adjusted Budget | H3: =Head8 -> Full Year Forecast | I3: =Head9 -> Budget Year 2022/23 | J3: =Head10 -> Budget Year +1 2023/24 | K3: =Head11 -> Budget Year +2 2024/25 | L3: =Head12 -> Forecast 2025/26 | M3: =Head13 -> Forecast 2026/27 | N3: =Head14 -> Forecast 2027/28 | O3: =Head15 -> Forecast 2028/29 | P3: =Head16 -> Forecast 2029/30 | Q3: =Head17 -> Forecast 2030/31 | R3: =Head18 -> Forecast 2031/32 | S3: =Head19 -> Forecast 2032/33 | T3: =Head20 -> Forecast 2033/34 | U3: =Head21 -> Forecast 2034/35 | V3: =Head22 -> Forecast 2035/36 | W3: =Head23 -> Forecast 2036/37
A4: Revenue by Vote | B4: 1
A5: ='Org structure'!A2 -> Vote 01 - Executive And Council | C5: =SUM(C6:C9) -> 0 | D5: 0 | E5: 0 | F5: 0 | G5: 0 | H5: 0 | I5: 0 | J5: 0 | K5: 0
A6: ='Org structure'!E3 -> 01.1 - Mayor & Councillors | C6: 0 | D6: 0 | E6: 0 | F6: 0 | G6: 0 | H6: 0 | I6: 0 | J6: 0 | K6: 0
A7: ='Org structure'!E4 -> 01.2 - Mayor & Council Support | C7: 0 | D7: 0 | E7: 0 | F7: 0 | G7: 0 | H7: 0 | I7: 0 | J7: 0 | K7: 0
A8: ='Org structure'!E5 -> 01.3 - Board General Mayor | C8: 0 | D8: 0 | E8: 0 | F8: 0 | G8: 0 | H8: 0 | I8: 0 | J8: 0 | K8: 0
A9: ='Org structure'!E6 -> 01.4 - Board General Speaker | C9: 0 | D9: 0 | E9: 0 | F9: 0 | G9: 0 | H9: 0 | I9: 0 | J9: 0 | K9: 0
A10: ='Org structure'!A3 -> Vote 02 - Municipal Manager | C10: =SUM(C11:C16) -> 0 | D10: 0 | E10: 0 | F10: 0 | G10: 0 | H10: 0 | I10: 0 | J10: 0 | K10: 0
A11: ='Org structure'!E8 -> 02.1 - Municipal Manager Administration | C11: 0 | D11: 0 | E11: 0 | F11: 0 | G11: 0 | H11: 0 | I11: 0 | J11: 0 | K11: 0
A12: ='Org structure'!E9 -> 02.2 - Municipal Manager | C12: 0 | D12: 0 | E12: 0 | F12: 0 | G12: 0 | H12: 0 | I12: 0 | J12: 0 | K12: 0
A13: ='Org structure'!E10 -> 02.3 - Municipal Manager Support | C13: 0 | D13: 0 | E13: 0 | F13: 0 | G13: 0 | H13: 0 | I13: 0 | J13: 0 | K13: 0
A14: ='Org structure'!E11 -> 02.4 - Internal Audit | C14: 0 | D14: 0 | E14: 0 | F14: 0 | G14: 0 | H14: 0 | I14: 0 | J14: 0 | K14: 0
A15: ='Org structure'!E12 -> 02.5 - Communications | C15: 0 | D15: 0 | E15: 0 | F15: 0 | G15: 0 | H15: 0 | I15: 0 | J15: 0 | K15: 0
A16: ='Org structure'!E13 -> 02.6 - Risk Management | C16: 0 | D16: 0 | E16: 0 | F16: 0 | G16: 0 | H16: 0 | I16: 0 | J16: 0 | K16: 0
A17: ='Org structure'!A4 -> Vote 03 - Corporate Services | C17: =SUM(C18:C24) -> 0 | D17: 39940.2 | E17: 288099.48 | F17: 447736 | G17: 658965 | H17: 658965 | I17: 760594 | J17: 794061 | K17: 829794
A18: ='Org structure'!E15 -> 03.1 - Executive Manager: Corporate Services | C18: 0 | D18: 0 | E18: 0 | F18: 0 | G18: 0 | H18: 0 | I18: 0 | J18: 0 | K18: 0
A19: ='Org structure'!E16 -> 03.2 - Human Resource Management & Development | C19: 0 | D19: 0 | E19: 62075 | F19: 230585 | G19: 441814 | H19: 441814 | I19: 463020 | J19: 483393 | K19: 505146
A20: ='Org structure'!E17 -> 03.3 - Information Technology | C20: 0 | D20: 39940.2 | E20: 226024.48 | F20: 217151 | G20: 217151 | H20: 217151 | I20: 227574 | J20: 237588 | K20: 248279
A21: ='Org structure'!E18 -> 03.4 - Legal Services | C21: 0 | D21: 0 | E21: 0 | F21: 0 | G21: 0 | H21: 0 | I21: 0 | J21: 0 | K21: 0
A22: ='Org structure'!E19 -> 03.5 - Gen Adm_Sec_Fleet: General Administrat | C22: 0 | D22: 0 | E22: 0 | F22: 0 | G22: 0 | H22: 0 | I22: 0 | J22: 0 | K22: 0
A23: ='Org structure'!E20 -> 03.6 - Gen Adm_Sec_Fleet: Security Services | C23: 0 | D23: 0 | E23: 0 | F23: 0 | G23: 0 | H23: 0 | I23: 70000 | J23: 73080 | K23: 76369
A24: ='Org structure'!E21 -> 03.7 - Gen Adm_Sec_Fleet: Fleet Management | C24: 0 | D24: 0 | E24: 0 | F24: 0 | G24: 0 | H24: 0 | I24: 0 | J24: 0 | K24: 0
A25: ='Org structure'!A5 -> Vote 04 - Budget And Treasury | C25: =SUM(C26:C31) -> 0 | D25: 109460966.7 | E25: 378858019 | F25: 421435273 | G25: 437070090 | H25: 437070090 | I25: 479112007 | J25: 504074459 | K25: 521225741
A26: ='Org structure'!E23 -> 04.1 - Chief Financial Officer | C26: 0 | D26: 0 | E26: 0 | F26: 0 | G26: 0 | H26: 0 | I26: 0 | J26: 0 | K26: 0
A27: ='Org structure'!E24 -> 04.2 - Budget Planning & Management | C27: 0 | D27: 104662677.7 | E27: 320512846.4 | F27: 277926000 | G27: 277926000 | H27: 277926000 | I27: 303329000 | J27: 320557000 | K27: 339450000
A28: ='Org structure'!E25 -> 04.3 - Expenditure Management | C28: 0 | D28: 0 | E28: 1379868.7 | F28: 0 | G28: 0 | H28: 0 | I28: 0 | J28: 0 | K28: 0
A29: ='Org structure'!E26 -> 04.4 - Revenue Management | C29: 0 | D29: 4671635.88 | E29: 56961150.83 | F29: 143075701 | G29: 159101978 | H29: 159101978 | I29: 175738874 | J29: 183471384 | K29: 181727592
A30: ='Org structure'!E27 -> 04.5 - Asset Management | C30: 0 | D30: 0 | E30: 0 | F30: 42112 | G30: 42112 | H30: 42112 | I30: 44133 | J30: 46075 | K30: 48149
A31: ='Org structure'!E28 -> 04.6 - Supply Chain Management | C31: 0 | D31: 126653.14 | E31: 4153.11 | F31: 391460 | G31: 0 | H31: 0 | I31: 0 | J31: 0 | K31: 0
A32: ='Org structure'!A6 -> Vote 05 - Community Services | C32: =SUM(C33:C42) -> 0 | D32: 2800356.61 | E32: 20193733.84 | F32: 20596649 | G32: 32226919 | H32: 32226919 | I32: 27179532 | J32: 26597927 | K32: 27794835
A33: ='Org structure'!E30 -> 05.1 - Executive Manager: Community Services | C33: 0 | D33: 0 | E33: 0 | F33: 0 | G33: 0 | H33: 0 | I33: 0 | J33: 0 | K33: 0
A34: ='Org structure'!E31 -> 05.2 - Waste Management Services | C34: 0 | D34: 3116088.34 | E34: 8339333.48 | F34: 8773840 | G34: 8773840 | H34: 8773840 | I34: 8511472 | J34: 7445258 | K34: 7780295
A35: ='Org structure'!E32 -> 05.3 - Environmental Management Services | C35: 0 | D35: 0 | E35: 0 | F35: 16455 | G35: 16455 | H35: 16455 | I35: 16455 | J35: 0 | K35: 0
A36: ='Org structure'!E33 -> 05.4 - Road Traffic & Law Enforce: Traffic Serv | C36: 0 | D36: -1352688.84 | E36: 5779950 | F36: 5500000 | G36: 11500000 | H36: 11500000 | I36: 12052000 | J36: 12582288 | K36: 13148491
A37: ='Org structure'!E34 -> 05.5 - Road Traffic&Law Enforce: Licencing Serv | C37: 0 | D37: 963757.07 | E37: 5869787.02 | F37: 5756805 | G37: 5756805 | H37: 5756805 | I37: 6033131 | J37: 6298589 | K37: 6582026
A38: ='Org structure'!E35 -> 05.6 - Road Traffic&Law Enforce: Pound | C38: 0 | D38: 15721.73 | E38: 1278.26 | F38: 2078 | G38: 2348 | H38: 2348 | I38: 2178 | J38: 2273 | K38: 2376
A39: ='Org structure'!E36 -> 05.7 - Institutional & Social Dev Management | C39: 0 | D39: 16260.95 | E39: 177158.67 | F39: 209127 | G39: 179127 | H39: 179127 | I39: 187726 | J39: 195985 | K39: 204804
A40: ='Org structure'!E37 -> 05.8 - Libraries And Archives | C40: 0 | D40: 0 | E40: 0 | F40: 1039 | G40: 1039 | H40: 1039 | I40: 1089 | J40: 1137 | K40: 1188
A41: ='Org structure'!E38 -> 05.9 - Community Halls And Facilities | C41: 0 | D41: 41217.36 | E41: 26226.41 | F41: 337305 | G41: 372305 | H41: 372305 | I41: 375481 | J41: 72397 | K41: 75655
A42: ='Org structure'!E39 -> 05.10 - Disaster Management | C42: 0 | D42: 0 | E42: 0 | F42: 0 | G42: 5625000 | H42: 5625000 | I42: 0 | J42: 0 | K42: 0
A43: ='Org structure'!A7 -> Vote 06 - Planning And Development | C43: =SUM(C44:C50) -> 0 | D43: 10602840.95 | E43: 31603803.19 | F43: 56502845 | G43: 56483573 | H43: 56483573 | I43: 53259763 | J43: 36605202 | K43: 38252433
A44: ='Org structure'!E41 -> 06.1 - Executive Manager:Planning & Development | C44: 0 | D44: 0 | E44: 0 | F44: 0 | G44: 0 | H44: 0 | I44: 0 | J44: 0 | K44: 0
A45: ='Org structure'!E42 -> 06.2 - Economic Development & Planning | C45: 0 | D45: 916808.3 | E45: 1278.94 | F45: 6517 | G45: 6517 | H45: 6517 | I45: 6830 | J45: 7130 | K45: 7451
A46: ='Org structure'!E43 -> 06.3 - Development & Town Planning | C46: 0 | D46: 1213214 | E46: -364369.41 | F46: 22974724 | G46: 22960452 | H46: 22960452 | I46: 18145640 | J46: 339968 | K46: 355264
A47: ='Org structure'!E44 -> 06.4 - Property Management & Housing | C47: 0 | D47: 8472818.65 | E47: 31966893.66 | F47: 33144296 | G47: 33139296 | H47: 33139296 | I47: 34729985 | J47: 36258104 | K47: 37889718
A48: ='Org structure'!E45 -> 06.5 - Integrated Development Planning | C48: 0 | D48: 0 | E48: 0 | F48: 377308 | G48: 377308 | H48: 377308 | I48: 377308 | J48: 0 | K48: 0
A49: ='Org structure'!E46 -> 06.6 - Performance Management | C49: 0 | D49: 0 | E49: 0 | F49: 0 | G49: 0 | H49: 0 | I49: 0 | J49: 0 | K49: 0
A50: ='Org structure'!E47 -> 06.7 - Local Economic Development | C50: 0 | D50: 0 | E50: 0 | F50: 0 | G50: 0 | H50: 0 | I50: 0 | J50: 0 | K50: 0
A51: ='Org structure'!A8 -> Vote 07 - Infrastructure Development | C51: =SUM(C52:C61) -> 0 | D51: 24226129.21 | E51: 37973765.51 | F51: 64085000 | G51: 68885000 | H51: 68885000 | I51: 66628000 | J51: 73340000 | K51: 76629000
A52: ='Org structure'!E49 -> 07.1 - Technical Services Administration | C52: 0 | D52: 0 | E52: 0 | F52: 0 | G52: 0 | H52: 0 | I52: 0 | J52: 0 | K52: 0
A53: ='Org structure'!E50 -> 07.2 - Roads | C53: 0 | D53: 0 | E53: 0 | F53: 0 | G53: 0 | H53: 0 | I53: 0 | J53: 0 | K53: 0
A54: ='Org structure'!E51 -> 07.3 - Workshop | C54: 0 | D54: 0 | E54: 0 | F54: 0 | G54: 0 | H54: 0 | I54: 0 | J54: 0 | K54: 0
A55: ='Org structure'!E52 -> 07.4 - Sewerage Network | C55: 0 | D55: 0 | E55: 0 | F55: 0 | G55: 0 | H55: 0 | I55: 0 | J55: 0 | K55: 0
A56: ='Org structure'!E53 -> 07.5 - Sewerage Purification | C56: 0 | D56: 0 | E56: 0 | F56: 0 | G56: 0 | H56: 0 | I56: 0 | J56: 0 | K56: 0
A57: ='Org structure'!E54 -> 07.6 - Irrigation | C57: 0 | D57: 0 | E57: 0 | F57: 0 | G57: 0 | H57: 0 | I57: 0 | J57: 0 | K57: 0
A58: ='Org structure'!E55 -> 07.7 - Executive Manager: Infrastructure Dev | C58: 0 | D58: 0 | E58: 0 | F58: 0 | G58: 0 | H58: 0 | I58: 0 | J58: 0 | K58: 0
A59: ='Org structure'!E56 -> 07.8 - Road Construction & Maintenance | C59: 0 | D59: 20242401.48 | E59: 0 | F59: 0 | G59: 0 | H59: 0 | I59: 0 | J59: 0 | K59: 0
A60: ='Org structure'!E57 -> 07.9 - Electrical & Mechanical Works | C60: 0 | D60: 0 | E60: 0 | F60: 7000000 | G60: 7000000 | H60: 7000000 | I60: 5000000 | J60: 9000000 | K60: 9404000
A61: ='Org structure'!E58 -> 07.10 - Project Management | C61: 0 | D61: 3983727.73 | E61: 37973765.51 | F61: 57085000 | G61: 61885000 | H61: 61885000 | I61: 61628000 | J61: 64340000 | K61: 67225000
A62: ='Org structure'!A9 -> Vote 08 - | C62: 0 | D62: 0 | E62: 0 | F62: 0 | G62: 0 | H62: 0 | I62: 0 | J62: 0 | K62: 0
A63: ='Org structure'!A10 -> Vote 09 - | C63: 0 | D63: 0 | E63: 0 | F63: 0 | G63: 0 | H63: 0 | I63: 0 | J63: 0 | K63: 0
A64: ='Org structure'!A11 -> Vote 10 - | C64: 0 | D64: 0 | E64: 0 | F64: 0 | G64: 0 | H64: 0 | I64: 0 | J64: 0 | K64: 0
A65: ='Org structure'!A12 -> Vote 11 - | C65: 0 | D65: 0 | E65: 0 | F65: 0 | G65: 0 | H65: 0 | I65: 0 | J65: 0 | K65: 0
A66: ='Org structure'!A13 -> Vote 12 - | C66: 0 | D66: 0 | E66: 0 | F66: 0 | G66: 0 | H66: 0 | I66: 0 | J66: 0 | K66: 0
A67: ='Org structure'!A14 -> Vote 13 - | C67: 0 | D67: 0 | E67: 0 | F67: 0 | G67: 0 | H67: 0 | I67: 0 | J67: 0 | K67: 0
A68: ='Org structure'!A15 -> Vote 14 - | C68: 0 | D68: 0 | E68: 0 | F68: 0 | G68: 0 | H68: 0 | I68: 0 | J68: 0 | K68: 0
A69: ='Org structure'!A16 -> Vote 15 - Other | C69: 0 | D69: 0 | E69: 0 | F69: 0 | G69: 0 | H69: 0 | I69: 0 | J69: 0 | K69: 0
A70: Total Revenue by Vote | B70: 2 | L70: =SUM(L58:L61) -> 0 | M70: 0 | N70: 0 | O70: 0 | P70: 0 | Q70: 0 | R70: 0 | S70: 0 | T70: 0 | U70: 0 | V70: 0 | W70: 0
A72: Expenditure by Vote | B72: 1
A73: ='Org structure'!A2 -> Vote 01 - Executive And Council | C73: =SUM(C74:C77) -> 0 | D73: 5878017.43 | E73: 37073159.62 | F73: 38538128 | G73: 40124397 | H73: 40124397 | I73: 46461700 | J73: 48486832 | K73: 50649125
A74: ='Org structure'!E3 -> 01.1 - Mayor & Councillors | C74: 0 | D74: 3744580.79 | E74: 28288407.41 | F74: 32604789 | G74: 30673801 | H74: 30673801 | I74: 35096483 | J74: 36640730 | K74: 38289564
A75: ='Org structure'!E4 -> 01.2 - Mayor & Council Support | C75: 0 | D75: 2133436.64 | E75: 8784752.21 | F75: 5933339 | G75: 9450596 | H75: 9450596 | I75: 11365217 | J75: 11846102 | K75: 12359561
A76: ='Org structure'!E5 -> 01.3 - Board General Mayor | C76: 0 | D76: 0 | E76: 0 | F76: 0 | G76: 0 | H76: 0 | I76: 0 | J76: 0 | K76: 0
A77: ='Org structure'!E6 -> 01.4 - Board General Speaker | C77: 0 | D77: 0 | E77: 0 | F77: 0 | G77: 0 | H77: 0 | I77: 0 | J77: 0 | K77: 0
A78: ='Org structure'!A3 -> Vote 02 - Municipal Manager | C78: =SUM(C79:C84) -> 0 | D78: 3857393.6 | E78: 25508815.13 | F78: 17301108 | G78: 16606883 | H78: 16606883 | I78: 19716043 | J78: 20328524 | K78: 21236560
A79: ='Org structure'!E8 -> 02.1 - Municipal Manager Administration | C79: 0 | D79: 0 | E79: 0 | F79: 0 | G79: 0 | H79: 0 | I79: 0 | J79: 0 | K79: 0
A80: ='Org structure'!E9 -> 02.2 - Municipal Manager | C80: 0 | D80: 28211.22 | E80: 23122.87 | F80: 1398928 | G80: 658398 | H80: 658398 | I80: 1520172 | J80: 1587058 | K80: 1658475
A81: ='Org structure'!E10 -> 02.3 - Municipal Manager Support | C81: 0 | D81: 821739.78 | E81: 4964448.07 | F81: 1910041 | G81: 1124098 | H81: 1124098 | I81: 1673158 | J81: 1746776 | K81: 1825383
A82: ='Org structure'!E11 -> 02.4 - Internal Audit | C82: 0 | D82: 1656440.59 | E82: 6233709.73 | F82: 8754292 | G82: 9566340 | H82: 9566340 | I82: 10125692 | J82: 10571222 | K82: 11046928
A83: ='Org structure'!E12 -> 02.5 - Communications | C83: 0 | D83: 1000010.49 | E83: 10686072.21 | F83: 3752820 | G83: 3717841 | H83: 3717841 | I83: 4234070 | J83: 4169748 | K83: 4355136
A84: ='Org structure'!E13 -> 02.6 - Risk Management | C84: 0 | D84: 350991.52 | E84: 3601462.25 | F84: 1485027 | G84: 1540206 | H84: 1540206 | I84: 2162951 | J84: 2253720 | K84: 2350638
A85: ='Org structure'!A4 -> Vote 03 - Corporate Services | C85: =SUM(C86:C92) -> 0 | D85: 13061529.98 | E85: 59787950.14 | F85: 72438934 | G85: 79372030 | H85: 79372030 | I85: 85985241 | J85: 91248736 | K85: 95337332
A86: ='Org structure'!E15 -> 03.1 - Executive Manager: Corporate Services | C86: 0 | D86: 0 | E86: 1157205.75 | F86: 1241190 | G86: 1195502 | H86: 1195502 | I86: 1259869 | J86: 1315303 | K86: 1374492
A87: ='Org structure'!E16 -> 03.2 - Human Resource Management & Development | C87: 0 | D87: 2073196.74 | E87: 9539448.57 | F87: 10784402 | G87: 10612917 | H87: 10612917 | I87: 15059614 | J87: 15722239 | K87: 16429603
A88: ='Org structure'!E17 -> 03.3 - Information Technology | C88: 0 | D88: 1063297.72 | E88: 4429152.07 | F88: 6229488 | G88: 6374041 | H88: 6374041 | I88: 8360811 | J88: 7311678 | K88: 7634697
A89: ='Org structure'!E18 -> 03.4 - Legal Services | C89: 0 | D89: 1366637.65 | E89: 10847577.24 | F89: 5887698 | G89: 10765824 | H89: 10765824 | I89: 14129344 | J89: 14751034 | K89: 15414807
A90: ='Org structure'!E19 -> 03.5 - Gen Adm_Sec_Fleet: General Administrat | C90: 0 | D90: 7962892.94 | E90: 22078849.39 | F90: 32975567 | G90: 28803165 | H90: 28803165 | I90: 16016225 | J90: 19175143 | K90: 20093304
A91: ='Org structure'!E20 -> 03.6 - Gen Adm_Sec_Fleet: Security Services | C91: 0 | D91: 0 | E91: 0 | F91: 2257885 | G91: 2669678 | H91: 2669678 | I91: 16116673 | J91: 16825806 | K91: 17582970
A92: ='Org structure'!E21 -> 03.7 - Gen Adm_Sec_Fleet: Fleet Management | C92: 0 | D92: 595504.93 | E92: 11735717.12 | F92: 13062704 | G92: 18950903 | H92: 18950903 | I92: 15042705 | J92: 16147533 | K92: 16807459
A93: ='Org structure'!A5 -> Vote 04 - Budget And Treasury | C93: =SUM(C94:C99) -> 0 | D93: 5871963.78 | E93: 82850598.5 | F93: 80850979 | G93: 89176500 | H93: 89176500 | I93: 85986926 | J93: 89858791 | K93: 93579963
A94: ='Org structure'!E23 -> 04.1 - Chief Financial Officer | C94: 0 | D94: 0 | E94: 523141.4 | F94: 1099025 | G94: 1110025 | H94: 1110025 | I94: 1175606 | J94: 108903 | K94: 113804
A95: ='Org structure'!E24 -> 04.2 - Budget Planning & Management | C95: 0 | D95: 1366256.25 | E95: 17129964.18 | F95: 15901151 | G95: 15794289 | H95: 15794289 | I95: 17823930 | J95: 19378001 | K95: 19946962
A96: ='Org structure'!E25 -> 04.3 - Expenditure Management | C96: 0 | D96: 999064.07 | E96: 2711682.81 | F96: 3958895 | G96: 4269635 | H96: 4269635 | I96: 4349487 | J96: 4540874 | K96: 4745179
A97: ='Org structure'!E26 -> 04.4 - Revenue Management | C97: 0 | D97: 1414346.93 | E97: 56605019.99 | F97: 49054647 | G97: 57734309 | H97: 57734309 | I97: 50998324 | J97: 53679294 | K97: 56075470
A98: ='Org structure'!E27 -> 04.5 - Asset Management | C98: 0 | D98: 1492531.8 | E98: 5429761.95 | F98: 7280446 | G98: 6751631 | H98: 6751631 | I98: 7974731 | J98: 8325619 | K98: 8700272
A99: ='Org structure'!E28 -> 04.6 - Supply Chain Management | C99: 0 | D99: 599764.73 | E99: 451028.17 | F99: 3556815 | G99: 3516611 | H99: 3516611 | I99: 3664848 | J99: 3826100 | K99: 3998276
A100: ='Org structure'!A6 -> Vote 05 - Community Services | C100: =SUM(C101:C110) -> 0 | D100: 9934465.5 | E100: 44204820.52 | F100: 64075095 | G100: 63773276 | H100: 63773276 | I100: 68543373 | J100: 71265603 | K100: 74272765
A101: ='Org structure'!E30 -> 05.1 - Executive Manager: Community Services | C101: 0 | D101: 0 | E101: 918447 | F101: 1241190 | G101: 616595 | H101: 616595 | I101: 1167293 | J101: 1218654 | K101: 1273493
A102: ='Org structure'!E31 -> 05.2 - Waste Management Services | C102: 0 | D102: 2815846.64 | E102: 24641251.6 | F102: 21093506 | G102: 21719672 | H102: 21719672 | I102: 22809794 | J102: 22460855 | K102: 23459717
A103: ='Org structure'!E32 -> 05.3 - Environmental Management Services | C103: 0 | D103: 241563.27 | E103: 432810.67 | F103: 734230 | G103: 761905 | H103: 761905 | I103: 798879 | J103: 816852 | K103: 853609
A104: ='Org structure'!E33 -> 05.4 - Road Traffic & Law Enforce: Traffic Serv | C104: 0 | D104: 2021983.83 | E104: 3973273.97 | F104: 15659089 | G104: 14800257 | H104: 14800257 | I104: 15096931 | J104: 15761195 | K104: 16470452
A105: ='Org structure'!E34 -> 05.5 - Road Traffic&Law Enforce: Licencing Serv | C105: 0 | D105: 2270181.16 | E105: 3095371.19 | F105: 8656525 | G105: 8486311 | H105: 8486311 | I105: 9446623 | J105: 9906831 | K105: 10346636
A106: ='Org structure'!E35 -> 05.6 - Road Traffic&Law Enforce: Pound | C106: 0 | D106: 219694.96 | E106: 230378.81 | F106: 1112729 | G106: 871212 | H106: 871212 | I106: 1204632 | J106: 1257636 | K106: 1314231
A107: ='Org structure'!E36 -> 05.7 - Institutional & Social Dev Management | C107: 0 | D107: 1413184.21 | E107: 2399461.52 | F107: 3109001 | G107: 2624772 | H107: 2624772 | I107: 3195795 | J107: 3337422 | K107: 3487609
A108: ='Org structure'!E37 -> 05.8 - Libraries And Archives | C108: 0 | D108: 146463.27 | E108: 826462.68 | F108: 1236392 | G108: 1238024 | H108: 1238024 | I108: 1319647 | J108: 1496276 | K108: 1547633
A109: ='Org structure'!E38 -> 05.9 - Community Halls And Facilities | C109: 0 | D109: 512621.55 | E109: 7158402.81 | F109: 10574028 | G109: 11578399 | H109: 11578399 | I109: 12642772 | J109: 14110990 | K109: 14580043
A110: ='Org structure'!E39 -> 05.10 - Disaster Management | C110: 0 | D110: 292926.61 | E110: 528960.27 | F110: 658405 | G110: 1076129 | H110: 1076129 | I110: 861007 | J110: 898892 | K110: 939342
A111: ='Org structure'!A7 -> Vote 06 - Planning And Development | C111: =SUM(C112:C118) -> 0 | D111: 4009975.23 | E111: 14821903.25 | F111: 29413168 | G111: 32046304 | H111: 32046304 | I111: 29012730 | J111: 30336688 | K111: 29058601
A112: ='Org structure'!E41 -> 06.1 - Executive Manager:Planning & Development | C112: 0 | D112: 0 | E112: 0 | F112: 1195502 | G112: 398501 | H112: 398501 | I112: 1242293 | J112: 1296954 | K112: 1355317
A113: ='Org structure'!E42 -> 06.2 - Economic Development & Planning | C113: 0 | D113: 566638.86 | E113: 2898185.21 | F113: 2515893 | G113: 2613921 | H113: 2613921 | I113: 4242718 | J113: 4428958 | K113: 4627812
A114: ='Org structure'!E43 -> 06.3 - Development & Town Planning | C114: 0 | D114: 645192.98 | E114: 1174351.87 | F114: 4367317 | G114: 9200913 | H114: 9200913 | I114: 5158728 | J114: 4991142 | K114: 5215069
A115: ='Org structure'!E44 -> 06.4 - Property Management & Housing | C115: 0 | D115: 2025425.08 | E115: 9130081.55 | F115: 17170918 | G115: 14199844 | H115: 14199844 | I115: 11874016 | J115: 12839580 | K115: 10775696
A116: ='Org structure'!E45 -> 06.5 - Integrated Development Planning | C116: 0 | D116: 479618.25 | E116: 1122244.67 | F116: 2671260 | G116: 4187172 | H116: 4187172 | I116: 4448282 | J116: 4643565 | K116: 4852074
A117: ='Org structure'!E46 -> 06.6 - Performance Management | C117: 0 | D117: 293100.06 | E117: 497039.95 | F117: 1492278 | G117: 1445953 | H117: 1445953 | I117: 2046693 | J117: 2136489 | K117: 2232633
A118: ='Org structure'!E47 -> 06.7 - Local Economic Development | C118: 0 | D118: 0 | E118: 0 | F118: 0 | G118: 0 | H118: 0 | I118: 0 | J118: 0 | K118: 0
A119: ='Org structure'!A8 -> Vote 07 - Infrastructure Development | C119: =SUM(C120:C129) -> 0 | D119: 4694479.02 | E119: 269944066.8 | F119: 114784341 | G119: 118527407 | H119: 118527407 | I119: 99903747 | J119: 69877725 | K119: 82794522
A120: ='Org structure'!E49 -> 07.1 - Technical Services Administration | C120: 0 | D120: 0 | E120: 0 | F120: 0 | G120: 0 | H120: 0 | I120: 0 | J120: 0 | K120: 0
A121: ='Org structure'!E50 -> 07.2 - Roads | C121: 0 | D121: 0 | E121: 0 | F121: 0 | G121: 0 | H121: 0 | I121: 0 | J121: 0 | K121: 0
A122: ='Org structure'!E51 -> 07.3 - Workshop | C122: 0 | D122: 0 | E122: 0 | F122: 0 | G122: 0 | H122: 0 | I122: 0 | J122: 0 | K122: 0
A123: ='Org structure'!E52 -> 07.4 - Sewerage Network | C123: 0 | D123: 0 | E123: 0 | F123: 0 | G123: 0 | H123: 0 | I123: 0 | J123: 0 | K123: 0
A124: ='Org structure'!E53 -> 07.5 - Sewerage Purification | C124: 0 | D124: 0 | E124: 0 | F124: 0 | G124: 0 | H124: 0 | I124: 0 | J124: 0 | K124: 0
A125: ='Org structure'!E54 -> 07.6 - Irrigation | C125: 0 | D125: 0 | E125: 0 | F125: 0 | G125: 0 | H125: 0 | I125: 0 | J125: 0 | K125: 0
A126: ='Org structure'!E55 -> 07.7 - Executive Manager: Infrastructure Dev | C126: 0 | D126: 0 | E126: 289365.78 | F126: 1222271 | G126: 407424 | H126: 407424 | I126: 1167293 | J126: 1218654 | K126: 1273493
A127: ='Org structure'!E56 -> 07.8 - Road Construction & Maintenance | C127: 0 | D127: 2808169.95 | E127: 21185605.39 | F127: 31781316 | G127: 35533917 | H127: 35533917 | I127: 37413547 | J127: 41523526 | K127: 43081301
A128: ='Org structure'!E57 -> 07.9 - Electrical & Mechanical Works | C128: 0 | D128: 1860752.06 | E128: 11963931.42 | F128: 56726504 | G128: 57531816 | H128: 57531816 | I128: 58191507 | J128: 23866345 | K128: 35023929
A129: ='Org structure'!E58 -> 07.10 - Project Management | C129: 0 | D129: 25557.01 | E129: 236505164.2 | F129: 25054250 | G129: 25054250 | H129: 25054250 | I129: 3131400 | J129: 3269200 | K129: 3415799
A130: ='Org structure'!A9 -> Vote 08 - | C130: 0 | D130: 0 | E130: 0 | F130: 0 | G130: 0 | H130: 0 | I130: 0 | J130: 0 | K130: 0
A131: ='Org structure'!A10 -> Vote 09 - | C131: 0 | D131: 0 | E131: 0 | F131: 0 | G131: 0 | H131: 0 | I131: 0 | J131: 0 | K131: 0
A132: ='Org structure'!A11 -> Vote 10 - | C132: 0 | D132: 0 | E132: 0 | F132: 0 | G132: 0 | H132: 0 | I132: 0 | J132: 0 | K132: 0
A133: ='Org structure'!A12 -> Vote 11 - | C133: 0 | D133: 0 | E133: 0 | F133: 0 | G133: 0 | H133: 0 | I133: 0 | J133: 0 | K133: 0
A134: ='Org structure'!A13 -> Vote 12 - | C134: 0 | D134: 0 | E134: 0 | F134: 0 | G134: 0 | H134: 0 | I134: 0 | J134: 0 | K134: 0
A135: ='Org structure'!A14 -> Vote 13 - | C135: 0 | D135: 0 | E135: 0 | F135: 0 | G135: 0 | H135: 0 | I135: 0 | J135: 0 | K135: 0
A136: ='Org structure'!A15 -> Vote 14 - | C136: 0 | D136: 0 | E136: 0 | F136: 0 | G136: 0 | H136: 0 | I136: 0 | J136: 0 | K136: 0
A137: ='Org structure'!A16 -> Vote 15 - Other | C137: 0 | D137: 0 | E137: 0 | F137: 0 | G137: 0 | H137: 0 | I137: 0 | J137: 0 | K137: 0
A138: Total Expenditure by Vote | B138: 2 | L138: =SUM(L73:L129) -> 0 | M138: 0 | N138: 0 | O138: 0 | P138: 0 | Q138: 0 | R138: 0 | S138: 0 | T138: 0 | U138: 0 | V138: 0 | W138: 0
A140: =result -> Surplus/(Deficit) for the year | B140: 2 | C140: =C70-C138 -> 0 | D140: 0 | E140: 0 | F140: 0 | G140: 0 | H140: 0 | I140: 0 | J140: 0 | K140: 0 | L140: 0 | M140: 0 | N140: 0 | O140: 0 | P140: 0 | Q140: 0 | R140: 0 | S140: 0 | T140: 0 | U140: 0 | V140: 0 | W140: 0
A141: =head27a -> References
A142: 1. Insert 'Vote'; e.g. Department, if different to Functional structure
A143: 2. Must reconcile to Financial Performance ('Revenue and Expenditure by Functional Classification' and 'Revenue and Expenditure')
A144: 3. Assign share in 'associate' to relevant Vote
A146: check revenue | C146: =C70-'A4-FinPerf RE'!C59 -> 0 | D146: =D70-'A4-FinPerf RE'!D59 -> -147130233.7 | E146: =E70-'A4-FinPerf RE'!E59 -> -468917421.1 | F146: =F70-'A4-FinPerf RE'!F59 -> -563067503 | G146: =G70-'A4-FinPerf RE'!G59 -> -595324547 | H146: =H70-'A4-FinPerf RE'!H59 -> -595324547 | I146: =I70-'A4-FinPerf RE'!J59 -> -626939896 | J146: =J70-'A4-FinPerf RE'!K59 -> -641411649 | K146: =K70-'A4-FinPerf RE'!L59 -> -664731803
A147: check expenditure | C147: =C138-'A4-FinPerf RE'!C35 -> 0 | D147: =D138-'A4-FinPerf RE'!D35 -> -46093326.54 | E147: =E138-'A4-FinPerf RE'!E35 -> -534613056.1 | F147: =F138-'A4-FinPerf RE'!F35 -> -417401753 | G147: =G138-'A4-FinPerf RE'!G35 -> -439587744 | H147: =H138-'A4-FinPerf RE'!H35 -> -439587744 | I147: =I138-'A4-FinPerf RE'!J35 -> -438794148 | J147: =J138-'A4-FinPerf RE'!K35 -> -422644620 | K147: =K138-'A4-FinPerf RE'!L35 -> -448226466

Sheet A4-FinPerf RE
A1: =muni&" - "&Approve4 -> LIM355 Lepelle-Nkumpi - Table A4 Budgeted Financial Performance (revenue and expenditure)
A2: =desc -> Description | B2: =head27 -> Ref | C2: =head1b -> 2018/19 | D2: =head1A -> 2019/20 | E2: =Head1 -> 2020/21 | F2: =Head2 -> Current Year 2021/22 | J2: =Head3 -> 2022/23 Medium Term Revenue & Expenditure Framework | M2: =Head4 -> LTFS
A3: R thousand | B3: 1 | C3: =Head5 -> Audited Outcome | D3: =Head5 -> Audited Outcome | E3: =Head5 -> Audited Outcome | F3: =Head6 -> Original Budget | G3: =Head7 -> Adjusted Budget | H3: =Head8 -> Full Year Forecast | I3: =Head5b -> Pre-audit outcome | J3: =Head9 -> Budget Year 2022/23 | K3: =Head10 -> Budget Year +1 2023/24 | L3: =Head11 -> Budget Year +2 2024/25 | M3: =Head12 -> Forecast 2025/26 | N3: =Head13 -> Forecast 2026/27 | O3: =Head14 -> Forecast 2027/28 | P3: =Head15 -> Forecast 2028/29 | Q3: =Head16 -> Forecast 2029/30 | R3: =Head17 -> Forecast 2030/31 | S3: =Head18 -> Forecast 2031/32 | T3: =Head19 -> Forecast 2032/33 | U3: =Head20 -> Forecast 2033/34 | V3: =Head21 -> Forecast 2034/35 | W3: =Head22 -> Forecast 2035/36 | X3: =Head23 -> Forecast 2036/37
A4: Revenue By Source
A5: Property rates | B5: 2 | C5: ='SA1'!C9 -> 0 | D5: ='SA1'!D9 -> 8369863.77 | E5: ='SA1'!E9 -> 31750277.91 | F5: ='SA1'!F9 -> 32799503 | G5: ='SA1'!G9 -> 32799503 | H5: ='SA1'!H9 -> 32799503 | I5: ='SA1'!I9 -> 30520670.65 | J5: ='SA1'!J9 -> 34373881 | K5: ='SA1'!K9 -> 35886332 | L5: ='SA1'!L9 -> 37501216
A6: Service charges - electricity revenue | B6: 2 | C6: ='SA1'!C15 -> 0 | D6: ='SA1'!D15 -> 0 | E6: ='SA1'!E15 -> 0 | F6: ='SA1'!F15 -> 0 | G6: ='SA1'!G15 -> 0 | H6: ='SA1'!H15 -> 0 | I6: ='SA1'!I15 -> 0 | J6: ='SA1'!J15 -> 0 | K6: ='SA1'!K15 -> 0 | L6: ='SA1'!L15 -> 0
A7: Service charges - water revenue | B7: 2 | C7: ='SA1'!C21 -> 0 | D7: ='SA1'!D21 -> 16512163.87 | E7: ='SA1'!E21 -> 0 | F7: ='SA1'!F21 -> 0 | G7: ='SA1'!G21 -> 0 | H7: ='SA1'!H21 -> 0 | I7: ='SA1'!I21 -> -12642985.52 | J7: ='SA1'!J21 -> 0 | K7: ='SA1'!K21 -> 0 | L7: ='SA1'!L21 -> 0
A8: Service charges - sanitation revenue | B8: 2 | C8: ='SA1'!C27 -> 0 | D8: ='SA1'!D27 -> 3730237.61 | E8: ='SA1'!E27 -> 0 | F8: ='SA1'!F27 -> 0 | G8: ='SA1'!G27 -> 0 | H8: ='SA1'!H27 -> 0 | I8: ='SA1'!I27 -> -1629763.05 | J8: ='SA1'!J27 -> 0 | K8: ='SA1'!K27 -> 0 | L8: ='SA1'!L27 -> 0
A9: Service charges - refuse revenue | B9: 2 | C9: ='SA1'!C34 -> 0 | D9: ='SA1'!D34 -> 2823088.34 | E9: ='SA1'!E34 -> 6433333.48 | F9: ='SA1'!F34 -> 6794475 | G9: ='SA1'!G34 -> 6794475 | H9: ='SA1'!H34 -> 6794475 | I9: ='SA1'!I34 -> 5814239.34 | J9: ='SA1'!J34 -> 7120609 | K9: ='SA1'!K34 -> 7433916 | L9: ='SA1'!L34 -> 7768443
A11: Rental of facilities and equipment | C11: 0 | D11: 129468.43 | E11: 270634.19 | F11: 303708 | G11: 318708 | H11: 318708 | I11: 303616.45 | J11: 334006 | K11: 348703 | L11: 364394
A12: Interest earned - external investments | C12: 0 | D12: 1202955.64 | E12: 8578788.96 | F12: 7798205 | G12: 12566526 | H12: 12566526 | I12: 10934357.71 | J12: 13169720 | K12: 13749187 | L12: 14367900
A13: Interest earned - outstanding debtors | C13: 0 | D13: 0 | E13: 16665283.78 | F13: 12502243 | G13: 14715199 | H13: 14715199 | I13: 9996088.96 | J13: 15421529 | K13: 16100076 | L13: 16824579
A14: Dividends received | C14: 0 | D14: 0 | E14: 0 | F14: 0 | G14: 0 | H14: 0 | I14: 0 | J14: 0 | K14: 0 | L14: 0
A15: Fines, penalties and forfeits | C15: 0 | D15: -1336967.11 | E15: 5781228.26 | F15: 5508879 | G15: 11509149 | H15: 11509149 | I15: 208309.99 | J15: 12061306 | K15: 12592003 | L15: 13158644
A16: Licences and permits | C16: 0 | D16: 262.04 | E16: 675.94 | F16: 6076 | G16: 6076 | H16: 6076 | I16: 727.08 | J16: 6367 | K16: 6647 | L16: 6946
A17: Agency services | C17: 0 | D17: 4455847.89 | E17: 37123860.1 | F17: 29755246 | G17: 38755246 | H17: 38755246 | I17: 7413426.98 | J17: 40615498 | K17: 42402580 | L17: 44310696
A18: Transfers and subsidies | C18: 0 | D18: 105855612.7 | E18: 322418846.4 | F18: 287594898 | G18: 287594898 | H18: 287594898 | I18: 284929797.3 | J18: 310408898 | K18: 329557000 | L18: 348854000
A19: Other revenue | B19: 2 | C19: ='SA1'!C49 -> 0 | D19: ='SA1'!D49 -> 1403972.78 | E19: ='SA1'!E49 -> 540857.83 | F19: ='SA1'!F49 -> 122919270 | G19: ='SA1'!G49 -> 122754767 | H19: ='SA1'!H49 -> 122754767 | I19: ='SA1'!I49 -> 10265716.7 | J19: ='SA1'!J49 -> 131730082 | K19: ='SA1'!K49 -> 118922125 | L19: ='SA1'!L49 -> 114273616
A20: Gains | C20: 0 | D20: 0 | E20: 4245868.7 | F20: 0 | G20: 0 | H20: 0 | I20: 223.1 | J20: 70000 | K20: 73080 | L20: 76369
A21: Total Revenue (excluding capital transfers and contributions) | C21: =SUM(C5:C9)+SUM(C11:C20) -> 0 | D21: =SUM(D5:D9)+SUM(D11:D20) -> 143146505.9 | E21: 433809655.5 | F21: 505982503 | G21: 527814547 | H21: 527814547 | I21: 346114425.7 | J21: 565311896 | K21: 577071649 | L21: 597506803 | M21: =SUM(M5:M20) -> 0 | N21: 0 | O21: 0 | P21: 0 | Q21: 0 | R21: 0 | S21: 0 | T21: 0 | U21: 0 | V21: 0 | W21: 0 | X21: 0
A23: Expenditure By Type
A24: Employee related costs | B24: 2 | C24: ='SA1'!C67 -> 0 | D24: ='SA1'!D67 -> 25927135.45 | E24: ='SA1'!E67 -> 96320163.65 | F24: ='SA1'!F67 -> 123088180 | G24: ='SA1'!G67 -> 113600445 | H24: ='SA1'!H67 -> 113600445 | I24: ='SA1'!I67 -> 87730110.7 | J24: ='SA1'!J67 -> 134714216 | K24: ='SA1'!K67 -> 140641636 | L24: ='SA1'!L67 -> 146970499
A25: Remuneration of councillors | C25: 0 | D25: 3605569.71 | E25: 22365273.38 | F25: 24561409 | G25: 22412170 | H25: 22412170 | I25: 20496121.54 | J25: 22394173 | K25: 23379517 | L25: 24431598
A26: Debt impairment | B26: 3 | C26: 0 | D26: 1874168.48 | E26: 54425400.28 | F26: 51757718 | G26: 60757718 | H26: 60757718 | I26: 2441540.84 | J26: 54242089 | K26: 57065784 | L26: 59614350
A27: Depreciation & asset impairment | B27: 2 | C27: ='SA1'!C83 -> 0 | D27: ='SA1'!D83 -> 13577.88 | E27: ='SA1'!E83 -> 30573634.62 | F27: ='SA1'!F83 -> 33519432 | G27: ='SA1'!G83 -> 35019432 | H27: ='SA1'!H83 -> 35019432 | I27: ='SA1'!I83 -> 24429755.86 | J27: ='SA1'!J83 -> 37699942 | K27: ='SA1'!K83 -> 44489321 | L27: ='SA1'!L83 -> 45823039
A28: Finance charges | C28: 0 | D28: 0 | E28: 0 | F28: 146577 | G28: 146577 | H28: 146577 | I28: 0 | J28: 153613 | K28: 160372 | L28: 167588
A29: Bulk purchases - electricity | B29: 2 | C29: ='SA1'!C88 -> 0 | D29: ='SA1'!D88 -> 0 | E29: ='SA1'!E88 -> 0 | F29: ='SA1'!F88 -> 0 | G29: ='SA1'!G88 -> 0 | H29: ='SA1'!H88 -> 0 | I29: ='SA1'!I88 -> 0 | J29: ='SA1'!J88 -> 0 | K29: ='SA1'!K88 -> 0 | L29: ='SA1'!L88 -> 0
A30: Inventory consumed | B30: 8 | C30: ='SA1'!C169 -> 0 | D30: ='SA1'!D169 -> 0 | E30: ='SA1'!E169 -> 2854112.93 | F30: ='SA1'!F169 -> 4220810 | G30: ='SA1'!G169 -> 4220810 | H30: ='SA1'!H169 -> 4220810 | I30: ='SA1'!I169 -> 1111269.03 | J30: ='SA1'!J169 -> 8167811 | K30: ='SA1'!K169 -> 6088941 | L30: ='SA1'!L169 -> 6362942
A31: Contracted services | C31: ='SA1'!C127 -> 0 | D31: ='SA1'!D127 -> 8752569.03 | E31: ='SA1'!E127 -> 49270857.04 | F31: ='SA1'!F127 -> 135182501 | G31: ='SA1'!G127 -> 141662099 | H31: ='SA1'!H127 -> 141662099 | I31: ='SA1'!I127 -> 52827886.69 | J31: ='SA1'!J127 -> 127041777 | K31: ='SA1'!K127 -> 94540694 | L31: ='SA1'!L127 -> 106111723
A32: Transfers and subsidies | C32: ='SA1'!C93 -> 0 | D32: ='SA1'!D93 -> 0 | E32: ='SA1'!E93 -> 0 | F32: ='SA1'!F93 -> 0 | G32: ='SA1'!G93 -> 0 | H32: ='SA1'!H93 -> 0 | I32: ='SA1'!I93 -> 0 | J32: ='SA1'!J93 -> 0 | K32: ='SA1'!K93 -> 0 | L32: ='SA1'!L93 -> 0
A33: Other expenditure | B33: 4, 5 | C33: ='SA1'!C157 -> 0 | D33: ='SA1'!D157 -> 5920305.99 | E33: ='SA1'!E157 -> 40766112.54 | F33: ='SA1'!F157 -> 44925126 | G33: ='SA1'!G157 -> 52446594 | H33: ='SA1'!H157 -> 52446594 | I33: ='SA1'!I157 -> 42093403.23 | J33: ='SA1'!J157 -> 54380527 | K33: ='SA1'!K157 -> 56278355 | L33: ='SA1'!L157 -> 58744727
A34: Losses | C34: 0 | D34: 0 | E34: 238037501.7 | F34: 0 | G34: 9321899 | H34: 9321899 | I34: 0 | J34: 0 | K34: 0 | L34: 0
A35: Total Expenditure | C35: =SUM(C24:C34) -> 0 | D35: =SUM(D24:D34) -> 46093326.54 | E35: 534613056.1 | F35: 417401753 | G35: 439587744 | H35: 439587744 | I35: 231130087.9 | J35: 438794148 | K35: 422644620 | L35: 448226466 | M35: =SUM(M24:M34) -> 0 | N35: 0 | O35: 0 | P35: 0 | Q35: 0 | R35: 0 | S35: 0 | T35: 0 | U35: 0 | V35: 0 | W35: 0 | X35: 0
A37: Surplus/(Deficit) | C37: =C21-C35 -> 0 | D37: 97053179.4 | E37: -100803400.5 | F37: 88580750 | G37: 88226803 | H37: 88226803 | I37: 114984337.8 | J37: 126517748 | K37: 154427029 | L37: 149280337 | M37: =M21+M35 -> 0 | N37: 0 | O37: 0 | P37: 0 | Q37: 0 | R37: 0 | S37: 0 | T37: 0 | U37: 0 | V37: 0 | W37: 0 | X37: 0
A38: Transfers and subsidies - capital (monetary allocations) (National / Provincial and District) | C38: 0 | D38: 3983727.73 | E38: 35107765.51 | F38: 57085000 | G38: 67510000 | H38: 67510000 | I38: 39919749.48 | J38: 61628000 | K38: 64340000 | L38: 67225000
A39: Transfers and subsidies - capital (monetary allocations) (National / Provincial Departmental Agencies, Households, Non-profit Institutions, Private Enterprises, Public Corporatons, Higher Educational Institutions) | B39: 6
A40: Transfers and subsidies - capital (in-kind - all)
A41: Surplus/(Deficit) after capital transfers & contributions | C41: =SUM(C37:C40) -> 0 | D41: 101036907.1 | E41: -65695635.03 | F41: 145665750 | G41: 155736803 | H41: 155736803 | I41: 154904087.3 | J41: 188145748 | K41: 218767029 | L41: 216505337
A42: Taxation
A43: Surplus/(Deficit) after taxation | C43: =C41-C42 -> 0 | D43: 101036907.1 | E43: -65695635.03 | F43: 145665750 | G43: 155736803 | H43: 155736803 | I43: 154904087.3 | J43: 188145748 | K43: 218767029 | L43: 216505337
A44: Attributable to minorities
A45: Surplus/(Deficit) attributable to municipality | C45: =SUM(C43:C44) -> 0 | D45: 101036907.1 | E45: -65695635.03 | F45: 145665750 | G45: 155736803 | H45: 155736803 | I45: 154904087.3 | J45: 188145748 | K45: 218767029 | L45: 216505337
A46: Share of surplus/ (deficit) of associate | B46: 7
A47: =result -> Surplus/(Deficit) for the year | C47: =SUM(C45:C46) -> 0 | D47: 101036907.1 | E47: -65695635.03 | F47: 145665750 | G47: 155736803 | H47: 155736803 | I47: 154904087.3 | J47: 188145748 | K47: 218767029 | L47: 216505337 | M47: =M25+M46 -> 0 | N47: 0 | O47: 0 | P47: 0 | Q47: 0 | R47: 0 | S47: 0 | T47: 0 | U47: 0 | V47: 0 | W47: 0 | X47: 0
A48: =head27a -> References
A49: 1. Classifications are revenue sources and expenditure type
A50: 2. Detail to be provided in Table SA1
A51: 3. Previously described as 'bad or doubtful debts' - amounts shown should reflect the change in the provision for debt impairment
A52: 4. Expenditure type components previously shown under repairs and maintenance should be allocated back to the originating expenditure group/item; e.g. employee costs
A53: 5. Repairs & maintenance detailed in Table A9 and Table SA34c
A54: 6. Contributions are funds provided by external organisations to assist with infrastructure development; e.g. developer contributions (detail to be provided in Table SA1)
A55: 7. Equity method ( Includes Joint Ventures)
A56: 8. All materials not part of 'bulk' e.g road making materials, pipe, cable etc.
A57: check balance | C57: =C45-'A3-FinPerf V'!C39 -> 0 | D57: =D45-'A3-FinPerf V'!D39 -> 1214498 | E57: =E45-'A3-FinPerf V'!E39 -> -421742.15 | F57: =F45-'A3-FinPerf V'!F39 -> 0 | G57: =G45-'A3-FinPerf V'!G39 -> 39053 | H57: =H45-'A3-FinPerf V'!H39 -> 39053 | J57: =J45-'A3-FinPerf V'!I39 -> -3184388 | K57: =K45-'A3-FinPerf V'!J39 -> -1241721 | L57: =L45-'A3-FinPerf V'!K39 -> -1297598
A59: Total revenue | C59: =C21+SUM(C38:C40) -> 0 | D59: 147130233.7 | E59: 468917421.1 | F59: 563067503 | G59: 595324547 | H59: 595324547 | I59: 386034175.2 | J59: 626939896 | K59: 641411649 | L59: 664731803

Sheet A5-Capex
A2: =Vdesc -> Vote Description | B2: =head27 -> Ref | C2: =head1b -> 2018/19 | D2: =head1A -> 2019/20 | E2: =Head1 -> 2020/21 | F2: =Head2 -> Current Year 2021/22 | J2: =Head3 -> 2022/23 Medium Term Revenue & Expenditure Framework
A3: R thousand | B3: 1 | C3: =Head5 -> Audited Outcome | D3: =Head5 -> Audited Outcome | E3: =Head5 -> Audited Outcome | F3: =Head6 -> Original Budget | G3: =Head7 -> Adjusted Budget | H3: =Head8 -> Full Year Forecast | I3: =Head5b -> Pre-audit outcome | J3: =Head9 -> Budget Year 2022/23 | K3: =Head10 -> Budget Year +1 2023/24 | L3: =Head11 -> Budget Year +2 2024/25
A4: Capital expenditure - Vote
A5: Multi-year expenditure to be appropriated | B5: 2
A6: =A5A!A6 -> Vote 01 - Executive And Council | C6: =A5A!C6 -> 0 | D6: =A5A!D6 -> 0 | E6: =A5A!E6 -> 0 | F6: =A5A!F6 -> 0 | G6: =A5A!G6 -> 0 | H6: =A5A!H6 -> 0 | I6: =A5A!I6 -> 0 | J6: =A5A!J6 -> 0 | K6: =A5A!K6 -> 0 | L6: =A5A!L6 -> 0
A7: =A5A!A11 -> Vote 02 - Municipal Manager | C7: =A5A!C11 -> 0 | D7: =A5A!D11 -> 0 | E7: =A5A!E11 -> 0 | F7: =A5A!F11 -> 0 | G7: =A5A!G11 -> 0 | H7: =A5A!H11 -> 0 | I7: =A5A!I11 -> 0 | J7: =A5A!J11 -> 0 | K7: =A5A!K11 -> 0 | L7: =A5A!L11 -> 0
A8: =A5A!A18 -> Vote 03 - Corporate Services | C8: =A5A!C18 -> 0 | D8: =A5A!D18 -> 0 | E8: =A5A!E18 -> 0 | F8: =A5A!F18 -> 0 | G8: =A5A!G18 -> 0 | H8: =A5A!H18 -> 0 | I8: =A5A!I18 -> 0 | J8: =A5A!J18 -> 0 | K8: =A5A!K18 -> 0 | L8: =A5A!L18 -> 0
A9: =A5A!A26 -> Vote 04 - Budget And Treasury | C9: =A5A!C26 -> 0 | D9: =A5A!D26 -> 0 | E9: =A5A!E26 -> 0 | F9: =A5A!F26 -> 0 | G9: =A5A!G26 -> 0 | H9: =A5A!H26 -> 0 | I9: =A5A!I26 -> 0 | J9: =A5A!J26 -> 0 | K9: =A5A!K26 -> 0 | L9: =A5A!L26 -> 0
A10: =A5A!A33 -> Vote 05 - Community Services | C10: =A5A!C33 -> 0 | D10: =A5A!D33 -> 0 | E10: =A5A!E33 -> 0 | F10: =A5A!F33 -> 0 | G10: =A5A!G33 -> 0 | H10: =A5A!H33 -> 0 | I10: =A5A!I33 -> 0 | J10: =A5A!J33 -> 0 | K10: =A5A!K33 -> 0 | L10: =A5A!L33 -> 0
A11: =A5A!A44 -> Vote 06 - Planning And Development | C11: =A5A!C44 -> 0 | D11: =A5A!D44 -> 0 | E11: =A5A!E44 -> 0 | F11: =A5A!F44 -> 0 | G11: =A5A!G44 -> 0 | H11: =A5A!H44 -> 0 | I11: =A5A!I44 -> 0 | J11: =A5A!J44 -> 0 | K11: =A5A!K44 -> 0 | L11: =A5A!L44 -> 0
A12: =A5A!A52 -> Vote 07 - Infrastructure Development | C12: =A5A!C52 -> 0 | D12: =A5A!D52 -> 0 | E12: =A5A!E52 -> 0 | F12: =A5A!F52 -> 0 | G12: =A5A!G52 -> 0 | H12: =A5A!H52 -> 0 | I12: =A5A!I52 -> 0 | J12: =A5A!J52 -> 0 | K12: =A5A!K52 -> 0 | L12: =A5A!L52 -> 0
A13: ='Org structure'!A9 -> Vote 08 - | C13: =A5A!C63 -> 0 | D13: =A5A!D63 -> 0 | E13: =A5A!E63 -> 0 | F13: =A5A!F63 -> 0 | G13: =A5A!G63 -> 0 | H13: =A5A!H63 -> 0 | I13: =A5A!I63 -> 0 | J13: =A5A!J63 -> 0 | K13: =A5A!K63 -> 0 | L13: =A5A!L63 -> 0
A14: ='Org structure'!A10 -> Vote 09 - | C14: =A5A!C64 -> 0 | D14: =A5A!D64 -> 0 | E14: =A5A!E64 -> 0 | F14: =A5A!F64 -> 0 | G14: =A5A!G64 -> 0 | H14: =A5A!H64 -> 0 | I14: =A5A!I64 -> 0 | J14: =A5A!J64 -> 0 | K14: =A5A!K64 -> 0 | L14: =A5A!L64 -> 0
A15: ='Org structure'!A11 -> Vote 10 - | C15: =A5A!C65 -> 0 | D15: =A5A!D65 -> 0 | E15: =A5A!E65 -> 0 | F15: =A5A!F65 -> 0 | G15: =A5A!G65 -> 0 | H15: =A5A!H65 -> 0 | I15: =A5A!I65 -> 0 | J15: =A5A!J65 -> 0 | K15: =A5A!K65 -> 0 | L15: =A5A!L65 -> 0
A16: ='Org structure'!A12 -> Vote 11 - | C16: =A5A!C66 -> 0 | D16: =A5A!D66 -> 0 | E16: =A5A!E66 -> 0 | F16: =A5A!F66 -> 0 | G16: =A5A!G66 -> 0 | H16: =A5A!H66 -> 0 | I16: =A5A!I66 -> 0 | J16: =A5A!J66 -> 0 | K16: =A5A!K66 -> 0 | L16: =A5A!L66 -> 0
A17: ='Org structure'!A13 -> Vote 12 - | C17: =A5A!C67 -> 0 | D17: =A5A!D67 -> 0 | E17: =A5A!E67 -> 0 | F17: =A5A!F67 -> 0 | G17: =A5A!G67 -> 0 | H17: =A5A!H67 -> 0 | I17: =A5A!I67 -> 0 | J17: =A5A!J67 -> 0 | K17: =A5A!K67 -> 0 | L17: =A5A!L67 -> 0
A18: ='Org structure'!A14 -> Vote 13 - | C18: =A5A!C68 -> 0 | D18: =A5A!D68 -> 0 | E18: =A5A!E68 -> 0 | F18: =A5A!F68 -> 0 | G18: =A5A!G68 -> 0 | H18: =A5A!H68 -> 0 | I18: =A5A!I68 -> 0 | J18: =A5A!J68 -> 0 | K18: =A5A!K68 -> 0 | L18: =A5A!L68 -> 0
A19: ='Org structure'!A15 -> Vote 14 - | C19: =A5A!C69 -> 0 | D19: =A5A!D69 -> 0 | E19: =A5A!E69 -> 0 | F19: =A5A!F69 -> 0 | G19: =A5A!G69 -> 0 | H19: =A5A!H69 -> 0 | I19: =A5A!I69 -> 0 | J19: =A5A!J69 -> 0 | K19: =A5A!K69 -> 0 | L19: =A5A!L69 -> 0
A20: ='Org structure'!A16 -> Vote 15 - Other | C20: =A5A!C70 -> 0 | D20: =A5A!D70 -> 0 | E20: =A5A!E70 -> 0 | F20: =A5A!F70 -> 0 | G20: =A5A!G70 -> 0 | H20: =A5A!H70 -> 0 | I20: =A5A!I70 -> 0 | J20: =A5A!J70 -> 0 | K20: =A5A!K70 -> 0 | L20: =A5A!L70 -> 0
A21: Capital multi-year expenditure sub-total | B21: 7 | C21: =SUM(C6:C20) -> 0 | D21: =SUM(D6:D20) -> 0 | E21: 0 | F21: 0 | G21: 0 | H21: =SUM(H6:H20) -> 0 | I21: 0 | J21: 0 | K21: 0 | L21: 0
A23: Single-year expenditure to be appropriated | B23: 2
A24: =A5A!A75 -> Vote 01 - Executive And Council | C24: =A5A!C75 -> 0 | D24: =A5A!D75 -> 24205 | E24: =A5A!E75 -> 0 | F24: =A5A!F75 -> 0 | G24: =A5A!G75 -> 0 | H24: =A5A!H75 -> 0 | I24: =A5A!I75 -> 0 | J24: =A5A!J75 -> 0 | K24: =A5A!K75 -> 0 | L24: =A5A!L75 -> 0
A25: =A5A!A80 -> Vote 02 - Municipal Manager | C25: =A5A!C80 -> 0 | D25: =A5A!D80 -> 0 | E25: =A5A!E80 -> 0 | F25: =A5A!F80 -> 0 | G25: =A5A!G80 -> 0 | H25: =A5A!H80 -> 0 | I25: =A5A!I80 -> 0 | J25: =A5A!J80 -> 100000 | K25: =A5A!K80 -> 0 | L25: =A5A!L80 -> 0
A26: =A5A!A87 -> Vote 03 - Corporate Services | C26: =A5A!C87 -> 0 | D26: =A5A!D87 -> 0 | E26: =A5A!E87 -> 640217.56 | F26: =A5A!F87 -> 17820000 | G26: =A5A!G87 -> 17820000 | H26: =A5A!H87 -> 17820000 | I26: =A5A!I87 -> 2140939.41 | J26: =A5A!J87 -> 18405000 | K26: =A5A!K87 -> 6998250 | L26: =A5A!L87 -> 733163
A27: =A5A!A95 -> Vote 04 - Budget And Treasury | C27: =A5A!C95 -> 0 | D27: =A5A!D95 -> -565.22 | E27: =A5A!E95 -> 0 | F27: =A5A!F95 -> 0 | G27: =A5A!G95 -> 0 | H27: =A5A!H95 -> 0 | I27: =A5A!I95 -> 0 | J27: =A5A!J95 -> 0 | K27: =A5A!K95 -> 0 | L27: =A5A!L95 -> 0
A28: =A5A!A102 -> Vote 05 - Community Services | C28: =A5A!C102 -> 0 | D28: =A5A!D102 -> 0 | E28: =A5A!E102 -> 5737725.36 | F28: =A5A!F102 -> 19137000 | G28: =A5A!G102 -> 23312000 | H28: =A5A!H102 -> 23312000 | I28: =A5A!I102 -> 7301628.26 | J28: =A5A!J102 -> 23200000 | K28: =A5A!K102 -> 30757000 | L28: =A5A!L102 -> 25374850
A29: =A5A!A113 -> Vote 06 - Planning And Development | C29: =A5A!C113 -> 0 | D29: =A5A!D113 -> 0 | E29: =A5A!E113 -> 394025 | F29: =A5A!F113 -> 8000000 | G29: =A5A!G113 -> 7560000 | H29: =A5A!H113 -> 7560000 | I29: =A5A!I113 -> 5821592.79 | J29: =A5A!J113 -> 3500000 | K29: =A5A!K113 -> 55396000 | L29: =A5A!L113 -> 62831172
A30: =A5A!A121 -> Vote 07 - Infrastructure Development | C30: =A5A!C121 -> 0 | D30: =A5A!D121 -> 13743928.04 | E30: =A5A!E121 -> 38699068.84 | F30: =A5A!F121 -> 100705750 | G30: =A5A!G121 -> 107005750 | H30: =A5A!H121 -> 107005750 | I30: =A5A!I121 -> 36176158.03 | J30: =A5A!J121 -> 146125136 | K30: =A5A!K121 -> 126857500 | L30: =A5A!L121 -> 128863750
A31: ='Org structure'!A9 -> Vote 08 - | C31: =A5A!C132 -> 0 | D31: =A5A!D132 -> 0 | E31: =A5A!E132 -> 0 | F31: =A5A!F132 -> 0 | G31: =A5A!G132 -> 0 | H31: =A5A!H132 -> 0 | I31: =A5A!I132 -> 0 | J31: =A5A!J132 -> 0 | K31: =A5A!K132 -> 0 | L31: =A5A!L132 -> 0
A32: ='Org structure'!A10 -> Vote 09 - | C32: =A5A!C133 -> 0 | D32: =A5A!D133 -> 0 | E32: =A5A!E133 -> 0 | F32: =A5A!F133 -> 0 | G32: =A5A!G133 -> 0 | H32: =A5A!H133 -> 0 | I32: =A5A!I133 -> 0 | J32: =A5A!J133 -> 0 | K32: =A5A!K133 -> 0 | L32: =A5A!L133 -> 0
A33: ='Org structure'!A11 -> Vote 10 - | C33: =A5A!C134 -> 0 | D33: =A5A!D134 -> 0 | E33: =A5A!E134 -> 0 | F33: =A5A!F134 -> 0 | G33: =A5A!G134 -> 0 | H33: =A5A!H134 -> 0 | I33: =A5A!I134 -> 0 | J33: =A5A!J134 -> 0 | K33: =A5A!K134 -> 0 | L33: =A5A!L134 -> 0
A34: ='Org structure'!A12 -> Vote 11 - | C34: =A5A!C135 -> 0 | D34: =A5A!D135 -> 0 | E34: =A5A!E135 -> 0 | F34: =A5A!F135 -> 0 | G34: =A5A!G135 -> 0 | H34: =A5A!H135 -> 0 | I34: =A5A!I135 -> 0 | J34: =A5A!J135 -> 0 | K34: =A5A!K135 -> 0 | L34: =A5A!L135 -> 0
A35: ='Org structure'!A13 -> Vote 12 - | C35: =A5A!C136 -> 0 | D35: =A5A!D136 -> 0 | E35: =A5A!E136 -> 0 | F35: =A5A!F136 -> 0 | G35: =A5A!G136 -> 0 | H35: =A5A!H136 -> 0 | I35: =A5A!I136 -> 0 | J35: =A5A!J136 -> 0 | K35: =A5A!K136 -> 0 | L35: =A5A!L136 -> 0
A36: ='Org structure'!A14 -> Vote 13 - | C36: =A5A!C137 -> 0 | D36: =A5A!D137 -> 0 | E36: =A5A!E137 -> 0 | F36: =A5A!F137 -> 0 | G36: =A5A!G137 -> 0 | H36: =A5A!H137 -> 0 | I36: =A5A!I137 -> 0 | J36: =A5A!J137 -> 0 | K36: =A5A!K137 -> 0 | L36: =A5A!L137 -> 0
A37: ='Org structure'!A15 -> Vote 14 - | C37: =A5A!C138 -> 0 | D37: =A5A!D138 -> 0 | E37: =A5A!E138 -> 0 | F37: =A5A!F138 -> 0 | G37: =A5A!G138 -> 0 | H37: =A5A!H138 -> 0 | I37: =A5A!I138 -> 0 | J37: =A5A!J138 -> 0 | K37: =A5A!K138 -> 0 | L37: =A5A!L138 -> 0
A38: ='Org structure'!A16 -> Vote 15 - Other | C38: =A5A!C139 -> 0 | D38: =A5A!D139 -> 0 | E38: =A5A!E139 -> 0 | F38: =A5A!F139 -> 0 | G38: =A5A!G139 -> 0 | H38: =A5A!H139 -> 0 | I38: =A5A!I139 -> 0 | J38: =A5A!J139 -> 0 | K38: =A5A!K139 -> 0 | L38: =A5A!L139 -> 0
A39: Capital single-year expenditure sub-total | C39: =SUM(C24:C38) -> 0 | D39: =SUM(D24:D38) -> 13767567.82 | E39: 45471036.76 | F39: 145662750 | G39: 155697750 | H39: 155697750 | I39: 51440318.49 | J39: 191330136 | K39: 220008750 | L39: 217802935
A40: Total Capital Expenditure - Vote | C40: =C39+C21 -> 0 | D40: =D39+D21 -> 13767567.82 | E40: 45471036.76 | F40: 145662750 | G40: 155697750 | H40: 155697750 | I40: 51440318.49 | J40: 191330136 | K40: 220008750 | L40: 217802935
A42: Capital Expenditure - Functional
A43: Governance and administration | C43: =SUM(C44:C46) -> 0 | D43: =SUM(D44:D46) -> 23639.78 | E43: 640217.56 | F43: 17820000 | G43: 17820000 | H43: 17820000 | I43: 2140939.41 | J43: 18505000 | K43: 6998250 | L43: 733163
A44: Executive and council
A45: Finance and administration | C45: 0 | D45: 23639.78 | E45: 640217.56 | F45: 17820000 | G45: 17820000 | H45: 17820000 | I45: 2140939.41 | J45: 18505000 | K45: 6998250 | L45: 733163
A46: Internal audit
A47: Community and public safety | C47: =SUM(C48:C52) -> 0 | D47: =SUM(D48:D52) -> 0 | E47: 5737725.36 | F47: 6787000 | G47: 10962000 | H47: 10962000 | I47: 7301628.26 | J47: 8360000 | K47: 30400000 | L47: 5000000
A48: Community and social services | C48: 0 | D48: 0 | E48: 5540225.36 | F48: 6637000 | G48: 10762000 | H48: 10762000 | I48: 7301628.26 | J48: 8200000 | K48: 30400000 | L48: 5000000
A49: Sport and recreation
A50: Public safety | C50: 0 | D50: 0 | E50: 197500 | F50: 150000 | G50: 200000 | H50: 200000 | I50: 0 | J50: 160000 | K50: 0 | L50: 0
A51: Housing
A52: Health
A53: Economic and environmental services | C53: =SUM(C54:C56) -> 0 | D53: =SUM(D54:D56) -> 13632800.43 | E53: 36351233.84 | F53: 115805750 | G53: 121665750 | H53: 121665750 | I53: 41997750.82 | J53: 156325136 | K53: 177253500 | L53: 191694922
A54: Planning and development | C54: 0 | D54: 8736597.37 | E54: 31925701.19 | F54: 62230750 | G54: 66590750 | H54: 66590750 | I54: 38521612.65 | J54: 62046601 | K54: 116519000 | L54: 126694922
A55: Road transport | C55: 0 | D55: 4896203.06 | E55: 4425532.65 | F55: 53225000 | G55: 54725000 | H55: 54725000 | I55: 3476138.17 | J55: 93578535 | K55: 60734500 | L55: 65000000
A56: Environmental protection | C56: 0 | D56: 0 | E56: 0 | F56: 350000 | G56: 350000 | H56: 350000 | I56: 0 | J56: 700000 | K56: 0 | L56: 0
A57: Trading services | C57: =SUM(C58:C61) -> 0 | D57: =SUM(D58:D61) -> 111127.61 | E57: 2741860 | F57: 5250000 | G57: 5250000 | H57: 5250000 | I57: 0 | J57: 8140000 | K57: 5357000 | L57: 20374850
A58: Energy sources | C58: 0 | D58: 111127.61 | E58: 2741860 | F58: 5250000 | G58: 5250000 | H58: 5250000 | I58: 0 | J58: 6000000 | K58: 5000000 | L58: 0
A59: Water management
A60: Waste water management
A61: Waste management | C61: 0 | D61: 0 | E61: 0 | F61: 0 | G61: 0 | H61: 0 | I61: 0 | J61: 2140000 | K61: 357000 | L61: 20374850
A62: Other
A63: Total Capital Expenditure - Functional | B63: 3 | C63: =C43+C47+C53+C57+C62 -> 0 | D63: =D43+D47+D53+D57+D62 -> 13767567.82 | E63: 45471036.76 | F63: 145662750 | G63: 155697750 | H63: 155697750 | I63: 51440318.49 | J63: 191330136 | K63: 220008750 | L63: =L43+L47+L53+L57+L62 -> 217802935
A65: Funded by:
A66: National Government | C66: 0 | D66: 8736597.37 | E66: 31531676.19 | F66: 54230750 | G66: 64655750 | H66: 64655750 | I66: 36520186.64 | J66: 58546601 | K66: 66123000 | L66: 63863750
A67: Provincial Government | C67: 0 | D67: 0 | E67: 0 | F67: 0 | G67: 0 | H67: 0 | I67: 0 | J67: 0 | K67: 0 | L67: 0
A68: District Municipality
A69: ='A4-FinPerf RE'!A39 -> Transfers and subsidies - capital (monetary allocations) (National / Provincial Departmental Agencies, Households, Non-profit Institutions, Private Enterprises, Public Corporatons, Higher Educational Institutions)
A70: Transfers recognised - capital | B70: 4 | C70: =SUM(C66:C69) -> 0 | D70: 8736597.37 | E70: 31531676.19 | F70: 54230750 | G70: 64655750 | H70: 64655750 | I70: 36520186.64 | J70: 58546601 | K70: 66123000 | L70: 63863750
A72: Borrowing | B72: 6
A73: Internally generated funds | C73: 0 | D73: 5030970.45 | E73: 13939360.57 | F73: 91432000 | G73: 91042000 | H73: 91042000 | I73: 14920131.85 | J73: 132783535 | K73: 153885750 | L73: 153939185
A74: Total Capital Funding | B74: 7 | C74: =+C70+C72+C73 -> 0 | D74: =+D70+D72+D73 -> 13767567.82 | E74: 45471036.76 | F74: 145662750 | G74: 155697750 | H74: 155697750 | I74: 51440318.49 | J74: 191330136 | K74: 220008750 | L74: 217802935
A75: =head27a -> References
A76: 1. Municipalities may choose to appropriate for capital expenditure for three years or for one year (if one year appropriation projected expenditure required for yr2 and yr3).
A77: 2. Include capital component of PPP unitary payment. Note that capital transfers are only appropriated to municipalities for the budget year
A78: 3. Capital expenditure by functional classification must reconcile to the appropriations by vote
A79: 4. Must reconcile to supporting table SA20 and to Budgeted Financial Performance (revenue and expenditure)
A81: 6. Include finance leases and PPP capital funding component of unitary payment - total borrowing/repayments to reconcile to changes in Table SA17
A82: 7. Total Capital Funding must balance with Total Capital Expenditure
A83: 8. Include any capitalised interest (MFMA section 46) as part of relevant capital budget
A85: check balance | C85: =IF((C63-C74)=0,0,"Unbalanced") -> 0 | D85: =IF((D63-D74)=0,0,"Unbalanced") -> Unbalanced | E85: 0 | F85: 0 | G85: 0 | H85: 0 | I85: 0 | J85: 0 | K85: 0 | L85: 0

Sheet A5A
A1: =muni&" - "&Approve5 -> LIM355 Lepelle-Nkumpi - Table A5 Budgeted Capital Expenditure by vote, functional classification and funding
A2: =Vdesc -> Vote Description | B2: =head27 -> Ref | C2: =head1b -> 2018/19 | D2: =head1A -> 2019/20 | E2: =Head1 -> 2020/21 | F2: =Head2 -> Current Year 2021/22 | J2: =Head3 -> 2022/23 Medium Term Revenue & Expenditure Framework | N2: ="Multi-year appropriation for "&Head9& " in the "&Head2A&" Annual Budget" -> Multi-year appropriation for Budget Year 2022/23 in the 2021/22 Annual Budget | R2: ="Multi-year appropriation for "&RIGHT(Head10,7)& " in the "&Head2A&" Annual Budget" -> Multi-year appropriation for 2023/24 in the 2021/22 Annual Budget | V2: New multi-year appropriations (funds for new and existing projects)
A3: R thousand | B3: 1 | C3: =Head5 -> Audited Outcome | D3: =Head5 -> Audited Outcome | E3: =Head5 -> Audited Outcome | F3: =Head6 -> Original Budget | G3: =Head7 -> Adjusted Budget | H3: =Head8 -> Full Year Forecast | I3: =Head5b -> Pre-audit outcome | J3: =Head9 -> Budget Year 2022/23 | K3: =Head10 -> Budget Year +1 2023/24 | L3: =Head11 -> Budget Year +2 2024/25 | N3: ="Appropriation for "&RIGHT(Head9,7) -> Appropriation for 2022/23 | O3: ="Adjustments in "&Head2A -> Adjustments in 2021/22 | P3: ="Downward adjustments for "&RIGHT(Head9,7) -> Downward adjustments for 2022/23 | Q3: Appropriation carried forward | R3: ="Appropriation for "&RIGHT(Head9,7) -> Appropriation for 2022/23 | S3: ="Adjustments in "&Head2A -> Adjustments in 2021/22 | T3: ="Downward adjustments for "&RIGHT(Head9,7) -> Downward adjustments for 2022/23 | U3: Appropriation carried forward | V3: =Head9 -> Budget Year 2022/23 | W3: =Head10 -> Budget Year +1 2023/24 | X3: =Head11 -> Budget Year +2 2024/25
A4: Capital expenditure - Municipal Vote
A5: Multi-year expenditure appropriation | B5: 2
A6: ='Org structure'!A2 -> Vote 01 - Executive And Council | C6: =SUM(C7:C10) -> 0 | D6: 0 | E6: 0 | F6: 0 | G6: 0 | H6: 0 | I6: 0 | J6: 0 | K6: 0 | L6: 0 | N6: =SUM(N7:N10) -> 0 | O6: 0 | P6: 0 | Q6: 0 | R6: 0 | S6: 0 | T6: 0 | U6: 0 | V6: 0 | W6: 0 | X6: 0
A7: ='Org structure'!E3 -> 01.1 - Mayor & Councillors | C7: 0 | D7: 0 | E7: 0 | F7: 0 | G7: 0 | H7: 0 | I7: 0 | J7: =Q7+V7 -> 0 | K7: =U7+W7 -> 0 | L7: =X7 -> 0 | N7: 0 | O7: 0 | P7: 0 | Q7: =SUM(N7:P7) -> 0 | R7: 0 | S7: 0 | T7: 0 | U7: =SUM(R7:T7) -> 0 | V7: 0 | W7: 0 | X7: 0
A8: ='Org structure'!E4 -> 01.2 - Mayor & Council Support | C8: 0 | D8: 0 | E8: 0 | F8: 0 | G8: 0 | H8: 0 | I8: 0 | J8: =Q8+V8 -> 0 | K8: =U8+W8 -> 0 | L8: =X8 -> 0 | N8: 0 | O8: 0 | P8: 0 | Q8: =SUM(N8:P8) -> 0 | R8: 0 | S8: 0 | T8: 0 | U8: =SUM(R8:T8) -> 0 | V8: 0 | W8: 0 | X8: 0
A9: ='Org structure'!E5 -> 01.3 - Board General Mayor | C9: 0 | D9: 0 | E9: 0 | F9: 0 | G9: 0 | H9: 0 | I9: 0 | J9: =Q9+V9 -> 0 | K9: =U9+W9 -> 0 | L9: =X9 -> 0 | N9: 0 | O9: 0 | P9: 0 | Q9: =SUM(N9:P9) -> 0 | R9: 0 | S9: 0 | T9: 0 | U9: =SUM(R9:T9) -> 0 | V9: 0 | W9: 0 | X9: 0
A10: ='Org structure'!E6 -> 01.4 - Board General Speaker | C10: 0 | D10: 0 | E10: 0 | F10: 0 | G10: 0 | H10: 0 | I10: 0 | J10: =Q10+V10 -> 0 | K10: =U10+W10 -> 0 | L10: =X10 -> 0 | N10: 0 | O10: 0 | P10: 0 | Q10: =SUM(N10:P10) -> 0 | R10: 0 | S10: 0 | T10: 0 | U10: =SUM(R10:T10) -> 0 | V10: 0 | W10: 0 | X10: 0
A11: ='Org structure'!A3 -> Vote 02 - Municipal Manager | C11: =SUM(C12:C17) -> 0 | D11: 0 | E11: 0 | F11: 0 | G11: 0 | H11: 0 | I11: 0 | J11: 0 | K11: 0 | L11: 0 | N11: =SUM(N12:N17) -> 0 | O11: 0 | P11: 0 | Q11: 0 | R11: 0 | S11: 0 | T11: 0 | U11: 0 | V11: 0 | W11: 0 | X11: 0
A12: ='Org structure'!E8 -> 02.1 - Municipal Manager Administration | C12: 0 | D12: 0 | E12: 0 | F12: 0 | G12: 0 | H12: 0 | I12: 0 | J12: =Q12+V12 -> 0 | K12: =U12+W12 -> 0 | L12: =X12 -> 0 | N12: 0 | O12: 0 | P12: 0 | Q12: =SUM(N12:P12) -> 0 | R12: 0 | S12: 0 | T12: 0 | U12: =SUM(R12:T12) -> 0 | V12: 0 | W12: 0 | X12: 0
A13: ='Org structure'!E9 -> 02.2 - Municipal Manager | C13: 0 | D13: 0 | E13: 0 | F13: 0 | G13: 0 | H13: 0 | I13: 0 | J13: 0 | K13: 0 | L13: 0 | N13: 0 | O13: 0 | P13: 0 | Q13: 0 | R13: 0 | S13: 0 | T13: 0 | U13: 0 | V13: 0 | W13: 0 | X13: 0
A14: ='Org structure'!E10 -> 02.3 - Municipal Manager Support | C14: 0 | D14: 0 | E14: 0 | F14: 0 | G14: 0 | H14: 0 | I14: 0 | J14: 0 | K14: 0 | L14: 0 | N14: 0 | O14: 0 | P14: 0 | Q14: 0 | R14: 0 | S14: 0 | T14: 0 | U14: 0 | V14: 0 | W14: 0 | X14: 0
A15: ='Org structure'!E11 -> 02.4 - Internal Audit | C15: 0 | D15: 0 | E15: 0 | F15: 0 | G15: 0 | H15: 0 | I15: 0 | J15: 0 | K15: 0 | L15: 0 | N15: 0 | O15: 0 | P15: 0 | Q15: 0 | R15: 0 | S15: 0 | T15: 0 | U15: 0 | V15: 0 | W15: 0 | X15: 0
A16: ='Org structure'!E12 -> 02.5 - Communications | C16: 0 | D16: 0 | E16: 0 | F16: 0 | G16: 0 | H16: 0 | I16: 0 | J16: 0 | K16: 0 | L16: 0 | N16: 0 | O16: 0 | P16: 0 | Q16: 0 | R16: 0 | S16: 0 | T16: 0 | U16: 0 | V16: 0 | W16: 0 | X16: 0
A17: ='Org structure'!E13 -> 02.6 - Risk Management | C17: 0 | D17: 0 | E17: 0 | F17: 0 | G17: 0 | H17: 0 | I17: 0 | J17: 0 | K17: 0 | L17: 0 | N17: 0 | O17: 0 | P17: 0 | Q17: 0 | R17: 0 | S17: 0 | T17: 0 | U17: 0 | V17: 0 | W17: 0 | X17: 0
A18: ='Org structure'!A4 -> Vote 03 - Corporate Services | C18: =SUM(C19:C25) -> 0 | D18: 0 | E18: 0 | F18: 0 | G18: 0 | H18: 0 | I18: 0 | J18: 0 | K18: 0 | L18: 0 | N18: =SUM(N19:N25) -> 0 | O18: 0 | P18: 0 | Q18: 0 | R18: 0 | S18: 0 | T18: 0 | U18: 0 | V18: 0 | W18: 0 | X18: 0
A19: ='Org structure'!E15 -> 03.1 - Executive Manager: Corporate Services | C19: 0 | D19: 0 | E19: 0 | F19: 0 | G19: 0 | H19: 0 | I19: 0 | J19: =Q19+V19 -> 0 | K19: =U19+W19 -> 0 | L19: =X19 -> 0 | N19: 0 | O19: 0 | P19: 0 | Q19: =SUM(N19:P19) -> 0 | R19: 0 | S19: 0 | T19: 0 | U19: =SUM(R19:T19) -> 0 | V19: 0 | W19: 0 | X19: 0
A20: ='Org structure'!E16 -> 03.2 - Human Resource Management & Development | C20: 0 | D20: 0 | E20: 0 | F20: 0 | G20: 0 | H20: 0 | I20: 0 | J20: 0 | K20: 0 | L20: 0 | N20: 0 | O20: 0 | P20: 0 | Q20: 0 | R20: 0 | S20: 0 | T20: 0 | U20: 0 | V20: 0 | W20: 0 | X20: 0
A21: ='Org structure'!E17 -> 03.3 - Information Technology | C21: 0 | D21: 0 | E21: 0 | F21: 0 | G21: 0 | H21: 0 | I21: 0 | J21: 0 | K21: 0 | L21: 0 | N21: 0 | O21: 0 | P21: 0 | Q21: 0 | R21: 0 | S21: 0 | T21: 0 | U21: 0 | V21: 0 | W21: 0 | X21: 0
A22: ='Org structure'!E18 -> 03.4 - Legal Services | C22: 0 | D22: 0 | E22: 0 | F22: 0 | G22: 0 | H22: 0 | I22: 0 | J22: 0 | K22: 0 | L22: 0 | N22: 0 | O22: 0 | P22: 0 | Q22: 0 | R22: 0 | S22: 0 | T22: 0 | U22: 0 | V22: 0 | W22: 0 | X22: 0
A23: ='Org structure'!E19 -> 03.5 - Gen Adm_Sec_Fleet: General Administrat | C23: 0 | D23: 0 | E23: 0 | F23: 0 | G23: 0 | H23: 0 | I23: 0 | J23: 0 | K23: 0 | L23: 0 | N23: 0 | O23: 0 | P23: 0 | Q23: 0 | R23: 0 | S23: 0 | T23: 0 | U23: 0 | V23: 0 | W23: 0 | X23: 0
A24: ='Org structure'!E20 -> 03.6 - Gen Adm_Sec_Fleet: Security Services | C24: 0 | D24: 0 | E24: 0 | F24: 0 | G24: 0 | H24: 0 | I24: 0 | J24: 0 | K24: 0 | L24: 0 | N24: 0 | O24: 0 | P24: 0 | Q24: 0 | R24: 0 | S24: 0 | T24: 0 | U24: 0 | V24: 0 | W24: 0 | X24: 0
A25: ='Org structure'!E21 -> 03.7 - Gen Adm_Sec_Fleet: Fleet Management | C25: 0 | D25: 0 | E25: 0 | F25: 0 | G25: 0 | H25: 0 | I25: 0 | J25: 0 | K25: 0 | L25: 0 | N25: 0 | O25: 0 | P25: 0 | Q25: 0 | R25: 0 | S25: 0 | T25: 0 | U25: 0 | V25: 0 | W25: 0 | X25: 0
A26: ='Org structure'!A5 -> Vote 04 - Budget And Treasury | C26: =SUM(C27:C32) -> 0 | D26: 0 | E26: 0 | F26: 0 | G26: 0 | H26: 0 | I26: 0 | J26: 0 | K26: 0 | L26: 0 | N26: =SUM(N27:N32) -> 0 | O26: 0 | P26: 0 | Q26: 0 | R26: 0 | S26: 0 | T26: 0 | U26: 0 | V26: 0 | W26: 0 | X26: 0
A27: ='Org structure'!E23 -> 04.1 - Chief Financial Officer | C27: 0 | D27: 0 | E27: 0 | F27: 0 | G27: 0 | H27: 0 | I27: 0 | J27: =Q27+V27 -> 0 | K27: =U27+W27 -> 0 | L27: =X27 -> 0 | N27: 0 | O27: 0 | P27: 0 | Q27: =SUM(N27:P27) -> 0 | R27: 0 | S27: 0 | T27: 0 | U27: =SUM(R27:T27) -> 0 | V27: 0 | W27: 0 | X27: 0
A28: ='Org structure'!E24 -> 04.2 - Budget Planning & Management | C28: 0 | D28: 0 | E28: 0 | F28: 0 | G28: 0 | H28: 0 | I28: 0 | J28: 0 | K28: 0 | L28: 0 | N28: 0 | O28: 0 | P28: 0 | Q28: 0 | R28: 0 | S28: 0 | T28: 0 | U28: 0 | V28: 0 | W28: 0 | X28: 0
A29: ='Org structure'!E25 -> 04.3 - Expenditure Management | C29: 0 | D29: 0 | E29: 0 | F29: 0 | G29: 0 | H29: 0 | I29: 0 | J29: 0 | K29: 0 | L29: 0 | N29: 0 | O29: 0 | P29: 0 | Q29: 0 | R29: 0 | S29: 0 | T29: 0 | U29: 0 | V29: 0 | W29: 0 | X29: 0
A30: ='Org structure'!E26 -> 04.4 - Revenue Management | C30: 0 | D30: 0 | E30: 0 | F30: 0 | G30: 0 | H30: 0 | I30: 0 | J30: 0 | K30: 0 | L30: 0 | N30: 0 | O30: 0 | P30: 0 | Q30: 0 | R30: 0 | S30: 0 | T30: 0 | U30: 0 | V30: 0 | W30: 0 | X30: 0
A31: ='Org structure'!E27 -> 04.5 - Asset Management | C31: 0 | D31: 0 | E31: 0 | F31: 0 | G31: 0 | H31: 0 | I31: 0 | J31: 0 | K31: 0 | L31: 0 | N31: 0 | O31: 0 | P31: 0 | Q31: 0 | R31: 0 | S31: 0 | T31: 0 | U31: 0 | V31: 0 | W31: 0 | X31: 0
A32: ='Org structure'!E28 -> 04.6 - Supply Chain Management | C32: 0 | D32: 0 | E32: 0 | F32: 0 | G32: 0 | H32: 0 | I32: 0 | J32: 0 | K32: 0 | L32: 0 | N32: 0 | O32: 0 | P32: 0 | Q32: 0 | R32: 0 | S32: 0 | T32: 0 | U32: 0 | V32: 0 | W32: 0 | X32: 0
A33: ='Org structure'!A6 -> Vote 05 - Community Services | C33: =SUM(C34:C43) -> 0 | D33: 0 | E33: 0 | F33: 0 | G33: 0 | H33: 0 | I33: 0 | J33: 0 | K33: 0 | L33: 0 | N33: =SUM(N34:N43) -> 0 | O33: 0 | P33: 0 | Q33: 0 | R33: 0 | S33: 0 | T33: 0 | U33: 0 | V33: 0 | W33: 0 | X33: 0
A34: ='Org structure'!E30 -> 05.1 - Executive Manager: Community Services | C34: 0 | D34: 0 | E34: 0 | F34: 0 | G34: 0 | H34: 0 | I34: 0 | J34: =Q34+V34 -> 0 | K34: =U34+W34 -> 0 | L34: =X34 -> 0 | N34: 0 | O34: 0 | P34: 0 | Q34: =SUM(N34:P34) -> 0 | R34: 0 | S34: 0 | T34: 0 | U34: =SUM(R34:T34) -> 0 | V34: 0 | W34: 0 | X34: 0
A35: ='Org structure'!E31 -> 05.2 - Waste Management Services | C35: 0 | D35: 0 | E35: 0 | F35: 0 | G35: 0 | H35: 0 | I35: 0 | J35: 0 | K35: 0 | L35: 0 | N35: 0 | O35: 0 | P35: 0 | Q35: 0 | R35: 0 | S35: 0 | T35: 0 | U35: 0 | V35: 0 | W35: 0 | X35: 0
A36: ='Org structure'!E32 -> 05.3 - Environmental Management Services | C36: 0 | D36: 0 | E36: 0 | F36: 0 | G36: 0 | H36: 0 | I36: 0 | J36: 0 | K36: 0 | L36: 0 | N36: 0 | O36: 0 | P36: 0 | Q36: 0 | R36: 0 | S36: 0 | T36: 0 | U36: 0 | V36: 0 | W36: 0 | X36: 0
A37: ='Org structure'!E33 -> 05.4 - Road Traffic & Law Enforce: Traffic Serv | C37: 0 | D37: 0 | E37: 0 | F37: 0 | G37: 0 | H37: 0 | I37: 0 | J37: 0 | K37: 0 | L37: 0 | N37: 0 | O37: 0 | P37: 0 | Q37: 0 | R37: 0 | S37: 0 | T37: 0 | U37: 0 | V37: 0 | W37: 0 | X37: 0
A38: ='Org structure'!E34 -> 05.5 - Road Traffic&Law Enforce: Licencing Serv | C38: 0 | D38: 0 | E38: 0 | F38: 0 | G38: 0 | H38: 0 | I38: 0 | J38: 0 | K38: 0 | L38: 0 | N38: 0 | O38: 0 | P38: 0 | Q38: 0 | R38: 0 | S38: 0 | T38: 0 | U38: 0 | V38: 0 | W38: 0 | X38: 0
A39: ='Org structure'!E35 -> 05.6 - Road Traffic&Law Enforce: Pound | C39: 0 | D39: 0 | E39: 0 | F39: 0 | G39: 0 | H39: 0 | I39: 0 | J39: 0 | K39: 0 | L39: 0 | N39: 0 | O39: 0 | P39: 0 | Q39: 0 | R39: 0 | S39: 0 | T39: 0 | U39: 0 | V39: 0 | W39: 0 | X39: 0
A40: ='Org structure'!E36 -> 05.7 - Institutional & Social Dev Management | C40: 0 | D40: 0 | E40: 0 | F40: 0 | G40: 0 | H40: 0 | I40: 0 | J40: 0 | K40: 0 | L40: 0 | N40: 0 | O40: 0 | P40: 0 | Q40: 0 | R40: 0 | S40: 0 | T40: 0 | U40: 0 | V40: 0 | W40: 0 | X40: 0
A41: ='Org structure'!E37 -> 05.8 - Libraries And Archives | C41: 0 | D41: 0 | E41: 0 | F41: 0 | G41: 0 | H41: 0 | I41: 0 | J41: 0 | K41: 0 | L41: 0 | N41: 0 | O41: 0 | P41: 0 | Q41: 0 | R41: 0 | S41: 0 | T41: 0 | U41: 0 | V41: 0 | W41: 0 | X41: 0
A42: ='Org structure'!E38 -> 05.9 - Community Halls And Facilities | C42: 0 | D42: 0 | E42: 0 | F42: 0 | G42: 0 | H42: 0 | I42: 0 | J42: 0 | K42: 0 | L42: 0 | N42: 0 | O42: 0 | P42: 0 | Q42: 0 | R42: 0 | S42: 0 | T42: 0 | U42: 0 | V42: 0 | W42: 0 | X42: 0
A43: ='Org structure'!E39 -> 05.10 - Disaster Management | C43: 0 | D43: 0 | E43: 0 | F43: 0 | G43: 0 | H43: 0 | I43: 0 | J43: 0 | K43: 0 | L43: 0 | N43: 0 | O43: 0 | P43: 0 | Q43: 0 | R43: 0 | S43: 0 | T43: 0 | U43: 0 | V43: 0 | W43: 0 | X43: 0
A44: ='Org structure'!A7 -> Vote 06 - Planning And Development | C44: =SUM(C45:C51) -> 0 | D44: 0 | E44: 0 | F44: 0 | G44: 0 | H44: 0 | I44: 0 | J44: 0 | K44: 0 | L44: 0 | N44: =SUM(N45:N51) -> 0 | O44: 0 | P44: 0 | Q44: 0 | R44: 0 | S44: 0 | T44: 0 | U44: 0 | V44: 0 | W44: 0 | X44: 0
A45: ='Org structure'!E41 -> 06.1 - Executive Manager:Planning & Development | C45: 0 | D45: 0 | E45: 0 | F45: 0 | G45: 0 | H45: 0 | I45: 0 | J45: =Q45+V45 -> 0 | K45: =U45+W45 -> 0 | L45: =X45 -> 0 | N45: 0 | O45: 0 | P45: 0 | Q45: =SUM(N45:P45) -> 0 | R45: 0 | S45: 0 | T45: 0 | U45: =SUM(R45:T45) -> 0 | V45: 0 | W45: 0 | X45: 0
A46: ='Org structure'!E42 -> 06.2 - Economic Development & Planning | C46: 0 | D46: 0 | E46: 0 | F46: 0 | G46: 0 | H46: 0 | I46: 0 | J46: 0 | K46: 0 | L46: 0 | N46: 0 | O46: 0 | P46: 0 | Q46: 0 | R46: 0 | S46: 0 | T46: 0 | U46: 0 | V46: 0 | W46: 0 | X46: 0
A47: ='Org structure'!E43 -> 06.3 - Development & Town Planning | C47: 0 | D47: 0 | E47: 0 | F47: 0 | G47: 0 | H47: 0 | I47: 0 | J47: 0 | K47: 0 | L47: 0 | N47: 0 | O47: 0 | P47: 0 | Q47: 0 | R47: 0 | S47: 0 | T47: 0 | U47: 0 | V47: 0 | W47: 0 | X47: 0
A48: ='Org structure'!E44 -> 06.4 - Property Management & Housing | C48: 0 | D48: 0 | E48: 0 | F48: 0 | G48: 0 | H48: 0 | I48: 0 | J48: 0 | K48: 0 | L48: 0 | N48: 0 | O48: 0 | P48: 0 | Q48: 0 | R48: 0 | S48: 0 | T48: 0 | U48: 0 | V48: 0 | W48: 0 | X48: 0
A49: ='Org structure'!E45 -> 06.5 - Integrated Development Planning | C49: 0 | D49: 0 | E49: 0 | F49: 0 | G49: 0 | H49: 0 | I49: 0 | J49: 0 | K49: 0 | L49: 0 | N49: 0 | O49: 0 | P49: 0 | Q49: 0 | R49: 0 | S49: 0 | T49: 0 | U49: 0 | V49: 0 | W49: 0 | X49: 0
A50: ='Org structure'!E46 -> 06.6 - Performance Management | C50: 0 | D50: 0 | E50: 0 | F50: 0 | G50: 0 | H50: 0 | I50: 0 | J50: 0 | K50: 0 | L50: 0 | N50: 0 | O50: 0 | P50: 0 | Q50: 0 | R50: 0 | S50: 0 | T50: 0 | U50: 0 | V50: 0 | W50: 0 | X50: 0
A51: ='Org structure'!E47 -> 06.7 - Local Economic Development | C51: 0 | D51: 0 | E51: 0 | F51: 0 | G51: 0 | H51: 0 | I51: 0 | J51: 0 | K51: 0 | L51: 0 | N51: 0 | O51: 0 | P51: 0 | Q51: 0 | R51: 0 | S51: 0 | T51: 0 | U51: 0 | V51: 0 | W51: 0 | X51: 0
A52: ='Org structure'!A8 -> Vote 07 - Infrastructure Development | C52: =SUM(C53:C62) -> 0 | D52: 0 | E52: 0 | F52: 0 | G52: 0 | H52: 0 | I52: 0 | J52: 0 | K52: 0 | L52: 0 | N52: =SUM(N53:N62) -> 0 | O52: 0 | P52: 0 | Q52: 0 | R52: 0 | S52: 0 | T52: 0 | U52: 0 | V52: 0 | W52: 0 | X52: 0
A53: ='Org structure'!E49 -> 07.1 - Technical Services Administration | C53: 0 | D53: 0 | E53: 0 | F53: 0 | G53: 0 | H53: 0 | I53: 0 | J53: =Q53+V53 -> 0 | K53: =U53+W53 -> 0 | L53: =X53 -> 0 | N53: 0 | O53: 0 | P53: 0 | Q53: =SUM(N53:P53) -> 0 | R53: 0 | S53: 0 | T53: 0 | U53: =SUM(R53:T53) -> 0 | V53: 0 | W53: 0 | X53: 0
A54: ='Org structure'!E50 -> 07.2 - Roads | C54: 0 | D54: 0 | E54: 0 | F54: 0 | G54: 0 | H54: 0 | I54: 0 | J54: 0 | K54: 0 | L54: 0 | N54: 0 | O54: 0 | P54: 0 | Q54: 0 | R54: 0 | S54: 0 | T54: 0 | U54: 0 | V54: 0 | W54: 0 | X54: 0
A55: ='Org structure'!E51 -> 07.3 - Workshop | C55: 0 | D55: 0 | E55: 0 | F55: 0 | G55: 0 | H55: 0 | I55: 0 | J55: 0 | K55: 0 | L55: 0 | N55: 0 | O55: 0 | P55: 0 | Q55: 0 | R55: 0 | S55: 0 | T55: 0 | U55: 0 | V55: 0 | W55: 0 | X55: 0
A56: ='Org structure'!E52 -> 07.4 - Sewerage Network | C56: 0 | D56: 0 | E56: 0 | F56: 0 | G56: 0 | H56: 0 | I56: 0 | J56: 0 | K56: 0 | L56: 0 | N56: 0 | O56: 0 | P56: 0 | Q56: 0 | R56: 0 | S56: 0 | T56: 0 | U56: 0 | V56: 0 | W56: 0 | X56: 0
A57: ='Org structure'!E53 -> 07.5 - Sewerage Purification | C57: 0 | D57: 0 | E57: 0 | F57: 0 | G57: 0 | H57: 0 | I57: 0 | J57: 0 | K57: 0 | L57: 0 | N57: 0 | O57: 0 | P57: 0 | Q57: 0 | R57: 0 | S57: 0 | T57: 0 | U57: 0 | V57: 0 | W57: 0 | X57: 0
A58: ='Org structure'!E54 -> 07.6 - Irrigation | C58: 0 | D58: 0 | E58: 0 | F58: 0 | G58: 0 | H58: 0 | I58: 0 | J58: 0 | K58: 0 | L58: 0 | N58: 0 | O58: 0 | P58: 0 | Q58: 0 | R58: 0 | S58: 0 | T58: 0 | U58: 0 | V58: 0 | W58: 0 | X58: 0
A59: ='Org structure'!E55 -> 07.7 - Executive Manager: Infrastructure Dev | C59: 0 | D59: 0 | E59: 0 | F59: 0 | G59: 0 | H59: 0 | I59: 0 | J59: 0 | K59: 0 | L59: 0 | N59: 0 | O59: 0 | P59: 0 | Q59: 0 | R59: 0 | S59: 0 | T59: 0 | U59: 0 | V59: 0 | W59: 0 | X59: 0
A60: ='Org structure'!E56 -> 07.8 - Road Construction & Maintenance | C60: 0 | D60: 0 | E60: 0 | F60: 0 | G60: 0 | H60: 0 | I60: 0 | J60: 0 | K60: 0 | L60: 0 | N60: 0 | O60: 0 | P60: 0 | Q60: 0 | R60: 0 | S60: 0 | T60: 0 | U60: 0 | V60: 0 | W60: 0 | X60: 0
A61: ='Org structure'!E57 -> 07.9 - Electrical & Mechanical Works | C61: 0 | D61: 0 | E61: 0 | F61: 0 | G61: 0 | H61: 0 | I61: 0 | J61: 0 | K61: 0 | L61: 0 | N61: 0 | O61: 0 | P61: 0 | Q61: 0 | R61: 0 | S61: 0 | T61: 0 | U61: 0 | V61: 0 | W61: 0 | X61: 0
A62: ='Org structure'!E58 -> 07.10 - Project Management | C62: 0 | D62: 0 | E62: 0 | F62: 0 | G62: 0 | H62: 0 | I62: 0 | J62: 0 | K62: 0 | L62: 0 | N62: 0 | O62: 0 | P62: 0 | Q62: 0 | R62: 0 | S62: 0 | T62: 0 | U62: 0 | V62: 0 | W62: 0 | X62: 0
A63: ='Org structure'!A9 -> Vote 08 - | C63: 0 | D63: 0 | E63: 0 | F63: 0 | G63: 0 | H63: 0 | I63: 0 | J63: 0 | K63: 0 | L63: 0 | N63: 0 | O63: 0 | P63: 0 | Q63: 0 | R63: 0 | S63: 0 | T63: 0 | U63: 0 | V63: 0 | W63: 0
A64: ='Org structure'!A10 -> Vote 09 - | C64: 0 | D64: 0 | E64: 0 | F64: 0 | G64: 0 | H64: 0 | I64: 0 | J64: 0 | K64: 0 | L64: 0 | N64: 0 | O64: 0 | P64: 0 | Q64: 0 | R64: 0 | S64: 0 | T64: 0 | U64: 0 | V64: 0 | W64: 0
A65: ='Org structure'!A11 -> Vote 10 - | C65: 0 | D65: 0 | E65: 0 | F65: 0 | G65: 0 | H65: 0 | I65: 0 | J65: 0 | K65: 0 | L65: 0 | N65: 0 | O65: 0 | P65: 0 | Q65: 0 | R65: 0 | S65: 0 | T65: 0 | U65: 0 | V65: 0 | W65: 0
A66: ='Org structure'!A12 -> Vote 11 - | C66: 0 | D66: 0 | E66: 0 | F66: 0 | G66: 0 | H66: 0 | I66: 0 | J66: 0 | K66: 0 | L66: 0 | N66: 0 | O66: 0 | P66: 0 | Q66: 0 | R66: 0 | S66: 0 | T66: 0 | U66: 0 | V66: 0 | W66: 0
A67: ='Org structure'!A13 -> Vote 12 - | C67: 0 | D67: 0 | E67: 0 | F67: 0 | G67: 0 | H67: 0 | I67: 0 | J67: 0 | K67: 0 | L67: 0 | N67: 0 | O67: 0 | P67: 0 | Q67: 0 | R67: 0 | S67: 0 | T67: 0 | U67: 0 | V67: 0 | W67: 0
A68: ='Org structure'!A14 -> Vote 13 - | C68: 0 | D68: 0 | E68: 0 | F68: 0 | G68: 0 | H68: 0 | I68: 0 | J68: 0 | K68: 0 | L68: 0 | N68: 0 | O68: 0 | P68: 0 | Q68: 0 | R68: 0 | S68: 0 | T68: 0 | U68: 0 | V68: 0 | W68: 0
A69: ='Org structure'!A15 -> Vote 14 - | C69: 0 | D69: 0 | E69: 0 | F69: 0 | G69: 0 | H69: 0 | I69: 0 | J69: 0 | K69: 0 | L69: 0 | N69: 0 | O69: 0 | P69: 0 | Q69: 0 | R69: 0 | S69: 0 | T69: 0 | U69: 0 | V69: 0 | W69: 0
A70: ='Org structure'!A16 -> Vote 15 - Other | C70: 0 | D70: 0 | E70: 0 | F70: 0 | G70: 0 | H70: 0 | I70: 0 | J70: 0 | K70: 0 | L70: 0 | N70: 0 | O70: 0 | P70: 0 | Q70: 0 | R70: 0 | S70: 0 | T70: 0 | U70: 0 | V70: 0 | W70: 0
A71: Capital multi-year expenditure sub-total
A73: Capital expenditure - Municipal Vote
A74: Single-year expenditure appropriation | B74: 2
A75: ='Org structure'!A2 -> Vote 01 - Executive And Council | C75: =SUM(C76:C79) -> 0 | D75: 24205 | E75: 0 | F75: 0 | G75: 0 | H75: 0 | I75: 0 | J75: 0 | K75: 0 | L75: 0
A76: ='Org structure'!E3 -> 01.1 - Mayor & Councillors | C76: 0 | D76: 0 | E76: 0 | F76: 0 | G76: 0 | H76: 0 | I76: 0 | J76: 0 | K76: 0 | L76: 0
A77: ='Org structure'!E4 -> 01.2 - Mayor & Council Support | C77: 0 | D77: 24205 | E77: 0 | F77: 0 | G77: 0 | H77: 0 | I77: 0 | J77: 0 | K77: 0 | L77: 0
A78: ='Org structure'!E5 -> 01.3 - Board General Mayor | C78: 0 | D78: 0 | E78: 0 | F78: 0 | G78: 0 | H78: 0 | I78: 0 | J78: 0 | K78: 0 | L78: 0
A79: ='Org structure'!E6 -> 01.4 - Board General Speaker | C79: 0 | D79: 0 | E79: 0 | F79: 0 | G79: 0 | H79: 0 | I79: 0 | J79: 0 | K79: 0 | L79: 0
A80: ='Org structure'!A3 -> Vote 02 - Municipal Manager | C80: =SUM(C81:C86) -> 0 | D80: 0 | E80: 0 | F80: 0 | G80: 0 | H80: 0 | I80: 0 | J80: 100000 | K80: 0 | L80: 0
A81: ='Org structure'!E8 -> 02.1 - Municipal Manager Administration | C81: 0 | D81: 0 | E81: 0 | F81: 0 | G81: 0 | H81: 0 | I81: 0 | J81: 0 | K81: 0 | L81: 0
A82: ='Org structure'!E9 -> 02.2 - Municipal Manager | C82: 0 | D82: 0 | E82: 0 | F82: 0 | G82: 0 | H82: 0 | I82: 0 | J82: 0 | K82: 0 | L82: 0
A83: ='Org structure'!E10 -> 02.3 - Municipal Manager Support | C83: 0 | D83: 0 | E83: 0 | F83: 0 | G83: 0 | H83: 0 | I83: 0 | J83: 0 | K83: 0 | L83: 0
A84: ='Org structure'!E11 -> 02.4 - Internal Audit | C84: 0 | D84: 0 | E84: 0 | F84: 0 | G84: 0 | H84: 0 | I84: 0 | J84: 0 | K84: 0 | L84: 0
A85: ='Org structure'!E12 -> 02.5 - Communications | C85: 0 | D85: 0 | E85: 0 | F85: 0 | G85: 0 | H85: 0 | I85: 0 | J85: 100000 | K85: 0 | L85: 0
A86: ='Org structure'!E13 -> 02.6 - Risk Management | C86: 0 | D86: 0 | E86: 0 | F86: 0 | G86: 0 | H86: 0 | I86: 0 | J86: 0 | K86: 0 | L86: 0
A87: ='Org structure'!A4 -> Vote 03 - Corporate Services | C87: =SUM(C88:C94) -> 0 | D87: 0 | E87: 640217.56 | F87: 17820000 | G87: 17820000 | H87: 17820000 | I87: 2140939.41 | J87: 18405000 | K87: 6998250 | L87: 733163
A88: ='Org structure'!E15 -> 03.1 - Executive Manager: Corporate Services | C88: 0 | D88: 0 | E88: 0 | F88: 0 | G88: 0 | H88: 0 | I88: 0 | J88: 0 | K88: 0 | L88: 0
A89: ='Org structure'!E16 -> 03.2 - Human Resource Management & Development | C89: 0 | D89: 0 | E89: 0 | F89: 0 | G89: 0 | H89: 0 | I89: 0 | J89: 0 | K89: 0 | L89: 0
A90: ='Org structure'!E17 -> 03.3 - Information Technology | C90: 0 | D90: 0 | E90: 450217.56 | F90: 6870000 | G90: 6870000 | H90: 6870000 | I90: 2074736.93 | J90: 5500000 | K90: 4000000 | L90: 0
A91: ='Org structure'!E18 -> 03.4 - Legal Services | C91: 0 | D91: 0 | E91: 0 | F91: 0 | G91: 0 | H91: 0 | I91: 0 | J91: 0 | K91: 0 | L91: 0
A92: ='Org structure'!E19 -> 03.5 - Gen Adm_Sec_Fleet: General Administrat | C92: 0 | D92: 0 | E92: 190000 | F92: 10650000 | G92: 10650000 | H92: 10650000 | I92: 66202.48 | J92: 12590000 | K92: 2667500 | L92: 385875
A93: ='Org structure'!E20 -> 03.6 - Gen Adm_Sec_Fleet: Security Services | C93: 0 | D93: 0 | E93: 0 | F93: 300000 | G93: 300000 | H93: 300000 | I93: 0 | J93: 315000 | K93: 330750 | L93: 347288
A94: ='Org structure'!E21 -> 03.7 - Gen Adm_Sec_Fleet: Fleet Management | C94: 0 | D94: 0 | E94: 0 | F94: 0 | G94: 0 | H94: 0 | I94: 0 | J94: 0 | K94: 0 | L94: 0
A95: ='Org structure'!A5 -> Vote 04 - Budget And Treasury | C95: =SUM(C96:C101) -> 0 | D95: -565.22 | E95: 0 | F95: 0 | G95: 0 | H95: 0 | I95: 0 | J95: 0 | K95: 0 | L95: 0
A96: ='Org structure'!E23 -> 04.1 - Chief Financial Officer | C96: 0 | D96: 0 | E96: 0 | F96: 0 | G96: 0 | H96: 0 | I96: 0 | J96: 0 | K96: 0 | L96: 0
A97: ='Org structure'!E24 -> 04.2 - Budget Planning & Management | C97: 0 | D97: 0 | E97: 0 | F97: 0 | G97: 0 | H97: 0 | I97: 0 | J97: 0 | K97: 0 | L97: 0
A98: ='Org structure'!E25 -> 04.3 - Expenditure Management | C98: 0 | D98: 0 | E98: 0 | F98: 0 | G98: 0 | H98: 0 | I98: 0 | J98: 0 | K98: 0 | L98: 0
A99: ='Org structure'!E26 -> 04.4 - Revenue Management | C99: 0 | D99: -565.22 | E99: 0 | F99: 0 | G99: 0 | H99: 0 | I99: 0 | J99: 0 | K99: 0 | L99: 0
A100: ='Org structure'!E27 -> 04.5 - Asset Management | C100: 0 | D100: 0 | E100: 0 | F100: 0 | G100: 0 | H100: 0 | I100: 0 | J100: 0 | K100: 0 | L100: 0
A101: ='Org structure'!E28 -> 04.6 - Supply Chain Management | C101: 0 | D101: 0 | E101: 0 | F101: 0 | G101: 0 | H101: 0 | I101: 0 | J101: 0 | K101: 0 | L101: 0
A102: ='Org structure'!A6 -> Vote 05 - Community Services | C102: =SUM(C103:C112) -> 0 | D102: 0 | E102: 5737725.36 | F102: 19137000 | G102: 23312000 | H102: 23312000 | I102: 7301628.26 | J102: 23200000 | K102: 30757000 | L102: 25374850
A103: ='Org structure'!E30 -> 05.1 - Executive Manager: Community Services | C103: 0 | D103: 0 | E103: 0 | F103: 0 | G103: 0 | H103: 0 | I103: 0 | J103: 0 | K103: 0 | L103: 0
A104: ='Org structure'!E31 -> 05.2 - Waste Management Services | C104: 0 | D104: 0 | E104: 0 | F104: 0 | G104: 0 | H104: 0 | I104: 0 | J104: 2140000 | K104: 357000 | L104: 20374850
A105: ='Org structure'!E32 -> 05.3 - Environmental Management Services | C105: 0 | D105: 0 | E105: 0 | F105: 350000 | G105: 350000 | H105: 350000 | I105: 0 | J105: 700000 | K105: 0 | L105: 0
A106: ='Org structure'!E33 -> 05.4 - Road Traffic & Law Enforce: Traffic Serv | C106: 0 | D106: 0 | E106: 197500 | F106: 150000 | G106: 200000 | H106: 200000 | I106: 0 | J106: 160000 | K106: 0 | L106: 0
A107: ='Org structure'!E34 -> 05.5 - Road Traffic&Law Enforce: Licencing Serv | C107: 0 | D107: 0 | E107: 0 | F107: 12000000 | G107: 12000000 | H107: 12000000 | I107: 0 | J107: 12000000 | K107: 0 | L107: 0
A108: ='Org structure'!E35 -> 05.6 - Road Traffic&Law Enforce: Pound | C108: 0 | D108: 0 | E108: 0 | F108: 0 | G108: 0 | H108: 0 | I108: 0 | J108: 0 | K108: 0 | L108: 0
A109: ='Org structure'!E36 -> 05.7 - Institutional & Social Dev Management | C109: 0 | D109: 0 | E109: 0 | F109: 0 | G109: 0 | H109: 0 | I109: 0 | J109: 0 | K109: 0 | L109: 0
A110: ='Org structure'!E37 -> 05.8 - Libraries And Archives | C110: 0 | D110: 0 | E110: 0 | F110: 0 | G110: 0 | H110: 0 | I110: 0 | J110: 0 | K110: 0 | L110: 0
A111: ='Org structure'!E38 -> 05.9 - Community Halls And Facilities | C111: 0 | D111: 0 | E111: 5540225.36 | F111: 6637000 | G111: 5137000 | H111: 5137000 | I111: 3481461.48 | J111: 8200000 | K111: 30400000 | L111: 5000000
A112: ='Org structure'!E39 -> 05.10 - Disaster Management | C112: 0 | D112: 0 | E112: 0 | F112: 0 | G112: 5625000 | H112: 5625000 | I112: 3820166.78 | J112: 0 | K112: 0 | L112: 0
A113: ='Org structure'!A7 -> Vote 06 - Planning And Development | C113: =SUM(C114:C120) -> 0 | D113: 0 | E113: 394025 | F113: 8000000 | G113: 7560000 | H113: 7560000 | I113: 5821592.79 | J113: 3500000 | K113: 55396000 | L113: 62831172
A114: ='Org structure'!E41 -> 06.1 - Executive Manager:Planning & Development | C114: 0 | D114: 0 | E114: 0 | F114: 0 | G114: 0 | H114: 0 | I114: 0 | J114: 0 | K114: 0 | L114: 0
A115: ='Org structure'!E42 -> 06.2 - Economic Development & Planning | C115: 0 | D115: 0 | E115: 0 | F115: 0 | G115: 0 | H115: 0 | I115: 0 | J115: 2000000 | K115: 0 | L115: 0
A116: ='Org structure'!E43 -> 06.3 - Development & Town Planning | C116: 0 | D116: 0 | E116: 394025 | F116: 8000000 | G116: 7560000 | H116: 7560000 | I116: 5821592.79 | J116: 1500000 | K116: 55396000 | L116: 62831172
A117: ='Org structure'!E44 -> 06.4 - Property Management & Housing | C117: 0 | D117: 0 | E117: 0 | F117: 0 | G117: 0 | H117: 0 | I117: 0 | J117: 0 | K117: 0 | L117: 0
A118: ='Org structure'!E45 -> 06.5 - Integrated Development Planning | C118: 0 | D118: 0 | E118: 0 | F118: 0 | G118: 0 | H118: 0 | I118: 0 | J118: 0 | K118: 0 | L118: 0
A119: ='Org structure'!E46 -> 06.6 - Performance Management | C119: 0 | D119: 0 | E119: 0 | F119: 0 | G119: 0 | H119: 0 | I119: 0 | J119: 0 | K119: 0 | L119: 0
A120: ='Org structure'!E47 -> 06.7 - Local Economic Development | C120: 0 | D120: 0 | E120: 0 | F120: 0 | G120: 0 | H120: 0 | I120: 0 | J120: 0 | K120: 0 | L120: 0
A121: ='Org structure'!A8 -> Vote 07 - Infrastructure Development | C121: =SUM(C122:C131) -> 0 | D121: 13743928.04 | E121: 38699068.84 | F121: 100705750 | G121: 107005750 | H121: 107005750 | I121: 36176158.03 | J121: 146125136 | K121: 126857500 | L121: 128863750
A122: ='Org structure'!E49 -> 07.1 - Technical Services Administration | C122: 0 | D122: 0 | E122: 0 | F122: 0 | G122: 0 | H122: 0 | I122: 0 | J122: 0 | K122: 0 | L122: 0
A123: ='Org structure'!E50 -> 07.2 - Roads | C123: 0 | D123: 0 | E123: 0 | F123: 0 | G123: 0 | H123: 0 | I123: 0 | J123: 0 | K123: 0 | L123: 0
A124: ='Org structure'!E51 -> 07.3 - Workshop | C124: 0 | D124: 0 | E124: 0 | F124: 0 | G124: 0 | H124: 0 | I124: 0 | J124: 0 | K124: 0 | L124: 0
A125: ='Org structure'!E52 -> 07.4 - Sewerage Network | C125: 0 | D125: 0 | E125: 0 | F125: 0 | G125: 0 | H125: 0 | I125: 0 | J125: 0 | K125: 0 | L125: 0
A126: ='Org structure'!E53 -> 07.5 - Sewerage Purification | C126: 0 | D126: 0 | E126: 0 | F126: 0 | G126: 0 | H126: 0 | I126: 0 | J126: 0 | K126: 0 | L126: 0
A127: ='Org structure'!E54 -> 07.6 - Irrigation | C127: 0 | D127: 0 | E127: 0 | F127: 0 | G127: 0 | H127: 0 | I127: 0 | J127: 0 | K127: 0 | L127: 0
A128: ='Org structure'!E55 -> 07.7 - Executive Manager: Infrastructure Dev | C128: 0 | D128: 0 | E128: 0 | F128: 0 | G128: 0 | H128: 0 | I128: 0 | J128: 0 | K128: 0 | L128: 0
A129: ='Org structure'!E56 -> 07.8 - Road Construction & Maintenance | C129: 0 | D129: 4896203.06 | E129: 4425532.65 | F129: 41225000 | G129: 42725000 | H129: 42725000 | I129: 3476138.17 | J129: 81578535 | K129: 60734500 | L129: 65000000
A130: ='Org structure'!E57 -> 07.9 - Electrical & Mechanical Works | C130: 0 | D130: 111127.61 | E130: 2741860 | F130: 5250000 | G130: 5250000 | H130: 5250000 | I130: 0 | J130: 6000000 | K130: 5000000 | L130: 0
A131: ='Org structure'!E58 -> 07.10 - Project Management | C131: 0 | D131: 8736597.37 | E131: 31531676.19 | F131: 54230750 | G131: 59030750 | H131: 59030750 | I131: 32700019.86 | J131: 58546601 | K131: 61123000 | L131: 63863750
A132: ='Org structure'!A9 -> Vote 08 - | C132: 0 | D132: 0 | E132: 0 | F132: 0 | G132: 0 | H132: 0 | I132: 0 | J132: 0 | K132: 0 | L132: 0
A133: ='Org structure'!A10 -> Vote 09 - | C133: 0 | D133: 0 | E133: 0 | F133: 0 | G133: 0 | H133: 0 | I133: 0 | J133: 0 | K133: 0 | L133: 0
A134: ='Org structure'!A11 -> Vote 10 - | C134: 0 | D134: 0 | E134: 0 | F134: 0 | G134: 0 | H134: 0 | I134: 0 | J134: 0 | K134: 0 | L134: 0
A135: ='Org structure'!A12 -> Vote 11 - | C135: 0 | D135: 0 | E135: 0 | F135: 0 | G135: 0 | H135: 0 | I135: 0 | J135: 0 | K135: 0 | L135: 0
A136: ='Org structure'!A13 -> Vote 12 - | C136: 0 | D136: 0 | E136: 0 | F136: 0 | G136: 0 | H136: 0 | I136: 0 | J136: 0 | K136: 0 | L136: 0
A137: ='Org structure'!A14 -> Vote 13 - | C137: 0 | D137: 0 | E137: 0 | F137: 0 | G137: 0 | H137: 0 | I137: 0 | J137: 0 | K137: 0 | L137: 0
A138: ='Org structure'!A15 -> Vote 14 - | C138: 0 | D138: 0 | E138: 0 | F138: 0 | G138: 0 | H138: 0 | I138: 0 | J138: 0 | K138: 0 | L138: 0
A139: ='Org structure'!A16 -> Vote 15 - Other | C139: 0 | D139: 0 | E139: 0 | F139: 0 | G139: 0 | H139: 0 | I139: 0 | J139: 0 | K139: 0 | L139: 0
A140: Capital single-year expenditure sub-total
A141: Total Capital Expenditure | C141: =C71+C140 -> 0 | D141: 0 | E141: 0 | F141: 0 | G141: 0 | H141: 0 | I141: 0 | J141: 0 | K141: 0 | L141: 0

Sheet A6-FinPos
A1: =muni&" - "&Approve6 -> LIM355 Lepelle-Nkumpi - Table A6 Budgeted Financial Position
A2: =desc -> Description | B2: =head27 -> Ref | C2: =head1b -> 2018/19 | D2: =head1A -> 2019/20 | E2: =Head1 -> 2020/21 | F2: =Head2 -> Current Year 2021/22 | J2: =Head3 -> 2022/23 Medium Term Revenue & Expenditure Framework
A3: R thousand | C3: =Head5 -> Audited Outcome | D3: =Head5 -> Audited Outcome | E3: =Head5 -> Audited Outcome | F3: =Head6 -> Original Budget | G3: =Head7 -> Adjusted Budget | H3: =Head8 -> Full Year Forecast | I3: =Head5b -> Pre-audit outcome | J3: =Head9 -> Budget Year 2022/23 | K3: =Head10 -> Budget Year +1 2023/24 | L3: =Head11 -> Budget Year +2 2024/25
A4: ASSETS
A5: Current assets
A6: Cash | C6: 0 | D6: -10364174.71 | E6: -454635614.8 | F6: -525787132 | G6: 281510259 | H6: 281510259 | I6: -4836890.69 | J6: 30475257 | K6: 31816169 | L6: 33247898
A7: Call investment deposits | B7: 1 | C7: 0 | D7: 86700994.8 | E7: 248468097.1 | F7: 32911902 | G7: 32911902 | H7: 32911902 | I7: 418199798.2 | J7: 326101582 | K7: 340450051 | L7: 355770302
A8: Consumer debtors | B8: 1 | C8: ='SA3'!C14 -> 0 | D8: ='SA3'!D14 -> 26678713.58 | E8: ='SA3'!E14 -> 123348232 | F8: ='SA3'!F14 -> 101534827 | G8: ='SA3'!G14 -> 147042292 | H8: ='SA3'!H14 -> 147042292 | I8: ='SA3'!I14 -> 107966206.7 | J8: ='SA3'!J14 -> 170793073 | K8: ='SA3'!K14 -> 178307965 | L8: ='SA3'!L14 -> 186331825
A9: Other debtors | C9: 0 | D9: 1249070.41 | E9: 19004542.3 | F9: 9061523 | G9: 12225135 | H9: 12225135 | I9: 50676261.65 | J9: 47462690 | K9: 49551048 | L9: 51780846
A10: Current portion of long-term receivables
A11: Inventory | B11: 2 | C11: ='SA3'!C115 -> 0 | D11: ='SA3'!D115 -> 369505 | E11: ='SA3'!E115 -> -3316446.51 | F11: ='SA3'!F115 -> 9652724.49 | G11: ='SA3'!G115 -> 89406427.49 | H11: ='SA3'!H115 -> 89406427.49 | I11: ='SA3'!I115 -> -3400572.69 | J11: ='SA3'!J115 -> 82424944.49 | K11: ='SA3'!K115 -> 77574529.49 | L11: ='SA3'!L115 -> 72505847.49
A12: Total current assets | C12: =SUM(C6:C11) -> 0 | D12: 104634109.1 | E12: -67131189.99 | F12: -372626155.5 | G12: 563096015.5 | H12: 563096015.5 | I12: 568604803.1 | J12: 657257546.5 | K12: 677699762.5 | L12: 699636718.5
A14: Non current assets
A15: Long-term receivables | C15: 0 | D15: 0 | E15: 0 | F15: 0 | G15: 0 | H15: 0 | I15: 0 | J15: 0 | K15: 0 | L15: 0
A16: Investments | C16: 0 | D16: 0 | E16: 150000000 | F16: 0 | G16: 0 | H16: 0 | I16: 150000000 | J16: 0 | K16: 0 | L16: 0
A17: Investment property | C17: 0 | D17: 0 | E17: 102125000 | F17: 372262000 | G17: 109685000 | H17: 109685000 | I17: 107946592.8 | J17: 103625000 | K17: 162014500 | L17: 174247505
A18: Investment in Associate
A19: Property, plant and equipment | B19: 3 | C19: ='SA3'!C121 -> 0 | D19: ='SA3'!D121 -> 13767567.82 | E19: ='SA3'!E121 -> 713354575.8 | F19: ='SA3'!F121 -> 813530306 | G19: ='SA3'!G121 -> 724179576 | H19: ='SA3'!H121 -> 724179576 | I19: ='SA3'!I121 -> 733295928.1 | J19: ='SA3'!J121 -> 871699115 | K19: ='SA3'!K121 -> 877637965 | L19: ='SA3'!L121 -> 902695613
A21: Biological
A22: Intangible | C22: 0 | D22: 0 | E22: 154753.87 | F22: 4854754 | G22: -145246 | H22: -145246 | I22: 1402371.43 | J22: 3654754 | K22: 61063584 | L22: 7583480
A23: Other non-current assets | C23: 0 | D23: 0 | E23: 183684.33 | F23: 183684 | G23: 183684 | H23: 183684 | I23: 183684.33 | J23: 183684 | K23: 191766 | L23: 200395
A24: Total non current assets | C24: =SUM(C15:C19)+SUM(C21:C23) -> 0 | D24: =SUM(D15:D19)+SUM(D21:D23) -> 13767567.82 | E24: 965818014 | F24: 1190830744 | G24: 833903014 | H24: 833903014 | I24: 992828576.6 | J24: 979162553 | K24: 1100907815 | L24: 1084726993
A25: TOTAL ASSETS | C25: =C12+C24 -> 0 | D25: =D12+D24 -> 118401676.9 | E25: =E12+E24 -> 898686824 | F25: =F12+F24 -> 818204588.5 | G25: 1396999029 | H25: 1396999029 | I25: 1561433380 | J25: 1636420099 | K25: 1778607577 | L25: 1784363711
A27: LIABILITIES
A28: Current liabilities
A29: Bank overdraft | B29: 1
A30: Borrowing | B30: 4 | C30: ='SA3'!C127 -> 0 | D30: ='SA3'!D127 -> 0 | E30: ='SA3'!E127 -> -238137.84 | F30: ='SA3'!F127 -> 238138 | G30: ='SA3'!G127 -> 238138 | H30: ='SA3'!H127 -> 238138 | I30: ='SA3'!I127 -> -238137.84 | J30: ='SA3'!J127 -> -238138 | K30: ='SA3'!K127 -> -248616 | L30: ='SA3'!L127 -> -259804
A31: Consumer deposits | C31: 0 | D31: -5000 | E31: 2152077.13 | F31: 2090252 | G31: 2018061 | H31: 2018061 | I31: 2196177.13 | J31: 2210477 | K31: 2307738 | L31: 2411586
A32: Trade and other payables | B32: 4 | C32: ='SA3'!C134 -> 0 | D32: ='SA3'!D134 -> 18722977.87 | E32: ='SA3'!E134 -> 324249812.5 | F32: ='SA3'!F134 -> 133337048 | G32: ='SA3'!G134 -> 113028987 | H32: ='SA3'!H134 -> 113028987 | I32: ='SA3'!I134 -> 269800681.8 | J32: ='SA3'!J134 -> -255031321 | K32: ='SA3'!K134 -> -253609117 | L32: ='SA3'!L134 -> -605135239
A33: Provisions | C33: 0 | D33: 0 | E33: 21982833.92 | F33: 6977389 | G33: 511013 | H33: 511013 | I33: 21769853.68 | J33: 21698860 | K33: 22653609 | L33: 23673022
A34: Total current liabilities | C34: =SUM(C29:C33) -> 0 | D34: 18717977.87 | E34: 348146585.8 | F34: 142642827 | G34: 115796199 | H34: 115796199 | I34: 293528574.8 | J34: -231360122 | K34: -228896386 | L34: -579310435
A36: Non current liabilities
A37: Borrowing | C37: ='SA3'!C139 -> 0 | D37: ='SA3'!D139 -> 0 | E37: ='SA3'!E139 -> 238138.31 | F37: ='SA3'!F139 -> 0 | G37: ='SA3'!G139 -> 0 | H37: ='SA3'!H139 -> 0 | I37: ='SA3'!I139 -> 238138.31 | J37: ='SA3'!J139 -> 238138 | K37: ='SA3'!K139 -> 248616 | L37: ='SA3'!L139 -> 259804
A38: Provisions | C38: ='SA3'!C146 -> 0 | D38: ='SA3'!D146 -> 0 | E38: ='SA3'!E146 -> 0 | F38: ='SA3'!F146 -> 528077 | G38: ='SA3'!G146 -> 6676560 | H38: ='SA3'!H146 -> 6676560 | I38: ='SA3'!I146 -> 0 | J38: ='SA3'!J146 -> 0 | K38: ='SA3'!K146 -> 0 | L38: ='SA3'!L146 -> 0
A39: Total non current liabilities | C39: =SUM(C37:C38) -> 0 | D39: =SUM(D37:D38) -> 0 | E39: =SUM(E37:E38) -> 238138.31 | F39: =SUM(F37:F38) -> 528077 | G39: 6676560 | H39: 6676560 | I39: 238138.31 | J39: 238138 | K39: =SUM(K37:K38) -> 248616 | L39: 259804
A40: TOTAL LIABILITIES | C40: =C34+C39 -> 0 | D40: =D34+D39 -> 18717977.87 | E40: =E34+E39 -> 348384724.1 | F40: =F34+F39 -> 143170904 | G40: 122472759 | H40: 122472759 | I40: 293766713.1 | J40: -231121984 | K40: =K34+K39 -> -228647770 | L40: -579050631
A42: NET ASSETS | B42: 5 | C42: =C25-C40 -> 0 | D42: 99683699.03 | E42: 550302100 | F42: 675033684.5 | G42: 1274526270 | H42: 1274526270 | I42: 1267666667 | J42: 1867542083 | K42: 2007255347 | L42: 2363414342
A44: COMMUNITY WEALTH/EQUITY
A45: Accumulated Surplus/(Deficit) | C45: ='SA3'!C158 -> 0 | D45: ='SA3'!D158 -> 100898197 | E45: ='SA3'!E158 -> 1227901675 | F45: ='SA3'!F158 -> 1877776670 | G45: ='SA3'!G158 -> 1941900763 | H45: ='SA3'!H158 -> 1941900763 | I45: ='SA3'!I158 -> 1383227505 | J45: ='SA3'!J158 -> 1886405200 | K45: ='SA3'!K158 -> 2039946587 | L45: ='SA3'!L158 -> 2406136226
A46: Reserves | B46: 4 | C46: ='SA3'!C165 -> 0 | D46: ='SA3'!D165 -> 0 | E46: ='SA3'!E165 -> 0 | F46: ='SA3'!F165 -> 12781451 | G46: ='SA3'!G165 -> 12781451 | H46: ='SA3'!H165 -> 12781451 | I46: ='SA3'!I165 -> 0 | J46: ='SA3'!J165 -> 0 | K46: ='SA3'!K165 -> 0 | L46: ='SA3'!L165 -> 0
A48: TOTAL COMMUNITY WEALTH/EQUITY | B48: 5 | C48: =SUM(C45:C46) -> 0 | D48: =SUM(D45:D46) -> 100898197 | E48: 1227901675 | F48: 1890558121 | G48: 1954682214 | H48: 1954682214 | I48: 1383227505 | J48: 1886405200 | K48: 2039946587 | L48: 2406136226
A49: =head27a -> References
A50: 1. Detail to be provided in Table SA3
A51: 2. Include completed low cost housing to be transferred to beneficiaries within 12 months
A52: 3. Include 'Construction-work-in-progress' (disclosed separately in annual financial statements)
A53: 4. Detail to be provided in Table SA3. Includes reserves to be funded by statute.
A54: 5. Net assets must balance with Total Community Wealth/Equity
A55: check balance | C55: =IF((C42-C48)=0,0,"Unbalanced") -> 0 | D55: =IF((D42-D48)=0,0,"Unbalanced") -> Unbalanced | E55: Unbalanced | F55: Unbalanced | G55: Unbalanced | H55: Unbalanced | I55: Unbalanced | J55: Unbalanced | K55: Unbalanced | L55: Unbalanced

Sheet A7-CFlow
A1: =muni&" - "&Approve7 -> LIM355 Lepelle-Nkumpi - Table A7 Budgeted Cash Flows
A2: =desc -> Description | B2: =head27 -> Ref | C2: =head1b -> 2018/19 | D2: =head1A -> 2019/20 | E2: =Head1 -> 2020/21 | F2: =Head2 -> Current Year 2021/22 | J2: =Head3 -> 2022/23 Medium Term Revenue & Expenditure Framework
A3: R thousand | C3: =Head5 -> Audited Outcome | D3: =Head5 -> Audited Outcome | E3: =Head5 -> Audited Outcome | F3: =Head6 -> Original Budget | G3: =Head7 -> Adjusted Budget | H3: =Head8 -> Full Year Forecast | I3: =Head5b -> Pre-audit outcome | J3: =Head9 -> Budget Year 2022/23 | K3: =Head10 -> Budget Year +1 2023/24 | L3: =Head11 -> Budget Year +2 2024/25
A4: CASH FLOW FROM OPERATING ACTIVITIES
A5: Receipts
A6: Property rates | C6: 0 | D6: 0 | E6: 9581781.18 | F6: 0 | G6: -800714 | H6: -800714 | I6: 12074592.85 | J6: ='SA30'!N5 -> 13095531 | K6: ='SA30'!O5 -> 13671734 | L6: ='SA30'!P5 -> 14286963
A7: Service charges | C7: 0 | D7: 0 | E7: 35961018.32 | F7: 0 | G7: -6587625 | H7: -6587625 | I7: 40330649.61 | J7: ='SA30'!N6+'SA30'!N7+'SA30'!N8+'SA30'!N9 -> 49376975 | K7: ='SA30'!O6+'SA30'!O7+'SA30'!O8+'SA30'!O9 -> 51549562 | L7: ='SA30'!P6+'SA30'!P7+'SA30'!P8+'SA30'!P9 -> 53869292
A8: Other revenue | C8: 0 | D8: 0 | E8: 548588528 | F8: 0 | G8: 306679695 | H8: 306679695 | I8: 268723091.9 | J8: ='SA30'!N11+'SA30'!N15+'SA30'!N16+'SA30'!N17+'SA30'!N19 -> 550665189 | K8: ='SA30'!O11+'SA30'!O15+'SA30'!O16+'SA30'!O17+'SA30'!O19 -> 571827604 | L8: ='SA30'!P11+'SA30'!P15+'SA30'!P16+'SA30'!P17+'SA30'!P19 -> 597571145
A9: Transfers and Subsidies - Operational | B9: 1 | C9: 0 | D9: 0 | E9: 0 | F9: 0 | G9: 300000 | H9: 300000 | I9: 7101000 | J9: ='SA30'!N18 -> 5683443 | K9: ='SA30'!O18 -> 9000000 | L9: ='SA30'!P18 -> 9404000
A10: Transfers and Subsidies - Capital | B10: 1 | C10: 0 | D10: 0 | E10: 0 | F10: 0 | G10: 10125000 | H10: 10125000 | I10: 61085000 | J10: ='SA30'!N23+'SA30'!N24 -> 61628000 | K10: ='SA30'!O23+'SA30'!O24 -> 64340000 | L10: ='SA30'!P23+'SA30'!P24 -> 67225000
A11: Interest | C11: 0 | D11: 0 | E11: 3061328.73 | F11: 0 | G11: 0 | H11: 0 | I11: 10934357.71 | J11: ='SA30'!N12+'SA30'!N13 -> 4188218 | K11: ='SA30'!O12+'SA30'!O13 -> 4372499 | L11: ='SA30'!P12+'SA30'!P13 -> 4569261
A12: Dividends | C12: 0 | D12: 0 | E12: 0 | F12: 0 | G12: 0 | H12: 0 | I12: 0 | J12: ='SA30'!N14 -> 0 | K12: ='SA30'!O14 -> 0 | L12: ='SA30'!P14 -> 0
A13: Payments
A14: Suppliers and employees | C14: 0 | D14: 0 | E14: -56435911.22 | F14: 0 | G14: 158885537 | H14: 158885537 | I14: -171717019.6 | J14: =-('SA30'!N35+'SA30'!N36+'SA30'!N38+'SA30'!N39+'SA30'!N40+'SA30'!N41+'SA30'!N44+'SA30'!N50) -> -520033377 | K14: =-('SA30'!O35+'SA30'!O36+'SA30'!O38+'SA30'!O39+'SA30'!O40+'SA30'!O41+'SA30'!O44+'SA30'!O50) -> -531809394 | L14: =-('SA30'!P35+'SA30'!P36+'SA30'!P38+'SA30'!P39+'SA30'!P40+'SA30'!P41+'SA30'!P44+'SA30'!P50) -> -560865740
A15: Finance charges | J15: =-('SA30'!N37) -> 0 | K15: =-('SA30'!O37) -> 0 | L15: =-('SA30'!P37) -> 0
A16: Transfers and Grants | B16: 1 | J16: =-('SA30'!N42+'SA30'!N43) -> 0 | K16: =-('SA30'!O42+'SA30'!O43) -> 0 | L16: =-('SA30'!P42+'SA30'!P43) -> 0
A17: NET CASH FROM/(USED) OPERATING ACTIVITIES | C17: =SUM(C6:C12)+SUM(C14:C16) -> 0 | D17: 0 | E17: 540756745 | F17: 0 | G17: 468601893 | H17: 468601893 | I17: 228531672.6 | J17: 164603979 | K17: 182952005 | L17: 186059921
A19: CASH FLOWS FROM INVESTING ACTIVITIES
A20: Receipts
A21: Proceeds on disposal of PPE | J21: ='SA30'!N25 -> 0 | K21: ='SA30'!O25 -> 0 | L21: ='SA30'!P25 -> 0
A23: Decrease (increase) in non-current receivables | C23: 0 | D23: 0 | E23: 0 | F23: 0 | G23: 0 | H23: 0 | I23: 0 | J23: ='SA30'!N30 -> 0 | K23: ='SA30'!O30 -> 0 | L23: ='SA30'!P30 -> 0
A24: Decrease (increase) in non-current investments | C24: 0 | D24: 0 | E24: 150000000 | F24: -150000000 | G24: 0 | H24: 0 | I24: 0 | J24: ='SA30'!N31 -> 0 | K24: ='SA30'!O31 -> 0 | L24: ='SA30'!P31 -> 0
A25: Payments
A26: Capital assets | C26: 0 | D26: 0 | E26: -36509003.32 | F26: 0 | G26: -10035000 | H26: -10035000 | I26: -40299834.38 | J26: =-('SA30'!N48) -> -191330136 | K26: =-('SA30'!O48) -> -220008750 | L26: =-('SA30'!P48) -> -217802935
A27: NET CASH FROM/(USED) INVESTING ACTIVITIES | C27: =+C21+C23+C24+C26 -> 0 | D27: =+D21+D23+D24+D26 -> 0 | E27: 113490996.7 | F27: -150000000 | G27: -10035000 | H27: -10035000 | I27: -40299834.38 | J27: -191330136 | K27: -220008750 | L27: -217802935
A29: CASH FLOWS FROM FINANCING ACTIVITIES
A30: Receipts
A31: Short term loans | J31: ='SA30'!N26 -> 0 | K31: ='SA30'!O26 -> 0 | L31: ='SA30'!P26 -> 0
A32: Borrowing long term/refinancing | J32: ='SA30'!N27 -> 0 | K32: ='SA30'!O27 -> 0 | L32: ='SA30'!P27 -> 0
A33: Increase (decrease) in consumer deposits | J33: ='SA30'!N28 -> 0 | K33: ='SA30'!O28 -> 0 | L33: ='SA30'!P28 -> 0
A34: Payments
A35: Repayment of borrowing | J35: =-('SA30'!N49) -> 0 | K35: =-('SA30'!O49) -> 0 | L35: =-('SA30'!P49) -> 0
A36: NET CASH FROM/(USED) FINANCING ACTIVITIES | C36: =SUM(C31:C33)+C35 -> 0 | D36: =SUM(D31:D33)+D35 -> 0 | E36: 0 | F36: 0 | G36: 0 | H36: 0 | I36: 0 | J36: 0 | K36: 0 | L36: 0
A38: NET INCREASE/ (DECREASE) IN CASH HELD | C38: =C17+C27+C36 -> 0 | D38: =D17+D27+D36 -> 0 | E38: 654247741.7 | F38: -150000000 | G38: 458566893 | H38: 458566893 | I38: 188231838.2 | J38: -26726157 | K38: -37056745 | L38: -31743014
A39: Cash/cash equivalents at the year begin: | B39: 2 | C39: 0 | D39: 160 | E39: 117955789.4 | F39: 318501426 | G39: 294989919 | H39: 294989919 | I39: 0 | J39: ='SA30'!N54 -> 20006477 | K39: =J40 -> -6719680 | L39: =K40 -> -43776425
A40: Cash/cash equivalents at the year end: | B40: 2 | C40: =C38+C39 -> 0 | D40: =D38+D39 -> 160 | E40: =E38+E39 -> 772203531.1 | F40: =F38+F39 -> 168501426 | G40: 753556812 | H40: 753556812 | I40: 188231838.2 | J40: -6719680 | K40: -43776425 | L40: -75519439
A41: =head27a -> References
A42: 1. Local/District municipalities to include transfers from/to District/Local Municipalities
A43: 2. Cash equivalents includes investments with maturities of 3 months or less
A44: 3. The MTREF is populated directly from SA30.
A45: Total receipts | C45: =SUM(C6:C12)+SUM(C21:C23) -> 0 | D45: 0 | E45: 597192656.2 | F45: 0 | G45: 309716356 | H45: 309716356 | I45: 400248692.1 | J45: 684637356 | K45: 714761399 | L45: 746925661
A46: Total payments | C46: =SUM(C14:C16)+C26 -> 0 | D46: =SUM(D14:D16)+D26 -> 0 | E46: -92944914.54 | F46: 0 | G46: 148850537 | H46: 148850537 | I46: -212016853.9 | J46: -711363513 | K46: -751818144 | L46: -778668675
C47: =C45+C46 -> 0 | D47: =D45+D46 -> 0 | E47: 504247741.7 | F47: 0 | G47: 458566893 | H47: 458566893 | I47: 188231838.2 | J47: -26726157 | K47: -37056745 | L47: -31743014
A48: Borrowings & investments & c.deposits | C48: =C24+C32+C33 -> 0 | D48: =D24+D32+D33 -> 0 | E48: 150000000 | F48: -150000000 | G48: 0 | H48: 0 | I48: 0 | J48: 0 | K48: 0 | L48: 0
A49: =A35 -> Repayment of borrowing | C49: =C35 -> 0 | D49: =D35 -> 0 | E49: 0 | F49: 0 | G49: 0 | H49: 0 | I49: =I35 -> 0 | J49: 0 | K49: 0 | L49: 0
C50: =C47+C48+C49 -> 0 | D50: =D47+D48+D49 -> 0 | E50: 654247741.7 | F50: -150000000 | G50: 458566893 | H50: 458566893 | I50: 188231838.2 | J50: -26726157 | K50: -37056745 | L50: -31743014
C51: =C38-C50 -> 0 | D51: 0 | E51: 0 | F51: 0 | G51: 0 | H51: 0 | I51: 0 | J51: 0 | K51: 0 | L51: 0

Sheet A8-ResRecon
A1: =muni&" - "&Approve8 -> LIM355 Lepelle-Nkumpi - Table A8 Cash backed reserves/accumulated surplus reconciliation
A2: =desc -> Description | B2: =head27 -> Ref | C2: =head1b -> 2018/19 | D2: =head1A -> 2019/20 | E2: =Head1 -> 2020/21 | F2: =Head2 -> Current Year 2021/22 | J2: =Head3 -> 2022/23 Medium Term Revenue & Expenditure Framework
A3: R thousand | C3: =Head5 -> Audited Outcome | D3: =Head5 -> Audited Outcome | E3: =Head5 -> Audited Outcome | F3: =Head6 -> Original Budget | G3: =Head7 -> Adjusted Budget | H3: =Head8 -> Full Year Forecast | I3: =Head5b -> Pre-audit outcome | J3: =Head9 -> Budget Year 2022/23 | K3: =Head10 -> Budget Year +1 2023/24 | L3: =Head11 -> Budget Year +2 2024/25
A4: Cash and investments available
A5: =LEFT('A7-CFlow'!A40,37) -> Cash/cash equivalents at the year end | B5: 1 | C5: ='A7-CFlow'!C40 -> 0 | D5: ='A7-CFlow'!D40 -> 160 | E5: ='A7-CFlow'!E40 -> 772203531.1 | F5: ='A7-CFlow'!F40 -> 168501426 | G5: ='A7-CFlow'!G40 -> 753556812 | H5: ='A7-CFlow'!H40 -> 753556812 | I5: ='A7-CFlow'!I40 -> 188231838.2 | J5: ='A7-CFlow'!J40 -> -6719680 | K5: ='A7-CFlow'!K40 -> -43776425 | L5: ='A7-CFlow'!L40 -> -75519439
A6: Other current investments > 90 days | C6: ='A6-FinPos'!C6+'A6-FinPos'!C7-'A6-FinPos'!C29-'A8-ResRecon'!C5 -> 0 | D6: ='A6-FinPos'!D6+'A6-FinPos'!D7-'A6-FinPos'!D29-'A8-ResRecon'!D5 -> 76336660.09 | E6: ='A6-FinPos'!E6+'A6-FinPos'!E7-'A6-FinPos'!E29-'A8-ResRecon'!E5 -> -978371048.8 | F6: ='A6-FinPos'!F6+'A6-FinPos'!F7-'A6-FinPos'!F29-'A8-ResRecon'!F5 -> -661376656 | G6: ='A6-FinPos'!G6+'A6-FinPos'!G7-'A6-FinPos'!G29-'A8-ResRecon'!G5 -> -439134651 | H6: ='A6-FinPos'!H6+'A6-FinPos'!H7-'A6-FinPos'!H29-'A8-ResRecon'!H5 -> -439134651 | I6: ='A6-FinPos'!I6+'A6-FinPos'!I7-'A6-FinPos'!I29-'A8-ResRecon'!I5 -> 225131069.3 | J6: ='A6-FinPos'!J6+'A6-FinPos'!J7-'A6-FinPos'!J29-'A8-ResRecon'!J5 -> 363296519 | K6: ='A6-FinPos'!K6+'A6-FinPos'!K7-'A6-FinPos'!K29-'A8-ResRecon'!K5 -> 416042645 | L6: ='A6-FinPos'!L6+'A6-FinPos'!L7-'A6-FinPos'!L29-'A8-ResRecon'!L5 -> 464537639
A7: ='A6-FinPos'!A14&" - "&'A6-FinPos'!A16 -> Non current assets - Investments | B7: 1 | C7: ='A6-FinPos'!C16 -> 0 | D7: ='A6-FinPos'!D16 -> 0 | E7: ='A6-FinPos'!E16 -> 150000000 | F7: ='A6-FinPos'!F16 -> 0 | G7: ='A6-FinPos'!G16 -> 0 | H7: ='A6-FinPos'!H16 -> 0 | I7: ='A6-FinPos'!I16 -> 150000000 | J7: ='A6-FinPos'!J16 -> 0 | K7: ='A6-FinPos'!K16 -> 0 | L7: ='A6-FinPos'!L16 -> 0
A8: Cash and investments available: | C8: =SUM(C5:C7) -> 0 | D8: =SUM(D5:D7) -> 76336820.09 | E8: -56167517.74 | F8: -492875230 | G8: 314422161 | H8: 314422161 | I8: 563362907.5 | J8: 356576839 | K8: 372266220 | L8: 389018200
A10: Application of cash and investments
A11: ='SA3'!A132 -> Unspent conditional transfers | C11: ='SA3'!C132 -> 0 | D11: ='SA3'!D132 -> 12875208.59 | E11: ='SA3'!E132 -> 20646964.2 | F11: ='SA3'!F132 -> 22005715 | G11: ='SA3'!G132 -> 68231932 | H11: ='SA3'!H132 -> 68231932 | I11: ='SA3'!I132 -> 27400417.41 | J11: ='SA3'!J132 -> 70707898 | K11: ='SA3'!K132 -> 75357179 | L11: ='SA3'!L132 -> 78646952
A12: Unspent borrowing | C12: ='SA17'!C67 -> 0 | D12: ='SA17'!D67 -> 0 | E12: ='SA17'!E67 -> 0 | F12: ='SA17'!F67 -> 0 | G12: ='SA17'!G67 -> 0 | H12: ='SA17'!H67 -> 0 | J12: ='SA17'!I67 -> 0 | K12: ='SA17'!J67 -> 0 | L12: ='SA17'!K67 -> 0
A13: Statutory requirements | B13: 2
A14: Other working capital requirements | B14: 3 | C14: =-C32 -> 0 | D14: =-D32 -> 3374855.69 | E14: -567095515.6 | F14: =-F32 -> 80495590 | G14: -195424688 | H14: -195424688 | I14: -803574797 | J14: -879488219 | K14: -950113296 | L14: -1360607191
A15: Other provisions
A16: Long term investments committed | B16: 4 | C16: =C42 -> 0 | D16: =D42 -> 0 | E16: 0 | F16: 0 | G16: 0 | H16: 0 | I16: 0 | J16: 0 | K16: 0 | L16: 0
A17: Reserves to be backed by cash/investments | B17: 5 | C17: =SUM(C44:C48) -> 0 | D17: 0 | E17: 0 | F17: 12781451 | G17: 12781451 | H17: 12781451 | I17: 0 | J17: 0 | K17: 0 | L17: 0
A18: ="Total "&A10&":" -> Total Application of cash and investments: | C18: =SUM(C11:C17) -> 0 | D18: =SUM(D11:D17) -> 16250064.28 | E18: -546448551.4 | F18: 115282756 | G18: -114411305 | H18: -114411305 | I18: -776174379.6 | J18: -808780321 | K18: -874756117 | L18: -1281960239
A19: Surplus(shortfall) | C19: =C8-C18 -> 0 | D19: =D8-D18 -> 60086755.81 | E19: 490281033.7 | F19: -608157986 | G19: 428833466 | H19: 428833466 | I19: 1339537287 | J19: 1165357160 | K19: 1247022337 | L19: 1670978439
A20: =head27a -> References
A21: 1. Must reconcile with Budgeted Cash Flows
A22: 2. For example: VAT, taxation
A23: 3. Council approval for policy required - include sufficient working capital (e.g. allowing for a % of current debtors > 90 days as uncollectable)
A24: 4. For example: sinking fund requirements for borrowing
A25: 5. Council approval required for each reserve created and basis of cash backing of reserves
A28: Other working capital requirements
A29: Debtors | C29: =IF(ISERROR(ROUND(C35*C36,-3)),0,(ROUND(C35*C36,-3))) -> 0 | D29: =IF(ISERROR(ROUND(D35*D36,-3)),0,(ROUND(D35*D36,-3))) -> 0 | E29: 858066000 | F29: 0 | G29: 209386000 | H29: 209386000 | I29: 1013822000 | J29: 553749000 | K29: 621147000 | L29: 676825000
A31: Creditors due | C31: ='SA3'!C130+'SA3'!C131 -> 0 | D31: ='SA3'!D130+'SA3'!D131 -> 3374855.69 | E31: ='SA3'!E130+'SA3'!E131 -> 290970484.4 | F31: ='SA3'!F130+'SA3'!F131 -> 80495590 | G31: ='SA3'!G130+'SA3'!G131 -> 13961312 | H31: ='SA3'!H130+'SA3'!H131 -> 13961312 | I31: ='SA3'!I130+'SA3'!I131 -> 210247203 | J31: ='SA3'!J130+'SA3'!J131 -> -325739219 | K31: ='SA3'!K130+'SA3'!K131 -> -328966296 | L31: ='SA3'!L130+'SA3'!L131 -> -683782191
A32: Total | C32: =C29-C31 -> 0 | D32: =D29-D31 -> -3374855.69 | E32: 567095515.6 | F32: -80495590 | G32: 195424688 | H32: 195424688 | I32: 803574797 | J32: 879488219 | K32: 950113296 | L32: 1360607191
A34: Debtors collection assumptions
A35: Balance outstanding - debtors | C35: ='A6-FinPos'!C8+'A6-FinPos'!C9+'A6-FinPos'!C15 -> 0 | D35: ='A6-FinPos'!D8+'A6-FinPos'!D9+'A6-FinPos'!D15 -> 27927783.99 | E35: ='A6-FinPos'!E8+'A6-FinPos'!E9+'A6-FinPos'!E15 -> 142352774.3 | F35: ='A6-FinPos'!F8+'A6-FinPos'!F9+'A6-FinPos'!F15 -> 110596350 | G35: ='A6-FinPos'!G8+'A6-FinPos'!G9+'A6-FinPos'!G15 -> 159267427 | H35: ='A6-FinPos'!H8+'A6-FinPos'!H9+'A6-FinPos'!H15 -> 159267427 | I35: ='A6-FinPos'!I8+'A6-FinPos'!I9+'A6-FinPos'!I15 -> 158642468.3 | J35: ='A6-FinPos'!J8+'A6-FinPos'!J9+'A6-FinPos'!J15 -> 218255763 | K35: ='A6-FinPos'!K8+'A6-FinPos'!K9+'A6-FinPos'!K15 -> 227859013 | L35: ='A6-FinPos'!L8+'A6-FinPos'!L9+'A6-FinPos'!L15 -> 238112671
A36: Estimate of debtors collection rate | C36: =IF(ISERROR('SA10'!D10),0,('SA10'!D10)) -> 0 | D36: =IF(ISERROR('SA10'!E10),0,('SA10'!E10)) -> 0 | E36: =IF(ISERROR('SA10'!F10),0,('SA10'!F10)) -> 6.027741963 | F36: =IF(ISERROR('SA10'!G10),0,('SA10'!G10)) -> 0 | G36: =IF(ISERROR('SA10'!H10),0,('SA10'!H10)) -> 1.31468153 | H36: =IF(ISERROR('SA10'!I10),0,('SA10'!I10)) -> 1.31468153 | I36: =IF(ISERROR('SA10'!J10),0,('SA10'!J10)) -> 6.390607569 | J36: =IF(ISERROR('SA10'!K10),0,('SA10'!K10)) -> 2.537157073 | K36: =IF(ISERROR('SA10'!L10),0,('SA10'!L10)) -> 2.726014834 | L36: =IF(ISERROR('SA10'!M10),0,('SA10'!M10)) -> 2.842455775
K39: `
A40: =A16 -> Long term investments committed
A41: Balance (Insert description; eg sinking fund)
C42: =SUM(C41:C41) -> 0 | D42: 0 | E42: 0 | F42: 0 | G42: 0 | H42: 0 | I42: 0 | J42: 0 | K42: 0 | L42: 0
A43: =A17 -> Reserves to be backed by cash/investments
A44: ='SA3'!A160 -> Housing Development Fund | C44: ='SA3'!C160 -> 0 | D44: ='SA3'!D160 -> 0 | E44: ='SA3'!E160 -> 0 | F44: ='SA3'!F160 -> 0 | G44: ='SA3'!G160 -> 0 | H44: ='SA3'!H160 -> 0 | I44: ='SA3'!I160 -> 0 | J44: ='SA3'!J160 -> 0 | K44: ='SA3'!K160 -> 0 | L44: ='SA3'!L160 -> 0
A45: ='SA3'!A161 -> Capital replacement | C45: ='SA3'!C161 -> 0 | D45: ='SA3'!D161 -> 0 | E45: ='SA3'!E161 -> 0 | F45: ='SA3'!F161 -> 12781451 | G45: ='SA3'!G161 -> 12781451 | H45: ='SA3'!H161 -> 12781451 | I45: ='SA3'!I161 -> 0 | J45: ='SA3'!J161 -> 0 | K45: ='SA3'!K161 -> 0 | L45: ='SA3'!L161 -> 0
A46: ='SA3'!A162 -> Self-insurance | C46: ='SA3'!C162 -> 0 | D46: ='SA3'!D162 -> 0 | E46: ='SA3'!E162 -> 0 | F46: ='SA3'!F162 -> 0 | G46: ='SA3'!G162 -> 0 | H46: ='SA3'!H162 -> 0 | I46: ='SA3'!I162 -> 0 | J46: ='SA3'!J162 -> 0 | K46: ='SA3'!K162 -> 0 | L46: ='SA3'!L162 -> 0
A47: Other (list)
C49: =SUM(C44:C48) -> 0 | D49: 0 | E49: 0 | F49: 12781451 | G49: 12781451 | H49: 12781451 | I49: 0 | J49: 0 | K49: 0 | L49: 0

Sheet A9-Asset
A1: =muni&" - "&Approve9 -> LIM355 Lepelle-Nkumpi - Table A9 Asset Management
A2: =desc -> Description | B2: =head27 -> Ref | C2: =head1b -> 2018/19 | D2: =head1A -> 2019/20 | E2: =Head1 -> 2020/21 | F2: =Head2 -> Current Year 2021/22 | I2: =Head3 -> 2022/23 Medium Term Revenue & Expenditure Framework
A3: R thousand | C3: =Head5 -> Audited Outcome | D3: =Head5 -> Audited Outcome | E3: =Head5 -> Audited Outcome | F3: =Head6 -> Original Budget | G3: =Head7 -> Adjusted Budget | H3: =Head8 -> Full Year Forecast | I3: =Head9 -> Budget Year 2022/23 | J3: =Head10 -> Budget Year +1 2023/24 | K3: =Head11 -> Budget Year +2 2024/25
A4: CAPITAL EXPENDITURE
A5: Total New Assets | B5: 1 | C5: =C15+C18+C19+C22+C25+C26+SUM(C29:C35) -> 0 | D5: =D15+D18+D19+D22+D25+D26+SUM(D29:D35) -> 13766847.71 | E5: 39281817.26 | F5: 120025750 | G5: 119635750 | H5: 119635750 | I5: 127822135 | J5: 200885750 | K5: 177802935
A6: Roads Infrastructure | C6: =SA34a!C7 -> 0 | D6: =SA34a!D7 -> 12576499.54 | E6: =SA34a!E7 -> 29272576.01 | F6: =SA34a!F7 -> 68730750 | G6: =SA34a!G7 -> 67710750 | H6: =SA34a!H7 -> 67710750 | I6: =SA34a!I7 -> 73992135 | J6: =SA34a!J7 -> 34134500 | K6: =SA34a!K7 -> 75023750
A7: Storm water Infrastructure | C7: =SA34a!C12 -> 0 | D7: =SA34a!D12 -> 0 | E7: =SA34a!E12 -> 0 | F7: =SA34a!F12 -> 0 | G7: =SA34a!G12 -> 0 | H7: =SA34a!H12 -> 0 | I7: =SA34a!I12 -> 2400000 | J7: =SA34a!J12 -> 36600000 | K7: =SA34a!K12 -> 0
A8: Electrical Infrastructure | C8: =SA34a!C16 -> 0 | D8: =SA34a!D16 -> 111127.61 | E8: =SA34a!E16 -> 2741860 | F8: =SA34a!F16 -> 4875000 | G8: =SA34a!G16 -> 4875000 | H8: =SA34a!H16 -> 4875000 | I8: =SA34a!I16 -> 5625000 | J8: =SA34a!J16 -> 5000000 | K8: =SA34a!K16 -> 0
A9: Water Supply Infrastructure | C9: =SA34a!C26 -> 0 | D9: =SA34a!D26 -> -565.22 | E9: =SA34a!E26 -> 0 | F9: =SA34a!F26 -> 0 | G9: =SA34a!G26 -> 0 | H9: =SA34a!H26 -> 0 | I9: =SA34a!I26 -> 0 | J9: =SA34a!J26 -> 10000000 | K9: =SA34a!K26 -> 0
A10: Sanitation Infrastructure | C10: =SA34a!C37 -> 0 | D10: =SA34a!D37 -> 0 | E10: =SA34a!E37 -> 0 | F10: =SA34a!F37 -> 0 | G10: =SA34a!G37 -> 0 | H10: =SA34a!H37 -> 0 | I10: =SA34a!I37 -> 0 | J10: =SA34a!J37 -> 0 | K10: =SA34a!K37 -> 0
A11: Solid Waste Infrastructure | C11: =SA34a!C44 -> 0 | D11: =SA34a!D44 -> 0 | E11: =SA34a!E44 -> 0 | F11: =SA34a!F44 -> 0 | G11: =SA34a!G44 -> 0 | H11: =SA34a!H44 -> 0 | I11: =SA34a!I44 -> 1600000 | J11: =SA34a!J44 -> 0 | K11: =SA34a!K44 -> 0
A12: Rail Infrastructure | C12: =SA34a!C52 -> 0 | D12: =SA34a!D52 -> 0 | E12: =SA34a!E52 -> 0 | F12: =SA34a!F52 -> 0 | G12: =SA34a!G52 -> 0 | H12: =SA34a!H52 -> 0 | I12: =SA34a!I52 -> 0 | J12: =SA34a!J52 -> 0 | K12: =SA34a!K52 -> 0
A13: Coastal Infrastructure | C13: =SA34a!C62 -> 0 | D13: =SA34a!D62 -> 0 | E13: =SA34a!E62 -> 0 | F13: =SA34a!F62 -> 0 | G13: =SA34a!G62 -> 0 | H13: =SA34a!H62 -> 0 | I13: =SA34a!I62 -> 0 | J13: =SA34a!J62 -> 0 | K13: =SA34a!K62 -> 0
A14: Information and Communication Infrastructure | C14: =SA34a!C68 -> 0 | D14: =SA34a!D68 -> 0 | E14: =SA34a!E68 -> 0 | F14: =SA34a!F68 -> 0 | G14: =SA34a!G68 -> 0 | H14: =SA34a!H68 -> 0 | I14: =SA34a!I68 -> 0 | J14: =SA34a!J68 -> 0 | K14: =SA34a!K68 -> 0
A15: Infrastructure | C15: =SUM(C6:C14) -> 0 | D15: =SUM(D6:D14) -> 12687061.93 | E15: 32014436.01 | F15: 73605750 | G15: 72585750 | H15: 72585750 | I15: 83617135 | J15: 85734500 | K15: 75023750
A16: Community Facilities | C16: =SA34a!C75 -> 0 | D16: =SA34a!D75 -> 1055580.78 | E16: =SA34a!E75 -> 5866638.69 | F16: =SA34a!F75 -> 12000000 | G16: =SA34a!G75 -> 12000000 | H16: =SA34a!H75 -> 12000000 | I16: =SA34a!I75 -> 16000000 | J16: =SA34a!J75 -> 22400000 | K16: =SA34a!K75 -> 0
A17: Sport and Recreation Facilities | C17: =SA34a!C98 -> 0 | D17: =SA34a!D98 -> 0 | E17: =SA34a!E98 -> 0 | F17: =SA34a!F98 -> 9500000 | G17: =SA34a!G98 -> 9020000 | H17: =SA34a!H98 -> 9020000 | I17: =SA34a!I98 -> 0 | J17: =SA34a!J98 -> 30000000 | K17: =SA34a!K98 -> 38840000
A18: Community Assets | C18: =SUM(C16:C17) -> 0 | D18: =SUM(D16:D17) -> 1055580.78 | E18: 5866638.69 | F18: 21500000 | G18: 21020000 | H18: 21020000 | I18: 16000000 | J18: 52400000 | K18: 38840000
A19: Heritage Assets | C19: =SA34a!C103 -> 0 | D19: =SA34a!D103 -> 0 | E19: =SA34a!E103 -> 0 | F19: =SA34a!F103 -> 0 | G19: =SA34a!G103 -> 0 | H19: =SA34a!H103 -> 0 | I19: =SA34a!I103 -> 0 | J19: =SA34a!J103 -> 0 | K19: =SA34a!K103 -> 0
A20: Revenue Generating | C20: =SA34a!C111 -> 0 | D20: =SA34a!D111 -> 0 | E20: =SA34a!E111 -> 0 | F20: =SA34a!F111 -> 0 | G20: =SA34a!G111 -> 0 | H20: =SA34a!H111 -> 0 | I20: =SA34a!I111 -> 0 | J20: =SA34a!J111 -> 0 | K20: =SA34a!K111 -> 0
A21: Non-revenue Generating | C21: =SA34a!C114 -> 0 | D21: =SA34a!D114 -> 0 | E21: =SA34a!E114 -> 394025 | F21: =SA34a!F114 -> 8000000 | G21: =SA34a!G114 -> 7560000 | H21: =SA34a!H114 -> 7560000 | I21: =SA34a!I114 -> 1500000 | J21: =SA34a!J114 -> 55396000 | K21: =SA34a!K114 -> 62831172
A22: Investment properties | C22: =SUM(C20:C21) -> 0 | D22: =SUM(D20:D21) -> 0 | E22: 394025 | F22: 8000000 | G22: 7560000 | H22: 7560000 | I22: 1500000 | J22: 55396000 | K22: 62831172
A23: Operational Buildings | C23: =SA34a!C119 -> 0 | D23: =SA34a!D119 -> 0 | E23: =SA34a!E119 -> 0 | F23: =SA34a!F119 -> 950000 | G23: =SA34a!G119 -> 950000 | H23: =SA34a!H119 -> 950000 | I23: =SA34a!I119 -> 950000 | J23: =SA34a!J119 -> 1200000 | K23: =SA34a!K119 -> 0
A24: Housing | C24: =SA34a!C131 -> 0 | D24: =SA34a!D131 -> 0 | E24: =SA34a!E131 -> 0 | F24: =SA34a!F131 -> 0 | G24: =SA34a!G131 -> 0 | H24: =SA34a!H131 -> 0 | I24: =SA34a!I131 -> 0 | J24: =SA34a!J131 -> 0 | K24: =SA34a!K131 -> 0
A25: Other Assets | C25: =SUM(C23:C24) -> 0 | D25: =SUM(D23:D24) -> 0 | E25: 0 | F25: 950000 | G25: 950000 | H25: 950000 | I25: 950000 | J25: 1200000 | K25: 0
A26: Biological or Cultivated Assets | C26: =SA34a!C136 -> 0 | D26: =SA34a!D136 -> 0 | E26: =SA34a!E136 -> 0 | F26: =SA34a!F136 -> 0 | G26: =SA34a!G136 -> 0 | H26: =SA34a!H136 -> 0 | I26: =SA34a!I136 -> 0 | J26: =SA34a!J136 -> 0 | K26: =SA34a!K136 -> 0
A27: Servitudes | C27: =SA34a!C140 -> 0 | D27: =SA34a!D140 -> 0 | E27: =SA34a!E140 -> 0 | F27: =SA34a!F140 -> 0 | G27: =SA34a!G140 -> 0 | H27: =SA34a!H140 -> 0 | I27: =SA34a!I140 -> 0 | J27: =SA34a!J140 -> 0 | K27: =SA34a!K140 -> 0
A28: Licences and Rights | C28: =SA34a!C141 -> 0 | D28: =SA34a!D141 -> 0 | E28: =SA34a!E141 -> 0 | F28: =SA34a!F141 -> 4700000 | G28: =SA34a!G141 -> 4400000 | H28: =SA34a!H141 -> 4400000 | I28: =SA34a!I141 -> 3500000 | J28: =SA34a!J141 -> 2500000 | K28: =SA34a!K141 -> 0
A29: Intangible Assets | C29: =SUM(C27:C28) -> 0 | D29: =SUM(D27:D28) -> 0 | E29: 0 | F29: 4700000 | G29: 4400000 | H29: 4400000 | I29: 3500000 | J29: 2500000 | K29: 0
A30: Computer Equipment | C30: =SA34a!C149 -> 0 | D30: =SA34a!D149 -> 0 | E30: =SA34a!E149 -> 450217.56 | F30: =SA34a!F149 -> 2170000 | G30: =SA34a!G149 -> 2470000 | H30: =SA34a!H149 -> 2470000 | I30: =SA34a!I149 -> 2000000 | J30: =SA34a!J149 -> 1500000 | K30: =SA34a!K149 -> 0
A31: Furniture and Office Equipment | C31: =SA34a!C152 -> 0 | D31: =SA34a!D152 -> 0 | E31: =SA34a!E152 -> 0 | F31: =SA34a!F152 -> 350000 | G31: =SA34a!G152 -> 350000 | H31: =SA34a!H152 -> 350000 | I31: =SA34a!I152 -> 440000 | J31: =SA34a!J152 -> 367500 | K31: =SA34a!K152 -> 385875
A32: Machinery and Equipment | C32: =SA34a!C155 -> 0 | D32: =SA34a!D155 -> 24205 | E32: =SA34a!E155 -> 556500 | F32: =SA34a!F155 -> 8750000 | G32: =SA34a!G155 -> 10300000 | H32: =SA34a!H155 -> 10300000 | I32: =SA34a!I155 -> 16615000 | J32: =SA34a!J155 -> 687750 | K32: =SA34a!K155 -> 722138
A33: Transport Assets | C33: =SA34a!C158 -> 0 | D33: =SA34a!D158 -> 0 | E33: =SA34a!E158 -> 0 | F33: =SA34a!F158 -> 0 | G33: =SA34a!G158 -> 0 | H33: =SA34a!H158 -> 0 | I33: =SA34a!I158 -> 3200000 | J33: =SA34a!J158 -> 1100000 | K33: =SA34a!K158 -> 0
A34: Land | C34: =SA34a!C161 -> 0 | D34: =SA34a!D161 -> 0 | E34: =SA34a!E161 -> 0 | F34: =SA34a!F161 -> 0 | G34: =SA34a!G161 -> 0 | H34: =SA34a!H161 -> 0 | I34: =SA34a!I161 -> 0 | J34: =SA34a!J161 -> 0 | K34: =SA34a!K161 -> 0
A35: Zoo's, Marine and Non-biological Animals | C35: =SA34a!C164 -> 0 | D35: =SA34a!D164 -> 0 | E35: =SA34a!E164 -> 0 | F35: =SA34a!F164 -> 0 | G35: =SA34a!G164 -> 0 | H35: =SA34a!H164 -> 0 | I35: =SA34a!I164 -> 0 | J35: =SA34a!J164 -> 0 | K35: =SA34a!K164 -> 0
A37: Total Renewal of Existing Assets | B37: 2 | C37: =C47+C50+C51+C54+C57+C58+SUM(C61:C67) -> 0 | D37: =D47+D50+D51+D54+D57+D58+SUM(D61:D67) -> 0 | E37: 123726.67 | F37: 9637000 | G37: 15262000 | H37: 15262000 | I37: 11175000 | J37: 5000000 | K37: 40000000
A38: Roads Infrastructure | C38: =SA34b!C7 -> 0 | D38: =SA34b!D7 -> 0 | E38: =SA34b!E7 -> 0 | F38: =SA34b!F7 -> 4125000 | G38: =SA34b!G7 -> 9750000 | H38: =SA34b!H7 -> 9750000 | I38: =SA34b!I7 -> 5500000 | J38: =SA34b!J7 -> 0 | K38: =SA34b!K7 -> 15000000
A39: Storm water Infrastructure | C39: =SA34b!C12 -> 0 | D39: =SA34b!D12 -> 0 | E39: =SA34b!E12 -> 0 | F39: =SA34b!F12 -> 0 | G39: =SA34b!G12 -> 0 | H39: =SA34b!H12 -> 0 | I39: =SA34b!I12 -> 0 | J39: =SA34b!J12 -> 0 | K39: =SA34b!K12 -> 0
A40: Electrical Infrastructure | C40: =SA34b!C16 -> 0 | D40: =SA34b!D16 -> 0 | E40: =SA34b!E16 -> 0 | F40: =SA34b!F16 -> 375000 | G40: =SA34b!G16 -> 375000 | H40: =SA34b!H16 -> 375000 | I40: =SA34b!I16 -> 375000 | J40: =SA34b!J16 -> 0 | K40: =SA34b!K16 -> 0
A41: Water Supply Infrastructure | C41: =SA34b!C26 -> 0 | D41: =SA34b!D26 -> 0 | E41: =SA34b!E26 -> 0 | F41: =SA34b!F26 -> 0 | G41: =SA34b!G26 -> 0 | H41: =SA34b!H26 -> 0 | I41: =SA34b!I26 -> 0 | J41: =SA34b!J26 -> 0 | K41: =SA34b!K26 -> 0
A42: Sanitation Infrastructure | C42: =SA34b!C37 -> 0 | D42: =SA34b!D37 -> 0 | E42: =SA34b!E37 -> 0 | F42: =SA34b!F37 -> 0 | G42: =SA34b!G37 -> 0 | H42: =SA34b!H37 -> 0 | I42: =SA34b!I37 -> 0 | J42: =SA34b!J37 -> 0 | K42: =SA34b!K37 -> 20000000
A43: Solid Waste Infrastructure | C43: =SA34b!C44 -> 0 | D43: =SA34b!D44 -> 0 | E43: =SA34b!E44 -> 0 | F43: =SA34b!F44 -> 0 | G43: =SA34b!G44 -> 0 | H43: =SA34b!H44 -> 0 | I43: =SA34b!I44 -> 0 | J43: =SA34b!J44 -> 0 | K43: =SA34b!K44 -> 0
A44: Rail Infrastructure | C44: =SA34b!C52 -> 0 | D44: =SA34b!D52 -> 0 | E44: =SA34b!E52 -> 0 | F44: =SA34b!F52 -> 0 | G44: =SA34b!G52 -> 0 | H44: =SA34b!H52 -> 0 | I44: =SA34b!I52 -> 0 | J44: =SA34b!J52 -> 0 | K44: =SA34b!K52 -> 0
A45: Coastal Infrastructure | C45: =SA34b!C62 -> 0 | D45: =SA34b!D62 -> 0 | E45: =SA34b!E62 -> 0 | F45: =SA34b!F62 -> 0 | G45: =SA34b!G62 -> 0 | H45: =SA34b!H62 -> 0 | I45: =SA34b!I62 -> 0 | J45: =SA34b!J62 -> 0 | K45: =SA34b!K62 -> 0
A46: Information and Communication Infrastructure | C46: =SA34b!C68 -> 0 | D46: =SA34b!D68 -> 0 | E46: =SA34b!E68 -> 0 | F46: =SA34b!F68 -> 0 | G46: =SA34b!G68 -> 0 | H46: =SA34b!H68 -> 0 | I46: =SA34b!I68 -> 0 | J46: =SA34b!J68 -> 0 | K46: =SA34b!K68 -> 0
A47: Infrastructure | C47: =SUM(C38:C46) -> 0 | D47: =SUM(D38:D46) -> 0 | E47: 0 | F47: 4500000 | G47: 10125000 | H47: 10125000 | I47: 5875000 | J47: 0 | K47: 35000000
A48: Community Facilities | C48: =SA34b!C75 -> 0 | D48: =SA34b!D75 -> 0 | E48: =SA34b!E75 -> 0 | F48: =SA34b!F75 -> 0 | G48: =SA34b!G75 -> 0 | H48: =SA34b!H75 -> 0 | I48: =SA34b!I75 -> 0 | J48: =SA34b!J75 -> 0 | K48: =SA34b!K75 -> 0
A49: Sport and Recreation Facilities | C49: =SA34b!C98 -> 0 | D49: =SA34b!D98 -> 0 | E49: =SA34b!E98 -> 123726.67 | F49: =SA34b!F98 -> 5137000 | G49: =SA34b!G98 -> 5137000 | H49: =SA34b!H98 -> 5137000 | I49: =SA34b!I98 -> 5000000 | J49: =SA34b!J98 -> 5000000 | K49: =SA34b!K98 -> 5000000
A50: Community Assets | C50: =SUM(C48:C49) -> 0 | D50: =SUM(D48:D49) -> 0 | E50: 123726.67 | F50: 5137000 | G50: 5137000 | H50: 5137000 | I50: 5000000 | J50: 5000000 | K50: 5000000
A51: Heritage Assets | C51: =SA34b!C103 -> 0 | D51: =SA34b!D103 -> 0 | E51: =SA34b!E103 -> 0 | F51: =SA34b!F103 -> 0 | G51: =SA34b!G103 -> 0 | H51: =SA34b!H103 -> 0 | I51: =SA34b!I103 -> 0 | J51: =SA34b!J103 -> 0 | K51: =SA34b!K103 -> 0
A52: Revenue Generating | C52: =SA34b!C111 -> 0 | D52: =SA34b!D111 -> 0 | E52: =SA34b!E111 -> 0 | F52: =SA34b!F111 -> 0 | G52: =SA34b!G111 -> 0 | H52: =SA34b!H111 -> 0 | I52: =SA34b!I111 -> 0 | J52: =SA34b!J111 -> 0 | K52: =SA34b!K111 -> 0
A53: Non-revenue Generating | C53: =SA34b!C114 -> 0 | D53: =SA34b!D114 -> 0 | E53: =SA34b!E114 -> 0 | F53: =SA34b!F114 -> 0 | G53: =SA34b!G114 -> 0 | H53: =SA34b!H114 -> 0 | I53: =SA34b!I114 -> 0 | J53: =SA34b!J114 -> 0 | K53: =SA34b!K114 -> 0
A54: Investment properties | C54: =SUM(C52:C53) -> 0 | D54: =SUM(D52:D53) -> 0 | E54: 0 | F54: 0 | G54: 0 | H54: 0 | I54: 0 | J54: 0 | K54: 0
A55: Operational Buildings | C55: =SA34b!C119 -> 0 | D55: =SA34b!D119 -> 0 | E55: =SA34b!E119 -> 0 | F55: =SA34b!F119 -> 0 | G55: =SA34b!G119 -> 0 | H55: =SA34b!H119 -> 0 | I55: =SA34b!I119 -> 0 | J55: =SA34b!J119 -> 0 | K55: =SA34b!K119 -> 0
A56: Housing | C56: =SA34b!C131 -> 0 | D56: =SA34b!D131 -> 0 | E56: =SA34b!E131 -> 0 | F56: =SA34b!F131 -> 0 | G56: =SA34b!G131 -> 0 | H56: =SA34b!H131 -> 0 | I56: =SA34b!I131 -> 0 | J56: =SA34b!J131 -> 0 | K56: =SA34b!K131 -> 0
A57: Other Assets | C57: =SUM(C55:C56) -> 0 | D57: =SUM(D55:D56) -> 0 | E57: 0 | F57: 0 | G57: 0 | H57: 0 | I57: 0 | J57: 0 | K57: 0
A58: Biological or Cultivated Assets | C58: =SA34b!C136 -> 0 | D58: =SA34b!D136 -> 0 | E58: =SA34b!E136 -> 0 | F58: =SA34b!F136 -> 0 | G58: =SA34b!G136 -> 0 | H58: =SA34b!H136 -> 0 | I58: =SA34b!I136 -> 0 | J58: =SA34b!J136 -> 0 | K58: =SA34b!K136 -> 0
A59: Servitudes | C59: =SA34b!C140 -> 0 | D59: =SA34b!D140 -> 0 | E59: =SA34b!E140 -> 0 | F59: =SA34b!F140 -> 0 | G59: =SA34b!G140 -> 0 | H59: =SA34b!H140 -> 0 | I59: =SA34b!I140 -> 0 | J59: =SA34b!J140 -> 0 | K59: =SA34b!K140 -> 0
A60: Licences and Rights | C60: =SA34b!C141 -> 0 | D60: =SA34b!D141 -> 0 | E60: =SA34b!E141 -> 0 | F60: =SA34b!F141 -> 0 | G60: =SA34b!G141 -> 0 | H60: =SA34b!H141 -> 0 | I60: =SA34b!I141 -> 0 | J60: =SA34b!J141 -> 0 | K60: =SA34b!K141 -> 0
A61: Intangible Assets | C61: =SUM(C59:C60) -> 0 | D61: =SUM(D59:D60) -> 0 | E61: 0 | F61: 0 | G61: 0 | H61: 0 | I61: 0 | J61: 0 | K61: 0
A62: Computer Equipment | C62: =SA34b!C149 -> 0 | D62: =SA34b!D149 -> 0 | E62: =SA34b!E149 -> 0 | F62: =SA34b!F149 -> 0 | G62: =SA34b!G149 -> 0 | H62: =SA34b!H149 -> 0 | I62: =SA34b!I149 -> 0 | J62: =SA34b!J149 -> 0 | K62: =SA34b!K149 -> 0
A63: Furniture and Office Equipment | C63: =SA34b!C152 -> 0 | D63: =SA34b!D152 -> 0 | E63: =SA34b!E152 -> 0 | F63: =SA34b!F152 -> 0 | G63: =SA34b!G152 -> 0 | H63: =SA34b!H152 -> 0 | I63: =SA34b!I152 -> 300000 | J63: =SA34b!J152 -> 0 | K63: =SA34b!K152 -> 0
A64: Machinery and Equipment | C64: =SA34b!C155 -> 0 | D64: =SA34b!D155 -> 0 | E64: =SA34b!E155 -> 0 | F64: =SA34b!F155 -> 0 | G64: =SA34b!G155 -> 0 | H64: =SA34b!H155 -> 0 | I64: =SA34b!I155 -> 0 | J64: =SA34b!J155 -> 0 | K64: =SA34b!K155 -> 0
A65: Transport Assets | C65: =SA34b!C158 -> 0 | D65: =SA34b!D158 -> 0 | E65: =SA34b!E158 -> 0 | F65: =SA34b!F158 -> 0 | G65: =SA34b!G158 -> 0 | H65: =SA34b!H158 -> 0 | I65: =SA34b!I158 -> 0 | J65: =SA34b!J158 -> 0 | K65: =SA34b!K158 -> 0
A66: Land | C66: =SA34b!C161 -> 0 | D66: =SA34b!D161 -> 0 | E66: =SA34b!E161 -> 0 | F66: =SA34b!F161 -> 0 | G66: =SA34b!G161 -> 0 | H66: =SA34b!H161 -> 0 | I66: =SA34b!I161 -> 0 | J66: =SA34b!J161 -> 0 | K66: =SA34b!K161 -> 0
A67: Zoo's, Marine and Non-biological Animals | C67: =SA34b!C164 -> 0 | D67: =SA34b!D164 -> 0 | E67: =SA34b!E164 -> 0 | F67: =SA34b!F164 -> 0 | G67: =SA34b!G164 -> 0 | H67: =SA34b!H164 -> 0 | I67: =SA34b!I164 -> 0 | J67: =SA34b!J164 -> 0 | K67: =SA34b!K164 -> 0
A69: Total Upgrading of Existing Assets | B69: 6 | C69: =C79+C82+C83+C86+C89+C90+SUM(C93:C99) -> 0 | D69: =D79+D82+D83+D86+D89+D90+SUM(D93:D99) -> 720.11 | E69: 6065492.83 | F69: 16000000 | G69: 20800000 | H69: 20800000 | I69: 52333001 | J69: 14123000 | K69: 0
A70: Roads Infrastructure | C70: =SA34e!C7 -> 0 | D70: =SA34e!D7 -> 0 | E70: =SA34e!E7 -> 6065492.83 | F70: =SA34e!F7 -> 6000000 | G70: =SA34e!G7 -> 10800000 | H70: =SA34e!H7 -> 10800000 | I70: =SA34e!I7 -> 42233001 | J70: =SA34e!J7 -> 14123000 | K70: =SA34e!K7 -> 0
A71: Storm water Infrastructure | C71: =SA34e!C12 -> 0 | D71: =SA34e!D12 -> 720.11 | E71: =SA34e!E12 -> 0 | F71: =SA34e!F12 -> 400000 | G71: =SA34e!G12 -> 400000 | H71: =SA34e!H12 -> 400000 | I71: =SA34e!I12 -> 500000 | J71: =SA34e!J12 -> 0 | K71: =SA34e!K12 -> 0
A72: Electrical Infrastructure | C72: =SA34e!C16 -> 0 | D72: =SA34e!D16 -> 0 | E72: =SA34e!E16 -> 0 | F72: =SA34e!F16 -> 0 | G72: =SA34e!G16 -> 0 | H72: =SA34e!H16 -> 0 | I72: =SA34e!I16 -> 0 | J72: =SA34e!J16 -> 0 | K72: =SA34e!K16 -> 0
A73: Water Supply Infrastructure | C73: =SA34e!C26 -> 0 | D73: =SA34e!D26 -> 0 | E73: =SA34e!E26 -> 0 | F73: =SA34e!F26 -> 0 | G73: =SA34e!G26 -> 0 | H73: =SA34e!H26 -> 0 | I73: =SA34e!I26 -> 0 | J73: =SA34e!J26 -> 0 | K73: =SA34e!K26 -> 0
A74: Sanitation Infrastructure | C74: =SA34e!C37 -> 0 | D74: =SA34e!D37 -> 0 | E74: =SA34e!E37 -> 0 | F74: =SA34e!F37 -> 0 | G74: =SA34e!G37 -> 0 | H74: =SA34e!H37 -> 0 | I74: =SA34e!I37 -> 0 | J74: =SA34e!J37 -> 0 | K74: =SA34e!K37 -> 0
A75: Solid Waste Infrastructure | C75: =SA34e!C44 -> 0 | D75: =SA34e!D44 -> 0 | E75: =SA34e!E44 -> 0 | F75: =SA34e!F44 -> 0 | G75: =SA34e!G44 -> 0 | H75: =SA34e!H44 -> 0 | I75: =SA34e!I44 -> 0 | J75: =SA34e!J44 -> 0 | K75: =SA34e!K44 -> 0
A76: Rail Infrastructure | C76: =SA34e!C52 -> 0 | D76: =SA34e!D52 -> 0 | E76: =SA34e!E52 -> 0 | F76: =SA34e!F52 -> 0 | G76: =SA34e!G52 -> 0 | H76: =SA34e!H52 -> 0 | I76: =SA34e!I52 -> 0 | J76: =SA34e!J52 -> 0 | K76: =SA34e!K52 -> 0
A77: Coastal Infrastructure | C77: =SA34e!C62 -> 0 | D77: =SA34e!D62 -> 0 | E77: =SA34e!E62 -> 0 | F77: =SA34e!F62 -> 0 | G77: =SA34e!G62 -> 0 | H77: =SA34e!H62 -> 0 | I77: =SA34e!I62 -> 0 | J77: =SA34e!J62 -> 0 | K77: =SA34e!K62 -> 0
A78: Information and Communication Infrastructure | C78: =SA34e!C68 -> 0 | D78: =SA34e!D68 -> 0 | E78: =SA34e!E68 -> 0 | F78: =SA34e!F68 -> 0 | G78: =SA34e!G68 -> 0 | H78: =SA34e!H68 -> 0 | I78: =SA34e!I68 -> 0 | J78: =SA34e!J68 -> 0 | K78: =SA34e!K68 -> 0
A79: Infrastructure | C79: =SUM(C70:C78) -> 0 | D79: 720.11 | E79: 6065492.83 | F79: 6400000 | G79: 11200000 | H79: 11200000 | I79: 42733001 | J79: 14123000 | K79: 0
A80: Community Facilities | C80: =SA34e!C75 -> 0 | D80: =SA34e!D75 -> 0 | E80: =SA34e!E75 -> 0 | F80: =SA34e!F75 -> 0 | G80: =SA34e!G75 -> 0 | H80: =SA34e!H75 -> 0 | I80: =SA34e!I75 -> 0 | J80: =SA34e!J75 -> 0 | K80: =SA34e!K75 -> 0
A81: Sport and Recreation Facilities | C81: =SA34e!C98 -> 0 | D81: =SA34e!D98 -> 0 | E81: =SA34e!E98 -> 0 | F81: =SA34e!F98 -> 0 | G81: =SA34e!G98 -> 0 | H81: =SA34e!H98 -> 0 | I81: =SA34e!I98 -> 0 | J81: =SA34e!J98 -> 0 | K81: =SA34e!K98 -> 0
A82: Community Assets | C82: =SUM(C80:C81) -> 0 | D82: 0 | E82: 0 | F82: 0 | G82: 0 | H82: 0 | I82: 0 | J82: 0 | K82: 0
A83: Heritage Assets | C83: =SA34e!C103 -> 0 | D83: =SA34e!D103 -> 0 | E83: =SA34e!E103 -> 0 | F83: =SA34e!F103 -> 0 | G83: =SA34e!G103 -> 0 | H83: =SA34e!H103 -> 0 | I83: =SA34e!I103 -> 0 | J83: =SA34e!J103 -> 0 | K83: =SA34e!K103 -> 0
A84: Revenue Generating | C84: =SA34e!C111 -> 0 | D84: =SA34e!D111 -> 0 | E84: =SA34e!E111 -> 0 | F84: =SA34e!F111 -> 0 | G84: =SA34e!G111 -> 0 | H84: =SA34e!H111 -> 0 | I84: =SA34e!I111 -> 0 | J84: =SA34e!J111 -> 0 | K84: =SA34e!K111 -> 0
A85: Non-revenue Generating | C85: =SA34e!C114 -> 0 | D85: =SA34e!D114 -> 0 | E85: =SA34e!E114 -> 0 | F85: =SA34e!F114 -> 0 | G85: =SA34e!G114 -> 0 | H85: =SA34e!H114 -> 0 | I85: =SA34e!I114 -> 0 | J85: =SA34e!J114 -> 0 | K85: =SA34e!K114 -> 0
A86: Investment properties | C86: =SUM(C84:C85) -> 0 | D86: 0 | E86: 0 | F86: 0 | G86: 0 | H86: 0 | I86: 0 | J86: 0 | K86: 0
A87: Operational Buildings | C87: =SA34e!C119 -> 0 | D87: =SA34e!D119 -> 0 | E87: =SA34e!E119 -> 0 | F87: =SA34e!F119 -> 9600000 | G87: =SA34e!G119 -> 9600000 | H87: =SA34e!H119 -> 9600000 | I87: =SA34e!I119 -> 9600000 | J87: =SA34e!J119 -> 0 | K87: =SA34e!K119 -> 0
A88: Housing | C88: =SA34e!C131 -> 0 | D88: =SA34e!D131 -> 0 | E88: =SA34e!E131 -> 0 | F88: =SA34e!F131 -> 0 | G88: =SA34e!G131 -> 0 | H88: =SA34e!H131 -> 0 | I88: =SA34e!I131 -> 0 | J88: =SA34e!J131 -> 0 | K88: =SA34e!K131 -> 0
A89: Other Assets | C89: =SUM(C87:C88) -> 0 | D89: 0 | E89: 0 | F89: 9600000 | G89: 9600000 | H89: 9600000 | I89: 9600000 | J89: 0 | K89: 0
A90: Biological or Cultivated Assets | C90: =SA34e!C136 -> 0 | D90: =SA34e!D136 -> 0 | E90: =SA34e!E136 -> 0 | F90: =SA34e!F136 -> 0 | G90: =SA34e!G136 -> 0 | H90: =SA34e!H136 -> 0 | I90: =SA34e!I136 -> 0 | J90: =SA34e!J136 -> 0 | K90: =SA34e!K136 -> 0
A91: Servitudes | C91: =SA34e!C140 -> 0 | D91: =SA34e!D140 -> 0 | E91: =SA34e!E140 -> 0 | F91: =SA34e!F140 -> 0 | G91: =SA34e!G140 -> 0 | H91: =SA34e!H140 -> 0 | I91: =SA34e!I140 -> 0 | J91: =SA34e!J140 -> 0 | K91: =SA34e!K140 -> 0
A92: Licences and Rights | C92: =SA34e!C141 -> 0 | D92: =SA34e!D141 -> 0 | E92: =SA34e!E141 -> 0 | F92: =SA34e!F141 -> 0 | G92: =SA34e!G141 -> 0 | H92: =SA34e!H141 -> 0 | I92: =SA34e!I141 -> 0 | J92: =SA34e!J141 -> 0 | K92: =SA34e!K141 -> 0
A93: Intangible Assets | C93: =SUM(C91:C92) -> 0 | D93: 0 | E93: 0 | F93: 0 | G93: 0 | H93: 0 | I93: 0 | J93: 0 | K93: 0
A94: Computer Equipment | C94: =SA34e!C149 -> 0 | D94: =SA34e!D149 -> 0 | E94: =SA34e!E149 -> 0 | F94: =SA34e!F149 -> 0 | G94: =SA34e!G149 -> 0 | H94: =SA34e!H149 -> 0 | I94: =SA34e!I149 -> 0 | J94: =SA34e!J149 -> 0 | K94: =SA34e!K149 -> 0
A95: Furniture and Office Equipment | C95: =SA34e!C152 -> 0 | D95: =SA34e!D152 -> 0 | E95: =SA34e!E152 -> 0 | F95: =SA34e!F152 -> 0 | G95: =SA34e!G152 -> 0 | H95: =SA34e!H152 -> 0 | I95: =SA34e!I152 -> 0 | J95: =SA34e!J152 -> 0 | K95: =SA34e!K152 -> 0
A96: Machinery and Equipment | C96: =SA34e!C155 -> 0 | D96: =SA34e!D155 -> 0 | E96: =SA34e!E155 -> 0 | F96: =SA34e!F155 -> 0 | G96: =SA34e!G155 -> 0 | H96: =SA34e!H155 -> 0 | I96: =SA34e!I155 -> 0 | J96: =SA34e!J155 -> 0 | K96: =SA34e!K155 -> 0
A97: Transport Assets | C97: =SA34e!C158 -> 0 | D97: =SA34e!D158 -> 0 | E97: =SA34e!E158 -> 0 | F97: =SA34e!F158 -> 0 | G97: =SA34e!G158 -> 0 | H97: =SA34e!H158 -> 0 | I97: =SA34e!I158 -> 0 | J97: =SA34e!J158 -> 0 | K97: =SA34e!K158 -> 0
A98: Land | C98: =SA34e!C161 -> 0 | D98: =SA34e!D161 -> 0 | E98: =SA34e!E161 -> 0 | F98: =SA34e!F161 -> 0 | G98: =SA34e!G161 -> 0 | H98: =SA34e!H161 -> 0 | I98: =SA34e!I161 -> 0 | J98: =SA34e!J161 -> 0 | K98: =SA34e!K161 -> 0
A99: Zoo's, Marine and Non-biological Animals | C99: =SA34e!C164 -> 0 | D99: =SA34e!D164 -> 0 | E99: =SA34e!E164 -> 0 | F99: =SA34e!F164 -> 0 | G99: =SA34e!G164 -> 0 | H99: =SA34e!H164 -> 0 | I99: =SA34e!I164 -> 0 | J99: =SA34e!J164 -> 0 | K99: =SA34e!K164 -> 0
A101: Total Capital Expenditure | B101: 4 | C101: =+C5+C37+C69 -> 0 | D101: =+D5+D37+D69 -> 13767567.82 | E101: 45471036.76 | F101: 145662750 | G101: 155697750 | H101: 155697750 | I101: 191330136 | J101: 220008750 | K101: 217802935
A102: Roads Infrastructure | C102: =+C6+C38+C70 -> 0 | D102: =+D6+D38+D70 -> 12576499.54 | E102: 35338068.84 | F102: 78855750 | G102: 88260750 | H102: 88260750 | I102: 121725136 | J102: 48257500 | K102: 90023750
A103: Storm water Infrastructure | C103: =+C7+C39+C71 -> 0 | D103: 720.11 | E103: 0 | F103: 400000 | G103: 400000 | H103: 400000 | I103: 2900000 | J103: 36600000 | K103: 0
A104: Electrical Infrastructure | C104: 0 | D104: 111127.61 | E104: 2741860 | F104: 5250000 | G104: 5250000 | H104: 5250000 | I104: 6000000 | J104: 5000000 | K104: 0
A105: Water Supply Infrastructure | C105: 0 | D105: -565.22 | E105: 0 | F105: 0 | G105: 0 | H105: 0 | I105: 0 | J105: 10000000 | K105: 0
A106: Sanitation Infrastructure | C106: 0 | D106: 0 | E106: 0 | F106: 0 | G106: 0 | H106: 0 | I106: 0 | J106: 0 | K106: 20000000
A107: Solid Waste Infrastructure | C107: 0 | D107: 0 | E107: 0 | F107: 0 | G107: 0 | H107: 0 | I107: 1600000 | J107: 0 | K107: 0
A108: Rail Infrastructure | C108: 0 | D108: 0 | E108: 0 | F108: 0 | G108: 0 | H108: 0 | I108: 0 | J108: 0 | K108: 0
A109: Coastal Infrastructure | C109: 0 | D109: 0 | E109: 0 | F109: 0 | G109: 0 | H109: 0 | I109: 0 | J109: 0 | K109: 0
A110: Information and Communication Infrastructure | C110: 0 | D110: 0 | E110: 0 | F110: 0 | G110: 0 | H110: 0 | I110: 0 | J110: 0 | K110: 0
A111: Infrastructure | C111: =SUM(C102:C110) -> 0 | D111: =SUM(D102:D110) -> 12687782.04 | E111: 38079928.84 | F111: 84505750 | G111: 93910750 | H111: 93910750 | I111: 132225136 | J111: 99857500 | K111: 110023750
A112: Community Facilities | C112: =+C16+C48+C80 -> 0 | D112: =+D16+D48+D80 -> 1055580.78 | E112: 5866638.69 | F112: 12000000 | G112: 12000000 | H112: 12000000 | I112: 16000000 | J112: 22400000 | K112: 0
A113: Sport and Recreation Facilities | C113: =+C17+C49+C81 -> 0 | D113: =+D17+D49+D81 -> 0 | E113: 123726.67 | F113: 14637000 | G113: 14157000 | H113: 14157000 | I113: 5000000 | J113: 35000000 | K113: 43840000
A114: Community Assets | C114: =SUM(C112:C113) -> 0 | D114: =SUM(D112:D113) -> 1055580.78 | E114: 5990365.36 | F114: 26637000 | G114: 26157000 | H114: 26157000 | I114: 21000000 | J114: 57400000 | K114: 43840000
A115: Heritage Assets | C115: =+C19+C51+C83 -> 0 | D115: =+D19+D51+D83 -> 0 | E115: 0 | F115: 0 | G115: 0 | H115: 0 | I115: 0 | J115: 0 | K115: 0
A116: Revenue Generating | C116: =+C20+C52+C84 -> 0 | D116: =+D20+D52+D84 -> 0 | E116: 0 | F116: 0 | G116: 0 | H116: 0 | I116: 0 | J116: 0 | K116: 0
A117: Non-revenue Generating | C117: =+C21+C53+C85 -> 0 | D117: =+D21+D53+D85 -> 0 | E117: 394025 | F117: 8000000 | G117: 7560000 | H117: 7560000 | I117: 1500000 | J117: 55396000 | K117: 62831172
A118: Investment properties | C118: =SUM(C116:C117) -> 0 | D118: =SUM(D116:D117) -> 0 | E118: 394025 | F118: 8000000 | G118: 7560000 | H118: 7560000 | I118: 1500000 | J118: 55396000 | K118: 62831172
A119: Operational Buildings | C119: =+C23+C55+C87 -> 0 | D119: =+D23+D55+D87 -> 0 | E119: 0 | F119: 10550000 | G119: 10550000 | H119: 10550000 | I119: 10550000 | J119: 1200000 | K119: 0
A120: Housing | C120: =+C24+C56+C88 -> 0 | D120: =+D24+D56+D88 -> 0 | E120: 0 | F120: 0 | G120: 0 | H120: 0 | I120: 0 | J120: 0 | K120: 0
A121: Other Assets | C121: =SUM(C119:C120) -> 0 | D121: 0 | E121: 0 | F121: 10550000 | G121: 10550000 | H121: 10550000 | I121: 10550000 | J121: 1200000 | K121: 0
A122: Biological or Cultivated Assets | C122: =+C26+C58+C90 -> 0 | D122: =+D26+D58+D90 -> 0 | E122: 0 | F122: 0 | G122: 0 | H122: 0 | I122: 0 | J122: 0 | K122: 0
A123: Servitudes | C123: =+C27+C59+C91 -> 0 | D123: =+D27+D59+D91 -> 0 | E123: 0 | F123: 0 | G123: 0 | H123: 0 | I123: 0 | J123: 0 | K123: 0
A124: Licences and Rights | C124: =+C28+C60+C92 -> 0 | D124: =+D28+D60+D92 -> 0 | E124: 0 | F124: 4700000 | G124: 4400000 | H124: 4400000 | I124: 3500000 | J124: 2500000 | K124: 0
A125: Intangible Assets | C125: =SUM(C123:C124) -> 0 | D125: =SUM(D123:D124) -> 0 | E125: 0 | F125: 4700000 | G125: 4400000 | H125: 4400000 | I125: 3500000 | J125: 2500000 | K125: 0
A126: Computer Equipment | C126: =+C30+C62+C94 -> 0 | D126: =+D30+D62+D94 -> 0 | E126: 450217.56 | F126: 2170000 | G126: 2470000 | H126: 2470000 | I126: 2000000 | J126: 1500000 | K126: 0
A127: Furniture and Office Equipment | C127: =+C31+C63+C95 -> 0 | D127: 0 | E127: 0 | F127: 350000 | G127: 350000 | H127: 350000 | I127: 740000 | J127: 367500 | K127: 385875
A128: Machinery and Equipment | C128: 0 | D128: 24205 | E128: 556500 | F128: 8750000 | G128: 10300000 | H128: 10300000 | I128: 16615000 | J128: 687750 | K128: 722138
A129: Transport Assets | C129: 0 | D129: 0 | E129: 0 | F129: 0 | G129: 0 | H129: 0 | I129: 3200000 | J129: 1100000 | K129: 0
A130: Land | C130: 0 | D130: 0 | E130: 0 | F130: 0 | G130: 0 | H130: 0 | I130: 0 | J130: 0 | K130: 0
A131: Zoo's, Marine and Non-biological Animals | C131: 0 | D131: 0 | E131: 0 | F131: 0 | G131: 0 | H131: 0 | I131: 0 | J131: 0 | K131: 0
A132: TOTAL CAPITAL EXPENDITURE - Asset class | C132: =+C5+C37+C69 -> 0 | D132: =+D5+D37+D69 -> 13767567.82 | E132: 45471036.76 | F132: 145662750 | G132: 155697750 | H132: 155697750 | I132: 191330136 | J132: 220008750 | K132: 217802935
A134: ASSET REGISTER SUMMARY - PPE (WDV) | B134: 5 | C134: =C144+C147+C148+C151+C154+C155+C158+C159+C160+C161+C162+C163+C164 -> 0 | D134: =D144+D147+D148+D151+D154+D155+D158+D159+D160+D161+D162+D163+D164 -> 13767567.82 | E134: 715924191.8 | F134: 1190830744 | G134: 833903014 | H134: 833903014 | I134: 879268731 | J134: 996618665 | K134: 975744831
A135: Roads Infrastructure | C135: 0 | D135: 12576499.54 | E135: 325811716.4 | F135: -1713909 | G135: 7691091 | H135: 7691091 | I135: 435863807 | J135: 376218273 | K135: 432742757
A136: Storm water Infrastructure | C136: 0 | D136: 720.11 | E136: 0 | F136: 400000 | G136: 400000 | H136: 400000 | I136: 2900000 | J136: 36600000 | K136: 0
A137: Electrical Infrastructure | C137: 0 | D137: 111127.61 | E137: 6135011.38 | F137: 5250000 | G137: 5250000 | H137: 5250000 | I137: 11165241 | J137: 10392512 | K137: 5635175
A138: Water Supply Infrastructure | C138: 0 | D138: -565.22 | E138: 0 | F138: 0 | G138: 0 | H138: 0 | I138: 0 | J138: 10000000 | K138: 0
A139: Sanitation Infrastructure | C139: 0 | D139: 0 | E139: 0 | F139: 0 | G139: 0 | H139: 0 | I139: 0 | J139: 0 | K139: 20000000
A140: Solid Waste Infrastructure | C140: 0 | D140: 0 | E140: 2148219.58 | F140: 0 | G140: 0 | H140: 0 | I140: 3748220 | J140: 2242742 | K140: 2343665
A141: Rail Infrastructure
A142: Coastal Infrastructure
A143: Information and Communication Infrastructure | C143: 0 | D143: 0 | E143: 0 | F143: 0 | G143: 0 | H143: 0 | I143: 0 | J143: 0 | K143: 0
A144: Infrastructure | C144: =SUM(C135:C143) -> 0 | D144: =SUM(D135:D143) -> 12687782.04 | E144: 334094947.4 | F144: 3936091 | G144: 13341091 | H144: 13341091 | I144: 453677268 | J144: 435453527 | K144: 460721597
A147: Community Assets | C147: 0 | D147: 1055580.78 | E147: 154096642.3 | F147: 160980840 | G147: 160500840 | H147: 160500840 | I147: 165849185 | J147: 208622549 | K147: 201867564
A148: Heritage Assets | C148: 0 | D148: 0 | E148: 183684.33 | F148: 183684 | G148: 183684 | H148: 183684 | I148: 183684 | J148: 191766 | K148: 200395
A151: Investment properties | C151: 0 | D151: 0 | E151: 102125000 | F151: 372262000 | G151: 109685000 | H151: 109685000 | I151: 103625000 | J151: 162014500 | K151: 174247505
A154: Other Assets | C154: 0 | D154: 0 | E154: 124262446.4 | F154: 637343375 | G154: 537217645 | H154: 537217645 | I154: 128717122 | J154: 124566475 | K154: 128917967
A155: Biological or Cultivated Assets
A158: Intangible Assets | C158: 0 | D158: 0 | E158: 154753.87 | F158: 4854754 | G158: -145246 | H158: -145246 | I158: 3654754 | J158: 61063584 | K158: 7583480
A159: Computer Equipment | C159: 0 | D159: 0 | E159: 450217.56 | F159: 2170000 | G159: 2470000 | H159: 2470000 | I159: 2450218 | J159: 1970028 | K159: 491179
A160: Furniture and Office Equipment | C160: 0 | D160: 0 | E160: 0 | F160: 350000 | G160: 350000 | H160: 350000 | I160: 740000 | J160: 367500 | K160: 385875
A161: Machinery and Equipment | C161: 0 | D161: 24205 | E161: 556500 | F161: 8750000 | G161: 10300000 | H161: 10300000 | I161: 17171500 | J161: 1268736 | K161: 1329269
A162: Transport Assets | C162: 0 | D162: 0 | E162: 0 | F162: 0 | G162: 0 | H162: 0 | I162: 3200000 | J162: 1100000 | K162: 0
A163: Land
A164: Zoo's, Marine and Non-biological Animals
A165: TOTAL ASSET REGISTER SUMMARY - PPE (WDV) | B165: 5 | C165: =C144+C147+C148+C151+C154+C155+C158+C159+C160+C161+C162+C163+C164 -> 0 | D165: =D144+D147+D148+D151+D154+D155+D158+D159+D160+D161+D162+D163+D164 -> 13767567.82 | E165: 715924191.8 | F165: 1190830744 | G165: 833903014 | H165: 833903014 | I165: 879268731 | J165: 996618665 | K165: 975744831
A167: EXPENDITURE OTHER ITEMS | C167: =SUM(C168:C169) -> 0 | D167: =SUM(D168:D169) -> 531801.32 | E167: 33165831.51 | F167: 73731089 | G167: 75569477 | H167: 75569477 | I167: 54873938 | J167: 60206696 | K167: 62247698
A168: Depreciation | B168: 7 | C168: =SA34d!C167 -> 0 | D168: =SA34d!D167 -> 13577.88 | E168: =SA34d!E167 -> 30573634.62 | F168: =SA34d!F167 -> 33519432 | G168: =SA34d!G167 -> 35019432 | H168: =SA34d!H167 -> 35019432 | I168: =SA34d!I167 -> 37699942 | J168: =SA34d!J167 -> 44489321 | K168: =SA34d!K167 -> 45823039
A169: Repairs and Maintenance by Asset Class | B169: 3 | C169: =C179+C182+C183+C186+C189+C190+SUM(C193:C199) -> 0 | D169: =D179+D182+D183+D186+D189+D190+SUM(D193:D199) -> 518223.44 | E169: 2592196.89 | F169: 40211657 | G169: 40550045 | H169: 40550045 | I169: 17173996 | J169: 15717375 | K169: 16424659
A170: Roads Infrastructure | C170: =SA34c!C7 -> 0 | D170: =SA34c!D7 -> 487500 | E170: =SA34c!E7 -> 665004.94 | F170: =SA34c!F7 -> 29163254 | G170: =SA34c!G7 -> 29163254 | H170: =SA34c!H7 -> 29163254 | I170: =SA34c!I7 -> 7624039 | J170: =SA34c!J7 -> 7626420 | K170: =SA34c!K7 -> 7969610
A171: Storm water Infrastructure | C171: =SA34c!C12 -> 0 | D171: =SA34c!D12 -> 0 | E171: =SA34c!E12 -> 0 | F171: =SA34c!F12 -> 0 | G171: =SA34c!G12 -> 0 | H171: =SA34c!H12 -> 0 | I171: =SA34c!I12 -> 0 | J171: =SA34c!J12 -> 0 | K171: =SA34c!K12 -> 0
A172: Electrical Infrastructure | C172: =SA34c!C16 -> 0 | D172: =SA34c!D16 -> 0 | E172: =SA34c!E16 -> 1558118.63 | F172: =SA34c!F16 -> 5397500 | G172: =SA34c!G16 -> 5735888 | H172: =SA34c!H16 -> 5735888 | I172: =SA34c!I16 -> 3100000 | J172: =SA34c!J16 -> 1357200 | K172: =SA34c!K16 -> 1418274
A173: Water Supply Infrastructure | C173: =SA34c!C26 -> 0 | D173: =SA34c!D26 -> 0 | E173: =SA34c!E26 -> 0 | F173: =SA34c!F26 -> 0 | G173: =SA34c!G26 -> 0 | H173: =SA34c!H26 -> 0 | I173: =SA34c!I26 -> 0 | J173: =SA34c!J26 -> 0 | K173: =SA34c!K26 -> 0
A174: Sanitation Infrastructure | C174: =SA34c!C37 -> 0 | D174: =SA34c!D37 -> 0 | E174: =SA34c!E37 -> 0 | F174: =SA34c!F37 -> 0 | G174: =SA34c!G37 -> 0 | H174: =SA34c!H37 -> 0 | I174: =SA34c!I37 -> 0 | J174: =SA34c!J37 -> 0 | K174: =SA34c!K37 -> 0
A175: Solid Waste Infrastructure | C175: =SA34c!C44 -> 0 | D175: =SA34c!D44 -> 0 | E175: =SA34c!E44 -> 0 | F175: =SA34c!F44 -> 0 | G175: =SA34c!G44 -> 0 | H175: =SA34c!H44 -> 0 | I175: =SA34c!I44 -> 0 | J175: =SA34c!J44 -> 0 | K175: =SA34c!K44 -> 0
A176: Rail Infrastructure | C176: =SA34c!C52 -> 0 | D176: =SA34c!D52 -> 0 | E176: =SA34c!E52 -> 0 | F176: =SA34c!F52 -> 0 | G176: =SA34c!G52 -> 0 | H176: =SA34c!H52 -> 0 | I176: =SA34c!I52 -> 0 | J176: =SA34c!J52 -> 0 | K176: =SA34c!K52 -> 0
A177: Coastal Infrastructure | C177: =SA34c!C62 -> 0 | D177: =SA34c!D62 -> 0 | E177: =SA34c!E62 -> 0 | F177: =SA34c!F62 -> 0 | G177: =SA34c!G62 -> 0 | H177: =SA34c!H62 -> 0 | I177: =SA34c!I62 -> 0 | J177: =SA34c!J62 -> 0 | K177: =SA34c!K62 -> 0
A178: Information and Communication Infrastructure | C178: =SA34c!C68 -> 0 | D178: =SA34c!D68 -> 0 | E178: =SA34c!E68 -> 0 | F178: =SA34c!F68 -> 0 | G178: =SA34c!G68 -> 0 | H178: =SA34c!H68 -> 0 | I178: =SA34c!I68 -> 0 | J178: =SA34c!J68 -> 0 | K178: =SA34c!K68 -> 0
A179: Infrastructure | C179: =SUM(C170:C178) -> 0 | D179: =SUM(D170:D178) -> 487500 | E179: 2223123.57 | F179: 34560754 | G179: 34899142 | H179: 34899142 | I179: 10724039 | J179: 8983620 | K179: 9387884
A180: Community Facilities | C180: =SA34c!C75 -> 0 | D180: =SA34c!D75 -> 0 | E180: =SA34c!E75 -> 0 | F180: =SA34c!F75 -> 398503 | G180: =SA34c!G75 -> 398503 | H180: =SA34c!H75 -> 398503 | I180: =SA34c!I75 -> 1000000 | J180: =SA34c!J75 -> 1044000 | K180: =SA34c!K75 -> 1090980
A181: Sport and Recreation Facilities | C181: =SA34c!C98 -> 0 | D181: =SA34c!D98 -> 0 | E181: =SA34c!E98 -> 0 | F181: =SA34c!F98 -> 0 | G181: =SA34c!G98 -> 0 | H181: =SA34c!H98 -> 0 | I181: =SA34c!I98 -> 0 | J181: =SA34c!J98 -> 0 | K181: =SA34c!K98 -> 0
A182: Community Assets | C182: =SUM(C180:C181) -> 0 | D182: 0 | E182: 0 | F182: 398503 | G182: 398503 | H182: 398503 | I182: 1000000 | J182: 1044000 | K182: 1090980
A183: Heritage Assets | C183: =SA34c!C103 -> 0 | D183: =SA34c!D103 -> 0 | E183: =SA34c!E103 -> 0 | F183: =SA34c!F103 -> 0 | G183: =SA34c!G103 -> 0 | H183: =SA34c!H103 -> 0 | I183: =SA34c!I103 -> 0 | J183: =SA34c!J103 -> 0 | K183: =SA34c!K103 -> 0
A184: Revenue Generating | C184: =SA34c!C111 -> 0 | D184: =SA34c!D111 -> 0 | E184: =SA34c!E111 -> 0 | F184: =SA34c!F111 -> 0 | G184: =SA34c!G111 -> 0 | H184: =SA34c!H111 -> 0 | I184: =SA34c!I111 -> 0 | J184: =SA34c!J111 -> 0 | K184: =SA34c!K111 -> 0
A185: Non-revenue Generating | C185: =SA34c!C114 -> 0 | D185: =SA34c!D114 -> 0 | E185: =SA34c!E114 -> 0 | F185: =SA34c!F114 -> 0 | G185: =SA34c!G114 -> 0 | H185: =SA34c!H114 -> 0 | I185: =SA34c!I114 -> 0 | J185: =SA34c!J114 -> 0 | K185: =SA34c!K114 -> 0
A186: Investment properties | C186: =SUM(C184:C185) -> 0 | D186: 0 | E186: 0 | F186: 0 | G186: 0 | H186: 0 | I186: 0 | J186: 0 | K186: 0
A187: Operational Buildings | C187: =SA34c!C119 -> 0 | D187: =SA34c!D119 -> 0 | E187: =SA34c!E119 -> 148229.96 | F187: =SA34c!F119 -> 1246800 | G187: =SA34c!G119 -> 1246800 | H187: =SA34c!H119 -> 1246800 | I187: =SA34c!I119 -> 1000000 | J187: =SA34c!J119 -> 1044000 | K187: =SA34c!K119 -> 1090980
A188: Housing | C188: =SA34c!C131 -> 0 | D188: =SA34c!D131 -> 0 | E188: =SA34c!E131 -> 0 | F188: =SA34c!F131 -> 0 | G188: =SA34c!G131 -> 0 | H188: =SA34c!H131 -> 0 | I188: =SA34c!I131 -> 0 | J188: =SA34c!J131 -> 0 | K188: =SA34c!K131 -> 0
A189: Other Assets | C189: =SUM(C187:C188) -> 0 | D189: 0 | E189: 148229.96 | F189: 1246800 | G189: 1246800 | H189: 1246800 | I189: 1000000 | J189: 1044000 | K189: 1090980
A190: Biological or Cultivated Assets | C190: =SA34c!C136 -> 0 | D190: =SA34c!D136 -> 0 | E190: =SA34c!E136 -> 0 | F190: =SA34c!F136 -> 0 | G190: =SA34c!G136 -> 0 | H190: =SA34c!H136 -> 0 | I190: =SA34c!I136 -> 0 | J190: =SA34c!J136 -> 0 | K190: =SA34c!K136 -> 0
A191: Servitudes | C191: =SA34c!C140 -> 0 | D191: =SA34c!D140 -> 0 | E191: =SA34c!E140 -> 0 | F191: =SA34c!F140 -> 0 | G191: =SA34c!G140 -> 0 | H191: =SA34c!H140 -> 0 | I191: =SA34c!I140 -> 0 | J191: =SA34c!J140 -> 0 | K191: =SA34c!K140 -> 0
A192: Licences and Rights | C192: =SA34c!C141 -> 0 | D192: =SA34c!D141 -> 0 | E192: =SA34c!E141 -> 0 | F192: =SA34c!F141 -> 0 | G192: =SA34c!G141 -> 0 | H192: =SA34c!H141 -> 0 | I192: =SA34c!I141 -> 0 | J192: =SA34c!J141 -> 0 | K192: =SA34c!K141 -> 0
A193: Intangible Assets | C193: =SUM(C191:C192) -> 0 | D193: 0 | E193: 0 | F193: 0 | G193: 0 | H193: 0 | I193: 0 | J193: 0 | K193: 0
A194: Computer Equipment | C194: =SA34c!C149 -> 0 | D194: =SA34c!D149 -> 0 | E194: =SA34c!E149 -> 0 | F194: =SA34c!F149 -> 0 | G194: =SA34c!G149 -> 0 | H194: =SA34c!H149 -> 0 | I194: =SA34c!I149 -> 0 | J194: =SA34c!J149 -> 0 | K194: =SA34c!K149 -> 0
A195: Furniture and Office Equipment | C195: =SA34c!C152 -> 0 | D195: =SA34c!D152 -> 0 | E195: =SA34c!E152 -> 0 | F195: =SA34c!F152 -> 0 | G195: =SA34c!G152 -> 0 | H195: =SA34c!H152 -> 0 | I195: =SA34c!I152 -> 0 | J195: =SA34c!J152 -> 0 | K195: =SA34c!K152 -> 0
A196: Machinery and Equipment | C196: =SA34c!C155 -> 0 | D196: =SA34c!D155 -> 0 | E196: =SA34c!E155 -> 0 | F196: =SA34c!F155 -> 190000 | G196: =SA34c!G155 -> 190000 | H196: =SA34c!H155 -> 190000 | I196: =SA34c!I155 -> 364800 | J196: =SA34c!J155 -> 380851 | K196: =SA34c!K155 -> 397990
A197: Transport Assets | C197: =SA34c!C158 -> 0 | D197: =SA34c!D158 -> 30723.44 | E197: =SA34c!E158 -> 220843.36 | F197: =SA34c!F158 -> 3815600 | G197: =SA34c!G158 -> 3815600 | H197: =SA34c!H158 -> 3815600 | I197: =SA34c!I158 -> 4085157 | J197: =SA34c!J158 -> 4264904 | K197: =SA34c!K158 -> 4456825
A198: Land | C198: =SA34c!C161 -> 0 | D198: =SA34c!D161 -> 0 | E198: =SA34c!E161 -> 0 | F198: =SA34c!F161 -> 0 | G198: =SA34c!G161 -> 0 | H198: =SA34c!H161 -> 0 | I198: =SA34c!I161 -> 0 | J198: =SA34c!J161 -> 0 | K198: =SA34c!K161 -> 0
A199: Zoo's, Marine and Non-biological Animals | C199: =SA34c!C164 -> 0 | D199: =SA34c!D164 -> 0 | E199: =SA34c!E164 -> 0 | F199: =SA34c!F164 -> 0 | G199: =SA34c!G164 -> 0 | H199: =SA34c!H164 -> 0 | I199: =SA34c!I164 -> 0 | J199: =SA34c!J164 -> 0 | K199: =SA34c!K164 -> 0
A201: TOTAL EXPENDITURE OTHER ITEMS | C201: =SUM(C168:C169) -> 0 | D201: 531801.32 | E201: 33165831.51 | F201: 73731089 | G201: 75569477 | H201: 75569477 | I201: 54873938 | J201: 60206696 | K201: 62247698
A203: Renewal and upgrading of Existing Assets as % of total capex | C203: =IF(ISERROR((C37+C69)/C132),0,((C37+C69)/C132)) -> 0 | D203: =IF(ISERROR((D37+D69)/D132),0,((D37+D69)/D132)) -> 5.230480862e-05 | E203: 0.1361134459 | F203: 0.176002444 | G203: 0.2316154215 | H203: 0.2316154215 | I203: 0.331928897 | J203: 0.08691927026 | K203: 0.1836522543
A204: Renewal and upgrading of Existing Assets as % of deprecn | C204: =IF(ISERROR((C37+C69)/C168),0,((C37+C69)/C168)) -> 0 | D204: =IF(ISERROR((D37+D69)/D168),0,((D37+D69)/D168)) -> 0.05303552543 | E204: 0.2024364972 | F204: 0.7648399293 | G204: 1.029771128 | H204: 1.029771128 | I204: 1.684564952 | J204: 0.4298334875 | K204: 0.8729233345
A205: R&M as a % of PPE | C205: =IF(ISERROR(ROUND(C169/'A6-FinPos'!C19,3)),0,(ROUND(C169/'A6-FinPos'!C19,3))) -> 0 | D205: =IF(ISERROR(ROUND(D169/'A6-FinPos'!D19,3)),0,(ROUND(D169/'A6-FinPos'!D19,3))) -> 0.038 | E205: =IF(ISERROR(ROUND(E169/'A6-FinPos'!E19,3)),0,(ROUND(E169/'A6-FinPos'!E19,3))) -> 0.004 | F205: =IF(ISERROR(ROUND(F169/'A6-FinPos'!F19,3)),0,(ROUND(F169/'A6-FinPos'!F19,3))) -> 0.049 | G205: =IF(ISERROR(ROUND(G169/'A6-FinPos'!G19,3)),0,(ROUND(G169/'A6-FinPos'!G19,3))) -> 0.056 | H205: =IF(ISERROR(ROUND(H169/'A6-FinPos'!H19,3)),0,(ROUND(H169/'A6-FinPos'!H19,3))) -> 0.056 | I205: =IF(ISERROR(ROUND(I169/'A6-FinPos'!J19,3)),0,(ROUND(I169/'A6-FinPos'!J19,3))) -> 0.02 | J205: =IF(ISERROR(ROUND(J169/'A6-FinPos'!K19,3)),0,(ROUND(J169/'A6-FinPos'!K19,3))) -> 0.018 | K205: =IF(ISERROR(ROUND(K169/'A6-FinPos'!L19,3)),0,(ROUND(K169/'A6-FinPos'!L19,3))) -> 0.018
A206: Renewal and upgrading and R&M as a % of PPE | C206: =IF(ISERROR(ROUND((C37+C69+C169)/C165,2)),0,(ROUND((C37+C69+C169)/C165,2))) -> 0 | D206: =IF(ISERROR(ROUND((D37+D69+D169)/D165,2)),0,(ROUND((D37+D69+D169)/D165,2))) -> 0.04 | E206: 0.01 | F206: 0.06 | G206: 0.09 | H206: 0.09 | I206: 0.09 | J206: 0.03 | K206: 0.06
A208: =head27a -> References
A209: 1. Detail of new assets provided in Table SA34a
A210: 2. Detail of renewal of existing assets provided in Table SA34b
A211: 3. Detail of Repairs and Maintenance by Asset Class provided in Table SA34c
A212: 4. Must reconcile to total capital expenditure on Budgeted Capital Expenditure
A213: 5. Must reconcile to 'Budgeted Financial Position' (written down value)
A214: 6. Detail of upgrading of existing assets provided in Table SA34e
A215: 7. Detail of depreciation provided in Table SA34d
A217: Check balance to A6 | C217: =C165-'A6-FinPos'!D17-'A6-FinPos'!D19-'A6-FinPos'!D20-'A6-FinPos'!D21-'A6-FinPos'!D22-C148 -> -13767567.82 | D217: =D165-'A6-FinPos'!E17-'A6-FinPos'!E19-'A6-FinPos'!E20-'A6-FinPos'!E21-'A6-FinPos'!E22-D148 -> -801866761.9 | E217: =E165-'A6-FinPos'!F17-'A6-FinPos'!F19-'A6-FinPos'!F20-'A6-FinPos'!F21-'A6-FinPos'!F22-E148 -> -474906552.5 | F217: =F165-'A6-FinPos'!G17-'A6-FinPos'!G19-'A6-FinPos'!G20-'A6-FinPos'!G21-'A6-FinPos'!G22-F148 -> 356927730 | G217: =G165-'A6-FinPos'!H17-'A6-FinPos'!H19-'A6-FinPos'!H20-'A6-FinPos'!H21-'A6-FinPos'!H22-G148 -> 0 | H217: =H165-'A6-FinPos'!I17-'A6-FinPos'!I19-'A6-FinPos'!I20-'A6-FinPos'!I21-'A6-FinPos'!I22-H148 -> -8925562.3 | I217: =I165-'A6-FinPos'!J17-'A6-FinPos'!J19-'A6-FinPos'!J20-'A6-FinPos'!J21-'A6-FinPos'!J22-I148 -> -99893822 | J217: =J165-'A6-FinPos'!K17-'A6-FinPos'!K19-'A6-FinPos'!K20-'A6-FinPos'!K21-'A6-FinPos'!K22-J148 -> -104289150 | K217: =K165-'A6-FinPos'!L17-'A6-FinPos'!L19-'A6-FinPos'!L20-'A6-FinPos'!L21-'A6-FinPos'!L22-K148 -> -108982162

Sheet A10-SerDel
A1: =muni&" - "&Approve10 -> LIM355 Lepelle-Nkumpi - Table A10 Basic service delivery measurement
A2: =desc -> Description | B2: =head27 -> Ref | C2: =head1b -> 2018/19 | D2: =head1A -> 2019/20 | E2: =Head1 -> 2020/21 | F2: =Head2 -> Current Year 2021/22 | I2: =Head3 -> 2022/23 Medium Term Revenue & Expenditure Framework
C3: =Head5A -> Outcome | D3: =Head5A -> Outcome | E3: =Head5A -> Outcome | F3: =Head6 -> Original Budget | G3: =Head7 -> Adjusted Budget | H3: =Head8 -> Full Year Forecast | I3: =Head9 -> Budget Year 2022/23 | J3: =Head10 -> Budget Year +1 2023/24 | K3: =Head11 -> Budget Year +2 2024/25
A4: Household service targets | B4: 1
A5: Water:
A6: Piped water inside dwelling | C6: ='SA9'!E67 -> 0 | D6: ='SA9'!F67 -> 0 | E6: ='SA9'!G67 -> 0 | F6: ='SA9'!H67 -> 0 | G6: ='SA9'!I67 -> 0 | H6: ='SA9'!J67 -> 0 | I6: ='SA9'!K67 -> 0 | J6: ='SA9'!L67 -> 0 | K6: ='SA9'!M67 -> 0
A7: Piped water inside yard (but not in dwelling) | C7: ='SA9'!E68 -> 0 | D7: ='SA9'!F68 -> 0 | E7: ='SA9'!G68 -> 0 | F7: ='SA9'!H68 -> 0 | G7: ='SA9'!I68 -> 0 | H7: ='SA9'!J68 -> 0 | I7: ='SA9'!K68 -> 0 | J7: ='SA9'!L68 -> 0 | K7: ='SA9'!M68 -> 0
A8: Using public tap (at least min.service level) | B8: 2 | C8: ='SA9'!E69 -> 0 | D8: ='SA9'!F69 -> 0 | E8: ='SA9'!G69 -> 0 | F8: ='SA9'!H69 -> 0 | G8: ='SA9'!I69 -> 0 | H8: ='SA9'!J69 -> 0 | I8: ='SA9'!K69 -> 0 | J8: ='SA9'!L69 -> 0 | K8: ='SA9'!M69 -> 0
A9: Other water supply (at least min.service level) | B9: 4 | C9: ='SA9'!E70 -> 0 | D9: ='SA9'!F70 -> 0 | E9: ='SA9'!G70 -> 0 | F9: ='SA9'!H70 -> 0 | G9: ='SA9'!I70 -> 0 | H9: ='SA9'!J70 -> 0 | I9: ='SA9'!K70 -> 0 | J9: ='SA9'!L70 -> 0 | K9: ='SA9'!M70 -> 0
A10: Minimum Service Level and Above sub-total | C10: =SUM(C6:C9) -> 0 | D10: =SUM(D6:D9) -> 0 | E10: 0 | F10: 0 | G10: 0 | H10: 0 | I10: 0 | J10: 0 | K10: 0
A11: Using public tap (< min.service level) | B11: 3 | C11: ='SA9'!E72 -> 0 | D11: ='SA9'!F72 -> 0 | E11: ='SA9'!G72 -> 0 | F11: ='SA9'!H72 -> 0 | G11: ='SA9'!I72 -> 0 | H11: ='SA9'!J72 -> 0 | I11: ='SA9'!K72 -> 0 | J11: ='SA9'!L72 -> 0 | K11: ='SA9'!M72 -> 0
A12: Other water supply (< min.service level) | B12: =B9 -> 4 | C12: ='SA9'!E73 -> 0 | D12: ='SA9'!F73 -> 0 | E12: ='SA9'!G73 -> 0 | F12: ='SA9'!H73 -> 0 | G12: ='SA9'!I73 -> 0 | H12: ='SA9'!J73 -> 0 | I12: ='SA9'!K73 -> 0 | J12: ='SA9'!L73 -> 0 | K12: ='SA9'!M73 -> 0
A13: No water supply | C13: ='SA9'!E74 -> 0 | D13: ='SA9'!F74 -> 0 | E13: ='SA9'!G74 -> 0 | F13: ='SA9'!H74 -> 0 | G13: ='SA9'!I74 -> 0 | H13: ='SA9'!J74 -> 0 | I13: ='SA9'!K74 -> 0 | J13: ='SA9'!L74 -> 0 | K13: ='SA9'!M74 -> 0
A14: Below Minimum Service Level sub-total | C14: =SUM(C11:C13) -> 0 | D14: =SUM(D11:D13) -> 0 | E14: 0 | F14: 0 | G14: 0 | H14: 0 | I14: 0 | J14: 0 | K14: 0
A15: Total number of households | B15: 5 | C15: =C10+C14 -> 0 | D15: =D10+D14 -> 0 | E15: 0 | F15: 0 | G15: 0 | H15: 0 | I15: 0 | J15: 0 | K15: 0
A16: Sanitation/sewerage:
A17: Flush toilet (connected to sewerage) | C17: ='SA9'!E78 -> 0 | D17: ='SA9'!F78 -> 0 | E17: ='SA9'!G78 -> 0 | F17: ='SA9'!H78 -> 0 | G17: ='SA9'!I78 -> 0 | H17: ='SA9'!J78 -> 0 | I17: ='SA9'!K78 -> 0 | J17: ='SA9'!L78 -> 0 | K17: ='SA9'!M78 -> 0
A18: Flush toilet (with septic tank) | C18: ='SA9'!E79 -> 0 | D18: ='SA9'!F79 -> 0 | E18: ='SA9'!G79 -> 0 | F18: ='SA9'!H79 -> 0 | G18: ='SA9'!I79 -> 0 | H18: ='SA9'!J79 -> 0 | I18: ='SA9'!K79 -> 0 | J18: ='SA9'!L79 -> 0 | K18: ='SA9'!M79 -> 0
A19: Chemical toilet | C19: ='SA9'!E80 -> 0 | D19: ='SA9'!F80 -> 0 | E19: ='SA9'!G80 -> 0 | F19: ='SA9'!H80 -> 0 | G19: ='SA9'!I80 -> 0 | H19: ='SA9'!J80 -> 0 | I19: ='SA9'!K80 -> 0 | J19: ='SA9'!L80 -> 0 | K19: ='SA9'!M80 -> 0
A20: Pit toilet (ventilated) | C20: ='SA9'!E81 -> 0 | D20: ='SA9'!F81 -> 0 | E20: ='SA9'!G81 -> 0 | F20: ='SA9'!H81 -> 0 | G20: ='SA9'!I81 -> 0 | H20: ='SA9'!J81 -> 0 | I20: ='SA9'!K81 -> 0 | J20: ='SA9'!L81 -> 0 | K20: ='SA9'!M81 -> 0
A21: Other toilet provisions (> min.service level) | C21: ='SA9'!E82 -> 0 | D21: ='SA9'!F82 -> 0 | E21: ='SA9'!G82 -> 0 | F21: ='SA9'!H82 -> 0 | G21: ='SA9'!I82 -> 0 | H21: ='SA9'!J82 -> 0 | I21: ='SA9'!K82 -> 0 | J21: ='SA9'!L82 -> 0 | K21: ='SA9'!M82 -> 0
A22: =$A$10 -> Minimum Service Level and Above sub-total | C22: =SUM(C17:C21) -> 0 | D22: =SUM(D17:D21) -> 0 | E22: 0 | F22: 0 | G22: 0 | H22: 0 | I22: 0 | J22: 0 | K22: 0
A23: Bucket toilet | C23: ='SA9'!E84 -> 0 | D23: ='SA9'!F84 -> 0 | E23: ='SA9'!G84 -> 0 | F23: ='SA9'!H84 -> 0 | G23: ='SA9'!I84 -> 0 | H23: ='SA9'!J84 -> 0 | I23: ='SA9'!K84 -> 0 | J23: ='SA9'!L84 -> 0 | K23: ='SA9'!M84 -> 0
A24: Other toilet provisions (< min.service level) | C24: ='SA9'!E85 -> 0 | D24: ='SA9'!F85 -> 0 | E24: ='SA9'!G85 -> 0 | F24: ='SA9'!H85 -> 0 | G24: ='SA9'!I85 -> 0 | H24: ='SA9'!J85 -> 0 | I24: ='SA9'!K85 -> 0 | J24: ='SA9'!L85 -> 0 | K24: ='SA9'!M85 -> 0
A25: No toilet provisions | C25: ='SA9'!E86 -> 0 | D25: ='SA9'!F86 -> 0 | E25: ='SA9'!G86 -> 0 | F25: ='SA9'!H86 -> 0 | G25: ='SA9'!I86 -> 0 | H25: ='SA9'!J86 -> 0 | I25: ='SA9'!K86 -> 0 | J25: ='SA9'!L86 -> 0 | K25: ='SA9'!M86 -> 0
A26: =$A$14 -> Below Minimum Service Level sub-total | C26: =SUM(C23:C25) -> 0 | D26: =SUM(D23:D25) -> 0 | E26: 0 | F26: 0 | G26: 0 | H26: 0 | I26: 0 | J26: 0 | K26: 0
A27: =$A$15 -> Total number of households | B27: =$B$15 -> 5 | C27: =C22+C26 -> 0 | D27: =D22+D26 -> 0 | E27: 0 | F27: 0 | G27: 0 | H27: 0 | I27: 0 | J27: 0 | K27: 0
A28: Energy:
A29: Electricity (at least min.service level) | C29: ='SA9'!E90 -> 0 | D29: ='SA9'!F90 -> 0 | E29: ='SA9'!G90 -> 0 | F29: ='SA9'!H90 -> 0 | G29: ='SA9'!I90 -> 0 | H29: ='SA9'!J90 -> 0 | I29: ='SA9'!K90 -> 0 | J29: ='SA9'!L90 -> 0 | K29: ='SA9'!M90 -> 0
A30: Electricity - prepaid (min.service level) | C30: ='SA9'!E91 -> 0 | D30: ='SA9'!F91 -> 0 | E30: ='SA9'!G91 -> 0 | F30: ='SA9'!H91 -> 0 | G30: ='SA9'!I91 -> 0 | H30: ='SA9'!J91 -> 0 | I30: ='SA9'!K91 -> 0 | J30: ='SA9'!L91 -> 0 | K30: ='SA9'!M91 -> 0
A31: =$A$10 -> Minimum Service Level and Above sub-total | C31: =SUM(C29:C30) -> 0 | D31: =SUM(D29:D30) -> 0 | E31: 0 | F31: 0 | G31: 0 | H31: 0 | I31: 0 | J31: 0 | K31: 0
A32: Electricity (< min.service level) | C32: ='SA9'!E93 -> 0 | D32: ='SA9'!F93 -> 0 | E32: ='SA9'!G93 -> 0 | F32: ='SA9'!H93 -> 0 | G32: ='SA9'!I93 -> 0 | H32: ='SA9'!J93 -> 0 | I32: ='SA9'!K93 -> 0 | J32: ='SA9'!L93 -> 0 | K32: ='SA9'!M93 -> 0
A33: Electricity - prepaid (< min. service level) | C33: ='SA9'!E94 -> 0 | D33: ='SA9'!F94 -> 0 | E33: ='SA9'!G94 -> 0 | F33: ='SA9'!H94 -> 0 | G33: ='SA9'!I94 -> 0 | H33: ='SA9'!J94 -> 0 | I33: ='SA9'!K94 -> 0 | J33: ='SA9'!L94 -> 0 | K33: ='SA9'!M94 -> 0
A34: Other energy sources | C34: ='SA9'!E95 -> 0 | D34: ='SA9'!F95 -> 0 | E34: ='SA9'!G95 -> 0 | F34: ='SA9'!H95 -> 0 | G34: ='SA9'!I95 -> 0 | H34: ='SA9'!J95 -> 0 | I34: ='SA9'!K95 -> 0 | J34: ='SA9'!L95 -> 0 | K34: ='SA9'!M95 -> 0
A35: =$A$14 -> Below Minimum Service Level sub-total | C35: =SUM(C32:C34) -> 0 | D35: =SUM(D32:D34) -> 0 | E35: 0 | F35: 0 | G35: 0 | H35: 0 | I35: 0 | J35: 0 | K35: 0
A36: =$A$15 -> Total number of households | B36: =$B$15 -> 5 | C36: =C31+C35 -> 0 | D36: =D31+D35 -> 0 | E36: 0 | F36: 0 | G36: 0 | H36: 0 | I36: 0 | J36: 0 | K36: 0
A37: Refuse:
A38: Removed at least once a week | C38: ='SA9'!E99 -> 0 | D38: ='SA9'!F99 -> 0 | E38: ='SA9'!G99 -> 0 | F38: ='SA9'!H99 -> 0 | G38: ='SA9'!I99 -> 0 | H38: ='SA9'!J99 -> 0 | I38: ='SA9'!K99 -> 0 | J38: ='SA9'!L99 -> 0 | K38: ='SA9'!M99 -> 0
A39: =$A$10 -> Minimum Service Level and Above sub-total | C39: =SUM(C38) -> 0 | D39: =SUM(D38) -> 0 | E39: 0 | F39: 0 | G39: 0 | H39: 0 | I39: 0 | J39: 0 | K39: 0
A40: Removed less frequently than once a week | C40: ='SA9'!E101 -> 0 | D40: ='SA9'!F101 -> 0 | E40: ='SA9'!G101 -> 0 | F40: ='SA9'!H101 -> 0 | G40: ='SA9'!I101 -> 0 | H40: ='SA9'!J101 -> 0 | I40: ='SA9'!K101 -> 0 | J40: ='SA9'!L101 -> 0 | K40: ='SA9'!M101 -> 0
A41: Using communal refuse dump | C41: ='SA9'!E102 -> 0 | D41: ='SA9'!F102 -> 0 | E41: ='SA9'!G102 -> 0 | F41: ='SA9'!H102 -> 0 | G41: ='SA9'!I102 -> 0 | H41: ='SA9'!J102 -> 0 | I41: ='SA9'!K102 -> 0 | J41: ='SA9'!L102 -> 0 | K41: ='SA9'!M102 -> 0
A42: Using own refuse dump | C42: ='SA9'!E103 -> 0 | D42: ='SA9'!F103 -> 0 | E42: ='SA9'!G103 -> 0 | F42: ='SA9'!H103 -> 0 | G42: ='SA9'!I103 -> 0 | H42: ='SA9'!J103 -> 0 | I42: ='SA9'!K103 -> 0 | J42: ='SA9'!L103 -> 0 | K42: ='SA9'!M103 -> 0
A43: Other rubbish disposal | C43: ='SA9'!E104 -> 0 | D43: ='SA9'!F104 -> 0 | E43: ='SA9'!G104 -> 0 | F43: ='SA9'!H104 -> 0 | G43: ='SA9'!I104 -> 0 | H43: ='SA9'!J104 -> 0 | I43: ='SA9'!K104 -> 0 | J43: ='SA9'!L104 -> 0 | K43: ='SA9'!M104 -> 0
A44: No rubbish disposal | C44: ='SA9'!E105 -> 0 | D44: ='SA9'!F105 -> 0 | E44: ='SA9'!G105 -> 0 | F44: ='SA9'!H105 -> 0 | G44: ='SA9'!I105 -> 0 | H44: ='SA9'!J105 -> 0 | I44: ='SA9'!K105 -> 0 | J44: ='SA9'!L105 -> 0 | K44: ='SA9'!M105 -> 0
A45: =$A$14 -> Below Minimum Service Level sub-total | C45: =SUM(C40:C44) -> 0 | D45: 0 | E45: 0 | F45: 0 | G45: 0 | H45: 0 | I45: 0 | J45: 0 | K45: 0
A46: =$A$15 -> Total number of households | B46: =$B$15 -> 5 | C46: =C39+C45 -> 0 | D46: =D39+D45 -> 0 | E46: 0 | F46: 0 | G46: 0 | H46: 0 | I46: 0 | J46: 0 | K46: 0
A48: Households receiving Free Basic Service | B48: 7
A49: Water (6 kilolitres per household per month) | C49: ='SA9'!E263 -> 0 | D49: ='SA9'!F263 -> 0 | E49: ='SA9'!G263 -> 0 | F49: ='SA9'!H263 -> 0 | G49: ='SA9'!I263 -> 0 | H49: ='SA9'!J263 -> 0 | I49: ='SA9'!K263 -> 0 | J49: ='SA9'!L263 -> 0 | K49: ='SA9'!M263 -> 0
A50: Sanitation (free minimum level service) | C50: ='SA9'!E275 -> 0 | D50: ='SA9'!F275 -> 0 | E50: ='SA9'!G275 -> 0 | F50: ='SA9'!H275 -> 0 | G50: ='SA9'!I275 -> 0 | H50: ='SA9'!J275 -> 0 | I50: ='SA9'!K275 -> 0 | J50: ='SA9'!L275 -> 0 | K50: ='SA9'!M275 -> 0
A51: Electricity/other energy (50kwh per household per month) | C51: ='SA9'!E251 -> 0 | D51: ='SA9'!F251 -> 0 | E51: ='SA9'!G251 -> 0 | F51: ='SA9'!H251 -> 0 | G51: ='SA9'!I251 -> 0 | H51: ='SA9'!J251 -> 0 | I51: ='SA9'!K251 -> 0 | J51: ='SA9'!L251 -> 0 | K51: ='SA9'!M251 -> 0
A52: Refuse (removed at least once a week) | C52: ='SA9'!E287 -> 0 | D52: ='SA9'!F287 -> 0 | E52: ='SA9'!G287 -> 0 | F52: ='SA9'!H287 -> 0 | G52: ='SA9'!I287 -> 0 | H52: ='SA9'!J287 -> 0 | I52: ='SA9'!K287 -> 0 | J52: ='SA9'!L287 -> 0 | K52: ='SA9'!M287 -> 0
A54: Cost of Free Basic Services provided - Formal Settlements (R'000) | B54: 8
A55: Water (6 kilolitres per indigent household per month) | C55: ='SA1'!C20 -> 0 | D55: ='SA1'!D20 -> 0 | E55: ='SA1'!E20 -> 0 | F55: ='SA1'!F20 -> 0 | G55: ='SA1'!G20 -> 0 | H55: ='SA1'!H20 -> 0 | I55: ='SA1'!J20 -> 0 | J55: ='SA1'!K20 -> 0 | K55: ='SA1'!L20 -> 0
A56: Sanitation (free sanitation service to indigent households) | C56: ='SA1'!C26 -> 0 | D56: ='SA1'!D26 -> 0 | E56: ='SA1'!E26 -> 0 | F56: ='SA1'!F26 -> 0 | G56: ='SA1'!G26 -> 0 | H56: ='SA1'!H26 -> 0 | I56: ='SA1'!J26 -> 0 | J56: ='SA1'!K26 -> 0 | K56: ='SA1'!L26 -> 0
A57: Electricity/other energy (50kwh per indigent household per month) | C57: ='SA1'!C14 -> 0 | D57: ='SA1'!D14 -> 0 | E57: ='SA1'!E14 -> 0 | F57: ='SA1'!F14 -> 0 | G57: ='SA1'!G14 -> 0 | H57: ='SA1'!H14 -> 0 | I57: ='SA1'!J14 -> 0 | J57: ='SA1'!K14 -> 0 | K57: ='SA1'!L14 -> 0
A58: Refuse (removed once a week for indigent households) | C58: ='SA1'!C33 -> 0 | D58: ='SA1'!D33 -> 0 | E58: ='SA1'!E33 -> 0 | F58: ='SA1'!F33 -> 19835 | G58: ='SA1'!G33 -> 19835 | H58: ='SA1'!H33 -> 19835 | I58: ='SA1'!J33 -> 20786 | J58: ='SA1'!K33 -> 21701 | K58: ='SA1'!L33 -> 22677
A59: Cost of Free Basic Services provided - Informal Formal Settlements (R'000) | C59: ='SA9'!E260+'SA9'!E272+'SA9'!E284+'SA9'!E296 -> 0 | D59: ='SA9'!F260+'SA9'!F272+'SA9'!F284+'SA9'!F296 -> 0 | E59: ='SA9'!G260+'SA9'!G272+'SA9'!G284+'SA9'!G296 -> 0 | F59: ='SA9'!H260+'SA9'!H272+'SA9'!H284+'SA9'!H296 -> 0 | G59: ='SA9'!I260+'SA9'!I272+'SA9'!I284+'SA9'!I296 -> 0 | H59: ='SA9'!J260+'SA9'!J272+'SA9'!J284+'SA9'!J296 -> 0 | I59: ='SA9'!K260+'SA9'!K272+'SA9'!K284+'SA9'!K296 -> 0 | J59: ='SA9'!L260+'SA9'!L272+'SA9'!L284+'SA9'!L296 -> 0 | K59: ='SA9'!M260+'SA9'!M272+'SA9'!M284+'SA9'!M296 -> 0
A60: Total cost of FBS provided | C60: =SUM(C55:C59) -> 0 | D60: 0 | E60: 0 | F60: 19835 | G60: 19835 | H60: 19835 | I60: 20786 | J60: 21701 | K60: 22677
A62: Highest level of free service provided per household
A63: Property rates (R value threshold)
A64: Water (kilolitres per household per month)
A65: Sanitation (kilolitres per household per month)
A66: Sanitation (Rand per household per month)
A67: Electricity (kwh per household per month)
A68: Refuse (average litres per week)
A69: Revenue cost of subsidised services provided (R'000) | B69: 9
A70: Property rates (tariff adjustment) ( impermissable values per section 17 of MPRA)
A71: Property rates exemptions, reductions and rebates and impermissable values in excess of section 17 of MPRA) | C71: ='SA1'!C8 -> 0 | D71: ='SA1'!D8 -> -4284699.39 | E71: ='SA1'!E8 -> 1067792.77 | F71: ='SA1'!F8 -> 9032854 | G71: ='SA1'!G8 -> 9032854 | H71: ='SA1'!H8 -> 9032854 | I71: ='SA1'!J8 -> 9466431 | J71: ='SA1'!K8 -> 9882953 | K71: ='SA1'!L8 -> 10327687
A72: Water (in excess of 6 kilolitres per indigent household per month) | C72: ='SA1'!C19 -> 0 | D72: ='SA1'!D19 -> 0 | E72: ='SA1'!E19 -> 0 | F72: ='SA1'!F19 -> 0 | G72: ='SA1'!G19 -> 0 | H72: ='SA1'!H19 -> 0 | I72: ='SA1'!J19 -> 0 | J72: ='SA1'!K19 -> 0 | K72: ='SA1'!L19 -> 0
A73: Sanitation (in excess of free sanitation service to indigent households) | C73: ='SA1'!C25 -> 0 | D73: ='SA1'!D25 -> 0 | E73: ='SA1'!E25 -> 0 | F73: ='SA1'!F25 -> 0 | G73: ='SA1'!G25 -> 0 | H73: ='SA1'!H25 -> 0 | I73: ='SA1'!J25 -> 0 | J73: ='SA1'!K25 -> 0 | K73: ='SA1'!L25 -> 0
A74: Electricity/other energy (in excess of 50 kwh per indigent household per month) | C74: ='SA1'!C13 -> 0 | D74: ='SA1'!D13 -> 0 | E74: ='SA1'!E13 -> 0 | F74: ='SA1'!F13 -> 0 | G74: ='SA1'!G13 -> 0 | H74: ='SA1'!H13 -> 0 | I74: ='SA1'!J13 -> 0 | J74: ='SA1'!K13 -> 0 | K74: ='SA1'!L13 -> 0
A75: Refuse (in excess of one removal a week for indigent households) | C75: ='SA1'!C32 -> 0 | D75: ='SA1'!D32 -> 0 | E75: ='SA1'!E32 -> 0 | F75: ='SA1'!F32 -> 0 | G75: ='SA1'!G32 -> 0 | H75: ='SA1'!H32 -> 0 | I75: ='SA1'!J32 -> 0 | J75: ='SA1'!K32 -> 0 | K75: ='SA1'!L32 -> 0
A76: Municipal Housing - rental rebates
A77: Housing - top structure subsidies | B77: 6
A78: Other
A79: Total revenue cost of subsidised services provided | C79: =SUM(C70:C78) -> 0 | D79: =SUM(D70:D78) -> -4284699.39 | E79: 1067792.77 | F79: 9032854 | G79: 9032854 | H79: 9032854 | I79: 9466431 | J79: =SUM(J70:J78) -> 9882953 | K79: =SUM(K70:K78) -> 10327687
A80: =head27a -> References
A81: 1. Include services provided by another entity; e.g. Eskom
A82: 2. Stand distance <= 200m from dwelling
A83: 3. Stand distance > 200m from dwelling
A84: 4. Borehole, spring, rain-water tank etc.
A85: 5. Must agree to total number of households in municipal area (informal settlements receiving services must be included)
A86: 6. Include value of subsidy provided by municipality above provincial subsidy level
A87: 7. Show number of households receiving at least these levels of services completely free (informal settlements must be included)
A88: 8. Must reflect the cost to the municipality of providing the Free Basic Service
A89: 9. Reflect the cost to the municipality in terms of 'revenue foregone' of providing free services (note this will not equal 'Revenue Foregone' on SA1)

Sheet SA1
A1: =muni&" - "&TableA1 -> LIM355 Lepelle-Nkumpi - Supporting Table SA1 Supportinging detail to 'Budgeted Financial Performance'
A2: =desc -> Description | B2: =head27 -> Ref | C2: =head1b -> 2018/19 | D2: =head1A -> 2019/20 | E2: =Head1 -> 2020/21 | F2: =Head2 -> Current Year 2021/22 | J2: =Head3 -> 2022/23 Medium Term Revenue & Expenditure Framework
C3: =Head5 -> Audited Outcome | D3: =Head5 -> Audited Outcome | E3: =Head5 -> Audited Outcome | F3: =Head6 -> Original Budget | G3: =Head7 -> Adjusted Budget | H3: =Head8 -> Full Year Forecast | I3: =Head5b -> Pre-audit outcome | J3: =Head9 -> Budget Year 2022/23 | K3: =Head10 -> Budget Year +1 2023/24 | L3: =Head11 -> Budget Year +2 2024/25
A4: R thousand
A5: REVENUE ITEMS:
A6: ='A4-FinPerf RE'!A5 -> Property rates | B6: 6
A7: Total Property Rates | C7: 0 | D7: 4085164.38 | E7: 32818070.68 | F7: 41832357 | G7: 41832357 | H7: 41832357 | I7: 31855656.73 | J7: 43840312 | K7: 45769285 | L7: 47828903
A8: Less Revenue Foregone (exemptions, reductions and rebates and impermissable values in excess of section 17 of MPRA) | C8: 0 | D8: -4284699.39 | E8: 1067792.77 | F8: 9032854 | G8: 9032854 | H8: 9032854 | I8: 1334986.08 | J8: 9466431 | K8: 9882953 | L8: 10327687
A9: Net Property Rates | C9: =C7-C8 -> 0 | D9: =D7-D8 -> 8369863.77 | E9: 31750277.91 | F9: 32799503 | G9: 32799503 | H9: 32799503 | I9: 30520670.65 | J9: 34373881 | K9: 35886332 | L9: 37501216
A11: ='A4-FinPerf RE'!A6 -> Service charges - electricity revenue | B11: 6
A12: ="Total "&A11 -> Total Service charges - electricity revenue
A13: Less Revenue Foregone (in excess of 50 kwh per indigent household per month)
A14: Less Cost of Free Basis Services (50 kwh per indigent household per month) | C14: ='SA9'!E250 -> 0 | D14: ='SA9'!F250 -> 0 | E14: ='SA9'!G250 -> 0 | F14: ='SA9'!H250 -> 0 | G14: ='SA9'!I250 -> 0 | H14: ='SA9'!J250 -> 0 | J14: ='SA9'!K250 -> 0 | K14: ='SA9'!L250 -> 0 | L14: ='SA9'!M250 -> 0
A15: ="Net "& A11 -> Net Service charges - electricity revenue | C15: =C12-C13-C14 -> 0 | D15: =D12-D13-D14 -> 0 | E15: 0 | F15: 0 | G15: 0 | H15: 0 | I15: 0 | J15: 0 | K15: 0 | L15: 0
A17: ='A4-FinPerf RE'!A7 -> Service charges - water revenue | B17: 6
A18: ="Total "&A17 -> Total Service charges - water revenue | C18: 0 | D18: 16512163.87 | E18: 0 | F18: 0 | G18: 0 | H18: 0 | I18: -12642985.52 | J18: 0 | K18: 0 | L18: 0
A19: Less Revenue Foregone (in excess of 6 kilolitres per indigent household per month)
A20: Less Cost of Free Basis Services (6 kilolitres per indigent household per month) | C20: ='SA9'!E262 -> 0 | D20: ='SA9'!F262 -> 0 | E20: ='SA9'!G262 -> 0 | F20: ='SA9'!H262 -> 0 | G20: ='SA9'!I262 -> 0 | H20: ='SA9'!J262 -> 0 | J20: ='SA9'!K262 -> 0 | K20: ='SA9'!L262 -> 0 | L20: ='SA9'!M262 -> 0
A21: ="Net "& A17 -> Net Service charges - water revenue | C21: =C18-C19-C20 -> 0 | D21: =D18-D19-D20 -> 16512163.87 | E21: 0 | F21: 0 | G21: 0 | H21: 0 | I21: -12642985.52 | J21: 0 | K21: 0 | L21: 0
A23: ='A4-FinPerf RE'!A8 -> Service charges - sanitation revenue
A24: ="Total "&A23 -> Total Service charges - sanitation revenue | C24: 0 | D24: 3730237.61 | E24: 0 | F24: 0 | G24: 0 | H24: 0 | I24: -1629763.05 | J24: 0 | K24: 0 | L24: 0
A25: Less Revenue Foregone (in excess of free sanitation service to indigent households)
A26: Less Cost of Free Basis Services (free sanitation service to indigent households) | C26: ='SA9'!E274 -> 0 | D26: ='SA9'!F274 -> 0 | E26: ='SA9'!G274 -> 0 | F26: ='SA9'!H274 -> 0 | G26: ='SA9'!I274 -> 0 | H26: ='SA9'!J274 -> 0 | J26: ='SA9'!K274 -> 0 | K26: ='SA9'!L274 -> 0 | L26: ='SA9'!M274 -> 0
A27: ="Net "& A23 -> Net Service charges - sanitation revenue | C27: =C24-C25-C26 -> 0 | D27: =D24-D25-D26 -> 3730237.61 | E27: 0 | F27: 0 | G27: 0 | H27: 0 | I27: -1629763.05 | J27: 0 | K27: 0 | L27: 0
A29: ='A4-FinPerf RE'!A9 -> Service charges - refuse revenue | B29: 6
A30: Total refuse removal revenue | C30: 0 | D30: 2823088.34 | E30: 6433333.48 | F30: 6814310 | G30: 6814310 | H30: 6814310 | I30: 5814239.34 | J30: 7141395 | K30: 7455617 | L30: 7791120
A31: Total landfill revenue
A32: Less Revenue Foregone (in excess of one removal a week to indigent households)
A33: Less Cost of Free Basis Services (removed once a week to indigent households) | C33: ='SA9'!E286 -> 0 | D33: ='SA9'!F286 -> 0 | E33: ='SA9'!G286 -> 0 | F33: ='SA9'!H286 -> 19835 | G33: ='SA9'!I286 -> 19835 | H33: ='SA9'!J286 -> 19835 | I33: 0 | J33: ='SA9'!K286 -> 20786 | K33: ='SA9'!L286 -> 21701 | L33: ='SA9'!M286 -> 22677
A34: ="Net "& A29 -> Net Service charges - refuse revenue | C34: =SUM(C30:C31)-C32-C33 -> 0 | D34: =SUM(D30:D31)-D32-D33 -> 2823088.34 | E34: 6433333.48 | F34: 6794475 | G34: 6794475 | H34: 6794475 | I34: 5814239.34 | J34: 7120609 | K34: 7433916 | L34: 7768443
A36: Other Revenue by source
A37: Fuel Levy
A38: Other Revenue | C38: 0 | D38: 1403972.78 | E38: 540857.83 | F38: 122919270 | G38: 122754767 | H38: 122754767 | I38: 10265716.7 | J38: 131730082 | K38: 118922125 | L38: 114273616
A49: Total 'Other' Revenue | B49: 1 | C49: =SUM(C37:C38) -> 0 | D49: =SUM(D37:D38) -> 1403972.78 | E49: =SUM(E37:E38) -> 540857.83 | F49: 122919270 | G49: 122754767 | H49: 122754767 | I49: 10265716.7 | J49: 131730082 | K49: 118922125 | L49: 114273616
A51: EXPENDITURE ITEMS:
A52: ='A4-FinPerf RE'!A24 -> Employee related costs
A53: Basic Salaries and Wages | B53: 2 | C53: 0 | D53: 16183599.68 | E53: 60237619.92 | F53: 81925127 | G53: 72647263 | H53: 72647263 | I53: 57060704.64 | J53: 87320694 | K53: 91162043 | L53: 95264975
A54: Pension and UIF Contributions | C54: 0 | D54: 3010495.75 | E54: 12040366.74 | F54: 14752604 | G54: 14159397 | H54: 14159397 | I54: 10950530.02 | J54: 15888336 | K54: 16588433 | L54: 17334918
A55: Medical Aid Contributions | C55: 0 | D55: 821024.28 | E55: 3637680.84 | F55: 3877150 | G55: 6219905 | H55: 6219905 | I55: 3354463.08 | J55: 6219905 | K55: 6493577 | L55: 6785789
A56: Overtime | C56: 0 | D56: 427665.98 | E56: 959567.87 | F56: 1916073 | G56: 1626550 | H56: 1626550 | I56: 1226160.64 | J56: 1626550 | K56: 1698118 | L56: 1774534
A57: Performance Bonus | C57: 0 | D57: 1343545.67 | E57: 4797555.8 | F57: 5056617 | G57: 4574967 | H57: 4574967 | I57: 4512457.9 | J57: 4930226 | K57: 5147155 | L57: 5378781
A58: Motor Vehicle Allowance | C58: 0 | D58: 3003793.76 | E58: 7003559.02 | F58: 8081155 | G58: 7235485 | H58: 7235485 | I58: 6343861.18 | J58: 9282719 | K58: 9691155 | L58: 10127262
A59: Cellphone Allowance | C59: 0 | D59: 891945.66 | E59: 976320 | F59: 1148700 | G59: 962845 | H59: 962845 | I59: 831925 | J59: 2679680 | K59: 2797589 | L59: 2923318
A60: Housing Allowances | C60: 0 | D60: 70806.06 | E60: 285494.96 | F60: 326955 | G60: 265550 | H60: 265550 | I60: 231482.4 | J60: 265550 | K60: 277233 | L60: 289710
A61: Other benefits and allowances | C61: 0 | D61: 10455.35 | E61: 3781191.92 | F61: 2349094 | G61: 2230034 | H61: 2230034 | I61: 2375319.22 | J61: 2602378 | K61: 2716639 | L61: 2838379
A62: Payments in lieu of leave | C62: 0 | D62: 78108.96 | E62: 409706.8 | F62: 3189749 | G62: 3189749 | H62: 3189749 | I62: 270775.36 | J62: 3342859 | K62: 3489939 | L62: 3646987
A63: Long service awards | C63: 0 | D63: 85694.3 | E63: 597656.78 | F63: 464956 | G63: 488700 | H63: 488700 | I63: 572431.26 | J63: 555319 | K63: 579755 | L63: 605846
A64: Post-retirement benefit obligations | B64: 4 | C64: 0 | D64: 0 | E64: 1593443 | F64: 0 | G64: 0 | H64: 0 | I64: 0 | J64: 0 | K64: 0 | L64: 0
